Workbook

Sheet dummy_database (hidden)
A1: From Natutal Resources, Start or Crop budget
B2: From energy sheet
B3: Residue1 | C3: Residue2 | D3: Residue3 | E3: Residue4 | O3: Moisture (%) | P3: Particle size (mm) | Q3: %Residue dry basis | R3: %Residue wet basis
A4: =title420 -> Amount (ton per year) | B4: 2500 | C4: 3000 | D4: 3500 | E4: 1000 | L4: =title426 -> barley | M4: =title427 -> straw | N4: =+L4&M4 -> barleystraw | O4: 0.08 | P4: 7 | Q4: 0.23 | R4: =+Q4/(1-O4) -> 0.25
A5: =title421 -> Feedstock yield (ton per ha) | B5: 80 | C5: 90 | D5: 100 | E5: 110 | L5: =title82 -> cacao | M5: =title428 -> pods | N5: =+L5&M5 -> cacaopods | O5: 0.09 | P5: 8 | Q5: 0.3441 | R5: =+Q5/(1-O5) -> 0.3781318681
A6: =title422 -> Cost (dedicated wood) | B6: 100 | C6: 200 | D6: 300 | E6: 400 | L6: =title83 -> cassava | M6: =title429 -> stalk | N6: cassavastalk | O6: 0.08 | P6: 8 | Q6: 0.135 | R6: 0.1467391304
A7: =title325 -> Unskilled labour wage | B7: 1 | C7: =title424 -> USD/Person/h | L7: =title84 -> coconut | M7: =title430 -> fronds | N7: coconutfronds | O7: 0.09 | P7: 6 | Q7: 0.3487 | R7: 0.3831868132
A8: =title321 -> Skilled labour wage | B8: 1.5 | C8: =title424 -> USD/Person/h | L8: =title84 -> coconut | M8: =title431 -> husk | N8: coconuthusk | O8: 0.09 | P8: 8 | Q8: 0.3487 | R8: 0.3831868132
A9: =title423 -> Price Fuel | B9: 2 | C9: USD/L | L9: =title84 -> coconut | M9: =title432 -> shell | N9: coconutshell | O9: 0.09 | P9: 8 | Q9: 0.3487 | R9: 0.3831868132
L10: =title85 -> coffee | M10: =title431 -> husk | N10: coffeehusk | O10: 0.09 | P10: 6 | Q10: 0.4093 | R10: 0.4497802198
A11: Energy consumption profile proxies available on: http://www.indexmundi.com/commodities/ | L11: =title86 -> cotton | M11: =title433 -> hull | N11: cottonhull | O11: 0.09 | P11: 6 | Q11: 0.435 | R11: 0.478021978
B12: =title354 -> Rural | F12: =title355 -> Urban | L12: =title86 -> cotton | M12: =title429 -> stalk | N12: cottonstalk | O12: 0.08 | P12: 7 | Q12: 0.435 | R12: 0.472826087
A13: Energy consumption/household | B13: Units | C13: Units | D13: Energy consumption/household | F13: Units | G13: Units | L13: =title87 -> groundnut | M13: =title431 -> husk | N13: groundnuthusk | O13: 0.09 | P13: 7 | Q13: 0.5472 | R13: 0.6013186813
A14: in Rural Area | B14: Price | C14: =title30 -> Consumption | D14: in Urban Area | F14: Price | G14: =title30 -> Consumption | L14: =title88 -> maize | M14: =title434 -> cob | N14: maizecob | O14: 0.08 | P14: 6 | Q14: 0.119 | R14: 0.1293478261
B15: USD/kg | C15: =title51 -> kg/day | F15: USD/kg | G15: =title51 -> kg/day | L15: =title88 -> maize | M15: =title431 -> husk | N15: maizehusk | O15: 0.09 | P15: 7 | Q15: 0.119 | R15: 0.1307692308
A16: =title425 -> Pellet | B16: 0.1 | C16: 0 | D16: =title425 -> Pellet | F16: 0.15 | G16: 0 | L16: =title88 -> maize | M16: =title435 -> Stover | N16: maizeStover | O16: 0.09 | P16: 8 | Q16: 0.119 | R16: 0.1307692308
A17: =title38 -> Fuel wood | B17: 0.06 | C17: 9.3 | D17: =title38 -> Fuel wood | F17: 0.06 | G17: 0 | L17: =title89 -> millet | M17: =title427 -> straw | N17: milletstraw | O17: 0.09 | P17: 6 | Q17: 0.11 | R17: 0.1208791209
A18: =title39 -> Charcoal | B18: 0.11 | C18: 0 | D18: =title39 -> Charcoal | F18: 0.11 | G18: 1 | L18: =title90 -> oat | M18: =title427 -> straw | N18: oatstraw | O18: 0.09 | P18: 8 | Q18: 0.6293 | R18: 0.6915384615
A19: =title41 -> Kerosene | B19: 0.58 | C19: 1 | D19: =title41 -> Kerosene | F19: 0.58 | G19: 9 | L19: =title91 -> oil palm | M19: =title436 -> empty bunches | N19: oil palmempty bunches | O19: 0.08 | P19: 6 | Q19: 0.3156 | R19: 0.3430434783
A20: =title42 -> LPG | B20: 0.64 | C20: 0 | D20: =title42 -> LPG | F20: 0.64 | G20: 1 | L20: =title91 -> oil palm | M20: =title430 -> fronds | N20: oil palmfronds | O20: 0.08 | P20: 8 | Q20: 0.3156 | R20: 0.3430434783
L21: =title91 -> oil palm | M21: =title432 -> shell | N21: oil palmshell | O21: 0.09 | P21: 7 | Q21: 0.3156 | R21: 0.3468131868
A22: Country | B22: Tanzania, Republic of | L22: =title92 -> rice | M22: =title427 -> straw | N22: ricestraw | O22: 0.08 | P22: 6 | Q22: 0.3293818182 | R22: 0.3580237154
L23: =title92 -> rice | M23: =title431 -> husk | N23: ricehusk | O23: 0.09 | P23: 7 | Q23: 0.3293818182 | R23: 0.361958042
L24: rye | M24: =title427 -> straw | N24: ryestraw | O24: 0.09 | P24: 6 | Q24: 0.392 | R24: 0.4307692308
L25: =title93 -> sorghum | M25: =title437 -> straw/stalk | N25: sorghumstraw/stalk | O25: 0.08 | P25: 7 | Q25: 0.145 | R25: 0.1576086957
L26: =title94 -> soybean | M26: =title427 -> straw | N26: soybeanstraw | O26: 0.08 | P26: 8 | Q26: 0.654 | R26: 0.7108695652
L27: =title94 -> soybean | M27: =title428 -> pods | N27: soybeanpods | O27: 0.09 | P27: 7 | Q27: 0.654 | R27: 0.7186813187
L28: =title95 -> sugarcane | M28: =title438 -> tops/leaves | N28: sugarcanetops/leaves | O28: 0.08 | P28: 8 | Q28: 0.165 | R28: 0.1793478261
L29: =title95 -> sugarcane | M29: =title439 -> bagasse | N29: sugarcanebagasse | O29: 0.08 | P29: 7 | Q29: 0.165 | R29: 0.1793478261
L30: =title96 -> wheat | M30: =title427 -> straw | N30: wheatstraw | O30: 0.09 | P30: 6 | Q30: 0.128 | R30: =+Q30/(1-O30) -> 0.1406593407
L31: =title487 -> Forest | M31: =title489 -> Harv. Res. | N31: =+L31&M31 -> ForestHarv. Res. | O31: 0.08 | P31: 6 | Q31: 0.11 | R31: =+Q31/(1-O31) -> 0.1195652174
L32: =title488 -> Wood | M32: =title490 -> Proc. Res. | N32: =+L32&M32 -> WoodProc. Res. | O32: 0.08 | P32: 7 | Q32: 0.14 | R32: =+Q32/(1-O32) -> 0.152173913

Sheet Briquette Tech (hidden)
B2: Briquetting technologies comparison
B4: Briquetting technologies | C4: Screw press | D4: Piston Press | E4: Roller press | F4: =title485 -> Pellet mill | G4: =title484 -> Agglomerator | H4: =title272 -> Manual
B5: Production capacity (kg/hr) | C5: 150 kg/hr | D5: 200 - 2,500 kg/hr | E5: 900-1,500 kg/hr | F5: 200 - 8,000 kg/hr | G5: No information | H5: 6 kg/hr
B6: Optimum moisture content of the raw material | C6: 8–9% | D6: 10–15% | E6: 10–15% | F6: 10–15% | G6: No information | H6: up to 80%
B7: Particle size | C7: Smaller | D7: Larger | E7: Larger | F7: Smaller | G7: Smaller-powder | H7: Smaller-fiber
B8: Wear of contact parts | C8: High | D8: Low | E8: High | F8: High | G8: Low | H8: Low
B9: Output from machine | C9: Continuous | D9: In strokes | E9: Continuous | F9: Continuous | G9: Continuous | H9: In strokes
B10: Specific energy consumption (kWh/ton) | C10: 36.8-150 | D10: 37.4-77 | E10: 29.91-83.1 | F10: 16.4-74.5 | G10: No information | H10: No electricity
B11: Through puts (ton/hr) | C11: 0.5 | D11: 2.5 | E11: 5.0-10.0 | F11: 5 | G11: No information | H11: No information
B12: Density of briquette | C12: 1-1.4 g/cm3 | D12: 1-1.2 g/cm3 | E12: 0.6-0.7 g/cm3 | F12: 0.7-0.8 g/cm3 | G12: 0.4-0.5 g/cm3 | H12: No information
B13: Maintenance | C13: Low | D13: High | E13: Low | F13: Low | G13: Low | H13: Low
B14: Combustion performance of briquettes | C14: Very good | D14: Moderate | E14: Moderate | F14: Very good | G14: No information | H14: Moderate
B15: Carbonization of charcoal | C15: Makes good charcoal | D15: Not possible | E15: Not possible | F15: Not possible | G15: Not possible | H15: Yes
B16: Suitability in gasifiers | C16: Suitable | D16: Suitable | E16: Suitable | F16: Suitable | G16: Suitable | H16: No information
B17: Suitability for cofiring | C17: Suitable | D17: Suitable | E17: Suitable | F17: Suitable | G17: Suitable | H17: Suitable
B18: Suitability for biochemical conversion | C18: Not suitable | D18: Suitable | E18: Suitable | F18: Suitable | G18: No information | H18: No information
B19: Homogeneity of densified biomass | C19: Homogenous | D19: Not homogenous | E19: Not homogenous | F19: Homogenous | G19: Homogenous | H19: Homogenous
B20: Cost (USD) | C20: 1350 | D20: 20,000-30,000 | E20: 14,000-19,000 | F20: No information | G20: No information | H20: 150
B22: Source: Tumuluru et al., 2010

Sheet Raw mat_Pellet (hidden)
B2: Raw material conversion factor for biomass pelleting project
B3: Summary of Specifications for Four Different Pelleting Equipment (Pellet mill) [1]
B4: Biomass consumption based on pelleting machine
B5: Technology | C5: Bulk density improvement
B6: =title485 -> Pellet mill | C6: 800
B8: Water consumption | C8: kg of Briquette per m3 | D8: Ref
B9: 2.5 ton of pellets/h | C9: 4166.6666 | D9: http://www.teccon.at/pdf/PELLETTOWER.pdf
B10: 10 ton of pellets/h | C10: 0.6
B12: Binding agent | C12: Binding agent consumption (%mass) | D12: Ref
B13: =title103 -> None | C13: 10000000000
B14: =title328 -> Ground maize starch | C14: 2 | D14: http://www.teccon.at/pdf/PELLETTOWER.pdf
B15: =title329 -> Cassava flour | C15: 10
B16: =title330 -> Maize flour | C16: 10
B17: =title331 -> Wheat flour | C17: 10
B19: Estimated Electricity consumption based on pelleting machine | C19: Average kWh per Ton of Pellet | D19: Ref
B20: =title485 -> Pellet mill | C20: =(16.4+74.5)/2 -> 45.45 | D20: Tumuluru et al. 2010. A Review on Biomass

Sheet Pellet Tech (hidden)
F1: Pellet mill has two types of pellet presses [6]
F2: Ring die | G2: Flat die
E4: Summary of Specifications for Four Different Pelleting Equipment (Pellet mill) [2]
B5: Pelleting technologies | C5: Pellet mill [1]-[4] | E5: Company | F5: La Meccanica | G5: NOVA Pellet | H5: Kerry Die | I5: Amandus Kahl
B6: Production capacity (kg/hr) | C6: 200 - 8000 | E6: Model | F6: CLM 800 P LG (Ring Die) | G6: N-Plus (Ring Die) | H6: B-Mass (Ring Die) | I6: 60-1250 (Flat Die)
B7: Optimum moisture content of the raw material | C7: 10–15% | E7: Roller Quantity | F7: 2 | G7: Unknown | H7: 6 | I7: 4 – 5
B8: Shape of pellets | C8: cylindrical | E8: Drive Power (kW) | F8: Up to 280 | G8: 160 | H8: 450 | I8: 3 - 500
B9: Time of spheronization (min) | C9: No information | E9: Energy Consumption | F9: Unknown | G9: Unknown | H9: Unknown | I9: 40 – 60 KWh/t
B10: Motor speed (rpm) | C10: 750 | E10: Capacity (ton/h) | F10: 2.3 – 3 | G10: Up to 2.5 | H10: 10 | I10: 15 – 20
B11: Particle size (mm) | C11: Smaller (2-18) [2] | E11: Operation Mode | F11: Continuous | G11: Continuous | H11: Continuous | I11: Continuous
B12: Wear of contact parts | C12: High | E12: Weight (kg) | F12: 10800 | G12: 7500 | H12: Unknown | I12: 9370
B13: Output from machine | C13: Continuous | E13: Roll Diameter (mm) | F13: Unknown | G13: 245 | H13: 250 | I13: 450
B14: Specific energy consumption (kWh/ton) | C14: 16.4-74.5 | E14: Motor speed (rpm) | F14: 750 | G14: Unknown | H14: 1490 | I14: Unknown
B15: Through puts (ton/hr) | C15: 5 | E15: Roller Speed (m/s) | F15: 6.5 – 7.5 | G15: Variable | H15: variable | I15: 2.5
B16: Density of pellet (kg/m3) | C16: 700-800 | E16: Die Diameter (mm) | F16: Unknown | G16: 580 | H16: 840 | I16: 175 – 1250
B17: Maintenance | C17: Low | E17: Input Density (kg/m3) | F17: Unknown | G17: Unknown | H17: Unknown | I17: 150
B18: Combustion performance of pellets | C18: Very good | E18: Output Density (kg/m3) | F18: Unknown | G18: Unknown | H18: Unknown | I18: 550 – 650
B19: Homogeneity of densified biomass | C19: Homogenous | E19: Feedstock Moisture | F19: Unknown | G19: 8 – 12% | H19: Unknown | I19: 12 – 15 wt%
B20: Cost (USD) | C20: 900-1050 [5] | E20: Feedstock Size | F20: Unknown | G20: 0.5 – 1.5 mm | H20: Unknown | I20: 4 mm
E21: Pellet Moisture | F21: 9 – 12 wt% | G21: Unknown | H21: Unknown | I21: 12 wt%
E22: Pellet diameter (mm) | F22: 6 | G22: 6 | H22: 8 | I22: 2 – 30
B23: References
B24: [1] Tumuluru et al. 2010. A Review on Biomass Densification Technologies for Energy Application
B25: [2] Bimal Acharya. Torrefaction and Pelletization of Different Forms of Biomass of Ontario. Thesis of Master of Applied Science. 2013 in Engineering
B26: [3] http://shzhengchang-892205.en.gongchang.com/product/13077488
B27: [4] http://www.feedmachinery.com/
B28: [5] www.alibaba.com
B29: [6] Sui Lam et al. 2013 Chapter 5 Pretreatment and Pelletization of Woody Biomass
B30: [7] Assessing the Technology Options for Creating a BIOHEAT Industry in Alberta, Resource Efficient Agricultural Production (REAP)- Canada. 2008

Sheet Investment_Pellet (hidden)
B1: =15*1000/2400 -> 6.25 | C1: =2400*(4/1000)*$D$23 -> 0 | D1: =2400*2*$D$23 -> 0 | E1: =4800*6*$D$25 -> 0 | F1: =4800*15*$D$27 -> 0
B2: Investment cost of pellet project | G2: 0.6
C3: http://www.col-int.com/pellet-presses-dies-c-129/lab-pellet-presses-c-129_130/manual-presses-c-129_130_143/manual-pellet-press-with-builtin-hydraulic-pump-lpm15t-p-310.html | D3: 2 tonnes/h | G3: http://www.biomass.ubc.ca/docs/Publications/2006-05-22%20Economics%20of%20pelletization.pdf
B4: Pellet Process Operations | C4: 4 kg/h | D4: 40 kg/h | E4: 400 kg/h | F4: 4000 kg/h | G4: Equipment | H4: Installation | I4: Building
C5: Total Cost (USD) | D5: Total Cost (USD) | E5: Total Cost (USD) | F5: Total Cost (USD) | G5: 6 t/h | H5: 6 t/h | I5: 6 t/h
B6: Hammer mill | C6: 43.776 | D6: =G6*(40/1000/6)^$G$2 -> 2968.222788 | E6: =$G6*(0.4/6)^$G$2 -> 11816.70776 | F6: =$G6*(4/6)^$G$2 -> 47043.1609 | G6: 60000 | H6: 24000
B7: Pellet mill | C7: 1499 | D7: =G7*(40/1000/6)^$G$2 -> 15583.16964 | E7: =$G7*(0.4/6)^$G$2 -> 62037.71572 | F7: =$G7*(4/6)^$G$2 -> 246976.5947 | G7: 315000 | H7: 160000
B8: Pellet cooler | D8: 1583.052153 | E8: 6302.244137 | F8: 25089.68581 | G8: 32000 | H8: 24000
B9: Screening | D9: 1187.289115 | E9: 4726.683103 | F9: 18817.26436 | G9: 24000 | H9: 14000
B10: Packing | C10: 87.552 | D10: 3957.630384 | E10: 15755.61034 | F10: 62724.21453 | G10: 80000 | H10: 15000
B11: Miscelaneous | C11: =F11*(4/1000/6)^$G$2 -> 1558.872055 | D11: 7915.260767 | E11: 31511.22068 | F11: 125448.4291 | G11: 160000 | H11: 68000
B12: Total cost | C12: =SUM(C6:C11) -> 3189.200055 | D12: =SUM(D6:D11) -> 33194.62484 | E12: 132150.1817 | F12: 526099.3494 | G12: =SUM(G6:G11) -> 671000 | H12: =SUM(H6:H11) -> 305000 | I12: 112000
B15: Capacity (kg/h) | C15: Installation Cost (Pelleting & Cooling Plant) USD | D15: Building Cost USD
B17: 4 | C17: =143.155 -> 143.155 | D17: =$I$12*(4/1000/6)^$G$2 -> 1391.756529
B18: 40 | C18: =$H$12*(4/100/6)^$G$2 -> 15088.46584 | D18: =$I$12*(40/1000/6)^$G$2 -> 5540.682537
B19: 400 | C19: =$H$12*(400/1000/6)^$G$2 -> 60068.26443 | D19: =$I$12*(400/1000/6)^$G$2 -> 22057.85448
B20: 4000 | C20: =$H$12*(4/6)^$G$2 -> 239136.0679 | D20: =$I$12*(4/6)^$G$2 -> 87813.90035

Sheet Title (hidden)
B2: Selection | C2: =VLOOKUP(START!B3,$A$3:$C$5,3,FALSE) -> 1
A3: EN | B3: English | C3: 1
A4: FR | B4: French | C4: 2
A5: ES | B5: Spanish | C5: 3
A7: ID | B7: English | C7: French | D7: Spanish | E7: Typeof | F7: Ref | G7: Name
A8: 1 | B8: 1 | C8: 2 | D8: 3
A9: 2 | B9: RAPID APPRAISAL TOOL FOR PELLETS PRODUCTION | C9: L'OUTIL DE L'ÉVALUATION RAPIDE DE LA PRODUCTION DES GRANULÉS DE BOIS | D9: HERRAMIENTA DE EVALUACIÓN RÁPIDA PARA LA PRODUCCIÓN DE PELLETS | E9: title | F9: =HLOOKUP($C$2,$B$8:$D9,$A9,FALSE) -> RAPID APPRAISAL TOOL FOR PELLETS PRODUCTION | G9: =$E9&$A9 -> title2
A10: 3 | B10: Disclaimer | C10: Déni de responsabilité | D10: Descargo de Responsabilidad | E10: title | F10: =HLOOKUP($C$2,$B$8:$D10,$A10,FALSE) -> Disclaimer | G10: title3
A11: 4 | B11: FAO declines all responsibility for errors or deficiencies in the database or software or in the documentation accompanying it, for program maintenance and upgrading as well as for any damage that may arise from them. FAO also declines any responsibility for updating the data and assumes no responsibility for errors and omissions in the data provided. Users are, however, kindly asked to report any errors or deficiencies in this product to FAO. The choices of calculation made in this tool are those of the author(s) and do not necessarily reflect the views and choices of the Food and Agriculture Organization of the United Nations. | C11: La FAO décline toute responsabilité quant aux erreurs ou défauts des textes du présent site et des bases de données y afférentes, ainsi que pour les dommages pouvant en résulter. La FAO décline également toute responsabilité quant à la mise à jour des données et se dégage de toute responsabilité quant aux erreurs ou omissions concernant les données fournies. Les utilisateurs sont toutefois invités à signaler toute erreur ou lacune de ce produit à la FAO. Les choix des calculs faits dans le présent outil sont celles du/des auteur(s) et ne reflètent pas nécessairement les choix et opinions de l’Organisation des Nations Unies pour l’alimentation et l’agriculture (FAO). | D11: La FAO declina cualquier responsabilidad por errores u otros defectos del banco de datos, programa o de la documentación que los acompaña, o por cualquier daño derivado de ellos, así como por el mantenimiento y el mejoramiento de los programas. La FAO declina asimismo cualquier responsabilidad por la actualización de los datos, o por errores u omisiones en los datos que se han proporcionado. Se pide no obstante a los usuarios que señalen eventuales errores o defectos de este producto a la FAO. La elección de los cálculos presente en esta herramienta son las del/de los autor(es) y no reflejan necesariamente las opiniones y elecciones de la Organización de las Naciones Unidas para la Agricultura y la Alimentación. | E11: title | F11: =HLOOKUP($C$2,$B$8:$D11,$A11,FALSE) -> FAO declines all responsibility for errors or deficiencies in the database or software or in the documentation accompanying it, for program maintenance and upgrading as well as for any damage that may arise from them. FAO also declines any responsibility for updating the data and assumes no responsibility for errors and omissions in the data provided. Users are, however, kindly asked to report any errors or deficiencies in this product to FAO. The choices of calculation made in this tool are those of the author(s) and do not necessarily reflect the views and choices of the Food and Agriculture Organization of the United Nations. | G11: title4
A12: 5 | B12: BIOMASS PELLET SYSTEM FOR RURAL/URBAN ENERGY | C12: SYSTÈME DE PRODUCTION DES GRANULÉS DE BOIS POUR L'ÉNERGIE RURALE/URBAINE | D12: SISTEMA DE PRODUCCIÓN DE PELLETS PARA ENERGÍA RURAL/URBANA | E12: title | F12: =HLOOKUP($C$2,$B$8:$D12,$A12,FALSE) -> BIOMASS PELLET SYSTEM FOR RURAL/URBAN ENERGY | G12: title5
A13: 6 | B13: Moist Biomass | C13: Biomasse Humide | D13: Biomasa Húmeda | E13: title | F13: =HLOOKUP($C$2,$B$8:$D13,$A13,FALSE) -> Moist Biomass | G13: title6
A14: 7 | B14: Cutting | C14: Coupe | D14: Cortado | E14: title | F14: =HLOOKUP($C$2,$B$8:$D14,$A14,FALSE) -> Cutting | G14: title7
A15: 8 | B15: Milling | C15: Broyage | D15: Molido | E15: title | F15: =HLOOKUP($C$2,$B$8:$D15,$A15,FALSE) -> Milling | G15: title8
A16: 9 | B16: Pelleting | C16: Production du granulés de bois | D16: Pelletizado | E16: title | F16: =HLOOKUP($C$2,$B$8:$D16,$A16,FALSE) -> Pelleting | G16: title9
A17: 10 | B17: Cooling | C17: Refroidissement | D17: Enfriamiento | E17: title | F17: =HLOOKUP($C$2,$B$8:$D17,$A17,FALSE) -> Cooling | G17: title10
A18: 11 | B18: Pellet Packing and Storage | C18: Emballage et stockage des granulés de bois | D18: Embalado y Almacenamiento de los pellets | E18: title | F18: =HLOOKUP($C$2,$B$8:$D18,$A18,FALSE) -> Pellet Packing and Storage | G18: title11
A19: 12 | B19: Distribute to Market | C19: Distribution au marché | D19: Distribución al mercado | E19: title | F19: =HLOOKUP($C$2,$B$8:$D19,$A19,FALSE) -> Distribute to Market | G19: title12
A20: 13 | B20: Industrial | C20: Industriel | D20: Industrial | E20: title | F20: =HLOOKUP($C$2,$B$8:$D20,$A20,FALSE) -> Industrial | G20: title13
A21: 14 | B21: Commercial | C21: Commercial | D21: Comercial | E21: title | F21: =HLOOKUP($C$2,$B$8:$D21,$A21,FALSE) -> Commercial | G21: title14
A22: 15 | B22: Residential | C22: Résidentiel | D22: Residencial | E22: title | F22: =HLOOKUP($C$2,$B$8:$D22,$A22,FALSE) -> Residential | G22: title15
A23: 16 | B23: Wood pellet specifications | C23: Caractéristiques des granulés de bois | D23: Especificaciones de los pellets | E23: title | F23: =HLOOKUP($C$2,$B$8:$D23,$A23,FALSE) -> Wood pellet specifications | G23: title16
A24: 17 | B24: Particle size: 6mm to 8mm for domestic and small scale systems, 10-12 mm for larger systems | C24: Taille de la particule: 6 à 8mm pour les systèmes à petite échelle et à échelle nationale, 10-12 mm pour les systèmes plus grands | D24: Tamaño de las particulas: 6 a 8 mm para uso doméstico y a pequeña escala, 10 a 12 mm para sistemas de mayor tamaño | E24: title | F24: =HLOOKUP($C$2,$B$8:$D24,$A24,FALSE) -> Particle size: 6mm to 8mm for domestic and small scale systems, 10-12 mm for larger systems | G24: title17
A25: 18 | B25: Moisture content: less than 10% | C25: Teneur en Humidité: moins de 10% | D25: Contenido de Humedad: menor a 10% | E25: title | F25: =HLOOKUP($C$2,$B$8:$D25,$A25,FALSE) -> Moisture content: less than 10% | G25: title18
A26: 19 | B26: Calorific value: less than 4.7kWh/kg | C26: Pouvoir Calorifique: moins de 4.7kWh/kg | D26: Poder calorífico: menor a 4.7 kWh/kg | E26: title | F26: =HLOOKUP($C$2,$B$8:$D26,$A26,FALSE) -> Calorific value: less than 4.7kWh/kg | G26: title19
A27: 20 | B27: Ash content: less than 1% (low), less than 3% (standard) or less than 6% (high); to be clearly labelled | C27: Teneur en cendres : moins de 1% (faible), moins de 3% (standard) ou moins de 6% (élevé); doit être clairement mentionné | D27: Contenido de cenizas: menor a 1% (bajo), menor a 3% (standard) o menor a 6% (alto); debe ser claramente mencionado | E27: title | F27: =HLOOKUP($C$2,$B$8:$D27,$A27,FALSE) -> Ash content: less than 1% (low), less than 3% (standard) or less than 6% (high); to be clearly labelled | G27: title20
A28: 21 | B28: Bulk density: less than 600 kg/m3 | C28: Densité volumique: moins de 600 kg/m3 | D28: Densidad volumétrica (bulk density): menor a 600 kg/m3 | E28: title | F28: =HLOOKUP($C$2,$B$8:$D28,$A28,FALSE) -> Bulk density: less than 600 kg/m3 | G28: title21
A29: 22 | B29: Sulfur content: less than 300 ppm | C29: Teneur en soufre: moins de 300 ppm | D29: Contenido de sulfuro: menor a 300 ppm | E29: title | F29: =HLOOKUP($C$2,$B$8:$D29,$A29,FALSE) -> Sulfur content: less than 300 ppm | G29: title22
A30: 23 | B30: Chlorine: less than: 800ppm | C30: Chlore: moins de 800ppm | D30: Cloro: menor a 800 ppm | E30: title | F30: =HLOOKUP($C$2,$B$8:$D30,$A30,FALSE) -> Chlorine: less than: 800ppm | G30: title23
A31: 24 | B31: Only additives: lignin and trace amounts of vegetable oil as a die lubricant | C31: Les seuls additifs: la lignine et des infimes quantités d'huile végétale en tant que lubrifiant de matrice | D31: Aditivos únicos: lignina y rastros de aceites vegetales usados para teñir | E31: title | F31: =HLOOKUP($C$2,$B$8:$D31,$A31,FALSE) -> Only additives: lignin and trace amounts of vegetable oil as a die lubricant | G31: title24
A32: 25 | B32: ENERGY DEMAND FOR PELLET PRODUCTION | C32: DEMANDE EN ÉNERGIE POUR LA PRODUCTION DE GRANULÉS DE BOIS | D32: DEMANDA DE ENERGÍA PARA LA PRODUCCIÓN DE PELLETS | E32: title | F32: =HLOOKUP($C$2,$B$8:$D32,$A32,FALSE) -> ENERGY DEMAND FOR PELLET PRODUCTION | G32: title25
A33: 26 | B33: Energy Consumption per Household (hh) | C33: Consommation d'Énergie par Ménages (hh) | D33: Consumo de energía por hogar (hh) | E33: title | F33: =HLOOKUP($C$2,$B$8:$D33,$A33,FALSE) -> Energy Consumption per Household (hh) | G33: title26
A34: 27 | B34: Rural Households | C34: Ménages Ruraux | D34: Hogar Rural | E34: title | F34: =HLOOKUP($C$2,$B$8:$D34,$A34,FALSE) -> Rural Households | G34: title27
A35: 28 | B35: Urban Households | C35: Ménages Urbains | D35: Hogar Urbano | E35: title | F35: =HLOOKUP($C$2,$B$8:$D35,$A35,FALSE) -> Urban Households | G35: title28
A36: 29 | B36: Market price | C36: Prix du Marché | D36: Precio de Mercado | E36: title | F36: =HLOOKUP($C$2,$B$8:$D36,$A36,FALSE) -> Market price | G36: title29
A37: 30 | B37: Consumption | C37: Consommation | D37: Consumo | E37: title | F37: =HLOOKUP($C$2,$B$8:$D37,$A37,FALSE) -> Consumption | G37: title30
A38: 31 | B38: Energy expenditure | C38: Dépense d'énergie | D38: Gasto en energía | E38: title | F38: =HLOOKUP($C$2,$B$8:$D38,$A38,FALSE) -> Energy expenditure | G38: title31
A39: 32 | B39: Pellet consumption equivalent | C39: Consommation de granulés de bois équivalent | D39: Consumo equivalente de pellets | E39: title | F39: =HLOOKUP($C$2,$B$8:$D39,$A39,FALSE) -> Pellet consumption equivalent | G39: title32
A40: 33 | B40: Unit/day/hh | C40: Unité/jour/hh | D40: Unidad/día/hh | E40: title | F40: =HLOOKUP($C$2,$B$8:$D40,$A40,FALSE) -> Unit/day/hh | G40: title33
A41: 34 | B41: t/year | C41: t/an | D41: t/año | E41: title | F41: =HLOOKUP($C$2,$B$8:$D41,$A41,FALSE) -> t/year | G41: title34
A42: 35 | B42: USD/year | C42: USD/an | D42: USD/año | E42: title | F42: =HLOOKUP($C$2,$B$8:$D42,$A42,FALSE) -> USD/year | G42: title35
A43: 36 | B43: t/year/hh | C43: t/an/hh | D43: t/año/hh | E43: title | F43: =HLOOKUP($C$2,$B$8:$D43,$A43,FALSE) -> t/year/hh | G43: title36
A44: 37 | B44: Coal | C44: Charbon | D44: Carbón | E44: title | F44: =HLOOKUP($C$2,$B$8:$D44,$A44,FALSE) -> Coal | G44: title37
A45: 38 | B45: Fuel wood | C45: Bois de feu | D45: Leña | E45: title | F45: =HLOOKUP($C$2,$B$8:$D45,$A45,FALSE) -> Fuel wood | G45: title38
A46: 39 | B46: Charcoal | C46: Charbon de Bois | D46: Carbón vegetal | E46: title | F46: =HLOOKUP($C$2,$B$8:$D46,$A46,FALSE) -> Charcoal | G46: title39
A47: 40 | B47: Natural Gas | C47: Gaz Naturel | D47: Gas Natural | E47: title | F47: =HLOOKUP($C$2,$B$8:$D47,$A47,FALSE) -> Natural Gas | G47: title40
A48: 41 | B48: Kerosene | C48: Kérosène | D48: Queroseno | E48: title | F48: =HLOOKUP($C$2,$B$8:$D48,$A48,FALSE) -> Kerosene | G48: title41
A49: 42 | B49: LPG | C49: GPL | D49: GPL | E49: title | F49: =HLOOKUP($C$2,$B$8:$D49,$A49,FALSE) -> LPG | G49: title42
A50: 43 | B50: BIOMASS STORAGE CALCULATION FOR | C50: LE CALCUL DU STOCKAGE DE LA BIOMASSE POUR | D50: CÁLCULO DEL ALMACENAMIENTO DE BIOMASA PARA | E50: title | F50: =HLOOKUP($C$2,$B$8:$D50,$A50,FALSE) -> BIOMASS STORAGE CALCULATION FOR | G50: title43
A51: 44 | B51: Biomass safety stock rate definition | C51: Définition du Taux de stockage de sécurité de la biomasse | D51: Definición del nivel de stock de biomasa de seguridad | E51: title | F51: =HLOOKUP($C$2,$B$8:$D51,$A51,FALSE) -> Biomass safety stock rate definition | G51: title44
A52: 45 | B52: Capacities (tons of pellet per hour) | C52: Capacités (tonnes de granulés de bois par heure) | D52: Capacidad (toneladas de pellets por hora) | E52: title | F52: =HLOOKUP($C$2,$B$8:$D52,$A52,FALSE) -> Capacities (tons of pellet per hour) | G52: title45
A53: 46 | B53: Biomass consumption | C53: Consommation de biomasse | D53: Consumo de biomasa | E53: title | F53: =HLOOKUP($C$2,$B$8:$D53,$A53,FALSE) -> Biomass consumption | G53: title46
A54: 47 | B54: Biomass production yield within a specific distance | C54: Rendement de la production de biomasse à une distance donnée | D54: Rendimiento en la producción de biomasa dentro una distancia específica | E54: title | F54: =HLOOKUP($C$2,$B$8:$D54,$A54,FALSE) -> Biomass production yield within a specific distance | G54: title47
A55: 48 | B55: Biomass safety stock rate | C55: Taux de stock de sécurité de la matière première | D55: Nivel de stock de biomasa de seguridad | E55: title | F55: =HLOOKUP($C$2,$B$8:$D55,$A55,FALSE) -> Biomass safety stock rate | G55: title48
A56: 49 | B56: Biomass stock pile capacity | C56: La capacité de stockage en pile de la biomasse | D56: Capacidad de acópio de biomasa | E56: title | F56: =HLOOKUP($C$2,$B$8:$D56,$A56,FALSE) -> Biomass stock pile capacity | G56: title49
A57: 50 | B57: t/month | C57: t/mois | D57: t/mes | E57: title | F57: =HLOOKUP($C$2,$B$8:$D57,$A57,FALSE) -> t/month | G57: title50
A58: 51 | B58: kg/day | C58: kg/jour | D58: kh/día | E58: title | F58: =HLOOKUP($C$2,$B$8:$D58,$A58,FALSE) -> kg/day | G58: title51
A59: 52 | B59: Maximum storage definition | C59: Définition du stockage maximal | D59: Definición del almacenamiento máximo | E59: title | F59: =HLOOKUP($C$2,$B$8:$D59,$A59,FALSE) -> Maximum storage definition | G59: title52
A60: 53 | B60: (ton per year) | C60: (tonne par an) | D60: (tonelada por año) | E60: title | F60: =HLOOKUP($C$2,$B$8:$D60,$A60,FALSE) -> (ton per year) | G60: title53
A61: 54 | B61: Harvest Month Selection | C61: Sélection du Mois de la Récolte | D61: Selección de los meses de recolección | E61: title | F61: =HLOOKUP($C$2,$B$8:$D61,$A61,FALSE) -> Harvest Month Selection | G61: title54
A62: 55 | B62: Storage Month | C62: Mois de stockage | D62: Meses de almacenamiento | E62: title | F62: =HLOOKUP($C$2,$B$8:$D62,$A62,FALSE) -> Storage Month | G62: title55
A63: 56 | B63: Cumulative Storage (t) | C63: Stockage cumulatif (t) | D63: Almacenamiento acumulado (t) | E63: title | F63: =HLOOKUP($C$2,$B$8:$D63,$A63,FALSE) -> Cumulative Storage (t) | G63: title56
A64: 57 | B64: January | C64: Janvier | D64: Enero | E64: title | F64: =HLOOKUP($C$2,$B$8:$D64,$A64,FALSE) -> January | G64: title57
A65: 58 | B65: February | C65: Février | D65: Febrero | E65: title | F65: =HLOOKUP($C$2,$B$8:$D65,$A65,FALSE) -> February | G65: title58
A66: 59 | B66: March | C66: Mars | D66: Marzo | E66: title | F66: =HLOOKUP($C$2,$B$8:$D66,$A66,FALSE) -> March | G66: title59
A67: 60 | B67: April | C67: Avril | D67: Abril | E67: title | F67: =HLOOKUP($C$2,$B$8:$D67,$A67,FALSE) -> April | G67: title60
A68: 61 | B68: May | C68: Mai | D68: Mayo | E68: title | F68: =HLOOKUP($C$2,$B$8:$D68,$A68,FALSE) -> May | G68: title61
A69: 62 | B69: June | C69: Juin | D69: Junio | E69: title | F69: =HLOOKUP($C$2,$B$8:$D69,$A69,FALSE) -> June | G69: title62
A70: 63 | B70: July | C70: Juillet | D70: Julio | E70: title | F70: =HLOOKUP($C$2,$B$8:$D70,$A70,FALSE) -> July | G70: title63
A71: 64 | B71: August | C71: Août | D71: Agosto | E71: title | F71: =HLOOKUP($C$2,$B$8:$D71,$A71,FALSE) -> August | G71: title64
A72: 65 | B72: September | C72: Septembre | D72: Septiembre | E72: title | F72: =HLOOKUP($C$2,$B$8:$D72,$A72,FALSE) -> September | G72: title65
A73: 66 | B73: October | C73: Octobre | D73: Octubre | E73: title | F73: =HLOOKUP($C$2,$B$8:$D73,$A73,FALSE) -> October | G73: =$E73&$A73 -> title66
A74: 67 | B74: November | C74: Novembre | D74: Noviembre | E74: title | F74: =HLOOKUP($C$2,$B$8:$D74,$A74,FALSE) -> November | G74: title67
A75: 68 | B75: December | C75: Décembre | D75: Diciembre | E75: title | F75: =HLOOKUP($C$2,$B$8:$D75,$A75,FALSE) -> December | G75: title68
A76: 69 | B76: Maximum Storage Capacity Required (t) | C76: Capacité de stockage maximale requise (t) | D76: Capacidad máxima requerida de almacenamiento (t) | E76: title | F76: =HLOOKUP($C$2,$B$8:$D76,$A76,FALSE) -> Maximum Storage Capacity Required (t) | G76: title69
A77: 70 | B77: Minimum Safety Storage (t) | C77: Stockage de sécurité minimal (t) | D77: Nivel mínimo de stock de seguridad (t) | E77: title | F77: =HLOOKUP($C$2,$B$8:$D77,$A77,FALSE) -> Minimum Safety Storage (t) | G77: title70
A78: 71 | B78: Monthly Consumption of Biomass Stocked | C78: Consommation mensuelle de la Biomasse stockée | D78: Consumo mensual de la biomasa almacenada | E78: title | F78: =HLOOKUP($C$2,$B$8:$D78,$A78,FALSE) -> Monthly Consumption of Biomass Stocked | G78: title71
A79: 72 | B79: DATA ENTRY FOR BIOMASS IN PELLET PRODUCTION | C79: DONNEES D'ENTREE POUR LA BIOMASSE DANS LA PRODUCTION DE GRANULES DE BOIS | D79: DATOS DE ENTRADA PARA LA PRODUCCIÓN DE PELLETS DE BIOMASA | E79: title | F79: =HLOOKUP($C$2,$B$8:$D79,$A79,FALSE) -> DATA ENTRY FOR BIOMASS IN PELLET PRODUCTION | G79: title72
A80: 73 | B80: Use white cells to input data | C80: Utilisez les cellules blanches pour saisir les données | D80: Utilice las celdas blancas para ingresar los datos | E80: title | F80: =HLOOKUP($C$2,$B$8:$D80,$A80,FALSE) -> Use white cells to input data | G80: title73
A81: 74 | B81: Grey cells are used for calculations | C81: Les cellules grises sont utilisées pour les calculs | D81: Utilice las celdas grises para los cálculos | E81: title | F81: =HLOOKUP($C$2,$B$8:$D81,$A81,FALSE) -> Grey cells are used for calculations | G81: title74
A82: 75 | B82: Feedstock Availability and Cost | C82: Disponibilité et Coût des Matières Premières | D82: Disponibilidad y costo de la materia prima | E82: title | F82: =HLOOKUP($C$2,$B$8:$D82,$A82,FALSE) -> Feedstock Availability and Cost | G82: title75
A83: 76 | B83: Feedstock | C83: Matière première | D83: Materia Prima | E83: title | F83: =HLOOKUP($C$2,$B$8:$D83,$A83,FALSE) -> Feedstock | G83: title76
A84: 77 | B84: Feedstock available (t/year) | C84: Matières premières disponibles (t/an) | D84: Materia prima disponible (t/año) | E84: title | F84: =HLOOKUP($C$2,$B$8:$D84,$A84,FALSE) -> Feedstock available (t/year) | G84: title77
A85: 78 | B85: Feedstock yield (t/ha) | C85: Rendement des Matières premières | D85: Rendimiento de las materias primas (t/año) | E85: title | F85: =HLOOKUP($C$2,$B$8:$D85,$A85,FALSE) -> Feedstock yield (t/ha) | G85: title78
A86: 79 | B86: Moisture content | C86: Teneur en Humidité | D86: Contenido de humedad | E86: title | F86: =HLOOKUP($C$2,$B$8:$D86,$A86,FALSE) -> Moisture content | G86: title79
A87: 80 | B87: Feedstock price (USD/t) | C87: Prix des matières premières (USD/t) | D87: Precio de materia prima (USD/t) | E87: title | F87: =HLOOKUP($C$2,$B$8:$D87,$A87,FALSE) -> Feedstock price (USD/t) | G87: title80
A88: 81 | B88: Please Select | C88: Sélectionnez | D88: Seleccione | E88: title | F88: =HLOOKUP($C$2,$B$8:$D88,$A88,FALSE) -> Please Select | G88: title81
A89: 82 | B89: cacao | C89: cacao | D89: cacao | E89: title | F89: =HLOOKUP($C$2,$B$8:$D89,$A89,FALSE) -> cacao | G89: title82
A90: 83 | B90: cassava | C90: manioc | D90: yuca | E90: title | F90: =HLOOKUP($C$2,$B$8:$D90,$A90,FALSE) -> cassava | G90: title83
A91: 84 | B91: coconut | C91: noix de coco | D91: coco | E91: title | F91: =HLOOKUP($C$2,$B$8:$D91,$A91,FALSE) -> coconut | G91: title84
A92: 85 | B92: coffee | C92: café | D92: café | E92: title | F92: =HLOOKUP($C$2,$B$8:$D92,$A92,FALSE) -> coffee | G92: title85
A93: 86 | B93: cotton | C93: coton | D93: algodón | E93: title | F93: =HLOOKUP($C$2,$B$8:$D93,$A93,FALSE) -> cotton | G93: title86
A94: 87 | B94: groundnut | C94: arachide | D94: cacahuete | E94: title | F94: =HLOOKUP($C$2,$B$8:$D94,$A94,FALSE) -> groundnut | G94: title87
A95: 88 | B95: maize | C95: maïs | D95: maíz | E95: title | F95: =HLOOKUP($C$2,$B$8:$D95,$A95,FALSE) -> maize | G95: title88
A96: 89 | B96: millet | C96: millet | D96: mijo | E96: title | F96: =HLOOKUP($C$2,$B$8:$D96,$A96,FALSE) -> millet | G96: title89
A97: 90 | B97: oat | C97: avoine | D97: avena | E97: title | F97: =HLOOKUP($C$2,$B$8:$D97,$A97,FALSE) -> oat | G97: title90
A98: 91 | B98: oil palm | C98: palmier à huile | D98: palma aceitera | E98: title | F98: =HLOOKUP($C$2,$B$8:$D98,$A98,FALSE) -> oil palm | G98: title91
A99: 92 | B99: rice | C99: riz | D99: arroz | E99: title | F99: =HLOOKUP($C$2,$B$8:$D99,$A99,FALSE) -> rice | G99: title92
A100: 93 | B100: sorghum | C100: sorgho | D100: sorgo | E100: title | F100: =HLOOKUP($C$2,$B$8:$D100,$A100,FALSE) -> sorghum | G100: title93
A101: 94 | B101: soybean | C101: soja | D101: soja | E101: title | F101: =HLOOKUP($C$2,$B$8:$D101,$A101,FALSE) -> soybean | G101: title94
A102: 95 | B102: sugarcane | C102: canne à sucre | D102: caña de azúcar | E102: title | F102: =HLOOKUP($C$2,$B$8:$D102,$A102,FALSE) -> sugarcane | G102: title95
A103: 96 | B103: wheat | C103: blé | D103: trigo | E103: title | F103: =HLOOKUP($C$2,$B$8:$D103,$A103,FALSE) -> wheat | G103: title96
A104: 97 | B104: Forest Harvesting Residues | C104: Résidus de l'exploitation forestière | D104: Residuos de la explotación forestal | E104: title | F104: =HLOOKUP($C$2,$B$8:$D104,$A104,FALSE) -> Forest Harvesting Residues | G104: title97
A105: 98 | B105: Wood Processing Residues | C105: Résidus de la transformation du bois | D105: Residuos del procesamiento de la madera | E105: title | F105: =HLOOKUP($C$2,$B$8:$D105,$A105,FALSE) -> Wood Processing Residues | G105: title98
A106: 99 | B106: Chemical binder | C106: Liant Chimique | D106: Aglutinante químico | E106: title | F106: =HLOOKUP($C$2,$B$8:$D106,$A106,FALSE) -> Chemical binder | G106: title99
A107: 100 | B107: Binder cost (USD/t) | C107: Coût du liant (USD/t) | D107: Costo del aglutinante (USD/t) | E107: title | F107: =HLOOKUP($C$2,$B$8:$D107,$A107,FALSE) -> Binder cost (USD/t) | G107: title100
A108: 101 | B108: Feedstock storage cost (USD/t) | C108: Coût de stockage des matières premières (USD/t) | D108: Costo de almacenamiento de la materia prima (USD/t) | E108: title | F108: =HLOOKUP($C$2,$B$8:$D108,$A108,FALSE) -> Feedstock storage cost (USD/t) | G108: title101
A109: 102 | B109: yes | C109: oui | D109: si | E109: title | F109: =HLOOKUP($C$2,$B$8:$D109,$A109,FALSE) -> yes | G109: title102
A110: 103 | B110: None | C110: Aucun | D110: Ninguno | E110: title | F110: =HLOOKUP($C$2,$B$8:$D110,$A110,FALSE) -> None | G110: title103
A111: 104 | B111: Production Cost and Financial Parameters | C111: Coût de Production et Paramètres Financiers | D111: Costo de producción y parámetros financieros | E111: title | F111: =HLOOKUP($C$2,$B$8:$D111,$A111,FALSE) -> Production Cost and Financial Parameters | G111: title104
A112: 105 | B112: Utilities | C112: Utilitaires | D112: Servicios | E112: title | F112: =HLOOKUP($C$2,$B$8:$D112,$A112,FALSE) -> Utilities | G112: title105
A113: 106 | B113: Water | C113: Eau | D113: Agua | E113: title | F113: =HLOOKUP($C$2,$B$8:$D113,$A113,FALSE) -> Water | G113: title106
A114: 107 | B114: Unit | C114: Unité | D114: Unidad | E114: title | F114: =HLOOKUP($C$2,$B$8:$D114,$A114,FALSE) -> Unit | G114: title107
A115: 108 | B115: Electricity | C115: Électricité | D115: Electricidad | E115: title | F115: =HLOOKUP($C$2,$B$8:$D115,$A115,FALSE) -> Electricity | G115: title108
A116: 109 | B116: Labour | C116: Main d’oeuvre | D116: Mano de obra | E116: title | F116: =HLOOKUP($C$2,$B$8:$D116,$A116,FALSE) -> Labour | G116: title109
A117: 110 | B117: Skilled worker | C117: Ouvrier qualifié | D117: Trabajadores cualificados | E117: title | F117: =HLOOKUP($C$2,$B$8:$D117,$A117,FALSE) -> Skilled worker | G117: title110
A118: 111 | B118: USD/person-hour | C118: USD/personne-heure | D118: USD/persona-hora | E118: title | F118: =HLOOKUP($C$2,$B$8:$D118,$A118,FALSE) -> USD/person-hour | G118: title111
A119: 112 | B119: Unskilled worker | C119: Ouvrier non-qualifié | D119: Trabajadores no cualificados | E119: title | F119: =HLOOKUP($C$2,$B$8:$D119,$A119,FALSE) -> Unskilled worker | G119: title112
A120: 113 | B120: Feedstock collection | C120: Collecte des matières premières | D120: Recolección de la materia prima | E120: title | F120: =HLOOKUP($C$2,$B$8:$D120,$A120,FALSE) -> Feedstock collection | G120: title113
A121: 114 | B121: Working hours per day (manual) | C121: Heures de travail par jour (manuel) | D121: Horas de trabajo por día (manual) | E121: title | F121: =HLOOKUP($C$2,$B$8:$D121,$A121,FALSE) -> Working hours per day (manual) | G121: title114
A122: 115 | B122: Diesel price | C122: Prix du Diesel | D122: Precio del diésel | E122: title | F122: =HLOOKUP($C$2,$B$8:$D122,$A122,FALSE) -> Diesel price | G122: title115
A123: 116 | B123: h/day | C123: h/jour | D123: h/día | E123: title | F123: =HLOOKUP($C$2,$B$8:$D123,$A123,FALSE) -> h/day | G123: title116
A124: 117 | B124: Working hours per day (mechanized) | C124: Heures de travail par jour (mécanisé ) | D124: Horas de trabajo por día (mecanizado) | E124: title | F124: =HLOOKUP($C$2,$B$8:$D124,$A124,FALSE) -> Working hours per day (mechanized) | G124: title117
A125: 118 | B125: Price of pellets | C125: Prix des granulés de bois | D125: Precio de los pellets | E125: title | F125: =HLOOKUP($C$2,$B$8:$D125,$A125,FALSE) -> Price of pellets | G125: title118
A126: 119 | B126: Market price (rural areas) | C126: Prix du Marché (zone rurale) | D126: Precio de mercado (zona rural) | E126: title | F126: =HLOOKUP($C$2,$B$8:$D126,$A126,FALSE) -> Market price (rural areas) | G126: title119
A127: 120 | B127: Market price (urban areas) | C127: Prix du Marché (zone urbaine) | D127: Precio de mercado (zona urbana) | E127: title | F127: =HLOOKUP($C$2,$B$8:$D127,$A127,FALSE) -> Market price (urban areas) | G127: title120
A128: 121 | B128: Transportation cost | C128: Frais du transport | D128: Costo de transporte | E128: title | F128: =HLOOKUP($C$2,$B$8:$D128,$A128,FALSE) -> Transportation cost | G128: title121
A129: 122 | B129: Feedstock (farm to briquette plant) | C129: Matières premières (de la ferme à l'usine de briquettes) | D129: Materia Prima (granja a la planta de briquetaje) | E129: title | F129: =HLOOKUP($C$2,$B$8:$D129,$A129,FALSE) -> Feedstock (farm to briquette plant) | G129: title122
A130: 123 | B130: Feedstock (farm to pellets plant) | C130: Matières premières (de la ferme à l'usine de granulés de bois) | D130: Materia Prima (granja a la planta de pelletizado) | E130: title | F130: =HLOOKUP($C$2,$B$8:$D130,$A130,FALSE) -> Feedstock (farm to pellets plant) | G130: title123
A131: 124 | B131: Product (pellets plant to market) | C131: Produit (de l'usine de granulés de bois au marché) | D131: Producto (planta pelletizado al mercado) | E131: title | F131: =HLOOKUP($C$2,$B$8:$D131,$A131,FALSE) -> Product (pellets plant to market) | G131: title124
A132: 125 | B132: Operating parameters | C132: Paramètres de fonctionnement | D132: Parámetros de operación | E132: title | F132: =HLOOKUP($C$2,$B$8:$D132,$A132,FALSE) -> Operating parameters | G132: title125
A133: 126 | B133: Operating days per year | C133: Jours de fonctionnement par an | D133: Días de operación por año | E133: title | F133: =HLOOKUP($C$2,$B$8:$D133,$A133,FALSE) -> Operating days per year | G133: title126
A134: 127 | B134: Operating hours per day (manual-max. 8h) | C134: Heures de fonctionnement par jour (Manuel-max. 8h) | D134: Horas de operación por día | E134: title | F134: =HLOOKUP($C$2,$B$8:$D134,$A134,FALSE) -> Operating hours per day (manual-max. 8h) | G134: title127
A135: 128 | B135: days/year | C135: jours/an | D135: días/año | E135: title | F135: =HLOOKUP($C$2,$B$8:$D135,$A135,FALSE) -> days/year | G135: title128
A136: 129 | B136: Storage safety rate of product | C136: Taux de sécurité de stockage du produit | D136: Nivel de stock de seguridad para el producto | E136: title | F136: =HLOOKUP($C$2,$B$8:$D136,$A136,FALSE) -> Storage safety rate of product | G136: title129
A137: 130 | B137: Operating hours per day (semi-mechanized) | C137: Heures de fonctionnement par jour (semi-mécanisée) | D137: Horas de operación por dia (semi mecanizada) | E137: title | F137: =HLOOKUP($C$2,$B$8:$D137,$A137,FALSE) -> Operating hours per day (semi-mechanized) | G137: =$E137&$A137 -> title130
A138: 131 | B138: Other costs | C138: Autres coûts | D138: Otros costos | E138: title | F138: =HLOOKUP($C$2,$B$8:$D138,$A138,FALSE) -> Other costs | G138: title131
A139: 132 | B139: Plant overhead (%) | C139: Frais généraux de l'usine (%) | D139: Gastos generales de planta (%) | E139: title | F139: =HLOOKUP($C$2,$B$8:$D139,$A139,FALSE) -> Plant overhead (%) | G139: title132
A140: 133 | B140: Maintenance (%) | C140: Maintenance (%) | D140: Mantenimiento (%) | E140: title | F140: =HLOOKUP($C$2,$B$8:$D140,$A140,FALSE) -> Maintenance (%) | G140: title133
A141: 134 | B141: Miscellaneous (%) | C141: Divers | D141: Gastos miscelaneos (%) | E141: title | F141: =HLOOKUP($C$2,$B$8:$D141,$A141,FALSE) -> Miscellaneous (%) | G141: title134
A142: 135 | B142: General and administrative (%) | C142: Frais généraux et administratifs (%) | D142: Generales y administrativos (%) | E142: title | F142: =HLOOKUP($C$2,$B$8:$D142,$A142,FALSE) -> General and administrative (%) | G142: title135
A143: 136 | B143: Financial parameters | C143: Paramètres financiers | D143: Parámetros financieros | E143: title | F143: =HLOOKUP($C$2,$B$8:$D143,$A143,FALSE) -> Financial parameters | G143: title136
A144: 137 | B144: Discount rate | C144: Taux d'escompte | D144: Tasa de descuento | E144: title | F144: =HLOOKUP($C$2,$B$8:$D144,$A144,FALSE) -> Discount rate | G144: title137
A145: 138 | B145: Loan ratio | C145: Ratio du prêt | D145: Proporción de créditos | E145: title | F145: =HLOOKUP($C$2,$B$8:$D145,$A145,FALSE) -> Loan ratio | G145: title138
A146: 139 | B146: Loan interest rate | C146: Taux d'intérêt du prêt | D146: Tasa de interés de créditos | E146: title | F146: =HLOOKUP($C$2,$B$8:$D146,$A146,FALSE) -> Loan interest rate | G146: title139
A147: 140 | B147: Loan term | C147: Durée du prêt | D147: Duración del prestamo | E147: title | F147: =HLOOKUP($C$2,$B$8:$D147,$A147,FALSE) -> Loan term | G147: title140
A148: 141 | B148: year | C148: an | D148: año | E148: title | F148: =HLOOKUP($C$2,$B$8:$D148,$A148,FALSE) -> year | G148: title141
A149: 142 | B149: Investment cost update | C149: Mise à jour des coûts d'investissement | D149: Actualización del costo de inversión | E149: title | F149: =HLOOKUP($C$2,$B$8:$D149,$A149,FALSE) -> Investment cost update | G149: title142
A150: 143 | B150: Plant Cost Index during | C150: Indice du coût de l'usine pendant | D150: Índice de costo de la planta durante | E150: title | F150: =HLOOKUP($C$2,$B$8:$D150,$A150,FALSE) -> Plant Cost Index during | G150: title143
A151: 144 | B151: FINANCIAL ANALYSIS OF BIOMASS PELLETING - MANUAL | C151: ANALYSE FINANCIÈRE DE LA BIOMASSE POUR LES GRANULÉS DE BOIS - MANUELLE | D151: ANÁLISIS FINANCIERO DEL PELLETIZADO DE BIOMASA - MANUAL | E151: title | F151: =HLOOKUP($C$2,$B$8:$D151,$A151,FALSE) -> FINANCIAL ANALYSIS OF BIOMASS PELLETING - MANUAL | G151: title144
A152: 145 | B152: Revenues of biomass pelleting system | C152: Revenus provenant du sytème de la biomass pour les granulés de bois | D152: Ingresos provenientes del sistema de pelletizado de biomasa | E152: title | F152: =HLOOKUP($C$2,$B$8:$D152,$A152,FALSE) -> Revenues of biomass pelleting system | G152: title145
A153: 146 | B153: Operating Year | C153: Année de Fonctionnment | D153: Año de operación | E153: title | F153: =HLOOKUP($C$2,$B$8:$D153,$A153,FALSE) -> Operating Year | G153: title146
A154: 147 | B154: Pellet production capacity (tons per year) | C154: Capacité de production de granulés de bois (tonne par an) | D154: Capacidad de producción de pellets (toneladas por año) | E154: title | F154: =HLOOKUP($C$2,$B$8:$D154,$A154,FALSE) -> Pellet production capacity (tons per year) | G154: title147
A155: 148 | B155: Efficiency % of pelleting machine | C155: Rendement en % des machines à granules de bois | D155: Porcentaje de eficiencia de la maquina de pelletizado | E155: title | F155: =HLOOKUP($C$2,$B$8:$D155,$A155,FALSE) -> Efficiency % of pelleting machine | G155: title148
A156: 149 | B156: Operating hours per year | C156: Heures de fonctionnement par an | D156: Horas de operación por año | E156: title | F156: =HLOOKUP($C$2,$B$8:$D156,$A156,FALSE) -> Operating hours per year | G156: title149
A157: 150 | B157: Capacity utilization factor | C157: Facteur d'utilisation des capacités | D157: Factor de capacidad de uso | E157: title | F157: =HLOOKUP($C$2,$B$8:$D157,$A157,FALSE) -> Capacity utilization factor | G157: title150
A158: 151 | B158: Pellet production (tons per year) | C158: Production de granulés de bois (tonnes par an) | D158: Produccion de pellets (toneladas por año) | E158: title | F158: =HLOOKUP($C$2,$B$8:$D158,$A158,FALSE) -> Pellet production (tons per year) | G158: title151
A159: 152 | B159: Total pellet sell to customers (tons per year) | C159: Total des granulés de bois vendu aux clients (tonnes par an) | D159: Ventas totales de pellets a clientes (toneladas por año) | E159: title | F159: =HLOOKUP($C$2,$B$8:$D159,$A159,FALSE) -> Total pellet sell to customers (tons per year) | G159: title152
A160: 153 | B160: Price of pellet (USD/kg) | C160: Prix d'un granulés de bois (USD/kg) | D160: Precio de los pellets (USD/kg) | E160: title | F160: =HLOOKUP($C$2,$B$8:$D160,$A160,FALSE) -> Price of pellet (USD/kg) | G160: title153
A161: 154 | B161: Market price of pellet pay by consumers (USD/kg) | C161: Prix du marché des granulés de bois payé par les consommateurs (USD / kg) | D161: Precio de mercado de los pellets pagado por clientes (USD/kg) | E161: title | F161: =HLOOKUP($C$2,$B$8:$D161,$A161,FALSE) -> Market price of pellet pay by consumers (USD/kg) | G161: title154
A162: 155 | B162: Increasing rate of price of pellet (%) | C162: Augmentation du taux du prix du granulés de bois ( % ) | D162: Tasa de incremento en el precio de los pellets (%) | E162: title | F162: =HLOOKUP($C$2,$B$8:$D162,$A162,FALSE) -> Increasing rate of price of pellet (%) | G162: title155
A163: 156 | B163: Total income of pellet (USD per year) | C163: Revenus totaux provenant des granulés de bois (USD par an) | D163: Ingresos totales por los pellets (USD por año) | E163: title | F163: =HLOOKUP($C$2,$B$8:$D163,$A163,FALSE) -> Total income of pellet (USD per year) | G163: title156
A164: 157 | B164: Lifespan of civil work (years) | C164: Durée de vie des travaux de génie civil (années) | D164: Vida útil de la obra civil (años) | E164: title | F164: =HLOOKUP($C$2,$B$8:$D164,$A164,FALSE) -> Lifespan of civil work (years) | G164: title157
A165: 158 | B165: Lifespan of pellet system (years) | C165: Durée de vie du système de granulés de bois (années) | D165: Vida útil del sistema de pelletizado (año) | E165: title | F165: =HLOOKUP($C$2,$B$8:$D165,$A165,FALSE) -> Lifespan of pellet system (years) | G165: title158
A166: 159 | B166: Project life time (years) | C166: Durée de vie du projet (ans) | D166: Tiempo de vida del proyecto (años) | E166: title | F166: =HLOOKUP($C$2,$B$8:$D166,$A166,FALSE) -> Project life time (years) | G166: title159
A167: 160 | B167: Capital and operating cost of biomass pellet system | C167: Coût des opérations et du capital d'un systeme de granulés de bois | D167: Costos de operación y de capital del sistema de pelletizado de biomasa | E167: title | F167: =HLOOKUP($C$2,$B$8:$D167,$A167,FALSE) -> Capital and operating cost of biomass pellet system | G167: title160
A168: 161 | B168: Direct capital cost (USD) | C168: Coût en capital direct (USD) | D168: Costo de capital (USD) | E168: title | F168: =HLOOKUP($C$2,$B$8:$D168,$A168,FALSE) -> Direct capital cost (USD) | G168: title161
A169: 162 | B169: Equipments | C169: Equipements | D169: Equipos | E169: title | F169: =HLOOKUP($C$2,$B$8:$D169,$A169,FALSE) -> Equipments | G169: title162
A170: 163 | B170: Building | C170: Bâtiment | D170: Construcción | E170: title | F170: =HLOOKUP($C$2,$B$8:$D170,$A170,FALSE) -> Building | G170: title163
A171: 164 | B171: Installation | C171: Installation | D171: Instalación | E171: title | F171: =HLOOKUP($C$2,$B$8:$D171,$A171,FALSE) -> Installation | G171: title164
A172: 165 | B172: Total capital cost (USD) | C172: Coût total en capital (USD) | D172: Costo total de capital (USD) | E172: title | F172: =HLOOKUP($C$2,$B$8:$D172,$A172,FALSE) -> Total capital cost (USD) | G172: title165
A173: 166 | B173: Capital cost (USD/kg of pellet) | C173: Coût en capital (USD/kg de granulés de bois) | D173: Costo de capital (USD/kg de pellets) | E173: title | F173: =HLOOKUP($C$2,$B$8:$D173,$A173,FALSE) -> Capital cost (USD/kg of pellet) | G173: title166
A174: 167 | B174: Appraisal | C174: Évaluation | D174: Evaluación | E174: title | F174: =HLOOKUP($C$2,$B$8:$D174,$A174,FALSE) -> Appraisal | G174: title167
A175: 168 | B175: Project lifetime | C175: Durée de vie du projet | D175: Tiempo de vida del proyecto | E175: title | F175: =HLOOKUP($C$2,$B$8:$D175,$A175,FALSE) -> Project lifetime | G175: title168
A176: 169 | B176: Investment per year | C176: Investissement par an | D176: Inversión por año | E176: title | F176: =HLOOKUP($C$2,$B$8:$D176,$A176,FALSE) -> Investment per year | G176: title169
A177: 170 | B177: Annual operating and maintenance cost | C177: Coûts d'opérations et d'entretien annuel | D177: Costo anual de operación y mantenimiento | E177: title | F177: =HLOOKUP($C$2,$B$8:$D177,$A177,FALSE) -> Annual operating and maintenance cost | G177: title170
A178: 171 | B178: Sub-total material cost (USD) | C178: Sous-total des coûts des matériels (USD) | D178: Costo sub-total de la materia (USD) | E178: title | F178: =HLOOKUP($C$2,$B$8:$D178,$A178,FALSE) -> Sub-total material cost (USD) | G178: title171
A179: 172 | B179: Biomass cost (USD/year) | C179: Coût de la biomasse (USD/an) | D179: Costo de la biomasa (USD/año) | E179: title | F179: =HLOOKUP($C$2,$B$8:$D179,$A179,FALSE) -> Biomass cost (USD/year) | G179: title172
A180: 173 | B180: Biomass price (USD/ton) | C180: Prix de la biomasse (USD/t) | D180: Precio de la biomasa (USD/t) | E180: title | F180: =HLOOKUP($C$2,$B$8:$D180,$A180,FALSE) -> Biomass price (USD/ton) | G180: title173
A181: 174 | B181: Biomass cost of collection (USD/ton) | C181: Coût de la collecte de la biomasse (USD/tonne) | D181: Costo de recolección de la biomasa (USD/t) | E181: title | F181: =HLOOKUP($C$2,$B$8:$D181,$A181,FALSE) -> Biomass cost of collection (USD/ton) | G181: title174
A182: 175 | B182: Biomass transportation cost (USD/ton) | C182: Coût de transport de la biomasse (USD/t) | D182: Costo de transporte de la biomasa (USD/t) | E182: title | F182: =HLOOKUP($C$2,$B$8:$D182,$A182,FALSE) -> Biomass transportation cost (USD/ton) | G182: title175
A183: 176 | B183: Biomass from farm to plant (USD/ton/km) | C183: Biomasse de la ferme à l'usine (USD/t/km) | D183: Biomasa de la finca a la planta (USD/t/km) | E183: title | F183: =HLOOKUP($C$2,$B$8:$D183,$A183,FALSE) -> Biomass from farm to plant (USD/ton/km) | G183: title176
A184: 177 | B184: Transportation distant (km) | C184: Transport à distance (km) | D184: Distancia de transporte (km) | E184: title | F184: =HLOOKUP($C$2,$B$8:$D184,$A184,FALSE) -> Transportation distant (km) | G184: title177
A185: 178 | B185: Water cost (USD/year) | C185: Coût de l'eau (USD/an) | D185: Costo agua (USD/año) | E185: title | F185: =HLOOKUP($C$2,$B$8:$D185,$A185,FALSE) -> Water cost (USD/year) | G185: title178
A186: 179 | B186: Chemical cost (USD/year) | C186: Coût d'un produit chimique (USD/an) | D186: Costo de productos químicos (USD/año) | E186: title | F186: =HLOOKUP($C$2,$B$8:$D186,$A186,FALSE) -> Chemical cost (USD/year) | G186: title179
A187: 180 | B187: Chemical consumption (tons per year) | C187: Consommation d'un produit chimique (tonne par an) | D187: Consumo de productos químicos (USD/año) | E187: title | F187: =HLOOKUP($C$2,$B$8:$D187,$A187,FALSE) -> Chemical consumption (tons per year) | G187: title180
A188: 181 | B188: Chemical price (USD/ton) | C188: Prix d'un produit chimique (USD/tonne) | D188: Precio productos químicos (USD/año) | E188: title | F188: =HLOOKUP($C$2,$B$8:$D188,$A188,FALSE) -> Chemical price (USD/ton) | G188: title181
A189: 182 | B189: Electricity cost (USD) | C189: Coût de l'électricité (USD) | D189: Costo de la electricidad (USD) | E189: title | F189: =HLOOKUP($C$2,$B$8:$D189,$A189,FALSE) -> Electricity cost (USD) | G189: title182
A190: 183 | B190: Sub-total operating cost (USD) | C190: Sous-total des coûts d'opérations (USD) | D190: Sub-total costos de operación (USD) | E190: title | F190: =HLOOKUP($C$2,$B$8:$D190,$A190,FALSE) -> Sub-total operating cost (USD) | G190: title183
A191: 184 | B191: Labour cost (USD) | C191: Coût de la main d’oeuvre (USD) | D191: Costo de la mano de obra (USD) | E191: title | F191: =HLOOKUP($C$2,$B$8:$D191,$A191,FALSE) -> Labour cost (USD) | G191: title184
A192: 185 | B192: Annual change in labour cost (%) | C192: Changement annuel du coût du travail (%) | D192: Tasa de cambio anual de los costos de mano de obra (%) | E192: title | F192: =HLOOKUP($C$2,$B$8:$D192,$A192,FALSE) -> Annual change in labour cost (%) | G192: title185
A193: 186 | B193: General and administrative cost | C193: Coût généraux et administratifs | D193: Costos generales y administrativos | E193: title | F193: =HLOOKUP($C$2,$B$8:$D193,$A193,FALSE) -> General and administrative cost | G193: title186
A194: 187 | B194: Sub-total maintenance cost (USD) | C194: Sous-total des coût d'entretien (USD) | D194: Sub-total costos de mantenimiento (USD) | E194: title | F194: =HLOOKUP($C$2,$B$8:$D194,$A194,FALSE) -> Sub-total maintenance cost (USD) | G194: title187
A195: 188 | B195: Sub-total of annual fixed costs | C195: Sous-total des coûts annuels fixes | D195: Sub-total de costo fijo anual | E195: title | F195: =HLOOKUP($C$2,$B$8:$D195,$A195,FALSE) -> Sub-total of annual fixed costs | G195: title188
A196: 189 | B196: Sub-total of storage capacity | C196: Sous-total de capacité de stokage | D196: Sub-total de capacidad de almacenamiento | E196: title | F196: =HLOOKUP($C$2,$B$8:$D196,$A196,FALSE) -> Sub-total of storage capacity | G196: title189
A197: 190 | B197: Sub-total of pellet transportation to market | C197: Sous-total du transport des granulés de bois au marché | D197: Sub-total del transporte de pellets al mercado | E197: title | F197: =HLOOKUP($C$2,$B$8:$D197,$A197,FALSE) -> Sub-total of pellet transportation to market | G197: title190
A198: 191 | B198: Total operation and maintenance cost (USD) | C198: Coût total de fonctionnement et d'entretien (USD) | D198: Costo total de operación y mantenimiento (USD) | E198: title | F198: =HLOOKUP($C$2,$B$8:$D198,$A198,FALSE) -> Total operation and maintenance cost (USD) | G198: title191
A199: 192 | B199: Operation and maintenance cost (USD/kg of pellet) without loan interest | C199: Coût de fonctionnement et d'entretien (USD/kg d'un granulé de bois) sans intérêts sur le prêt | D199: Costo de operación y mantenimiento (USD/kg de pellets) sin intereses por prestamo | E199: title | F199: =HLOOKUP($C$2,$B$8:$D199,$A199,FALSE) -> Operation and maintenance cost (USD/kg of pellet) without loan interest | G199: title192
A200: 193 | B200: Annual change in raw material cost (%) | C200: Changement annuel du coût d'une matière première (%) | D200: Porcentaje de cambio anual en costos de materia prima (%) | E200: title | F200: =HLOOKUP($C$2,$B$8:$D200,$A200,FALSE) -> Annual change in raw material cost (%) | G200: title193
A201: 194 | B201: Inflation rate (%) | C201: Taux d'inflation (%) | D201: Tasa de inflación (%) | E201: title | F201: =HLOOKUP($C$2,$B$8:$D201,$A201,FALSE) -> Inflation rate (%) | G201: =$E201&$A201 -> title194
A202: 195 | B202: Loan without policy | C202: Prêt sans politique | D202: Préstamo sin política | E202: title | F202: =HLOOKUP($C$2,$B$8:$D202,$A202,FALSE) -> Loan without policy | G202: title195
... 302 more rows

Sheet START
B3: EN
C28: =title3 -> Disclaimer
C29: =title4 -> FAO declines all responsibility for errors or deficiencies in the database or software or in the documentation accompanying it, for program maintenance and upgrading as well as for any damage that may arise from them. FAO also declines any responsibility for updating the data and assumes no responsibility for errors and omissions in the data provided. Users are, however, kindly asked to report any errors or deficiencies in this product to FAO. The choices of calculation made in this tool are those of the author(s) and do not necessarily reflect the views and choices of the Food and Agriculture Organization of the United Nations.
C33: © FAO, 2014

Sheet Process Description
C3: =title5 -> BIOMASS PELLET SYSTEM FOR RURAL/URBAN ENERGY
C8: =title6 -> Moist Biomass
U9: =title13 -> Industrial
U12: =title14 -> Commercial
U15: =title15 -> Residential
O16: =title473 -> Biomass with less than 10% moisture content
G17: =title469 -> Air and dust from milling | J17: =title470 -> Process steam* | K17: =title471 -> Binding agent** | L17: =title472 -> Air and dust from cooling
C20: Ref: Fundamental Understanding of Pelletization. EFP-2005 project (33031-037)
C21: ---------------------------------------------------------------------------------------------------------------------------------------------------------------------------------------------------------------------------------------------------------------------------------------
C22: =title16 -> Wood pellet specifications
C23: =title17 -> Particle size: 6mm to 8mm for domestic and small scale systems, 10-12 mm for larger systems
C24: =title18 -> Moisture content: less than 10%
C25: =title19 -> Calorific value: less than 4.7kWh/kg
C26: =title20 -> Ash content: less than 1% (low), less than 3% (standard) or less than 6% (high); to be clearly labelled
C27: =title21 -> Bulk density: less than 600 kg/m3
C28: =title22 -> Sulfur content: less than 300 ppm
C29: =title23 -> Chlorine: less than: 800ppm
C30: =title24 -> Only additives: lignin and trace amounts of vegetable oil as a die lubricant

Sheet Energy Demand
C3: =title25 -> ENERGY DEMAND FOR PELLET PRODUCTION
C5: =title26 -> Energy Consumption per Household (hh)
D7: =title27 -> Rural Households | I7: =title28 -> Urban Households
D8: =title29 -> Market price | E8: =title30 -> Consumption | G8: =title31 -> Energy expenditure | H8: =title32 -> Pellet consumption equivalent | I8: =title29 -> Market price | J8: =title30 -> Consumption | K8: =title31 -> Energy expenditure | M8: =title32 -> Pellet consumption equivalent
D9: =+"USD/"&title107 -> USD/Unit | E9: =title33 -> Unit/day/hh | F9: =title34 -> t/year | G9: =title35 -> USD/year | H9: =title36 -> t/year/hh | I9: USD/kg | J9: =title33 -> Unit/day/hh | K9: =title35 -> USD/year | L9: =title34 -> t/year | M9: =title36 -> t/year/hh
C10: =title425&" (kg)" -> Pellet (kg) | F10: =E10*365/1000 -> 0 | G10: =F10*1000*D10 -> 0 | H10: =F10/VLOOKUP($C10,$Q$49:$W$55,7,FALSE) -> 0 | K10: =L10*1000*I10 -> 0 | L10: =J10*365/1000 -> 0 | M10: =L10/VLOOKUP($C10,$Q$49:$T$55,4,FALSE) -> 0
C11: =title39&" (kg)" -> Charcoal (kg) | F11: 0 | G11: =F11*1000*D11 -> 0 | H11: 0 | K11: =L11*1000*I11 -> 0 | L11: =J11*365/1000 -> 0 | M11: 0
C12: =title37&" (kg)" -> Coal (kg) | F12: 0 | G12: 0 | H12: 0 | K12: 0 | L12: 0 | M12: 0
C13: =title38&" (kg)" -> Fuel wood (kg) | F13: 0 | G13: 0 | H13: 0 | K13: 0 | L13: 0 | M13: 0
C14: =title41&" (l)" -> Kerosene (l) | F14: 0 | G14: 0 | H14: 0 | K14: 0 | L14: 0 | M14: 0
C15: =title42&" (kg)" -> LPG (kg) | F15: 0 | G15: 0 | H15: 0 | K15: 0 | L15: 0 | M15: 0
C16: =title40&" (m3)" -> Natural Gas (m3) | F16: 0 | G16: 0 | H16: 0 | K16: 0 | L16: 0 | M16: 0
E17: Total | G17: =SUM(G11:G16) -> 0 | H17: =SUM(H11:H16) -> 0 | J17: Total | K17: =SUM(K11:K16) -> 0 | M17: =SUM(M11:M16) -> 0
D19: Units | E19: =title354 -> Rural | G19: =title355 -> Urban
C20: Market price of Pellet | D20: USD/kg | E20: =+'Data entry needs'!$D$36 -> 0 | G20: =+'Data entry needs'!$H$36 -> 0
C22: Potential Revenue
G24: Capacities (kg of pellet production per hour)
G25: 4 | I25: =40 -> 40 | K25: =400 -> 400 | N25: =4000 -> 4000
G26: =title272 -> Manual | I26: =title318 -> Mechanized | K26: =title318 -> Mechanized | N26: =title318 -> Mechanized
G27: =title149 -> Operating hours per year | H27: =IF('Data entry needs'!$D$44>8,8,'Data entry needs'!$D$44)*IF('Data entry needs'!E40>300,300,'Data entry needs'!$D$43) -> 0 | I27: =title149 -> Operating hours per year | J27: =IF('Data entry needs'!$H$44>18,18,'Data entry needs'!$H$44)*'Data entry needs'!$D$43 -> 0 | K27: =title149 -> Operating hours per year | M27: =IF('Data entry needs'!$H$44>18,18,'Data entry needs'!$H$44)*'Data entry needs'!$D$43 -> 0 | N27: =title149 -> Operating hours per year | O27: ='Data entry needs'!$H$44*'Data entry needs'!$D$43*75% -> 0
C28: =title270 -> Annual pellet production (t/year) | G28: =4*H27/1000 -> 0 | I28: =40*J27/1000 -> 0 | K28: =400*M27/1000 -> 0 | N28: =4000*O27/1000 -> 0
C30: =title27 -> Rural Households
C31: Revenue of the project (Rural Market price) | D31: =title107 -> Unit | E31: =title274 -> Unit Price | G31: =title276 -> Quantity | H31: Total | I31: =title276 -> Quantity | J31: Total | K31: =title276 -> Quantity | M31: Total | N31: =title276 -> Quantity | O31: Total
E32: =title275 -> (USD/Unit) | G32: (Units) | H32: =title278 -> (USD/year) | I32: (Units) | J32: =title278 -> (USD/year) | K32: (Units) | M32: =title278 -> (USD/year) | N32: (Units) | O32: =title278 -> (USD/year)
C33: =title286 -> Pellet products | D33: =title34 -> t/year | E33: =$E$20*1000 -> 0 | G33: =G28 -> 0 | H33: =E33*G33 -> 0 | I33: =I28 -> 0 | J33: =E33*I33 -> 0 | K33: =K28 -> 0 | M33: =E33*K33 -> 0 | N33: =N28 -> 0 | O33: =E33*N33 -> 0
C34: =title279 -> Subtotal | G34: =SUM(G33:G33) -> 0 | H34: =SUM(H33:H33) -> 0 | I34: =SUM(I33:I33) -> 0 | J34: =SUM(J33:J33) -> 0 | K34: =SUM(K33:K33) -> 0 | M34: =SUM(M33:M33) -> 0 | N34: =SUM(N33) -> 0 | O34: =SUM(O33:O33) -> 0
C35: =title28 -> Urban Households
C36: Revenue of the project (Urban Market price) | D36: =title107 -> Unit | E36: =title274 -> Unit Price | G36: =title276 -> Quantity | H36: Total | I36: =title276 -> Quantity | J36: Total | K36: =title276 -> Quantity | M36: Total | N36: =title276 -> Quantity | O36: Total
E37: =title275 -> (USD/Unit) | G37: (Units) | H37: =title278 -> (USD/year) | I37: (Units) | J37: =title278 -> (USD/year) | K37: (Units) | M37: =title278 -> (USD/year) | N37: (Units) | O37: =title278 -> (USD/year)
C38: =title286 -> Pellet products | D38: =title34 -> t/year | E38: =$G$20*1000 -> 0 | G38: =G33 -> 0 | H38: =E38*G38 -> 0 | I38: =I33 -> 0 | J38: =E38*I38 -> 0 | K38: =K33 -> 0 | M38: =E38*K38 -> 0 | N38: =N33 -> 0 | O38: =E38*N38 -> 0
C39: =title279 -> Subtotal | G39: =SUM(G38:G38) -> 0 | H39: =SUM(H38:H38) -> 0 | I39: =SUM(I38:I38) -> 0 | J39: =SUM(J38:J38) -> 0 | K39: =SUM(K38:K38) -> 0 | M39: =SUM(M38:M38) -> 0 | N39: =SUM(N38) -> 0 | O39: =SUM(O38:O38) -> 0
Q45: Comparison Pellet to Fossil Fuels
R47: Prices | S47: Calorific Value | T47: Stove efficiency | U47: Useful energy | V47: Energy ratio per CV of pellet | W47: kg of Fuel
R48: USD/unit | S48: MJ/unit | T48: % | U48: MJ/kg | W48: compared to energy of pellet 1 kg
Q49: =title425&" (kg)" -> Pellet (kg) | S49: 15.4 | T49: 0.7 | U49: =S49*T49 -> 10.78 | V49: =U49/$U$49 -> 1 | W49: =$U$49/U49 -> 1
Q50: =title39&" (kg)" -> Charcoal (kg) | S50: 30.8 | T50: 0.45 | U50: =S50*T50 -> 13.86 | V50: =U50/$U$49 -> 1.285714286 | W50: =$U$49/U50 -> 0.7777777778
Q51: =title37&" (kg)" -> Coal (kg) | S51: 33 | T51: 0.6 | U51: 19.8 | V51: 1.836734694 | W51: 0.5444444444
Q52: =title38&" (kg)" -> Fuel wood (kg) | S52: 14.5 | T52: 0.2 | U52: 2.9 | V52: 0.2690166976 | W52: 3.717241379
Q53: =title41&" (l)" -> Kerosene (l) | S53: 35 | T53: 0.55 | U53: 19.25 | V53: 1.785714286 | W53: 0.56
Q54: =title42&" (kg)" -> LPG (kg) | S54: 46.89 | T54: 0.6 | U54: 28.134 | V54: 2.609833024 | W54: 0.3831662757
Q55: =title40&" (m3)" -> Natural Gas (m3) | S55: 34.94 | T55: 0.8 | U55: 27.952 | V55: 2.592949907 | W55: 0.3856611334

Sheet STORAGE_RES1 (hidden)
C3: =UPPER(title43&'Data entry needs'!$D$10&" "&'Data entry needs'!$D$11) -> BIOMASS STORAGE CALCULATION FOR PLEASE SELECT PLEASE SELECT
C5: =title44 -> Biomass safety stock rate definition
F8: =title45 -> Capacities (tons of pellet per hour)
D9: =title107 -> Unit | I9: 2 | L9: 6 | O9: 15
C10: =title46 -> Biomass consumption | D10: =title34 -> t/year | F10: =+COST_RES1!F$33 ->  | I10: =+COST_RES1!H$33 ->  | L10: =+COST_RES1!J$33 ->  | O10: =+COST_RES1!L$33 -> 
D11: =title50 -> t/month | F11: =F10/12 ->  | I11: =I10/12 ->  | L11: =L10/12 ->  | O11: =O10/12 -> 
D12: =title51 -> kg/day | F12: =F10/365 ->  | I12: =I10/365 ->  | L12: =L10/365 ->  | O12: =O10/365 -> 
C14: =title47 -> Biomass production yield within a specific distance | D14: =title34 -> t/year | F14: =COST_RES1!$D$9 -> 0 | I14: =COST_RES1!$D$9 -> 0 | L14: =COST_RES1!$D$9 -> 0 | O14: =COST_RES1!$D$9 -> 0
C16: =title48 -> Biomass safety stock rate | F16: =+F17/100 -> 0.3 | G16: =+G17/100 -> 0 | H16: 0 | I16: 0.3 | J16: 0 | K16: 0 | L16: 0.3 | M16: 0 | N16: 0 | O16: 0.3
F17: 30 | I17: 30 | L17: 30 | O17: 30
C18: =title49 -> Biomass stock pile capacity | D18: t | F18: =+MAX(F25:F36) ->  | I18: =+MAX(I25:I36) ->  | L18: =+MAX(L25:L36) ->  | O18: =+MAX(O25:O36) -> 
C20: =title52 -> Maximum storage definition
F22: =title45 -> Capacities (tons of pellet per hour)
I23: 2 | L23: 6 | O23: 15
C24: =title54 -> Harvest Month Selection | D24: =title55 -> Storage Month | E24: Monthly Consumption (t/month) | F24: =title56 -> Cumulative Storage (t) | G24: Storage Depletion (t/month) | H24: Monthly Consumption (t/month) | I24: =title56 -> Cumulative Storage (t) | J24: Storage Depletion (t/month) | K24: Monthly Consumption (t/month) | L24: =title56 -> Cumulative Storage (t) | M24: Storage Depletion (t/month) | N24: Monthly Consumption (t/month) | O24: =title56 -> Cumulative Storage (t) | P24: Storage Depletion (t/month) | AB24: Harvest Period | AC24: Harvest Period | AD24: Depletion term | AE24: Depletion month | AF24: EQ term | AG24: Depletion time | AH24: Storageterm | AI24: =title55 -> Storage Month | AJ24: EQ term | AK24: Storage time
C25: =title57 -> January | D25: =+IF($AC25=0,0,IF($AC25>$AC36,1,IF($AC25=$AC36,$D36+1,IF($AC36>$AC25,0)))) -> 0 | E25: =+F$11 ->  | F25: =+IF(AND($D$25=1,$D$36=0,$D$26=0),$F$11*$AG$25+$F$11*$F$16,IF($D25>0,($AG25*$F$11/$AK25)*$D25+$F$11*$F$16,0)) -> 0 | G25: =IF(AND($D$25=1,$D$36=0,$D$26=0),$F$11*$AG25+$G$36,IF($D25>0,IFERROR(($AG25*$F$11/$AK25)*$D25,"")+$F$11*$F$16,IF($D25=0,G36-E25))) ->  | H25: =+I$11 ->  | I25: =+IF(AND($D$25=1,$D$36=0,$D$26=0),$I$11*$AG$25+$I$11*$I$16,IF($D25>0,($AG25*$I$11/$AK25)*$D25+$I$11*$I$16,0)) -> 0 | J25: =IF(AND($D$25=1,$D$36=0,$D$26=0),$I$11*$AG25+$J$36,IF($D25>0,IFERROR(($AG25*$I$11/$AK25)*$D25,"")+$I$11*$I$16,IF($D25=0,J36-D25))) ->  | K25: =+L$11 ->  | L25: =+IF(AND($D$25=1,$D$36=0,$D$26=0),$L$11*$AG$25+$L$11*$L$16,IF($D25>0,($AG25*$L$11/$AK25)*$D25+$L$11*$L$16,0)) -> 0 | M25: =IF(AND($D$25=1,$D$36=0,$D$26=0),$I$11*$AG25+$M$36,IF($D25>0,IFERROR(($AG25*$I$11/$AK25)*$D25,"")+$I$11*$I$16,IF($D25=0,M36-D25))) ->  | N25: =+O$11 ->  | O25: =+IF(AND($D$25=1,$D$36=0,$D$26=0),$O$11*$AG$25+$O$11*$O$16,IF($D25>0,($AG25*$O$11/$AK25)*$D25+$O$11*$O$16,0)) -> 0 | P25: =IF(AND($D$25=1,$D$36=0,$D$26=0),$O$11*$AG25+$P$36,IF($D25>0,IFERROR(($AG25*$O$11/$AK25)*$D25,"")+$O$11*$O$16,IF($D25=0,P36-N25))) ->  | AB25: FALSE | AC25: =+N(AB25) -> 0 | AD25: =+IF(AND(AC26>AC25,AC25=0),"Last"&AF25,"") ->  | AE25: =+IF($AC25=1,0,IF($AC25<$AC36,1,IF($AC25=$AC36,$AE36+1,IF($AC36>$AC25,1)))) -> 4 | AF25: 1 | AG25: =IFERROR(VLOOKUP("LAST"&AF25,$AD$25:$AE$36,2,FALSE),AK25) -> 5 | AH25: =+IF(AND(AI25>AI26,AI26=0),"Last"&AJ25,"") ->  | AI25: =+IF($AC25=0,0,IF($AC25>$AC36,1,IF($AC25=$AC36,$AI36+1,IF($AC36>$AC25,0)))) -> 0 | AJ25: 1 | AK25: =IFERROR(VLOOKUP("LAST"&AJ25,$AH$25:$AI$36,2,FALSE),VLOOKUP("LAST"&1,$AH$25:$AI$36,2,FALSE)) -> 1
C26: =title58 -> February | D26: =+IF($AC26=0,0,IF($AC26>$AC25,1,IF($AC26=$AC25,$D25+1,IF($AC25>$AC26,0)))) -> 0 | E26: =+F$11 ->  | F26: =IF($D26>0,($AG26*$F$11/$AK26)*$D26+$F$11*$F$16,0) -> 0 | G26: =+IF($D26>0,IFERROR(($AG26*$F$11/$AK26)*$D26,"")+$F$11*$F$16,IF($D26=0,G25-E26)) ->  | I26: =IF($D26>0,($AG26*$I$11/$AK26)*$D26+$I$11*$I$16,0) -> 0 | J26: =+IF($D26>0,IFERROR(($AG26*$I$11/$AK26)*$D26,"")+$I$11*$I$16,IF($D26=0,J25-H26)) ->  | L26: =IF($D26>0,($AG26*$L$11/$AK26)*$D26+$L$11*$L$16,0) -> 0 | M26: =+IF($D26>0,IFERROR(($AG26*$L$11/$AK26)*$D26,"")+$L$11*$L$16,IF($D26=0,M25-K26)) ->  | O26: =IF($D26>0,($AG26*$O$11/$AK26)*$D26+$O$11*$O$16,0) -> 0 | P26: =+IF($D26>0,IFERROR(($AG26*$O$11/$AK26)*$D26,"")+$O$11*$O$16,IF($D26=0,P25-N26)) ->  | AB26: FALSE | AC26: =+N(AB26) -> 0 | AD26: Last1 | AE26: =+IF($AC26=1,0,IF($AC26<$AC25,1,IF($AC26=$AC25,$AE25+1,IF($AC25>$AC26,1)))) -> 5 | AF26: =+IF($AE25>$AE26,$AF25+1,$AF25) -> 1 | AG26: =IFERROR(VLOOKUP("LAST"&AF26,$AD$25:$AE$36,2,FALSE),$AG$25) -> 5 | AH26: =+IF(AND(AI26>AI27,AI27=0),"Last"&AJ26,"") ->  | AI26: =+IF($AC26=0,0,IF($AC26>$AC25,1,IF($AC26=$AC25,$AI25+1,IF($AC25>$AC26,0)))) -> 0 | AJ26: =+IF($AI25>$AI26,$AJ25+1,$AJ25) -> 1 | AK26: 1
C27: =title59 -> March | D27: 1 | F27: =IF($D27>0,($AG27*$F$11/$AK27)*$D27+$F$11*$F$16,0) ->  | AB27: TRUE | AC27: 1 | AE27: 0 | AF27: 2 | AG27: 5 | AH27: =+IF(AND(AI27>AI28,AI28=0),"Last"&AJ27,"") -> Last1 | AI27: 1 | AJ27: 1 | AK27: 1
C28: =title60 -> April | D28: 0 | F28: =IF($D28>0,($AG28*$F$11/$AK28)*$D28+$F$11*$F$16,0) -> 0 | I28: 0 | L28: 0 | O28: 0 | AB28: FALSE | AC28: 0 | AE28: 1 | AF28: 2 | AG28: 5 | AH28: =+IF(AND(AI28>AI29,AI29=0),"Last"&AJ28,"") ->  | AI28: 0 | AJ28: 2 | AK28: 1
C29: =title61 -> May | D29: 0 | F29: 0 | I29: 0 | L29: 0 | O29: 0 | AB29: FALSE | AC29: 0 | AE29: 2 | AF29: 2 | AG29: 5 | AH29: =+IF(AND(AI29>AI30,AI30=0),"Last"&AJ29,"") ->  | AI29: 0 | AJ29: 2 | AK29: 1
C30: =title62 -> June | D30: 0 | F30: 0 | I30: 0 | L30: 0 | O30: 0 | AB30: FALSE | AC30: 0 | AE30: 3 | AF30: 2 | AG30: 5 | AI30: 0 | AJ30: 2 | AK30: 1
C31: =title63 -> July | D31: 0 | F31: 0 | I31: 0 | L31: 0 | O31: 0 | AB31: FALSE | AC31: 0 | AE31: 4 | AF31: 2 | AG31: 5 | AI31: 0 | AJ31: 2 | AK31: 1
C32: =title64 -> August | D32: 0 | F32: 0 | I32: 0 | L32: 0 | O32: 0 | AB32: FALSE | AC32: 0 | AD32: Last2 | AE32: 5 | AF32: 2 | AG32: 5 | AI32: 0 | AJ32: 2 | AK32: 1
C33: =title65 -> September | D33: 1 | AB33: TRUE | AC33: 1 | AE33: 0 | AF33: 3 | AG33: 5 | AH33: Last2 | AI33: 1 | AJ33: 2 | AK33: 1
C34: =title66 -> October | D34: 0 | F34: 0 | I34: 0 | L34: 0 | O34: 0 | AB34: FALSE | AC34: 0 | AE34: 1 | AF34: 3 | AG34: 5 | AI34: 0 | AJ34: 3 | AK34: 1
C35: =title67 -> November | D35: 0 | F35: 0 | I35: 0 | L35: 0 | O35: 0 | AB35: FALSE | AC35: 0 | AE35: 2 | AF35: 3 | AG35: 5 | AI35: 0 | AJ35: 3 | AK35: 1
C36: =title68 -> December | D36: 0 | F36: 0 | I36: 0 | L36: 0 | O36: 0 | AB36: FALSE | AC36: 0 | AD36: =+IF(AND(AC25>AC36,AC36=0),"Last"&AF36,"") ->  | AE36: 3 | AF36: 3 | AG36: 5 | AH36: =+IF(AND(AI36>AI25,AI25=0),"Last"&AJ36,"") ->  | AI36: 0 | AJ36: 3 | AK36: 1
D37: =+MAX(D25:D36)*30 -> 30
C38: =title69 -> Maximum Storage Capacity Required (t) | F38: =+ROUNDUP(MAX(F25:F36),0) ->  | I38: =+ROUNDUP(MAX(I25:I36),0) ->  | L38: =+ROUNDUP(MAX(L25:L36),0) ->  | O38: =+ROUNDUP(MAX(O25:O36),0) ->  | AF38: =4&" (kg/h)" -> 4 (kg/h) | AG38: =40&" (kg/hr)" -> 40 (kg/hr) | AH38: =400&" (kg/h)" -> 400 (kg/h) | AI38: =3000&" (kg/h)" -> 3000 (kg/h)
C39: =title70 -> Minimum Safety Storage (t) | F39: =+ROUNDUP(MIN(G25:G36),0) ->  | I39: =+ROUNDUP(MIN(J25:J36),0) ->  | L39: =+ROUNDUP(MIN(M25:M36),0) ->  | O39: =+ROUNDUP(MIN(P25:P36),0) ->  | AE39: =+LEFT(C25,3) -> Jan | AF39: =+G25 ->  | AG39: =+J25 ->  | AH39: =+M25 ->  | AI39: =+P25 -> 
AB40: No. Storage Months | AC40: =+COUNTIF(AC25:AC36,">0") -> 2 | AE40: Feb
C41: =title71 -> Monthly Consumption of Biomass Stocked | AB41: Total Depletion Period | AC41: =12-AC40 -> 10 | AE41: Mar
AE42: Apr
AE43: May
AE44: Jun
AE45: Jul
AE46: =+LEFT(C32,3) -> Aug | AF46: =+G32 ->  | AG46: =+J32 ->  | AH46: =+M32 ->  | AI46: =+P32 -> 
AE47: =+LEFT(C33,3) -> Sep | AF47: =+G33 ->  | AG47: =+J33 ->  | AH47: =+M33 ->  | AI47: =+P33 -> 
AE48: =+LEFT(C34,3) -> Oct | AF48: =+G34 ->  | AG48: =+J34 ->  | AH48: =+M34 ->  | AI48: =+P34 -> 
AE49: =+LEFT(C35,3) -> Nov | AF49: =+G35 ->  | AG49: =+J35 ->  | AH49: =+M35 ->  | AI49: =+P35 -> 
AE50: =+LEFT(C36,3) -> Dec | AF50: =+G36 ->  | AG50: =+J36 ->  | AH50: =+M36 ->  | AI50: =+P36 -> 

Sheet STORAGE_RES2 (hidden)
C3: =+UPPER(title43&'Data entry needs'!$E$10&" "&'Data entry needs'!$E$11) -> BIOMASS STORAGE CALCULATION FOR PLEASE SELECT PLEASE SELECT
C5: =title44 -> Biomass safety stock rate definition
F8: =title45 -> Capacities (tons of pellet per hour)
I9: 2 | L9: 6 | O9: 15
C10: =title46 -> Biomass consumption | D10: =title34 -> t/year | F10: =+COST_RES2!F$33 ->  | I10: =+COST_RES2!H$33 ->  | L10: =+COST_RES2!J$33 ->  | O10: =+COST_RES2!L$33 -> 
D11: =title50 -> t/month | F11: =F10/12 ->  | I11: =I10/12 ->  | L11: =L10/12 ->  | O11: =O10/12 -> 
D12: =title51 -> kg/day | F12: =F10/365 ->  | I12: =I10/365 ->  | L12: =L10/365 ->  | O12: =O10/365 -> 
C14: =title47 -> Biomass production yield within a specific distance | D14: =title34 -> t/year | F14: =COST_RES2!$D$9 -> 0 | I14: =COST_RES2!$D$9 -> 0 | L14: =COST_RES2!$D$9 -> 0 | O14: =COST_RES2!$D$9 -> 0
C16: =title48 -> Biomass safety stock rate | F16: =+F17/100 -> 0.3 | G16: =+G17/100 -> 0 | H16: 0 | I16: 0.3 | J16: 0 | K16: 0 | L16: 0.3 | M16: 0 | N16: 0 | O16: 0.3
F17: 30 | I17: 30 | L17: 30 | O17: 30
C18: =title49 -> Biomass stock pile capacity | D18: t | F18: =+MAX(F25:F36) ->  | I18: =+MAX(I25:I36) ->  | L18: =+MAX(L25:L36) ->  | O18: =+MAX(O25:O36) -> 
C20: =title52 -> Maximum storage definition
F22: =title45 -> Capacities (tons of pellet per hour)
I23: =+I9 -> 2 | L23: =+L9 -> 6 | O23: =+O9 -> 15
C24: =title54 -> Harvest Month Selection | D24: =title55 -> Storage Month | E24: Monthly Consumption (t/month) | F24: =title56 -> Cumulative Storage (t) | G24: Storage Depletion (t/month) | H24: Monthly Consumption (t/month) | I24: =title56 -> Cumulative Storage (t) | J24: Storage Depletion (t/month) | K24: Monthly Consumption (t/month) | L24: =title56 -> Cumulative Storage (t) | M24: Storage Depletion (t/month) | N24: Monthly Consumption (t/month) | O24: =title56 -> Cumulative Storage (t) | P24: Storage Depletion (t/month) | AB24: Harvest Period | AC24: Harvest Period | AD24: Depletion term | AE24: Depletion month | AF24: EQ term | AG24: Depletion time | AH24: Storageterm | AI24: =title55 -> Storage Month | AJ24: EQ term | AK24: Storage time
C25: =title57 -> January | D25: =+IF($AC25=0,0,IF($AC25>$AC36,1,IF($AC25=$AC36,$D36+1,IF($AC36>$AC25,0)))) -> 0 | E25: =+F$11 ->  | F25: =+IF(AND($D$25=1,$D$36=0,$D$26=0),$F$11*$AG25+$F$11*$F$16,IF($D25>0,($AG25*$F$11/$AK25)*$D25+$F$11*$F$16,0)) -> 0 | G25: =IF(AND($D$25=1,$D$36=0,$D$26=0),$F$11*#REF!+$G$36,IF($D25>0,IFERROR((#REF!*$F$11/#REF!)*$D25,"")+$F$11*$F$16,IF($D25=0,G36-E25))) ->  | H25: =+I$11 ->  | I25: =+IF(AND($D$25=1,$D$36=0,$D$26=0),$I$11*$AG25+$I$11*$I$16,IF($D25>0,($AG25*$I$11/$AK25)*$D25+$I$11*$I$16,0)) -> 0 | J25: =IF(AND($D$25=1,$D$36=0,$D$26=0),$I$11*#REF!+$J$36,IF($D25>0,IFERROR((#REF!*$I$11/#REF!)*$D25,"")+$I$11*$I$16,IF($D25=0,J36-H25))) ->  | K25: =+L$11 ->  | L25: =+IF(AND($D$25=1,$D$36=0,$D$26=0),$L$11*$AG25+$L$11*$L$16,IF($D25>0,($AG25*$L$11/$AK25)*$D25+$L$11*$L$16,0)) -> 0 | M25: =IF(AND($D$25=1,$D$36=0,$D$26=0),$L$11*#REF!+$M$36,IF($D25>0,IFERROR((#REF!*$L$11/#REF!)*$D25,"")+$L$11*$L$16,IF($D25=0,M36-K25))) ->  | N25: =+O$11 ->  | O25: =+IF(AND($D$25=1,$D$36=0,$D$26=0),$O$11*$AG25+$O$11*$O$16,IF($D25>0,($AG25*$O$11/$AK25)*$D25+$O$11*$O$16,0)) -> 0 | P25: =IF(AND($D$25=1,$D$36=0,$D$26=0),$O$11*#REF!+$P$36,IF($D25>0,IFERROR((#REF!*$O$11/#REF!)*$D25,"")+$O$11*$O$16,IF($D25=0,P36-N25))) ->  | AB25: FALSE | AC25: =+N(AB25) -> 0 | AD25: =+IF(AND(AC26>AC25,AC25=0),"Last"&AF25,"") ->  | AE25: =+IF($AC25=1,0,IF($AC25<$AC36,1,IF($AC25=$AC36,$AE36+1,IF($AC36>$AC25,1)))) -> 8 | AF25: 1 | AG25: =IFERROR(VLOOKUP("LAST"&AF25,$AD$25:$AE$36,2,FALSE),AK25) -> 10 | AH25: =+IF(AND(AI25>AI26,AI26=0),"Last"&AJ25,"") ->  | AI25: =+IF($AC25=0,0,IF($AC25>$AC36,1,IF($AC25=$AC36,$AI36+1,IF($AC36>$AC25,0)))) -> 0 | AJ25: 1 | AK25: =IFERROR(VLOOKUP("LAST"&AJ25,$AH$25:$AI$36,2,FALSE),VLOOKUP("LAST"&1,$AH$25:$AI$36,2,FALSE)) -> 2
C26: =title58 -> February | D26: =+IF($AC26=0,0,IF($AC26>$AC25,1,IF($AC26=$AC25,$D25+1,IF($AC25>$AC26,0)))) -> 0 | F26: =IF($D26>0,($AG26*$F$11/$AK26)*$D26+$F$11*$F$16,0) -> 0 | G26: =+IF($D26>0,IFERROR(($AG26*$F$11/$AK26)*$D26,"")+$F$11*$F$16,IF($D26=0,G25-E26)) ->  | I26: =IF($D26>0,($AG26*$I$11/$AK26)*$D26+$I$11*$I$16,0) -> 0 | J26: =+IF($D26>0,IFERROR(($AG26*$I$11/$AK26)*$D26,"")+$I$11*$I$16,IF($D26=0,J25-H26)) ->  | L26: =IF($D26>0,($AG26*$L$11/$AK26)*$D26+$L$11*$L$16,0) -> 0 | M26: =+IF($D26>0,IFERROR(($AG26*$L$11/$AK26)*$D26,"")+$L$11*$L$16,IF($D26=0,M25-K26)) ->  | O26: =IF($D26>0,($AG26*$O$11/$AK26)*$D26+$O$11*$O$16,0) -> 0 | P26: =+IF($D26>0,IFERROR(($AG26*$O$11/$AK26)*$D26,"")+$O$11*$O$16,IF($D26=0,P25-N26)) ->  | AB26: FALSE | AC26: =+N(AB26) -> 0 | AD26: =+IF(AND(AC27>AC26,AC26=0),"Last"&AF26,"") ->  | AE26: =+IF($AC26=1,0,IF($AC26<$AC25,1,IF($AC26=$AC25,$AE25+1,IF($AC25>$AC26,1)))) -> 9 | AF26: =+IF($AE25>$AE26,$AF25+1,$AF25) -> 1 | AG26: =IFERROR(VLOOKUP("LAST"&AF26,$AD$25:$AE$36,2,FALSE),$AG$25) -> 10 | AH26: =+IF(AND(AI26>AI27,AI27=0),"Last"&AJ26,"") ->  | AI26: =+IF($AC26=0,0,IF($AC26>$AC25,1,IF($AC26=$AC25,$AI25+1,IF($AC25>$AC26,0)))) -> 0 | AJ26: =+IF($AI25>$AI26,$AJ25+1,$AJ25) -> 1 | AK26: 2
C27: =title59 -> March | D27: 0 | F27: 0 | I27: 0 | L27: 0 | O27: 0 | AB27: FALSE | AC27: 0 | AD27: =+IF(AND(AC28>AC27,AC27=0),"Last"&AF27,"") -> Last1 | AE27: 10 | AF27: 1 | AG27: 10 | AH27: =+IF(AND(AI27>AI28,AI28=0),"Last"&AJ27,"") ->  | AI27: 0 | AJ27: 1 | AK27: 2
C28: =title60 -> April | D28: 1 | AB28: TRUE | AC28: 1 | AD28: =+IF(AND(AC29>AC28,AC28=0),"Last"&AF28,"") ->  | AE28: 0 | AF28: 2 | AG28: 10 | AH28: =+IF(AND(AI28>AI29,AI29=0),"Last"&AJ28,"") ->  | AI28: 1 | AJ28: 1 | AK28: 2
C29: =title61 -> May | D29: 2 | AB29: TRUE | AC29: 1 | AE29: 0 | AF29: 2 | AG29: 10 | AH29: =+IF(AND(AI29>AI30,AI30=0),"Last"&AJ29,"") -> Last1 | AI29: 2 | AJ29: 1 | AK29: 2
C30: =title62 -> June | D30: 0 | F30: 0 | I30: 0 | L30: 0 | O30: 0 | AB30: FALSE | AC30: 0 | AE30: 1 | AF30: 2 | AG30: 10 | AI30: 0 | AJ30: 2 | AK30: 2
C31: =title63 -> July | D31: 0 | F31: 0 | I31: 0 | L31: 0 | O31: 0 | AB31: FALSE | AC31: 0 | AE31: 2 | AF31: 2 | AG31: 10 | AI31: 0 | AJ31: 2 | AK31: 2
C32: =title64 -> August | D32: 0 | F32: 0 | I32: 0 | L32: 0 | O32: 0 | AB32: FALSE | AC32: 0 | AE32: 3 | AF32: 2 | AG32: 10 | AI32: 0 | AJ32: 2 | AK32: 2
C33: =title65 -> September | D33: 0 | F33: 0 | I33: 0 | L33: 0 | O33: 0 | AB33: FALSE | AC33: 0 | AE33: 4 | AF33: 2 | AG33: 10 | AI33: 0 | AJ33: 2 | AK33: 2
C34: =title66 -> October | D34: 0 | F34: 0 | I34: 0 | L34: 0 | O34: 0 | AB34: FALSE | AC34: 0 | AE34: 5 | AF34: 2 | AG34: 10 | AI34: 0 | AJ34: 2 | AK34: 2
C35: =title67 -> November | D35: 0 | F35: 0 | I35: 0 | L35: 0 | O35: 0 | AB35: FALSE | AC35: 0 | AE35: 6 | AF35: 2 | AG35: 10 | AI35: 0 | AJ35: 2 | AK35: 2
C36: =title68 -> December | D36: 0 | F36: 0 | I36: 0 | L36: 0 | O36: 0 | AB36: FALSE | AC36: 0 | AD36: =+IF(AND(AC25>AC36,AC36=0),"Last"&AF36,"") ->  | AE36: 7 | AF36: 2 | AG36: 10 | AH36: =+IF(AND(AI36>AI25,AI25=0),"Last"&AJ36,"") ->  | AI36: 0 | AJ36: 2 | AK36: 2
D37: =+MAX(D25:D36)*30 -> 60
C38: =title69 -> Maximum Storage Capacity Required (t) | F38: =+ROUNDUP(MAX(F25:F36),0) ->  | I38: =+ROUNDUP(MAX(I25:I36),0) ->  | L38: =+ROUNDUP(MAX(L25:L36),0) ->  | O38: =+ROUNDUP(MAX(O25:O36),0) -> 
C39: =title70 -> Minimum Safety Storage (t) | F39: =+ROUNDUP(MIN(G25:G36),0) ->  | I39: =+ROUNDUP(MIN(J25:J36),0) ->  | L39: =+ROUNDUP(MIN(M25:M36),0) ->  | O39: =+ROUNDUP(MIN(P25:P36),0) -> 
AB40: No. Storage Months | AC40: =+COUNTIF(AC25:AC36,">0") -> 2
C41: =title71 -> Monthly Consumption of Biomass Stocked | AB41: Total Depletion Period | AC41: =12-AC40 -> 10
T42: Depletion time definition | AD42: =4&" (kg/h)" -> 4 (kg/h) | AE42: =40&" (kg/hr)" -> 40 (kg/hr) | AF42: =400&" (kg/h)" -> 400 (kg/h) | AG42: =3000&" (kg/h)" -> 3000 (kg/h)
T43: Depletion time definition | AC43: =+LEFT(C25,3) -> Jan | AD43: =+G25 ->  | AE43: =+J25 ->  | AF43: =+M25 ->  | AG43: =+P25 -> 
T44: Depletion time definition | AC44: Feb
T45: Depletion time definition | AC45: Mar
AC46: Apr
AC47: May
AC48: Jun
AC49: =+LEFT(C31,3) -> Jul | AD49: =+G31 ->  | AE49: =+J31 ->  | AF49: =+M31 ->  | AG49: =+P31 -> 
AC50: =+LEFT(C32,3) -> Aug | AD50: =+G32 ->  | AE50: =+J32 ->  | AF50: =+M32 ->  | AG50: =+P32 -> 
AC51: =+LEFT(C33,3) -> Sep | AD51: =+G33 ->  | AE51: =+J33 ->  | AF51: =+M33 ->  | AG51: =+P33 -> 
AC52: =+LEFT(C34,3) -> Oct | AD52: =+G34 ->  | AE52: =+J34 ->  | AF52: =+M34 ->  | AG52: =+P34 -> 
AC53: =+LEFT(C35,3) -> Nov | AD53: =+G35 ->  | AE53: =+J35 ->  | AF53: =+M35 ->  | AG53: =+P35 -> 
AC54: =+LEFT(C36,3) -> Dec | AD54: =+G36 ->  | AE54: =+J36 ->  | AF54: =+M36 ->  | AG54: =+P36 -> 

Sheet STORAGE_RES3 (hidden)
C3: =+UPPER(title43&'Data entry needs'!$F$10&" "&'Data entry needs'!$F$11) -> BIOMASS STORAGE CALCULATION FOR PLEASE SELECT PLEASE SELECT
C5: =title44 -> Biomass safety stock rate definition
F8: =title45 -> Capacities (tons of pellet per hour)
I9: 2 | L9: 6 | O9: 15
C10: =title46 -> Biomass consumption | D10: =title34 -> t/year | F10: =+COST_RES3!F$33 ->  | I10: =+COST_RES3!H$33 ->  | L10: =+COST_RES3!J$33 ->  | O10: =+COST_RES3!L$33 -> 
D11: =title50 -> t/month | F11: =F10/12 ->  | I11: =I10/12 ->  | L11: =L10/12 ->  | O11: =O10/12 -> 
D12: =title51 -> kg/day | F12: =F10/365 ->  | I12: =I10/365 ->  | L12: =L10/365 ->  | O12: =O10/365 -> 
C14: =title47 -> Biomass production yield within a specific distance | D14: =title34 -> t/year | F14: =COST_RES3!$D$9 -> 0 | I14: =COST_RES3!$D$9 -> 0 | L14: =COST_RES3!$D$9 -> 0 | O14: =COST_RES3!$D$9 -> 0
C16: =title48 -> Biomass safety stock rate | F16: =+F17/100 -> 0.3 | G16: =+G17/100 -> 0 | H16: 0 | I16: 0.3 | J16: 0 | K16: 0 | L16: 0.3 | M16: 0 | N16: 0 | O16: 0.3
F17: 30 | I17: 30 | L17: 30 | O17: 30
C18: =title49 -> Biomass stock pile capacity | D18: t | F18: =+MAX(F25:F36) ->  | I18: =+MAX(I25:I36) ->  | L18: =+MAX(L25:L36) ->  | O18: =+MAX(O25:O36) -> 
C20: =title52 -> Maximum storage definition
F22: =title45 -> Capacities (tons of pellet per hour)
I23: =+I9 -> 2 | L23: =+L9 -> 6 | O23: =+O9 -> 15
C24: =title54 -> Harvest Month Selection | D24: =title55 -> Storage Month | E24: Monthly Consumption (t/month) | F24: =title56 -> Cumulative Storage (t) | G24: Storage Depletion (t/month) | H24: Monthly Consumption (t/month) | I24: =title56 -> Cumulative Storage (t) | J24: Storage Depletion (t/month) | K24: Monthly Consumption (t/month) | L24: =title56 -> Cumulative Storage (t) | M24: Storage Depletion (t/month) | N24: Monthly Consumption (t/month) | O24: =title56 -> Cumulative Storage (t) | P24: Storage Depletion (t/month) | AB24: Harvest Period | AC24: Harvest Period | AD24: Depletion term | AE24: Depletion month | AF24: EQ term | AG24: Depletion time | AH24: Storageterm | AI24: =title55 -> Storage Month | AJ24: EQ term | AK24: Storage time
C25: =title57 -> January | D25: =+IF($AC25=0,0,IF($AC25>$AC36,1,IF($AC25=$AC36,$D36+1,IF($AC36>$AC25,0)))) -> 0 | E25: =+F$11 ->  | F25: =+IF(AND($D$25=1,$D$36=0,$D$26=0),$F$11*$AG25+$F$11*$F$16,IF($D25>0,($AG25*$F$11/$AK25)*$D25+$F$11*$F$16,0)) -> 0 | G25: =IF(AND($D$25=1,$D$36=0,$D$26=0),$F$11*#REF!+$G$36,IF($D25>0,IFERROR((#REF!*$F$11/#REF!)*$D25,"")+$F$11*$F$16,IF($D25=0,G36-E25))) ->  | H25: =+I$11 ->  | I25: =+IF(AND($D$25=1,$D$36=0,$D$26=0),$I$11*$AG25+$I$11*$I$16,IF($D25>0,($AG25*$I$11/$AK25)*$D25+$I$11*$I$16,0)) -> 0 | J25: =IF(AND($D$25=1,$D$36=0,$D$26=0),$I$11*#REF!+$J$36,IF($D25>0,IFERROR((#REF!*$I$11/#REF!)*$D25,"")+$I$11*$I$16,IF($D25=0,J36-H25))) ->  | K25: =+L$11 ->  | L25: =+IF(AND($D$25=1,$D$36=0,$D$26=0),$L$11*$AG25+$L$11*$L$16,IF($D25>0,($AG25*$L$11/$AK25)*$D25+$L$11*$L$16,0)) -> 0 | M25: =IF(AND($D$25=1,$D$36=0,$D$26=0),$L$11*#REF!+$M$36,IF($D25>0,IFERROR((#REF!*$L$11/#REF!)*$D25,"")+$L$11*$L$16,IF($D25=0,M36-K25))) ->  | N25: =+O$11 ->  | O25: =+IF(AND($D$25=1,$D$36=0,$D$26=0),$O$11*$AG25+$O$11*$O$16,IF($D25>0,($AG25*$O$11/$AK25)*$D25+$O$11*$O$16,0)) -> 0 | P25: =IF(AND($D$25=1,$D$36=0,$D$26=0),$O$11*#REF!+$P$36,IF($D25>0,IFERROR((#REF!*$O$11/#REF!)*$D25,"")+$O$11*$O$16,IF($D25=0,P36-N25))) ->  | AB25: FALSE | AC25: =+N(AB25) -> 0 | AD25: =+IF(AND(AC26>AC25,AC25=0),"Last"&AF25,"") ->  | AE25: =+IF($AC25=1,0,IF($AC25<$AC36,1,IF($AC25=$AC36,$AE36+1,IF($AC36>$AC25,1)))) -> 8 | AF25: 1 | AG25: =IFERROR(VLOOKUP("LAST"&AF25,$AD$25:$AE$36,2,FALSE),AK25) -> 10 | AH25: =+IF(AND(AI25>AI26,AI26=0),"Last"&AJ25,"") ->  | AI25: =+IF($AC25=0,0,IF($AC25>$AC36,1,IF($AC25=$AC36,$AI36+1,IF($AC36>$AC25,0)))) -> 0 | AJ25: 1 | AK25: =IFERROR(VLOOKUP("LAST"&AJ25,$AH$25:$AI$36,2,FALSE),VLOOKUP("LAST"&1,$AH$25:$AI$36,2,FALSE)) -> 2
C26: =title58 -> February | D26: =+IF($AC26=0,0,IF($AC26>$AC25,1,IF($AC26=$AC25,$D25+1,IF($AC25>$AC26,0)))) -> 0 | F26: =IF($D26>0,($AG26*$F$11/$AK26)*$D26+$F$11*$F$16,0) -> 0 | G26: =+IF($D26>0,IFERROR(($AG26*$F$11/$AK26)*$D26,"")+$F$11*$F$16,IF($D26=0,G25-E26)) ->  | I26: =IF($D26>0,($AG26*$I$11/$AK26)*$D26+$I$11*$I$16,0) -> 0 | J26: =+IF($D26>0,IFERROR(($AG26*$I$11/$AK26)*$D26,"")+$I$11*$I$16,IF($D26=0,J25-H26)) ->  | L26: =IF($D26>0,($AG26*$L$11/$AK26)*$D26+$L$11*$L$16,0) -> 0 | M26: =+IF($D26>0,IFERROR(($AG26*$L$11/$AK26)*$D26,"")+$L$11*$L$16,IF($D26=0,M25-K26)) ->  | O26: =IF($D26>0,($AG26*$O$11/$AK26)*$D26+$O$11*$O$16,0) -> 0 | P26: =+IF($D26>0,IFERROR(($AG26*$O$11/$AK26)*$D26,"")+$O$11*$O$16,IF($D26=0,P25-N26)) ->  | AB26: FALSE | AC26: =+N(AB26) -> 0 | AD26: =+IF(AND(AC27>AC26,AC26=0),"Last"&AF26,"") ->  | AE26: =+IF($AC26=1,0,IF($AC26<$AC25,1,IF($AC26=$AC25,$AE25+1,IF($AC25>$AC26,1)))) -> 9 | AF26: =+IF($AE25>$AE26,$AF25+1,$AF25) -> 1 | AG26: =IFERROR(VLOOKUP("LAST"&AF26,$AD$25:$AE$36,2,FALSE),$AG$25) -> 10 | AH26: =+IF(AND(AI26>AI27,AI27=0),"Last"&AJ26,"") ->  | AI26: =+IF($AC26=0,0,IF($AC26>$AC25,1,IF($AC26=$AC25,$AI25+1,IF($AC25>$AC26,0)))) -> 0 | AJ26: =+IF($AI25>$AI26,$AJ25+1,$AJ25) -> 1 | AK26: 2
C27: =title59 -> March | D27: 0 | F27: 0 | I27: 0 | L27: 0 | O27: 0 | AB27: FALSE | AC27: 0 | AD27: =+IF(AND(AC28>AC27,AC27=0),"Last"&AF27,"") -> Last1 | AE27: 10 | AF27: 1 | AG27: 10 | AH27: =+IF(AND(AI27>AI28,AI28=0),"Last"&AJ27,"") ->  | AI27: 0 | AJ27: 1 | AK27: 2
C28: =title60 -> April | D28: 1 | AB28: TRUE | AC28: 1 | AD28: =+IF(AND(AC29>AC28,AC28=0),"Last"&AF28,"") ->  | AE28: 0 | AF28: 2 | AG28: 10 | AH28: =+IF(AND(AI28>AI29,AI29=0),"Last"&AJ28,"") ->  | AI28: 1 | AJ28: 1 | AK28: 2
C29: =title61 -> May | D29: 2 | AB29: TRUE | AC29: 1 | AE29: 0 | AF29: 2 | AG29: 10 | AH29: =+IF(AND(AI29>AI30,AI30=0),"Last"&AJ29,"") -> Last1 | AI29: 2 | AJ29: 1 | AK29: 2
C30: =title62 -> June | D30: 0 | F30: 0 | I30: 0 | L30: 0 | O30: 0 | AB30: FALSE | AC30: 0 | AE30: 1 | AF30: 2 | AG30: 10 | AI30: 0 | AJ30: 2 | AK30: 2
C31: =title63 -> July | D31: 0 | F31: 0 | I31: 0 | L31: 0 | O31: 0 | AB31: FALSE | AC31: 0 | AE31: 2 | AF31: 2 | AG31: 10 | AI31: 0 | AJ31: 2 | AK31: 2
C32: =title64 -> August | D32: 0 | F32: 0 | I32: 0 | L32: 0 | O32: 0 | AB32: FALSE | AC32: 0 | AE32: 3 | AF32: 2 | AG32: 10 | AI32: 0 | AJ32: 2 | AK32: 2
C33: =title65 -> September | D33: 0 | F33: 0 | I33: 0 | L33: 0 | O33: 0 | AB33: FALSE | AC33: 0 | AE33: 4 | AF33: 2 | AG33: 10 | AI33: 0 | AJ33: 2 | AK33: 2
C34: =title66 -> October | D34: 0 | F34: 0 | I34: 0 | L34: 0 | O34: 0 | AB34: FALSE | AC34: 0 | AE34: 5 | AF34: 2 | AG34: 10 | AI34: 0 | AJ34: 2 | AK34: 2
C35: =title67 -> November | D35: 0 | F35: 0 | I35: 0 | L35: 0 | O35: 0 | AB35: FALSE | AC35: 0 | AE35: 6 | AF35: 2 | AG35: 10 | AI35: 0 | AJ35: 2 | AK35: 2
C36: =title68 -> December | D36: 0 | F36: 0 | I36: 0 | L36: 0 | O36: 0 | AB36: FALSE | AC36: 0 | AD36: =+IF(AND(AC25>AC36,AC36=0),"Last"&AF36,"") ->  | AE36: 7 | AF36: 2 | AG36: 10 | AH36: =+IF(AND(AI36>AI25,AI25=0),"Last"&AJ36,"") ->  | AI36: 0 | AJ36: 2 | AK36: 2
D37: =+MAX(D25:D36)*30 -> 60
C38: =title69 -> Maximum Storage Capacity Required (t) | F38: =+ROUNDUP(MAX(F25:F36),0) ->  | I38: =+ROUNDUP(MAX(I25:I36),0) ->  | L38: =+ROUNDUP(MAX(L25:L36),0) ->  | O38: =+ROUNDUP(MAX(O25:O36),0) -> 
C39: =title70 -> Minimum Safety Storage (t) | F39: =+ROUNDUP(MIN(G25:G36),0) ->  | I39: =+ROUNDUP(MIN(J25:J36),0) ->  | L39: =+ROUNDUP(MIN(M25:M36),0) ->  | O39: =+ROUNDUP(MIN(P25:P36),0) -> 
AB40: No. Storage Months | AC40: =+COUNTIF(AC25:AC36,">0") -> 2
C41: =title71 -> Monthly Consumption of Biomass Stocked | AB41: Total Depletion Period | AC41: =12-AC40 -> 10
T42: Depletion time definition | AD42: =4&" (kg/h)" -> 4 (kg/h) | AE42: =40&" (kg/hr)" -> 40 (kg/hr) | AF42: =400&" (kg/h)" -> 400 (kg/h) | AG42: =3000&" (kg/h)" -> 3000 (kg/h)
T43: Depletion time definition | AC43: =+LEFT(C25,3) -> Jan | AD43: =+G25 ->  | AE43: =+J25 ->  | AF43: =+M25 ->  | AG43: =+P25 -> 
T44: Depletion time definition | AC44: Feb
T45: Depletion time definition | AC45: Mar
AC46: Apr
AC47: May
AC48: Jun
AC49: =+LEFT(C32,3) -> Aug | AD49: =+G32 ->  | AE49: =+J32 ->  | AF49: =+M32 ->  | AG49: =+P32 -> 
AC50: =+LEFT(C33,3) -> Sep | AD50: =+G33 ->  | AE50: =+J33 ->  | AF50: =+M33 ->  | AG50: =+P33 -> 
AC51: =+LEFT(C34,3) -> Oct | AD51: =+G34 ->  | AE51: =+J34 ->  | AF51: =+M34 ->  | AG51: =+P34 -> 
AC52: =+LEFT(C35,3) -> Nov | AD52: =+G35 ->  | AE52: =+J35 ->  | AF52: =+M35 ->  | AG52: =+P35 -> 
AC53: =+LEFT(C36,3) -> Dec | AD53: =+G36 ->  | AE53: =+J36 ->  | AF53: =+M36 ->  | AG53: =+P36 -> 

Sheet STORAGE_RES4 (hidden)
C3: =+UPPER(title43&'Data entry needs'!$G$10&" "&'Data entry needs'!$G$11) -> BIOMASS STORAGE CALCULATION FOR PLEASE SELECT PLEASE SELECT
C5: =title44 -> Biomass safety stock rate definition
F8: =title45 -> Capacities (tons of pellet per hour)
I9: 2 | L9: 6 | O9: 15
C10: =title46 -> Biomass consumption | D10: =title34 -> t/year | F10: =+COST_RES4!F$33 ->  | I10: =+COST_RES4!H$33 ->  | L10: =+COST_RES4!J$33 ->  | O10: =+COST_RES4!L$33 -> 
D11: =title50 -> t/month | F11: =F10/12 ->  | I11: =I10/12 ->  | L11: =L10/12 ->  | O11: =O10/12 -> 
D12: =title51 -> kg/day | F12: =F10/365 ->  | I12: =I10/365 ->  | L12: =L10/365 ->  | O12: =O10/365 -> 
C14: =title47 -> Biomass production yield within a specific distance | D14: =title34 -> t/year | F14: =COST_RES4!$D$9 -> 0 | I14: =COST_RES4!$D$9 -> 0 | L14: =COST_RES4!$D$9 -> 0 | O14: =COST_RES4!$D$9 -> 0
C16: =title48 -> Biomass safety stock rate | F16: =+F17/100 -> 0.3 | G16: =+G17/100 -> 0 | H16: 0 | I16: 0.3 | J16: 0 | K16: 0 | L16: 0.3 | M16: 0 | N16: 0 | O16: 0.3
F17: 30 | I17: 30 | L17: 30 | O17: 30
C18: =title49 -> Biomass stock pile capacity | D18: t | F18: =+MAX(F25:F36) ->  | I18: =+MAX(I25:I36) ->  | L18: =+MAX(L25:L36) ->  | O18: =+MAX(O25:O36) -> 
C20: =title52 -> Maximum storage definition
F22: =title45 -> Capacities (tons of pellet per hour)
I23: =+I9 -> 2 | L23: =+L9 -> 6 | O23: =+O9 -> 15
C24: =title54 -> Harvest Month Selection | D24: =title55 -> Storage Month | E24: Monthly Consumption (t/month) | F24: =title56 -> Cumulative Storage (t) | G24: Storage Depletion (t/month) | H24: Monthly Consumption (t/month) | I24: =title56 -> Cumulative Storage (t) | J24: Storage Depletion (t/month) | K24: Monthly Consumption (t/month) | L24: =title56 -> Cumulative Storage (t) | M24: Storage Depletion (t/month) | N24: Monthly Consumption (t/month) | O24: =title56 -> Cumulative Storage (t) | P24: Storage Depletion (t/month) | AB24: Harvest Period | AC24: Harvest Period | AD24: Depletion term | AE24: Depletion month | AF24: EQ term | AG24: Depletion time | AH24: Storageterm | AI24: =title55 -> Storage Month | AJ24: EQ term | AK24: Storage time
C25: =title57 -> January | D25: =+IF($AC25=0,0,IF($AC25>$AC36,1,IF($AC25=$AC36,$D36+1,IF($AC36>$AC25,0)))) -> 0 | E25: =+F$11 ->  | F25: =+IF(AND($D$25=1,$D$36=0,$D$26=0),$F$11*$AG25+$F$11*$F$16,IF($D25>0,($AG25*$F$11/$AK25)*$D25+$F$11*$F$16,0)) -> 0 | G25: =IF(AND($D$25=1,$D$36=0,$D$26=0),$F$11*$AG25+$G$36,IF($D25>0,IFERROR(($AG25*$F$11/$AK25)*$D25,"")+$F$11*$F$16,IF($D25=0,G36-E25))) ->  | H25: =+I$11 ->  | I25: =+IF(AND($D$25=1,$D$36=0,$D$26=0),$I$11*$AG25+$I$11*$I$16,IF($D25>0,($AG25*$I$11/$AK25)*$D25+$I$11*$I$16,0)) -> 0 | J25: =IF(AND($D$25=1,$D$36=0,$D$26=0),$I$11*$AG25+$J$36,IF($D25>0,IFERROR(($AG25*$I$11/$AK25)*$D25,"")+$I$11*$I$16,IF($D25=0,J36-H25))) ->  | K25: =+L$11 ->  | L25: =+IF(AND($D$25=1,$D$36=0,$D$26=0),$L$11*$AG25+$L$11*$L$16,IF($D25>0,($AG25*$L$11/$AK25)*$D25+$L$11*$L$16,0)) -> 0 | M25: =IF(AND($D$25=1,$D$36=0,$D$26=0),$L$11*$AG25+$M$36,IF($D25>0,IFERROR(($AG25*$L$11/$AK25)*$D25,"")+$L$11*$L$16,IF($D25=0,M36-K25))) ->  | N25: =+O$11 ->  | O25: =+IF(AND($D$25=1,$D$36=0,$D$26=0),$O$11*$AG25+$O$11*$O$16,IF($D25>0,($AG25*$O$11/$AK25)*$D25+$O$11*$O$16,0)) -> 0 | P25: =IF(AND($D$25=1,$D$36=0,$D$26=0),$O$11*$AG25+$P$36,IF($D25>0,IFERROR(($AG25*$O$11/$AK25)*$D25,"")+$O$11*$O$16,IF($D25=0,P36-N25))) ->  | AB25: FALSE | AC25: =+N(AB25) -> 0 | AD25: =+IF(AND(AC26>AC25,AC25=0),"Last"&AF25,"") ->  | AE25: =+IF($AC25=1,0,IF($AC25<$AC36,1,IF($AC25=$AC36,$AE36+1,IF($AC36>$AC25,1)))) -> 8 | AF25: 1 | AG25: =IFERROR(VLOOKUP("LAST"&AF25,$AD$25:$AE$36,2,FALSE),AK25) -> 10 | AH25: =+IF(AND(AI25>AI26,AI26=0),"Last"&AJ25,"") ->  | AI25: =+IF($AC25=0,0,IF($AC25>$AC36,1,IF($AC25=$AC36,$AI36+1,IF($AC36>$AC25,0)))) -> 0 | AJ25: 1 | AK25: =IFERROR(VLOOKUP("LAST"&AJ25,$AH$25:$AI$36,2,FALSE),VLOOKUP("LAST"&1,$AH$25:$AI$36,2,FALSE)) -> 2
C26: =title58 -> February | D26: =+IF($AC26=0,0,IF($AC26>$AC25,1,IF($AC26=$AC25,$D25+1,IF($AC25>$AC26,0)))) -> 0 | F26: =IF($D26>0,($AG26*$F$11/$AK26)*$D26+$F$11*$F$16,0) -> 0 | G26: =+IF($D26>0,IFERROR(($AG26*$F$11/$AK26)*$D26,"")+$F$11*$F$16,IF($D26=0,G25-E26)) ->  | I26: =IF($D26>0,($AG26*$I$11/$AK26)*$D26+$I$11*$I$16,0) -> 0 | J26: =+IF($D26>0,IFERROR(($AG26*$I$11/$AK26)*$D26,"")+$I$11*$I$16,IF($D26=0,J25-H26)) ->  | L26: =IF($D26>0,($AG26*$L$11/$AK26)*$D26+$L$11*$L$16,0) -> 0 | M26: =+IF($D26>0,IFERROR(($AG26*$L$11/$AK26)*$D26,"")+$L$11*$L$16,IF($D26=0,M25-K26)) ->  | O26: =IF($D26>0,($AG26*$O$11/$AK26)*$D26+$O$11*$O$16,0) -> 0 | P26: =+IF($D26>0,IFERROR(($AG26*$O$11/$AK26)*$D26,"")+$O$11*$O$16,IF($D26=0,P25-N26)) ->  | AB26: FALSE | AC26: =+N(AB26) -> 0 | AD26: =+IF(AND(AC27>AC26,AC26=0),"Last"&AF26,"") ->  | AE26: =+IF($AC26=1,0,IF($AC26<$AC25,1,IF($AC26=$AC25,$AE25+1,IF($AC25>$AC26,1)))) -> 9 | AF26: =+IF($AE25>$AE26,$AF25+1,$AF25) -> 1 | AG26: =IFERROR(VLOOKUP("LAST"&AF26,$AD$25:$AE$36,2,FALSE),$AG$25) -> 10 | AH26: =+IF(AND(AI26>AI27,AI27=0),"Last"&AJ26,"") ->  | AI26: =+IF($AC26=0,0,IF($AC26>$AC25,1,IF($AC26=$AC25,$AI25+1,IF($AC25>$AC26,0)))) -> 0 | AJ26: =+IF($AI25>$AI26,$AJ25+1,$AJ25) -> 1 | AK26: 2
C27: =title59 -> March | D27: 0 | F27: 0 | I27: 0 | L27: 0 | O27: 0 | AB27: FALSE | AC27: 0 | AD27: =+IF(AND(AC28>AC27,AC27=0),"Last"&AF27,"") -> Last1 | AE27: 10 | AF27: 1 | AG27: 10 | AH27: =+IF(AND(AI27>AI28,AI28=0),"Last"&AJ27,"") ->  | AI27: 0 | AJ27: 1 | AK27: 2
C28: =title60 -> April | D28: 1 | AB28: TRUE | AC28: 1 | AD28: =+IF(AND(AC29>AC28,AC28=0),"Last"&AF28,"") ->  | AE28: 0 | AF28: 2 | AG28: 10 | AH28: =+IF(AND(AI28>AI29,AI29=0),"Last"&AJ28,"") ->  | AI28: 1 | AJ28: 1 | AK28: 2
C29: =title61 -> May | D29: 2 | AB29: TRUE | AC29: 1 | AE29: 0 | AF29: 2 | AG29: 10 | AH29: =+IF(AND(AI29>AI30,AI30=0),"Last"&AJ29,"") -> Last1 | AI29: 2 | AJ29: 1 | AK29: 2
C30: =title62 -> June | D30: 0 | F30: 0 | I30: 0 | L30: 0 | O30: 0 | AB30: FALSE | AC30: 0 | AE30: 1 | AF30: 2 | AG30: 10 | AI30: 0 | AJ30: 2 | AK30: 2
C31: =title63 -> July | D31: 0 | F31: 0 | I31: 0 | L31: 0 | O31: 0 | AB31: FALSE | AC31: 0 | AE31: 2 | AF31: 2 | AG31: 10 | AI31: 0 | AJ31: 2 | AK31: 2
C32: =title64 -> August | D32: 0 | F32: 0 | I32: 0 | L32: 0 | O32: 0 | AB32: FALSE | AC32: 0 | AE32: 3 | AF32: 2 | AG32: 10 | AI32: 0 | AJ32: 2 | AK32: 2
C33: =title65 -> September | D33: 0 | F33: 0 | I33: 0 | L33: 0 | O33: 0 | AB33: FALSE | AC33: 0 | AE33: 4 | AF33: 2 | AG33: 10 | AI33: 0 | AJ33: 2 | AK33: 2
C34: =title66 -> October | D34: 0 | F34: 0 | I34: 0 | L34: 0 | O34: 0 | AB34: FALSE | AC34: 0 | AE34: 5 | AF34: 2 | AG34: 10 | AI34: 0 | AJ34: 2 | AK34: 2
C35: =title67 -> November | D35: 0 | F35: 0 | I35: 0 | L35: 0 | O35: 0 | AB35: FALSE | AC35: 0 | AE35: 6 | AF35: 2 | AG35: 10 | AI35: 0 | AJ35: 2 | AK35: 2
C36: =title68 -> December | D36: 0 | F36: 0 | I36: 0 | L36: 0 | O36: 0 | AB36: FALSE | AC36: 0 | AD36: =+IF(AND(AC25>AC36,AC36=0),"Last"&AF36,"") ->  | AE36: 7 | AF36: 2 | AG36: 10 | AH36: =+IF(AND(AI36>AI25,AI25=0),"Last"&AJ36,"") ->  | AI36: 0 | AJ36: 2 | AK36: 2
D37: =+MAX(D25:D36)*30 -> 60
C38: =title69 -> Maximum Storage Capacity Required (t) | F38: =+ROUNDUP(MAX(F25:F36),0) ->  | I38: =+ROUNDUP(MAX(I25:I36),0) ->  | L38: =+ROUNDUP(MAX(L25:L36),0) ->  | O38: =+ROUNDUP(MAX(O25:O36),0) -> 
C39: =title70 -> Minimum Safety Storage (t) | F39: =+ROUNDUP(MIN(G25:G36),0) ->  | I39: =+ROUNDUP(MIN(J25:J36),0) ->  | L39: =+ROUNDUP(MIN(M25:M36),0) ->  | O39: =+ROUNDUP(MIN(P25:P36),0) -> 
AB40: No. Storage Months | AC40: =+COUNTIF(AC25:AC36,">0") -> 2
C41: =title71 -> Monthly Consumption of Biomass Stocked | AB41: Total Depletion Period | AC41: =12-AC40 -> 10
AD44: =4&" (kg/h)" -> 4 (kg/h) | AE44: =40&" (kg/hr)" -> 40 (kg/hr) | AF44: =400&" (kg/h)" -> 400 (kg/h) | AG44: =3000&" (kg/h)" -> 3000 (kg/h)
AC45: =+LEFT(C25,3) -> Jan | AD45: =+G25 ->  | AE45: =+J25 ->  | AF45: =+M25 ->  | AG45: =+P25 -> 
AC46: Feb
AC47: Mar
AC48: Apr
AC49: May
AC50: Jun
AC51: =+LEFT(C31,3) -> Jul | AD51: =+G31 ->  | AE51: =+J31 ->  | AF51: =+M31 ->  | AG51: =+P31 -> 
AC52: =+LEFT(C32,3) -> Aug | AD52: =+G32 ->  | AE52: =+J32 ->  | AF52: =+M32 ->  | AG52: =+P32 -> 
AC53: =+LEFT(C33,3) -> Sep | AD53: =+G33 ->  | AE53: =+J33 ->  | AF53: =+M33 ->  | AG53: =+P33 -> 
AC54: =+LEFT(C34,3) -> Oct | AD54: =+G34 ->  | AE54: =+J34 ->  | AF54: =+M34 ->  | AG54: =+P34 -> 
AC55: =+LEFT(C35,3) -> Nov | AD55: =+G35 ->  | AE55: =+J35 ->  | AF55: =+M35 ->  | AG55: =+P35 -> 
AC56: =+LEFT(C36,3) -> Dec | AD56: =+G36 ->  | AE56: =+J36 ->  | AF56: =+M36 ->  | AG56: =+P36 -> 

Sheet Data entry needs
C3: =title72 -> DATA ENTRY FOR BIOMASS IN PELLET PRODUCTION
G5: Please Select Please Select
C6: =title73 -> Use white cells to input data | D6: =title74 -> Grey cells are used for calculations
C7: =title75 -> Feedstock Availability and Cost
D8: =IF(OR(D10=title495,D10=title496),TRUE,FALSE) -> FALSE | E8: =IF(OR(E10=title495,E10=title496),TRUE,FALSE) -> FALSE | F8: =IF(OR(F10=title495,F10=title496),TRUE,FALSE) -> FALSE | G8: =IF(OR(G10=title495,G10=title496),TRUE,FALSE) -> FALSE
D9: =title76&" 1" -> Feedstock 1 | E9: =title76&" 2" -> Feedstock 2 | F9: =title76&" 3" -> Feedstock 3 | G9: =title76&" 4" -> Feedstock 4
D10: Please Select | E10: Please Select | F10: Please Select | G10: Please Select
C11: =title76 -> Feedstock | D11: Please Select | E11: Please Select | F11: Please Select | G11: Please Select
C12: =title77 -> Feedstock available (t/year)
C13: =title78 -> Feedstock yield (t/ha)
C14: =title79 -> Moisture content | D14: =+IF(D$11=title81,0,IFERROR(VLOOKUP(D$10&D$11,dummy_database!$N$3:$P$32,2,FALSE),"")) -> 0 | E14: =+IF(E$11=title81,0,IFERROR(VLOOKUP(E$10&E$11,dummy_database!$N$3:$P$32,2,FALSE),"")) -> 0 | F14: =+IF(F$11=title81,0,IFERROR(VLOOKUP(F$10&F$11,dummy_database!$N$3:$P$32,2,FALSE),"")) -> 0 | G14: =+IF(G$11=title81,0,IFERROR(VLOOKUP(G$10&G$11,dummy_database!$N$3:$P$32,2,FALSE),"")) -> 0
C15: =title80 -> Feedstock price (USD/t)
D16: =+IF(D$11=title81,0,IF($C$17=FALSE,PRICE_RES1!$I$26,title483)) -> 0 | E16: =+IF(E$11=title81,0,IF($C$17=FALSE,PRICE_RES2!$I$26,title483)) -> 0 | F16: =+IF(F$11=title81,0,IF($C$17=FALSE,PRICE_RES3!$I$26,title483)) -> 0 | G16: =+IF(G$11=title81,0,IF($C$17=FALSE,PRICE_RES4!$I$26,title483)) -> 0
C17: FALSE
C18: =title99 -> Chemical binder | D18: Please Select | E18: Please Select | F18: Please Select | G18: Please Select
D19: None | E19: None | F19: None | G19: None
C20: =title100 -> Binder cost (USD/t)
C21: =title101 -> Feedstock storage cost (USD/t)
C23: =title104 -> Production Cost and Financial Parameters
C25: =title105 -> Utilities | E25: =title107 -> Unit | I25: =title107 -> Unit
C26: =title106 -> Water | E26: USD/m3 | F26: =title108 -> Electricity | I26: USD/kWh
C28: =title109 -> Labour | E28: =title107 -> Unit | I28: =title107 -> Unit
C29: =title110 -> Skilled worker | E29: =title111 -> USD/person-hour | F29: =title112 -> Unskilled worker | I29: =title111 -> USD/person-hour
C31: =title113 -> Feedstock collection | E31: =title107 -> Unit | I31: =title107 -> Unit
C32: =title114 -> Working hours per day (manual) | E32: =title116 -> h/day | F32: =title117 -> Working hours per day (mechanized) | I32: =title116 -> h/day
C33: =title115 -> Diesel price | E33: USD/l
C35: =title118 -> Price of pellets | E35: =title107 -> Unit | I35: =title107 -> Unit
C36: =title119 -> Market price (rural areas) | E36: USD/kg | F36: =title120 -> Market price (urban areas) | I36: USD/kg
C38: =title121 -> Transportation cost | E38: =title107 -> Unit | I38: =title107 -> Unit
C39: =title122 -> Feedstock (farm to briquette plant) | F39: Briquette products (briquette plant to market)
C40: =title123 -> Feedstock (farm to pellets plant) | E40: USD/t/km | F40: =title124 -> Product (pellets plant to market) | I40: USD/t/km
C42: =title125 -> Operating parameters | E42: =title107 -> Unit | I42: =title107 -> Unit
C43: =title126 -> Operating days per year | E43: =title128 -> days/year | F43: =title129 -> Storage safety rate of product
C44: =title127 -> Operating hours per day (manual-max. 8h) | E44: =title116 -> h/day | F44: =title130 -> Operating hours per day (semi-mechanized) | I44: =title116 -> h/day
C46: =title131 -> Other costs | E46: =title107 -> Unit | I46: =title107 -> Unit
C47: =title132 -> Plant overhead (%) | F47: =title134 -> Miscellaneous (%)
C48: =title133 -> Maintenance (%) | F48: =title135 -> General and administrative (%)
C50: =title136 -> Financial parameters | E50: =title107 -> Unit | F50: =title142 -> Investment cost update | I50: =title107 -> Unit
C51: =title137 -> Discount rate
C52: =title138 -> Loan ratio | F52: =+title143&MONTH(TODAY())&"/"&YEAR(TODAY()) -> Plant Cost Index during 1/2017
C53: =title139 -> Loan interest rate | F53: http://base.intratec.us/home/ic-index
C54: =title140 -> Loan term | E54: =title141 -> year
AA61: Residue 1 | AB61: Selection Crop | AC61: Crop Residue | AD61: Crop | AE61: Crop | AF61: Residue | AG61: Options | AH61: Binder | AI61: Residue 1 | AJ61: =+IF($D$18=title102,AH62,title103) -> None
AB62: =$D$10 -> Please Select | AC62: =+IFERROR(VLOOKUP($AB$62&AA62,$AE$63:$AF$91,2,FALSE),title81) -> Please Select | AD62: =title81 -> Please Select | AE62: =title81 -> Please Select | AG62: =title81 -> Please Select | AH62: =title329 -> Cassava flour | AJ62: =+IF($D$18=title102,AH63,"") -> 
AA63: 1 | AC63: =+IFERROR(VLOOKUP($AB$62&AA63,$AE$63:$AF$91,2,FALSE),"") ->  | AD63: =title82 -> cacao | AE63: =title426 -> barley | AF63: =title427 -> straw | AG63: =title102 -> yes | AH63: =title330 -> Maize flour | AJ63: =+IF($D$18=title102,AH64,"") -> 
AA64: 2 | AC64: =+IFERROR(VLOOKUP($AB$62&AA64,$AE$63:$AF$91,2,FALSE),"") ->  | AD64: =title83 -> cassava | AE64: =title82 -> cacao | AF64: =title428 -> pods | AG64: no | AH64: =title331 -> Wheat flour | AI64: Residue 2 | AJ64: =+IF($E$18=title102,AH62,title103) -> None
AA65: Residue 2 | AD65: =title84 -> coconut | AE65: =title83 -> cassava | AF65: =title429 -> stalk | AJ65: =+IF($E$18=title102,AH63,"") -> 
AB66: Selection Crop | AC66: Crop Residue | AD66: =title85 -> coffee | AE66: =title84 -> coconut | AF66: =title430 -> fronds | AJ66: =+IF($E$18=title102,AH64,"") -> 
AB67: =$E$10 -> Please Select | AC67: =+IFERROR(VLOOKUP($AB$67&AA67,$AE$63:$AF$91,2,FALSE),title81) -> Please Select | AD67: =title86 -> cotton | AE67: =title84&1 -> coconut1 | AF67: =title431 -> husk | AI67: Residue 3 | AJ67: =+IF($F$18=title102,AH62,title103) -> None
AA68: 1 | AC68: =+IFERROR(VLOOKUP($AB$67&AA68,$AE$63:$AF$91,2,FALSE),"") ->  | AD68: =title87 -> groundnut | AE68: =title84&2 -> coconut2 | AF68: =title432 -> shell | AJ68: =+IF($F$18=title102,AH63,"") -> 
AA69: 2 | AC69: =+IFERROR(VLOOKUP($AB$67&AA69,$AE$63:$AF$91,2,FALSE),"") ->  | AD69: =title88 -> maize | AE69: =title85 -> coffee | AF69: =title431 -> husk | AJ69: =+IF($F$18=title102,AH64,"") -> 
AA70: Residue 3 | AD70: =title89 -> millet | AE70: =title86 -> cotton | AF70: =title433 -> hull | AI70: Residue 4 | AJ70: =+IF($G$18=title102,AH62,title103) -> None
AB71: Selection Crop | AC71: Crop Residue | AD71: =title90 -> oat | AE71: =title86&1 -> cotton1 | AF71: =title429 -> stalk | AJ71: =+IF($G$18=title102,AH63,"") -> 
AB72: =$F$10 -> Please Select | AC72: =+IFERROR(VLOOKUP($AB$72&AA72,$AE$63:$AF$91,2,FALSE),title81) -> Please Select | AD72: =title91 -> oil palm | AE72: =title87 -> groundnut | AF72: =title431 -> husk | AJ72: =+IF($G$18=title102,AH64,"") -> 
AA73: 1 | AC73: =+IFERROR(VLOOKUP($AB$72&AA73,$AE$63:$AF$91,2,FALSE),"") ->  | AD73: =title92 -> rice | AE73: =title88 -> maize | AF73: =title434 -> cob
AA74: 2 | AC74: =+IFERROR(VLOOKUP($AB$72&AA74,$AE$63:$AF$91,2,FALSE),"") ->  | AD74: =title93 -> sorghum | AE74: =title88&1 -> maize1 | AF74: =title431 -> husk
AA75: Residue 4 | AD75: =title94 -> soybean | AE75: =title88&2 -> maize2 | AF75: =title435 -> Stover
AB76: Selection Crop | AC76: Crop Residue | AD76: =title95 -> sugarcane | AE76: =title89 -> millet | AF76: =title427 -> straw
AB77: =$G$10 -> Please Select | AC77: =+IFERROR(VLOOKUP($AB$77&AA77,$AE$63:$AF$91,2,FALSE),title81) -> Please Select | AD77: =title96 -> wheat | AE77: =title90 -> oat | AF77: =title427 -> straw
AA78: 1 | AC78: =+IFERROR(VLOOKUP($AB$77&AA78,$AE$63:$AF$91,2,FALSE),"") ->  | AD78: =title495 -> Forest Harv. Res. | AE78: =title91 -> oil palm | AF78: =title436 -> empty bunches
AA79: 2 | AC79: =+IFERROR(VLOOKUP($AB$77&AA79,$AE$63:$AF$91,2,FALSE),"") ->  | AD79: =title496 -> Wood Proc. Res. | AE79: =title91&1 -> oil palm1 | AF79: =title430 -> fronds
AE80: =title91&2 -> oil palm2 | AF80: =title432 -> shell
AE81: =title92 -> rice | AF81: =title427 -> straw
AE82: =title92&1 -> rice1 | AF82: =title431 -> husk
AE83: rye | AF83: =title427 -> straw
AE84: =title93 -> sorghum | AF84: =title437 -> straw/stalk
AE85: =title94 -> soybean | AF85: =title427 -> straw
AE86: =title94&1 -> soybean1 | AF86: =title428 -> pods
AE87: =title95 -> sugarcane | AF87: =title438 -> tops/leaves
AE88: =title95&1 -> sugarcane1 | AF88: =title439 -> bagasse
AE89: =title96 -> wheat | AF89: =title427 -> straw
AE90: =title487 -> Forest | AF90: =title489 -> Harv. Res.
AE91: =title488 -> Wood | AF91: =title490 -> Proc. Res.
AG93: =+$D$10&" "&$D$11 -> Please Select Please Select
AG94: =+$E$10&" "&$E$11 -> Please Select Please Select
AG95: =+$F$10&" "&$F$11 -> Please Select Please Select | AN95: Wage1 | AO95: =IF(OR($D$29="",$D$29=" "),TRUE,FALSE) -> TRUE
AG96: =+$G$10&" "&$G$11 -> Please Select Please Select | AN96: Wage2 | AO96: =IF(OR($I$29="",$I$29=" "),TRUE,FALSE) -> FALSE
AD97: FS1 | AE97: =+$D$10 -> Please Select | AF97: =+IF(AE97=title81,TRUE,FALSE) -> TRUE | AN97: Diesel | AO97: =IF(OR($D$33="",$D$33=" "),TRUE,FALSE) -> TRUE
AD98: FS2 | AE98: =+E$10 -> Please Select | AF98: =+IF(AE98=title81,TRUE,FALSE) -> TRUE | AN98: Decision1 | AO98: =+OR(AO95,AO96,AO97) -> TRUE
AD99: FS3 | AE99: =+$F$10 -> Please Select | AF99: =+IF(AE99=title81,TRUE,FALSE) -> TRUE | AN99: Decision2 | AO99: =+C17 -> FALSE
AD100: FS4 | AE100: =+$G$10 -> Please Select | AF100: =+IF(AE100=title81,TRUE,FALSE) -> TRUE | AN100: ICU | AO100: =IF(OR($H$52="",$H$52=" "),TRUE,FALSE) -> TRUE
AB111: Change in raw material cost (%)
AB112: Change in labor cost (%)
AB113: Change in Investment cost (%)
AB114: Change in pellet price(%)
AB115: Income | AD115: 0
AB116: Inflation rate

Sheet FA4_RURAL_RES1 (hidden)
B2: =title144 -> FINANCIAL ANALYSIS OF BIOMASS PELLETING - MANUAL
A4: =title145 -> Revenues of biomass pelleting system
B5: =title146 -> Operating Year | C5: 0 | D5: 1 | E5: 2 | F5: 3 | G5: 4 | H5: 5 | I5: 6 | J5: 7 | K5: 8 | L5: 9 | M5: 10 | N5: 11 | O5: 12 | P5: 13 | Q5: 14 | R5: 15 | S5: 16 | T5: 17 | U5: 18 | V5: 19 | W5: 20
B7: =title147 -> Pellet production capacity (tons per year) | C7: =COST_RES1!$F$29 -> 0 | D7: =C7 -> 0 | E7: =D7 -> 0 | F7: 0 | G7: 0 | H7: 0 | I7: 0 | J7: 0 | K7: 0 | L7: 0 | M7: 0 | N7: 0 | O7: 0 | P7: 0 | Q7: 0 | R7: 0 | S7: 0 | T7: 0 | U7: 0 | V7: 0 | W7: 0
B9: =title148 -> Efficiency % of pelleting machine | C9: =COST_RES1!$G$12 -> 0 | D9: =C9 -> 0 | E9: =D9 -> 0 | F9: 0 | G9: 0 | H9: 0 | I9: 0 | J9: 0 | K9: 0 | L9: 0 | M9: 0 | N9: 0 | O9: 0 | P9: 0 | Q9: 0 | R9: 0 | S9: 0 | T9: 0 | U9: 0 | V9: 0 | W9: 0
B11: =title149 -> Operating hours per year | C11: =COST_RES1!$G$28 -> 0 | D11: =C11 -> 0 | E11: =D11 -> 0 | F11: 0 | G11: 0 | H11: 0 | I11: 0 | J11: 0 | K11: 0 | L11: 0 | M11: 0 | N11: 0 | O11: 0 | P11: 0 | Q11: 0 | R11: 0 | S11: 0 | T11: 0 | U11: 0 | V11: 0 | W11: 0
B12: =title150 -> Capacity utilization factor | C12: =C$11/8760 -> 0 | D12: =D$11/8760 -> 0 | E12: =E$11/8760 -> 0 | F12: 0 | G12: 0 | H12: 0 | I12: 0 | J12: 0 | K12: 0 | L12: 0 | M12: 0 | N12: 0 | O12: 0 | P12: 0 | Q12: 0 | R12: 0 | S12: 0 | T12: 0 | U12: 0 | V12: 0 | W12: 0
B14: =title151 -> Pellet production (tons per year) | C14: =C$7 -> 0 | D14: =D$7 -> 0 | E14: 0 | F14: 0 | G14: 0 | H14: 0 | I14: 0 | J14: 0 | K14: 0 | L14: 0 | M14: 0 | N14: 0 | O14: 0 | P14: 0 | Q14: 0 | R14: 0 | S14: 0 | T14: 0 | U14: 0 | V14: 0 | W14: 0
B15: =title152 -> Total pellet sell to customers (tons per year) | C15: =SUM(C14:C14) -> 0 | D15: =SUM(D14:D14) -> 0 | E15: 0 | F15: 0 | G15: 0 | H15: 0 | I15: 0 | J15: 0 | K15: 0 | L15: 0 | M15: 0 | N15: 0 | O15: 0 | P15: 0 | Q15: 0 | R15: 0 | S15: 0 | T15: 0 | U15: 0 | V15: 0 | W15: 0
B17: =title153 -> Price of pellet (USD/kg) | C17: =SUM(C18:C18) -> 0 | D17: 0 | E17: 0 | F17: 0 | G17: 0 | H17: 0 | I17: 0 | J17: 0 | K17: 0 | L17: 0 | M17: 0 | N17: 0 | O17: 0 | P17: 0 | Q17: 0 | R17: 0 | S17: 0 | T17: 0 | U17: 0 | V17: 0 | W17: 0
B18: =title154 -> Market price of pellet pay by consumers (USD/kg) | C18: =+'Energy Demand'!E20 -> 0 | D18: =C18*(1+D19) -> 0 | E18: 0 | F18: 0 | G18: 0 | H18: 0 | I18: 0 | J18: 0 | K18: 0 | L18: 0 | M18: 0 | N18: 0 | O18: 0 | P18: 0 | Q18: 0 | R18: 0 | S18: 0 | T18: 0 | U18: 0 | V18: 0 | W18: 0
B19: =title155 -> Increasing rate of price of pellet (%) | C19: =+'Data entry needs'!$AD$114 -> 0 | D19: =C19 -> 0 | E19: =D19 -> 0 | F19: 0 | G19: 0 | H19: 0 | I19: 0 | J19: 0 | K19: 0 | L19: 0 | M19: 0 | N19: 0 | O19: 0 | P19: 0 | Q19: 0 | R19: 0 | S19: 0 | T19: 0 | U19: 0 | V19: 0 | W19: 0
B21: =title156 -> Total income of pellet (USD per year) | C21: =C15*C18*1000 -> 0 | D21: =D15*D18*1000 -> 0 | E21: 0 | F21: 0 | G21: 0 | H21: 0 | I21: 0 | J21: 0 | K21: 0 | L21: 0 | M21: 0 | N21: 0 | O21: 0 | P21: 0 | Q21: 0 | R21: 0 | S21: 0 | T21: 0 | U21: 0 | V21: 0 | W21: 0
B23: =title157 -> Lifespan of civil work (years) | C23: =COST_RES1!$E$61 -> 20
B24: =title158 -> Lifespan of pellet system (years) | C24: =COST_RES1!$E$60 -> 20
B25: =title159 -> Project life time (years) | C25: 20
A27: =title160 -> Capital and operating cost of biomass pellet system
C28: =title167 -> Appraisal | D28: =title168 -> Project lifetime | E28: =title169 -> Investment per year
B29: =title161 -> Direct capital cost (USD)
B30: =title162 -> Equipments | C30: =D30*E30 -> 0 | D30: =$C$25 -> 20 | E30: =COST_RES1!F60/D30 -> 0
B31: =title163 -> Building | C31: =D31*E31 -> 0 | D31: =$C$25 -> 20 | E31: =COST_RES1!F61/D31 -> 0
B32: =title164 -> Installation | C32: =D32*E32 -> 0 | D32: =$C$25 -> 20 | E32: =COST_RES1!F62/D32 -> 0
B33: =title165 -> Total capital cost (USD) | C33: =SUM(C30:C32) -> 0 | E33: =SUM(E30:E32) -> 0
B34: =title166 -> Capital cost (USD/kg of pellet) | C34: =C33/(C14*1000*C25) -> 
B37: =title146 -> Operating Year | C37: =title167 -> Appraisal | D37: 1 | E37: 2 | F37: 3 | G37: 4 | H37: 5 | I37: 6 | J37: 7 | K37: 8 | L37: 9 | M37: 10 | N37: 11 | O37: 12 | P37: 13 | Q37: 14 | R37: 15 | S37: 16 | T37: 17 | U37: 18 | V37: 19 | W37: 20
B38: =title170 -> Annual operating and maintenance cost
B39: =title171 -> Sub-total material cost (USD) | C39: =C40+C48+C50+C53 ->  | D39: =D40+D48+D50+D53 -> 
B40: =title172 -> Biomass cost (USD/year) | C40: =C41*C42 ->  | D40: =D41*D42 -> 
B41: =title46&" "&title53 -> Biomass consumption (ton per year) | C41: =C14/COST_RES1!$G$12 ->  | D41: =D14/COST_RES1!$G$12 ->  | E41: =E14/COST_RES1!$G$12 ->  | F41: =F14/COST_RES1!$G$12 ->  | G41: =G14/COST_RES1!$G$12 ->  | H41: =H14/COST_RES1!$G$12 ->  | I41: =I14/COST_RES1!$G$12 ->  | J41: =J14/COST_RES1!$G$12 ->  | K41: =K14/COST_RES1!$G$12 ->  | L41: =L14/COST_RES1!$G$12 ->  | M41: =M14/COST_RES1!$G$12 ->  | N41: =N14/COST_RES1!$G$12 ->  | O41: =O14/COST_RES1!$G$12 ->  | P41: =P14/COST_RES1!$G$12 ->  | Q41: =Q14/COST_RES1!$G$12 ->  | R41: =R14/COST_RES1!$G$12 ->  | S41: =S14/COST_RES1!$G$12 ->  | T41: =T14/COST_RES1!$G$12 ->  | U41: =U14/COST_RES1!$G$12 ->  | V41: =V14/COST_RES1!$G$12 ->  | W41: =W14/COST_RES1!$G$12 -> 
B42: =title173 -> Biomass price (USD/ton) | C42: =SUM(C43:C44) -> 0 | D42: =SUM(D43:D44) -> 0 | E42: 0 | F42: 0 | G42: 0 | H42: 0 | I42: 0 | J42: 0 | K42: 0 | L42: 0 | M42: 0 | N42: 0 | O42: 0 | P42: 0 | Q42: 0 | R42: 0 | S42: 0 | T42: 0 | U42: 0 | V42: 0 | W42: 0
B43: =title174 -> Biomass cost of collection (USD/ton) | C43: =COST_RES1!E33 -> 0 | D43: =C43*(1+D73+D74) -> 0 | E43: =D43*(1+E73+E74) -> 0 | F43: 0 | G43: 0 | H43: 0 | I43: 0 | J43: 0 | K43: 0 | L43: 0 | M43: 0 | N43: 0 | O43: 0 | P43: 0 | Q43: 0 | R43: 0 | S43: 0 | T43: 0 | U43: 0 | V43: 0 | W43: 0
B44: =title175 -> Biomass transportation cost (USD/ton) | C44: =C45*C46 -> 0 | D44: =D45*D46 -> 0 | E44: 0 | F44: 0 | G44: 0 | H44: 0 | I44: 0 | J44: 0 | K44: 0 | L44: 0 | M44: 0 | N44: 0 | O44: 0 | P44: 0 | Q44: 0 | R44: 0 | S44: 0 | T44: 0 | U44: 0 | V44: 0 | W44: 0
B45: =title176 -> Biomass from farm to plant (USD/ton/km) | C45: =COST_RES1!E48 -> 0 | D45: =C45*(1+D73+D74) -> 0 | E45: =D45*(1+E73+E74) -> 0 | F45: 0 | G45: 0 | H45: 0 | I45: 0 | J45: 0 | K45: 0 | L45: 0 | M45: 0 | N45: 0 | O45: 0 | P45: 0 | Q45: 0 | R45: 0 | S45: 0 | T45: 0 | U45: 0 | V45: 0 | W45: 0
B46: =title177 -> Transportation distant (km) | C46: =COST_RES1!F48 -> 0 | D46: =C46 -> 0 | E46: =D46 -> 0 | F46: 0 | G46: 0 | H46: 0 | I46: 0 | J46: 0 | K46: 0 | L46: 0 | M46: 0 | N46: 0 | O46: 0 | P46: 0 | Q46: 0 | R46: 0 | S46: 0 | T46: 0 | U46: 0 | V46: 0 | W46: 0
B48: =title178 -> Water cost (USD/year) | C48: =COST_RES1!G35 -> 0 | D48: =C48*(1+D73+D74) -> 0 | E48: =D48*(1+E73+E74) -> 0 | F48: 0 | G48: 0 | H48: 0 | I48: 0 | J48: 0 | K48: 0 | L48: 0 | M48: 0 | N48: 0 | O48: 0 | P48: 0 | Q48: 0 | R48: 0 | S48: 0 | T48: 0 | U48: 0 | V48: 0 | W48: 0
B50: =title179 -> Chemical cost (USD/year) | C50: =C51*C52 -> 0 | D50: =D51*D52 -> 0 | E50: 0 | F50: 0 | G50: 0 | H50: 0 | I50: 0 | J50: 0 | K50: 0 | L50: 0 | M50: 0 | N50: 0 | O50: 0 | P50: 0 | Q50: 0 | R50: 0 | S50: 0 | T50: 0 | U50: 0 | V50: 0 | W50: 0
B51: =title180 -> Chemical consumption (tons per year) | C51: =+COST_RES1!$F$34 -> 0 | D51: =+COST_RES1!$F$34 -> 0 | E51: =+COST_RES1!$F$34 -> 0 | F51: =+COST_RES1!$F$34 -> 0 | G51: =+COST_RES1!$F$34 -> 0 | H51: =+COST_RES1!$F$34 -> 0 | I51: =+COST_RES1!$F$34 -> 0 | J51: =+COST_RES1!$F$34 -> 0 | K51: =+COST_RES1!$F$34 -> 0 | L51: =+COST_RES1!$F$34 -> 0 | M51: =+COST_RES1!$F$34 -> 0 | N51: =+COST_RES1!$F$34 -> 0 | O51: =+COST_RES1!$F$34 -> 0 | P51: =+COST_RES1!$F$34 -> 0 | Q51: =+COST_RES1!$F$34 -> 0 | R51: =+COST_RES1!$F$34 -> 0 | S51: =+COST_RES1!$F$34 -> 0 | T51: =+COST_RES1!$F$34 -> 0 | U51: =+COST_RES1!$F$34 -> 0 | V51: =+COST_RES1!$F$34 -> 0 | W51: =+COST_RES1!$F$34 -> 0
B52: =title181 -> Chemical price (USD/ton) | C52: =+'Data entry needs'!$D$20 -> 0 | D52: =C52 -> 0 | E52: =D52 -> 0 | F52: 0 | G52: 0 | H52: 0 | I52: 0 | J52: 0 | K52: 0 | L52: 0 | M52: 0 | N52: 0 | O52: 0 | P52: 0 | Q52: 0 | R52: 0 | S52: 0 | T52: 0 | U52: 0 | V52: 0 | W52: 0
B53: =title182 -> Electricity cost (USD) | C53: =COST_RES1!G36 -> 0 | D53: =C53*(1+D73+D74) -> 0 | E53: =D53*(1+E73+E74) -> 0 | F53: 0 | G53: 0 | H53: 0 | I53: 0 | J53: 0 | K53: 0 | L53: 0 | M53: 0 | N53: 0 | O53: 0 | P53: 0 | Q53: 0 | R53: 0 | S53: 0 | T53: 0 | U53: 0 | V53: 0 | W53: 0
B55: =title183 -> Sub-total operating cost (USD) | C55: =C56+C58+C59 ->  | D55: =D56+D58+D59 -> 
B56: =title184 -> Labour cost (USD) | C56: =COST_RES1!G44 -> 0 | D56: =C56*(1+D57) -> 0 | E56: 0 | F56: 0 | G56: 0 | H56: 0 | I56: 0 | J56: 0 | K56: 0 | L56: 0 | M56: 0 | N56: 0 | O56: 0 | P56: 0 | Q56: 0 | R56: 0 | S56: 0 | T56: 0 | U56: 0 | V56: 0 | W56: 0
B57: =title185 -> Annual change in labour cost (%) | D57: =COST_RES1!M12 -> 0 | E57: =D57 -> 0 | F57: =E57 -> 0 | G57: 0 | H57: 0 | I57: 0 | J57: 0 | K57: 0 | L57: 0 | M57: 0 | N57: 0 | O57: 0 | P57: 0 | Q57: 0 | R57: 0 | S57: 0 | T57: 0 | U57: 0 | V57: 0 | W57: 0
B58: =title185 -> Annual change in labour cost (%) | C58: =COST_RES1!G70 -> 0 | D58: =C58 -> 0 | E58: =D58 -> 0 | F58: 0 | G58: 0 | H58: 0 | I58: 0 | J58: 0 | K58: 0 | L58: 0 | M58: 0 | N58: 0 | O58: 0 | P58: 0 | Q58: 0 | R58: 0 | S58: 0 | T58: 0 | U58: 0 | V58: 0 | W58: 0
B59: =title186 -> General and administrative cost | C59: =COST_RES1!G71 ->  | D59: =C59 ->  | E59: =D59 -> 
B60: =title187 -> Sub-total maintenance cost (USD) | C60: =COST_RES1!G65 -> 0 | D60: =C60 -> 0 | E60: =D60 -> 0 | F60: 0 | G60: 0 | H60: 0 | I60: 0 | J60: 0 | K60: 0 | L60: 0 | M60: 0 | N60: 0 | O60: 0 | P60: 0 | Q60: 0 | R60: 0 | S60: 0 | T60: 0 | U60: 0 | V60: 0 | W60: 0
B62: =title188 -> Sub-total of annual fixed costs | C62: =+E33 -> 0 | D62: =C62 -> 0 | E62: =D62 -> 0 | F62: 0 | G62: 0 | H62: 0 | I62: 0 | J62: 0 | K62: 0 | L62: 0 | M62: 0 | N62: 0 | O62: 0 | P62: 0 | Q62: 0 | R62: 0 | S62: 0 | T62: 0 | U62: 0 | V62: 0 | W62: 0
B64: =title189 -> Sub-total of storage capacity | C64: =COST_RES1!G56 ->  | D64: =C64 ->  | E64: =D64 -> 
B66: =title190 -> Sub-total of pellet transportation to market | C66: =COST_RES1!G49 -> 0 | D66: =C66*(1+D73+D74) -> 0 | E66: =D66*(1+E73+E74) -> 0 | F66: 0 | G66: 0 | H66: 0 | I66: 0 | J66: 0 | K66: 0 | L66: 0 | M66: 0 | N66: 0 | O66: 0 | P66: 0 | Q66: 0 | R66: 0 | S66: 0 | T66: 0 | U66: 0 | V66: 0 | W66: 0
B68: =title191 -> Total operation and maintenance cost (USD) | C68: =C39+C55+C60+C62+C64+C66 ->  | D68: =D39+D55+D60+D62+D64+D66 -> 
B69: =title192 -> Operation and maintenance cost (USD/kg of pellet) without loan interest | C69: =C68/(C14*1000) -> 
A71: =title136 -> Financial parameters
B72: =title146 -> Operating Year | C72: =title167 -> Appraisal | D72: 1 | E72: 2 | F72: 3 | G72: 4 | H72: 5 | I72: 6 | J72: 7 | K72: 8 | L72: 9 | M72: 10 | N72: 11 | O72: 12 | P72: 13 | Q72: 14 | R72: 15 | S72: 16 | T72: 17 | U72: 18 | V72: 19 | W72: 20
B73: =title193 -> Annual change in raw material cost (%) | D73: 0 | E73: =D73 -> 0 | F73: =E73 -> 0 | G73: 0 | H73: 0 | I73: 0 | J73: 0 | K73: 0 | L73: 0 | M73: 0 | N73: 0 | O73: 0 | P73: 0 | Q73: 0 | R73: 0 | S73: 0 | T73: 0 | U73: 0 | V73: 0 | W73: 0
B74: =title194 -> Inflation rate (%) | D74: =COST_RES1!J12 -> 0 | E74: =D74 -> 0 | F74: =E74 -> 0 | G74: 0 | H74: 0 | I74: 0 | J74: 0 | K74: 0 | L74: 0 | M74: 0 | N74: 0 | O74: 0 | P74: 0 | Q74: 0 | R74: 0 | S74: 0 | T74: 0 | U74: 0 | V74: 0 | W74: 0
B75: =title137&" (%)" -> Discount rate (%) | C75: =COST_RES1!J9 -> 0
B76: =title138&" (%)" -> Loan ratio (%) | C76: =COST_RES1!J10 -> 0
B78: =title195 -> Loan without policy | C78: =title167 -> Appraisal | D78: 1 | E78: 2 | F78: 3 | G78: 4 | H78: 5 | I78: 6 | J78: 7 | K78: 8 | L78: 9 | M78: 10 | N78: 11 | O78: 12 | P78: 13 | Q78: 14 | R78: 15 | S78: 16 | T78: 17 | U78: 18 | V78: 19 | W78: 20
B79: =title196 -> Loan amount (USD) | C79: =C76*(C33) -> 0
B80: =title139&" (%)" -> Loan interest rate (%) | C80: =COST_RES1!J11 -> 0
B81: =title197 -> Loan term (years) | C81: =COST_RES1!M9 -> 0
B82: =title198 -> Loan payment (USD/month) | C82: =(PMT($C$80/12,(12*$C$81),$C$79)) -> 
B83: =title199 -> Loan payment (USD/year) | D83: =IF(D72<=$C$81,$C$82*12,0) -> 0 | E83: =IF(E72<$C$81,$C$82*12,IF(E72=$C$81,$C$82*12,0)) -> 0 | F83: =IF(F72<$C$81,$C$82*12,IF(F72=$C$81,$C$82*12,0)) -> 0 | G83: 0 | H83: 0 | I83: 0 | J83: 0 | K83: 0 | L83: 0 | M83: 0 | N83: 0 | O83: 0 | P83: 0 | Q83: 0 | R83: 0 | S83: 0 | T83: 0 | U83: 0 | V83: 0 | W83: 0
B84: =title200 -> Total loan payment (USD) | C84: =SUM(D83:W83) -> 0
B85: =title201 -> Loan interest payment (USD) | C85: =C84+C79 -> 0 | D85: =title202 -> Average loan interest payment for project lifetime | G85: =C85/C25 -> 0 | H85: =title203 -> USD per year
A87: =title204 -> Income tax analysis
B88: =title146 -> Operating Year | C88: =title167 -> Appraisal | D88: 1 | E88: 2 | F88: 3 | G88: 4 | H88: 5 | I88: 6 | J88: 7 | K88: 8 | L88: 9 | M88: 10 | N88: 11 | O88: 12 | P88: 13 | Q88: 14 | R88: 15 | S88: 16 | T88: 17 | U88: 18 | V88: 19 | W88: 20
B89: =title205 -> Effective income tax rate (%) | C89: =+'Data entry needs'!$AD$115 -> 0 | D89: =C89 -> 0 | E89: =D89 -> 0 | F89: 0 | G89: 0 | H89: 0 | I89: 0 | J89: 0 | K89: 0 | L89: 0 | M89: 0 | N89: 0 | O89: 0 | P89: 0 | Q89: 0 | R89: 0 | S89: 0 | T89: 0 | U89: 0 | V89: 0 | W89: 0
B90: =title206 -> Income tax (USD) | D90: =IF(D114<0,0,D89*D114) -> 
B91: =title207 -> Total income tax payment (USD) | C91: =SUM(D90:W90) ->  | D91: =title492 -> Average income tax payment | F91: =C91/C25 ->  | G91: =title203 -> USD per year
A93: =title208 -> Depreciation
B94: =title146 -> Operating Year | C94: =title167 -> Appraisal | D94: 1 | E94: 2 | F94: 3 | G94: 4 | H94: 5 | I94: 6 | J94: 7 | K94: 8 | L94: 9 | M94: 10 | N94: 11 | O94: 12 | P94: 13 | Q94: 14 | R94: 15 | S94: 16 | T94: 17 | U94: 18 | V94: 19 | W94: 20
B95: =title209 -> Depreciation method | C95: =title491 -> Straight-line
B96: =title210 -> Total depreciation (USD) | D96: =COST_RES1!G64 -> 0 | E96: =D96 -> 0 | F96: =E96 -> 0 | G96: 0 | H96: 0 | I96: 0 | J96: 0 | K96: 0 | L96: 0 | M96: 0 | N96: 0 | O96: 0 | P96: 0 | Q96: 0 | R96: 0 | S96: 0 | T96: 0 | U96: 0 | V96: 0 | W96: 0
A98: =title211 -> Base case project summary
A99: =title212 -> Summary of this project - Before Tax
B100: =title146 -> Operating Year | C100: =title167 -> Appraisal | D100: 1 | E100: 2 | F100: 3 | G100: 4 | H100: 5 | I100: 6 | J100: 7 | K100: 8 | L100: 9 | M100: 10 | N100: 11 | O100: 12 | P100: 13 | Q100: 14 | R100: 15 | S100: 16 | T100: 17 | U100: 18 | V100: 19 | W100: 20
B101: =title213 -> Total revenue (USD) | D101: =D15*1000*D18 -> 0 | E101: =E15*1000*E18 -> 0 | F101: 0 | G101: 0 | H101: 0 | I101: 0 | J101: 0 | K101: 0 | L101: 0 | M101: 0 | N101: 0 | O101: 0 | P101: 0 | Q101: 0 | R101: 0 | S101: 0 | T101: 0 | U101: 0 | V101: 0 | W101: 0
B102: =title165 -> Total capital cost (USD) | C102: =-(C33-C79) -> 0
B103: =title214 -> Total operating and maintenance cost (USD) | D103: =-D68+D62 -> 
B104: =title215 -> Loan payment (USD) | D104: =D83 -> 0 | E104: =E83 -> 0 | F104: 0 | G104: 0 | H104: 0 | I104: 0 | J104: 0 | K104: 0 | L104: 0 | M104: 0 | N104: 0 | O104: 0 | P104: 0 | Q104: 0 | R104: 0 | S104: 0 | T104: 0 | U104: 0 | V104: 0 | W104: 0
B105: =title216 -> Cash flow - before tax (USD) | C105: =SUM(C101:C104) -> 0
B106: =title217 -> Average revenue (USD)
A108: =title218 -> Summary of this project - After Tax
B109: =title146 -> Operating Year | C109: =title167 -> Appraisal | D109: 1 | E109: 2 | F109: 3 | G109: 4 | H109: 5 | I109: 6 | J109: 7 | K109: 8 | L109: 9 | M109: 10 | N109: 11 | O109: 12 | P109: 13 | Q109: 14 | R109: 15 | S109: 16 | T109: 17 | U109: 18 | V109: 19 | W109: 20
B110: =B101 -> Total revenue (USD) | C110: =C101 -> 0 | D110: =D101 -> 0 | E110: =E101 -> 0 | F110: 0 | G110: 0 | H110: 0 | I110: 0 | J110: 0 | K110: 0 | L110: 0 | M110: 0 | N110: 0 | O110: 0 | P110: 0 | Q110: 0 | R110: 0 | S110: 0 | T110: 0 | U110: 0 | V110: 0 | W110: 0
B111: =title214 -> Total operating and maintenance cost (USD) | D111: =-D68+D62 -> 
B112: =title215 -> Loan payment (USD) | D112: =$G$85 -> 0 | E112: =$G$85 -> 0 | F112: 0 | G112: 0 | H112: 0 | I112: 0 | J112: 0 | K112: 0 | L112: 0 | M112: 0 | N112: 0 | O112: 0 | P112: 0 | Q112: 0 | R112: 0 | S112: 0 | T112: 0 | U112: 0 | V112: 0 | W112: 0
B113: =title219 -> Depreciation of fixed costs (USD) | D113: =-D62 -> 0 | E113: =-E62 -> 0 | F113: 0 | G113: 0 | H113: 0 | I113: 0 | J113: 0 | K113: 0 | L113: 0 | M113: 0 | N113: 0 | O113: 0 | P113: 0 | Q113: 0 | R113: 0 | S113: 0 | T113: 0 | U113: 0 | V113: 0 | W113: 0
B114: =title220 -> Net profit - before tax (USD) for income tax calculation | C114: =SUM(C110:C113) -> 0 | D114: =SUM(D110:D113) ->  | E114: =SUM(E110:E113) -> 
B115: =title221 -> Income tax | D115: =IF(D114>0,-D90,0) -> 
B116: =title222 -> Cash flow - after tax (USD) | C116: =C102 -> 0 | D116: =D105+D115 ->  | E116: =E105+E115 ->  | W116: =W105+W115 -> 
A118: =title223 -> Cumulative value of Net Profit
B119: =title146 -> Operating Year | C119: =title167 -> Appraisal | D119: 1 | E119: 2 | F119: 3 | G119: 4 | H119: 5 | I119: 6 | J119: 7 | K119: 8 | L119: 9 | M119: 10 | N119: 11 | O119: 12 | P119: 13 | Q119: 14 | R119: 15 | S119: 16 | T119: 17 | U119: 18 | V119: 19 | W119: 20
B120: =title224 -> Cumulative value of net profit - before tax | C120: =C105 -> 0 | D120: =C120+(D105) -> 
B121: =title225 -> Cumulative value of net profit - after tax | C121: =C116 -> 0 | D121: =C121+(D116) -> 
A123: =title226 -> Financial analysis results
B125: =title227 -> Net present value (NPV) (USD) - before tax | C125: =NPV(C75,D105:W105)+C105 -> 
B126: =title228 -> Internal rate of return (IRR) (%) - before tax | C126: =IF(C125<0,title493,MIRR(C105:W105,C80,0%)) -> 
B127: =title229 -> Payback period (years) | C127: =title233 -> Please see Figure of the cumulative value of net profit - before tax
B130: =title230 -> Net present value (NPV) (USD) - after tax | C130: =NPV(C75,D116:W116)+C116 -> 
B131: =title231 -> Internal rate of return (IRR) (%) - after tax | C131: =IF(C130<0,title493,MIRR(C116:W116,$C$80,0%)) -> 
B132: =title229 -> Payback period (years) | C132: =title234 -> Please see Figure of the cumulative value of net profit - after tax
B133: =title232 -> Total Income tax payment of project lifetime | C133: =SUM(D115:W115) -> 

Sheet FA40_RURAL_RES1 (hidden)
B2: =title235 -> FINANCIAL ANALYSIS OF BIOMASS PELLETING 2 TON/HOUR
A4: =title145 -> Revenues of biomass pelleting system
B5: =title146 -> Operating Year | C5: 0 | D5: 1 | E5: 2 | F5: 3 | G5: 4 | H5: 5 | I5: 6 | J5: 7 | K5: 8 | L5: 9 | M5: 10 | N5: 11 | O5: 12 | P5: 13 | Q5: 14 | R5: 15 | S5: 16 | T5: 17 | U5: 18 | V5: 19 | W5: 20
B7: =title147 -> Pellet production capacity (tons per year) | C7: =COST_RES1!$H$29 -> 0 | D7: =C7 -> 0 | E7: =D7 -> 0 | F7: 0 | G7: 0 | H7: 0 | I7: 0 | J7: 0 | K7: 0 | L7: 0 | M7: 0 | N7: 0 | O7: 0 | P7: 0 | Q7: 0 | R7: 0 | S7: 0 | T7: 0 | U7: 0 | V7: 0 | W7: 0
B9: =title148 -> Efficiency % of pelleting machine | C9: =COST_RES1!$G$12 -> 0 | D9: =C9 -> 0 | E9: =D9 -> 0 | F9: 0 | G9: 0 | H9: 0 | I9: 0 | J9: 0 | K9: 0 | L9: 0 | M9: 0 | N9: 0 | O9: 0 | P9: 0 | Q9: 0 | R9: 0 | S9: 0 | T9: 0 | U9: 0 | V9: 0 | W9: 0
B11: =title149 -> Operating hours per year | C11: =COST_RES1!I28 -> 0 | D11: =C11 -> 0 | E11: =D11 -> 0 | F11: 0 | G11: 0 | H11: 0 | I11: 0 | J11: 0 | K11: 0 | L11: 0 | M11: 0 | N11: 0 | O11: 0 | P11: 0 | Q11: 0 | R11: 0 | S11: 0 | T11: 0 | U11: 0 | V11: 0 | W11: 0
B12: =title150 -> Capacity utilization factor | C12: =C11/8760 -> 0 | D12: =D11/8760 -> 0 | E12: 0 | F12: 0 | G12: 0 | H12: 0 | I12: 0 | J12: 0 | K12: 0 | L12: 0 | M12: 0 | N12: 0 | O12: 0 | P12: 0 | Q12: 0 | R12: 0 | S12: 0 | T12: 0 | U12: 0 | V12: 0 | W12: 0
B14: =title151 -> Pellet production (tons per year) | C14: =C7 -> 0 | D14: =D7 -> 0 | E14: 0 | F14: 0 | G14: 0 | H14: 0 | I14: 0 | J14: 0 | K14: 0 | L14: 0 | M14: 0 | N14: 0 | O14: 0 | P14: 0 | Q14: 0 | R14: 0 | S14: 0 | T14: 0 | U14: 0 | V14: 0 | W14: 0
B15: =title152 -> Total pellet sell to customers (tons per year) | C15: =SUM(C14:C14) -> 0 | D15: =SUM(D14:D14) -> 0 | E15: 0 | F15: 0 | G15: 0 | H15: 0 | I15: 0 | J15: 0 | K15: 0 | L15: 0 | M15: 0 | N15: 0 | O15: 0 | P15: 0 | Q15: 0 | R15: 0 | S15: 0 | T15: 0 | U15: 0 | V15: 0 | W15: 0
B17: =title153 -> Price of pellet (USD/kg) | C17: =SUM(C18:C18) -> 0 | D17: =SUM(D18:D18) -> 0 | E17: 0 | F17: 0 | G17: 0 | H17: 0 | I17: 0 | J17: 0 | K17: 0 | L17: 0 | M17: 0 | N17: 0 | O17: 0 | P17: 0 | Q17: 0 | R17: 0 | S17: 0 | T17: 0 | U17: 0 | V17: 0 | W17: 0
B18: =title154 -> Market price of pellet pay by consumers (USD/kg) | C18: =+'Energy Demand'!E20 -> 0 | D18: =C18*(1+D19) -> 0 | E18: 0 | F18: 0 | G18: 0 | H18: 0 | I18: 0 | J18: 0 | K18: 0 | L18: 0 | M18: 0 | N18: 0 | O18: 0 | P18: 0 | Q18: 0 | R18: 0 | S18: 0 | T18: 0 | U18: 0 | V18: 0 | W18: 0
B19: =title155 -> Increasing rate of price of pellet (%) | C19: =+'Data entry needs'!$AD$114 -> 0 | D19: =C19 -> 0 | E19: =D19 -> 0 | F19: 0 | G19: 0 | H19: 0 | I19: 0 | J19: 0 | K19: 0 | L19: 0 | M19: 0 | N19: 0 | O19: 0 | P19: 0 | Q19: 0 | R19: 0 | S19: 0 | T19: 0 | U19: 0 | V19: 0 | W19: 0
B21: =title156 -> Total income of pellet (USD per year) | C21: =C15*C18*1000 -> 0 | D21: =D15*D18*1000 -> 0 | E21: 0 | F21: 0 | G21: 0 | H21: 0 | I21: 0 | J21: 0 | K21: 0 | L21: 0 | M21: 0 | N21: 0 | O21: 0 | P21: 0 | Q21: 0 | R21: 0 | S21: 0 | T21: 0 | U21: 0 | V21: 0 | W21: 0
B23: =title157 -> Lifespan of civil work (years) | C23: =COST_RES1!E61 -> 20
B24: =title158 -> Lifespan of pellet system (years) | C24: =COST_RES1!E60 -> 20
B25: =title159 -> Project life time (years) | C25: 20
A27: =title160 -> Capital and operating cost of biomass pellet system
C28: =title167 -> Appraisal | D28: =title168 -> Project lifetime | E28: =title169 -> Investment per year
B29: =title161 -> Direct capital cost (USD)
B30: =title162 -> Equipments | C30: =D30*E30 -> 0 | D30: =$C$25 -> 20 | E30: =COST_RES1!H60/D30 -> 0
B31: =title163 -> Building | C31: =D31*E31 -> 0 | D31: =$C$25 -> 20 | E31: =COST_RES1!H61/D31 -> 0
B32: =title164 -> Installation | C32: =D32*E32 -> 0 | D32: =$C$25 -> 20 | E32: =COST_RES1!H62/D32 -> 0
B33: =title165 -> Total capital cost (USD) | C33: =SUM(C30:C32) -> 0 | E33: =SUM(E30:E32) -> 0
B34: =title166 -> Capital cost (USD/kg of pellet) | C34: =C33/(C14*1000*C25) -> 
B37: =title146 -> Operating Year | C37: =title167 -> Appraisal | D37: 1 | E37: 2 | F37: 3 | G37: 4 | H37: 5 | I37: 6 | J37: 7 | K37: 8 | L37: 9 | M37: 10 | N37: 11 | O37: 12 | P37: 13 | Q37: 14 | R37: 15 | S37: 16 | T37: 17 | U37: 18 | V37: 19 | W37: 20
B38: =title170 -> Annual operating and maintenance cost
B39: =title171 -> Sub-total material cost (USD) | C39: =C40+C48+C50+C53 ->  | D39: =D40+D48+D50+D53 -> 
B40: =title172 -> Biomass cost (USD/year) | C40: =C41*C42 ->  | D40: =D41*D42 -> 
B41: =title46&" "&title53 -> Biomass consumption (ton per year) | C41: =C14/COST_RES1!$G$12 ->  | D41: =D14/COST_RES1!$G$12 ->  | E41: =E14/COST_RES1!$G$12 ->  | F41: =F14/COST_RES1!$G$12 ->  | G41: =G14/COST_RES1!$G$12 ->  | H41: =H14/COST_RES1!$G$12 ->  | I41: =I14/COST_RES1!$G$12 ->  | J41: =J14/COST_RES1!$G$12 ->  | K41: =K14/COST_RES1!$G$12 ->  | L41: =L14/COST_RES1!$G$12 ->  | M41: =M14/COST_RES1!$G$12 ->  | N41: =N14/COST_RES1!$G$12 ->  | O41: =O14/COST_RES1!$G$12 ->  | P41: =P14/COST_RES1!$G$12 ->  | Q41: =Q14/COST_RES1!$G$12 ->  | R41: =R14/COST_RES1!$G$12 ->  | S41: =S14/COST_RES1!$G$12 ->  | T41: =T14/COST_RES1!$G$12 ->  | U41: =U14/COST_RES1!$G$12 ->  | V41: =V14/COST_RES1!$G$12 ->  | W41: =W14/COST_RES1!$G$12 -> 
B42: =title173 -> Biomass price (USD/ton) | C42: =SUM(C43:C44) -> 0 | D42: =SUM(D43:D44) -> 0 | E42: 0 | F42: 0 | G42: 0 | H42: 0 | I42: 0 | J42: 0 | K42: 0 | L42: 0 | M42: 0 | N42: 0 | O42: 0 | P42: 0 | Q42: 0 | R42: 0 | S42: 0 | T42: 0 | U42: 0 | V42: 0 | W42: 0
B43: =title174 -> Biomass cost of collection (USD/ton) | C43: =COST_RES1!E33 -> 0 | D43: =C43*(1+D73+D74) -> 0 | E43: =D43*(1+E73+E74) -> 0 | F43: 0 | G43: 0 | H43: 0 | I43: 0 | J43: 0 | K43: 0 | L43: 0 | M43: 0 | N43: 0 | O43: 0 | P43: 0 | Q43: 0 | R43: 0 | S43: 0 | T43: 0 | U43: 0 | V43: 0 | W43: 0
B44: =title175 -> Biomass transportation cost (USD/ton) | C44: =C45*C46 -> 0 | D44: =D45*D46 -> 0 | E44: 0 | F44: 0 | G44: 0 | H44: 0 | I44: 0 | J44: 0 | K44: 0 | L44: 0 | M44: 0 | N44: 0 | O44: 0 | P44: 0 | Q44: 0 | R44: 0 | S44: 0 | T44: 0 | U44: 0 | V44: 0 | W44: 0
B45: =title176 -> Biomass from farm to plant (USD/ton/km) | C45: =COST_RES1!E48 -> 0 | D45: =C45*(1+D73+D74) -> 0 | E45: =D45*(1+E73+E74) -> 0 | F45: 0 | G45: 0 | H45: 0 | I45: 0 | J45: 0 | K45: 0 | L45: 0 | M45: 0 | N45: 0 | O45: 0 | P45: 0 | Q45: 0 | R45: 0 | S45: 0 | T45: 0 | U45: 0 | V45: 0 | W45: 0
B46: =title177 -> Transportation distant (km) | C46: =COST_RES1!H48 -> 0 | D46: =C46 -> 0 | E46: =D46 -> 0 | F46: 0 | G46: 0 | H46: 0 | I46: 0 | J46: 0 | K46: 0 | L46: 0 | M46: 0 | N46: 0 | O46: 0 | P46: 0 | Q46: 0 | R46: 0 | S46: 0 | T46: =S46 -> 0 | U46: =T46 -> 0 | V46: =U46 -> 0 | W46: =V46 -> 0
B48: =title178 -> Water cost (USD/year) | C48: =COST_RES1!I35 -> 0 | D48: =C48*(1+D73+D74) -> 0 | E48: =D48*(1+E73+E74) -> 0 | F48: 0 | G48: 0 | H48: 0 | I48: 0 | J48: 0 | K48: 0 | L48: 0 | M48: 0 | N48: 0 | O48: 0 | P48: 0 | Q48: 0 | R48: 0 | S48: 0 | T48: 0 | U48: 0 | V48: 0 | W48: 0
B50: =title179 -> Chemical cost (USD/year) | C50: =C51*C52 -> 0 | D50: =D51*D52 -> 0 | E50: 0 | F50: 0 | G50: 0 | H50: 0 | I50: 0 | J50: 0 | K50: 0 | L50: 0 | M50: 0 | N50: 0 | O50: 0 | P50: 0 | Q50: 0 | R50: 0 | S50: 0 | T50: 0 | U50: 0 | V50: 0 | W50: 0
B51: =title180 -> Chemical consumption (tons per year) | C51: =+COST_RES1!$H$34 -> 0 | D51: =+COST_RES1!$H$34 -> 0 | E51: =+COST_RES1!$H$34 -> 0 | F51: =+COST_RES1!$H$34 -> 0 | G51: =+COST_RES1!$H$34 -> 0 | H51: =+COST_RES1!$H$34 -> 0 | I51: =+COST_RES1!$H$34 -> 0 | J51: =+COST_RES1!$H$34 -> 0 | K51: =+COST_RES1!$H$34 -> 0 | L51: =+COST_RES1!$H$34 -> 0 | M51: =+COST_RES1!$H$34 -> 0 | N51: =+COST_RES1!$H$34 -> 0 | O51: =+COST_RES1!$H$34 -> 0 | P51: =+COST_RES1!$H$34 -> 0 | Q51: =+COST_RES1!$H$34 -> 0 | R51: =+COST_RES1!$H$34 -> 0 | S51: =+COST_RES1!$H$34 -> 0 | T51: =+COST_RES1!$H$34 -> 0 | U51: =+COST_RES1!$H$34 -> 0 | V51: =+COST_RES1!$H$34 -> 0 | W51: =+COST_RES1!$H$34 -> 0
B52: =title181 -> Chemical price (USD/ton) | C52: =+'Data entry needs'!$D$20 -> 0 | D52: =C52 -> 0 | E52: =D52 -> 0 | F52: 0 | G52: 0 | H52: 0 | I52: 0 | J52: 0 | K52: 0 | L52: 0 | M52: 0 | N52: 0 | O52: 0 | P52: 0 | Q52: 0 | R52: 0 | S52: 0 | T52: 0 | U52: 0 | V52: 0 | W52: 0
B53: =title182 -> Electricity cost (USD) | C53: =COST_RES1!I36 -> 0 | D53: =C53*(1+D73+D74) -> 0 | E53: =D53*(1+E73+E74) -> 0 | F53: 0 | G53: 0 | H53: 0 | I53: 0 | J53: 0 | K53: 0 | L53: 0 | M53: 0 | N53: 0 | O53: 0 | P53: 0 | Q53: 0 | R53: 0 | S53: 0 | T53: 0 | U53: 0 | V53: 0 | W53: 0
B55: =title183 -> Sub-total operating cost (USD) | C55: =C56+C58+C59 ->  | D55: =D56+D58+D59 -> 
B56: =title184 -> Labour cost (USD) | C56: =COST_RES1!I44 -> 0 | D56: =C56*(1+D57) -> 0 | E56: 0 | F56: 0 | G56: 0 | H56: 0 | I56: 0 | J56: 0 | K56: 0 | L56: 0 | M56: 0 | N56: 0 | O56: 0 | P56: 0 | Q56: 0 | R56: 0 | S56: 0 | T56: 0 | U56: 0 | V56: 0 | W56: 0
B57: =title185 -> Annual change in labour cost (%) | D57: =COST_RES1!M12 -> 0 | E57: =D57 -> 0 | F57: =E57 -> 0 | G57: 0 | H57: 0 | I57: 0 | J57: 0 | K57: 0 | L57: 0 | M57: 0 | N57: 0 | O57: 0 | P57: 0 | Q57: 0 | R57: 0 | S57: 0 | T57: 0 | U57: 0 | V57: 0 | W57: 0
B58: =title185 -> Annual change in labour cost (%) | C58: =COST_RES1!I70 -> 0 | D58: =C58 -> 0 | E58: =D58 -> 0 | F58: 0 | G58: 0 | H58: 0 | I58: 0 | J58: 0 | K58: 0 | L58: 0 | M58: 0 | N58: 0 | O58: 0 | P58: 0 | Q58: 0 | R58: 0 | S58: 0 | T58: 0 | U58: 0 | V58: 0 | W58: 0
B59: =title186 -> General and administrative cost | C59: =COST_RES1!I71 ->  | D59: =C59 -> 
B60: =title187 -> Sub-total maintenance cost (USD) | C60: =COST_RES1!I65 -> 0 | D60: =C60 -> 0 | E60: 0 | F60: 0 | G60: 0 | H60: 0 | I60: 0 | J60: 0 | K60: 0 | L60: 0 | M60: 0 | N60: 0 | O60: 0 | P60: 0 | Q60: 0 | R60: 0 | S60: 0 | T60: 0 | U60: 0 | V60: 0 | W60: 0
B62: =title188 -> Sub-total of annual fixed costs | C62: =+E33 -> 0 | D62: =C62 -> 0 | E62: =D62 -> 0 | F62: 0 | G62: 0 | H62: 0 | I62: 0 | J62: 0 | K62: 0 | L62: 0 | M62: 0 | N62: 0 | O62: 0 | P62: 0 | Q62: 0 | R62: 0 | S62: 0 | T62: 0 | U62: 0 | V62: 0 | W62: 0
B64: =title189 -> Sub-total of storage capacity | C64: =COST_RES1!I56 ->  | D64: =C64 ->  | E64: =D64 -> 
B66: =title190 -> Sub-total of pellet transportation to market | C66: =COST_RES1!I49 -> 0 | D66: =C66*(1+D73+D74) -> 0 | E66: =D66*(1+E73+E74) -> 0 | F66: 0 | G66: 0 | H66: 0 | I66: 0 | J66: 0 | K66: 0 | L66: 0 | M66: 0 | N66: 0 | O66: 0 | P66: 0 | Q66: 0 | R66: 0 | S66: 0 | T66: 0 | U66: 0 | V66: 0 | W66: 0
B68: =title191 -> Total operation and maintenance cost (USD) | C68: =C39+C55+C60+C62+C64+C66 ->  | D68: =D39+D55+D60+D62+D64+D66 -> 
B69: =title192 -> Operation and maintenance cost (USD/kg of pellet) without loan interest | C69: =C68/(C14*1000) -> 
A71: =title136 -> Financial parameters
B72: =title146 -> Operating Year | C72: =title167 -> Appraisal | D72: 1 | E72: 2 | F72: 3 | G72: 4 | H72: 5 | I72: 6 | J72: 7 | K72: 8 | L72: 9 | M72: 10 | N72: 11 | O72: 12 | P72: 13 | Q72: 14 | R72: 15 | S72: 16 | T72: 17 | U72: 18 | V72: 19 | W72: 20
B73: =title193 -> Annual change in raw material cost (%) | D73: 0 | E73: =D73 -> 0 | F73: =E73 -> 0 | G73: 0 | H73: 0 | I73: 0 | J73: 0 | K73: 0 | L73: 0 | M73: 0 | N73: 0 | O73: 0 | P73: 0 | Q73: 0 | R73: 0 | S73: 0 | T73: 0 | U73: 0 | V73: 0 | W73: 0
B74: =title194 -> Inflation rate (%) | D74: =COST_RES1!J12 -> 0 | E74: =D74 -> 0 | F74: 0 | G74: 0 | H74: 0 | I74: 0 | J74: 0 | K74: 0 | L74: 0 | M74: 0 | N74: 0 | O74: 0 | P74: 0 | Q74: 0 | R74: 0 | S74: 0 | T74: 0 | U74: 0 | V74: 0 | W74: 0
B75: =title137&" (%)" -> Discount rate (%) | C75: =COST_RES1!J9 -> 0
B76: =title138&" (%)" -> Loan ratio (%) | C76: =COST_RES1!J10 -> 0
B78: =title195 -> Loan without policy | C78: =title167 -> Appraisal | D78: 1 | E78: 2 | F78: 3 | G78: 4 | H78: 5 | I78: 6 | J78: 7 | K78: 8 | L78: 9 | M78: 10 | N78: 11 | O78: 12 | P78: 13 | Q78: 14 | R78: 15 | S78: 16 | T78: 17 | U78: 18 | V78: 19 | W78: 20
B79: =title196 -> Loan amount (USD) | C79: =C76*(C33) -> 0
B80: =title139&" (%)" -> Loan interest rate (%) | C80: =COST_RES1!J11 -> 0
B81: =title197 -> Loan term (years) | C81: =COST_RES1!M9 -> 0
B82: =title198 -> Loan payment (USD/month) | C82: =(PMT($C$80/12,(12*$C$81),$C$79)) -> 
B83: =title199 -> Loan payment (USD/year) | D83: =IF(D72<=$C$81,$C$82*12,0) -> 0 | E83: =IF(E72<$C$81,$C$82*12,IF(E72=$C$81,$C$82*12,0)) -> 0 | F83: =IF(F72<$C$81,$C$82*12,IF(F72=$C$81,$C$82*12,0)) -> 0 | G83: 0 | H83: 0 | I83: 0 | J83: 0 | K83: 0 | L83: 0 | M83: 0 | N83: 0 | O83: 0 | P83: 0 | Q83: 0 | R83: 0 | S83: 0 | T83: 0 | U83: 0 | V83: 0 | W83: 0
B84: =title200 -> Total loan payment (USD) | C84: =SUM(D83:W83) -> 0
B85: =title201 -> Loan interest payment (USD) | C85: =C84+C79 -> 0 | D85: =title202 -> Average loan interest payment for project lifetime | G85: =C85/C25 -> 0 | H85: =title203 -> USD per year
A87: =title204 -> Income tax analysis
B88: =title146 -> Operating Year | C88: =title167 -> Appraisal | D88: 1 | E88: 2 | F88: 3 | G88: 4 | H88: 5 | I88: 6 | J88: 7 | K88: 8 | L88: 9 | M88: 10 | N88: 11 | O88: 12 | P88: 13 | Q88: 14 | R88: 15 | S88: 16 | T88: 17 | U88: 18 | V88: 19 | W88: 20
B89: =title205 -> Effective income tax rate (%) | C89: =+'Data entry needs'!$AD$115 -> 0 | D89: =C89 -> 0 | E89: =D89 -> 0 | F89: 0 | G89: 0 | H89: 0 | I89: 0 | J89: 0 | K89: 0 | L89: 0 | M89: 0 | N89: 0 | O89: 0 | P89: 0 | Q89: 0 | R89: 0 | S89: 0 | T89: 0 | U89: 0 | V89: 0 | W89: 0
B90: =title206 -> Income tax (USD) | D90: =IF(D114<0,0,D89*D114) -> 
B91: =title207 -> Total income tax payment (USD) | C91: =SUM(D90:W90) ->  | D91: =title492 -> Average income tax payment | F91: =C91/C25 ->  | G91: =title203 -> USD per year
A93: =title208 -> Depreciation
B94: =title146 -> Operating Year | C94: =title167 -> Appraisal | D94: 1 | E94: 2 | F94: 3 | G94: 4 | H94: 5 | I94: 6 | J94: 7 | K94: 8 | L94: 9 | M94: 10 | N94: 11 | O94: 12 | P94: 13 | Q94: 14 | R94: 15 | S94: 16 | T94: 17 | U94: 18 | V94: 19 | W94: 20
B95: =title209 -> Depreciation method | C95: =title491 -> Straight-line
B96: =title210 -> Total depreciation (USD) | D96: =COST_RES1!I64 -> 0 | E96: =D96 -> 0 | F96: =E96 -> 0 | G96: 0 | H96: 0 | I96: 0 | J96: 0 | K96: 0 | L96: 0 | M96: 0 | N96: 0 | O96: 0 | P96: 0 | Q96: 0 | R96: 0 | S96: 0 | T96: 0 | U96: 0 | V96: 0 | W96: 0
A98: =title211 -> Base case project summary
A99: =title212 -> Summary of this project - Before Tax
B100: =title146 -> Operating Year | C100: =title167 -> Appraisal | D100: 1 | E100: 2 | F100: 3 | G100: 4 | H100: 5 | I100: 6 | J100: 7 | K100: 8 | L100: 9 | M100: 10 | N100: 11 | O100: 12 | P100: 13 | Q100: 14 | R100: 15 | S100: 16 | T100: 17 | U100: 18 | V100: 19 | W100: 20
B101: =title213 -> Total revenue (USD) | D101: =D15*1000*D18 -> 0 | E101: =E15*1000*E18 -> 0 | F101: 0 | G101: 0 | H101: 0 | I101: 0 | J101: 0 | K101: 0 | L101: 0 | M101: 0 | N101: 0 | O101: 0 | P101: 0 | Q101: 0 | R101: 0 | S101: 0 | T101: 0 | U101: 0 | V101: 0 | W101: 0
B102: =title165 -> Total capital cost (USD) | C102: =-(C33-C79) -> 0
B103: =title214 -> Total operating and maintenance cost (USD) | D103: =-D68+D62 -> 
B104: =title215 -> Loan payment (USD) | D104: =D83 -> 0 | E104: =E83 -> 0 | F104: 0 | G104: 0 | H104: 0 | I104: 0 | J104: 0 | K104: 0 | L104: 0 | M104: 0 | N104: 0 | O104: 0 | P104: 0 | Q104: 0 | R104: 0 | S104: 0 | T104: 0 | U104: 0 | V104: 0 | W104: 0
B105: =title216 -> Cash flow - before tax (USD) | C105: =SUM(C101:C104) -> 0
B106: =title217 -> Average revenue (USD)
A108: =title218 -> Summary of this project - After Tax
B109: =title146 -> Operating Year | C109: =title167 -> Appraisal | D109: 1 | E109: 2 | F109: 3 | G109: 4 | H109: 5 | I109: 6 | J109: 7 | K109: 8 | L109: 9 | M109: 10 | N109: 11 | O109: 12 | P109: 13 | Q109: 14 | R109: 15 | S109: 16 | T109: 17 | U109: 18 | V109: 19 | W109: 20
B110: =B101 -> Total revenue (USD) | C110: =C101 -> 0 | D110: =D101 -> 0 | E110: 0 | F110: 0 | G110: 0 | H110: 0 | I110: 0 | J110: 0 | K110: 0 | L110: 0 | M110: 0 | N110: 0 | O110: 0 | P110: 0 | Q110: 0 | R110: 0 | S110: 0 | T110: 0 | U110: 0 | V110: 0 | W110: 0
B111: =title214 -> Total operating and maintenance cost (USD) | D111: =-D68+D62 -> 
B112: =title215 -> Loan payment (USD) | D112: =$G$85 -> 0 | E112: =$G$85 -> 0 | F112: 0 | G112: 0 | H112: 0 | I112: 0 | J112: 0 | K112: 0 | L112: 0 | M112: 0 | N112: 0 | O112: 0 | P112: 0 | Q112: 0 | R112: 0 | S112: 0 | T112: 0 | U112: 0 | V112: 0 | W112: 0
B113: =title219 -> Depreciation of fixed costs (USD) | D113: =-D62 -> 0 | E113: =-E62 -> 0 | F113: 0 | G113: 0 | H113: 0 | I113: 0 | J113: 0 | K113: 0 | L113: 0 | M113: 0 | N113: 0 | O113: 0 | P113: 0 | Q113: 0 | R113: 0 | S113: 0 | T113: 0 | U113: 0 | V113: 0 | W113: 0
B114: =title220 -> Net profit - before tax (USD) for income tax calculation | C114: =SUM(C110:C113) -> 0 | D114: =SUM(D110:D113) ->  | E114: =SUM(E110:E113) -> 
B115: =title221 -> Income tax | D115: =IF(D114>0,-D90,0) -> 
B116: =title222 -> Cash flow - after tax (USD) | C116: =C102 -> 0 | D116: =D105+D115 ->  | E116: =E105+E115 ->  | W116: =W105+W115 -> 
A118: =title223 -> Cumulative value of Net Profit
B119: =title146 -> Operating Year | C119: =title167 -> Appraisal | D119: 1 | E119: 2 | F119: 3 | G119: 4 | H119: 5 | I119: 6 | J119: 7 | K119: 8 | L119: 9 | M119: 10 | N119: 11 | O119: 12 | P119: 13 | Q119: 14 | R119: 15 | S119: 16 | T119: 17 | U119: 18 | V119: 19 | W119: 20
B120: =title224 -> Cumulative value of net profit - before tax | C120: =C105 -> 0 | D120: =C120+(D105) -> 
B121: =title225 -> Cumulative value of net profit - after tax | C121: =C116 -> 0 | D121: =C121+(D116) -> 
A123: =title226 -> Financial analysis results
B125: =title227 -> Net present value (NPV) (USD) - before tax | C125: =NPV(C75,D105:W105)+C105 -> 
B126: =title228 -> Internal rate of return (IRR) (%) - before tax | C126: =IF(C125<0,title493,MIRR(C105:W105,C80,0%)) -> 
B127: =title229 -> Payback period (years) | C127: =title233 -> Please see Figure of the cumulative value of net profit - before tax
B130: =title230 -> Net present value (NPV) (USD) - after tax | C130: =NPV(C75,D116:W116)+C116 -> 
B131: =title231 -> Internal rate of return (IRR) (%) - after tax | C131: =IF(C130<0,title493,MIRR(C116:W116,$C$80,0%)) -> 
B132: =title229 -> Payback period (years) | C132: =title234 -> Please see Figure of the cumulative value of net profit - after tax
B133: =title232 -> Total Income tax payment of project lifetime | C133: =SUM(D115:W115) -> 

Sheet FA400_RURAL_RES1 (hidden)
B2: =title236 -> FINANCIAL ANALYSIS OF BIOMASS PELLETING 6 TON/HOUR
A4: =title145 -> Revenues of biomass pelleting system
B5: =title146 -> Operating Year | C5: 0 | D5: 1 | E5: 2 | F5: 3 | G5: 4 | H5: 5 | I5: 6 | J5: 7 | K5: 8 | L5: 9 | M5: 10 | N5: 11 | O5: 12 | P5: 13 | Q5: 14 | R5: 15 | S5: 16 | T5: 17 | U5: 18 | V5: 19 | W5: 20
B7: =title147 -> Pellet production capacity (tons per year) | C7: =COST_RES1!J29 -> 0 | D7: =C7 -> 0 | E7: =D7 -> 0 | F7: 0 | G7: 0 | H7: 0 | I7: 0 | J7: 0 | K7: 0 | L7: 0 | M7: 0 | N7: 0 | O7: 0 | P7: 0 | Q7: 0 | R7: 0 | S7: 0 | T7: 0 | U7: 0 | V7: 0 | W7: 0
B9: =title148 -> Efficiency % of pelleting machine | C9: =COST_RES1!G12 -> 0 | D9: =C9 -> 0 | E9: =D9 -> 0 | F9: 0 | G9: 0 | H9: 0 | I9: 0 | J9: 0 | K9: 0 | L9: 0 | M9: 0 | N9: 0 | O9: 0 | P9: 0 | Q9: 0 | R9: 0 | S9: 0 | T9: 0 | U9: 0 | V9: 0 | W9: 0
B11: =title149 -> Operating hours per year | C11: =COST_RES1!K28 -> 0 | D11: =C11 -> 0 | E11: =D11 -> 0 | F11: 0 | G11: 0 | H11: 0 | I11: 0 | J11: 0 | K11: 0 | L11: 0 | M11: 0 | N11: 0 | O11: 0 | P11: 0 | Q11: 0 | R11: 0 | S11: 0 | T11: 0 | U11: 0 | V11: 0 | W11: 0
B12: =title150 -> Capacity utilization factor | C12: =C11/8760 -> 0 | D12: =D11/8760 -> 0 | E12: 0 | F12: 0 | G12: 0 | H12: 0 | I12: 0 | J12: 0 | K12: 0 | L12: 0 | M12: 0 | N12: 0 | O12: 0 | P12: 0 | Q12: 0 | R12: 0 | S12: 0 | T12: 0 | U12: 0 | V12: 0 | W12: 0
B14: =title151 -> Pellet production (tons per year) | C14: =C7 -> 0 | D14: =D7 -> 0 | E14: 0 | F14: 0 | G14: 0 | H14: 0 | I14: 0 | J14: 0 | K14: 0 | L14: 0 | M14: 0 | N14: 0 | O14: 0 | P14: 0 | Q14: 0 | R14: 0 | S14: 0 | T14: 0 | U14: 0 | V14: 0 | W14: 0
B15: =title152 -> Total pellet sell to customers (tons per year) | C15: =SUM(C14:C14) -> 0 | D15: =SUM(D14:D14) -> 0 | E15: 0 | F15: 0 | G15: 0 | H15: 0 | I15: 0 | J15: 0 | K15: 0 | L15: 0 | M15: 0 | N15: 0 | O15: 0 | P15: 0 | Q15: 0 | R15: 0 | S15: 0 | T15: 0 | U15: 0 | V15: 0 | W15: 0
B17: =title153 -> Price of pellet (USD/kg) | C17: =SUM(C18:C18) -> 0 | D17: =SUM(D18:D18) -> 0 | E17: 0 | F17: 0 | G17: 0 | H17: 0 | I17: 0 | J17: 0 | K17: 0 | L17: 0 | M17: 0 | N17: 0 | O17: 0 | P17: 0 | Q17: 0 | R17: 0 | S17: 0 | T17: 0 | U17: 0 | V17: 0 | W17: 0
B18: =title154 -> Market price of pellet pay by consumers (USD/kg) | C18: =+'Energy Demand'!E20 -> 0 | D18: =C18*(1+D19) -> 0 | E18: 0 | F18: 0 | G18: 0 | H18: 0 | I18: 0 | J18: 0 | K18: 0 | L18: 0 | M18: 0 | N18: 0 | O18: 0 | P18: 0 | Q18: 0 | R18: 0 | S18: 0 | T18: 0 | U18: 0 | V18: 0 | W18: 0
B19: =title155 -> Increasing rate of price of pellet (%) | C19: =+'Data entry needs'!$AD$114 -> 0 | D19: =C19 -> 0 | E19: =D19 -> 0 | F19: 0 | G19: 0 | H19: 0 | I19: 0 | J19: 0 | K19: 0 | L19: 0 | M19: 0 | N19: 0 | O19: 0 | P19: 0 | Q19: 0 | R19: 0 | S19: 0 | T19: 0 | U19: 0 | V19: 0 | W19: 0
B21: =title156 -> Total income of pellet (USD per year) | C21: =C15*C18*1000 -> 0 | D21: =D15*D18*1000 -> 0 | E21: 0 | F21: 0 | G21: 0 | H21: 0 | I21: 0 | J21: 0 | K21: 0 | L21: 0 | M21: 0 | N21: 0 | O21: 0 | P21: 0 | Q21: 0 | R21: 0 | S21: 0 | T21: 0 | U21: 0 | V21: 0 | W21: 0
B23: =title157 -> Lifespan of civil work (years) | C23: =COST_RES1!E61 -> 20
B24: =title158 -> Lifespan of pellet system (years) | C24: =COST_RES1!E60 -> 20
B25: =title159 -> Project life time (years) | C25: 20
A27: =title160 -> Capital and operating cost of biomass pellet system
C29: =title167 -> Appraisal | D29: =title168 -> Project lifetime | E29: =title169 -> Investment per year
B30: =title161 -> Direct capital cost (USD)
B31: =title162 -> Equipments | C31: =D31*E31 -> 0 | D31: =$C$25 -> 20 | E31: =COST_RES1!J60/D31 -> 0
B32: =title163 -> Building | C32: =D32*E32 -> 0 | D32: =$C$25 -> 20 | E32: =COST_RES1!J61/D32 -> 0
B33: =title164 -> Installation | C33: =D33*E33 -> 0 | D33: =$C$25 -> 20 | E33: =COST_RES1!J62/D33 -> 0
B34: =title165 -> Total capital cost (USD) | C34: =SUM(C31:C33) -> 0 | E34: =SUM(E31:E33) -> 0
B35: =title166 -> Capital cost (USD/kg of pellet) | C35: =C34/(C14*1000*C25) -> 
B38: =title146 -> Operating Year | C38: =title167 -> Appraisal | D38: 1 | E38: 2 | F38: 3 | G38: 4 | H38: 5 | I38: 6 | J38: 7 | K38: 8 | L38: 9 | M38: 10 | N38: 11 | O38: 12 | P38: 13 | Q38: 14 | R38: 15 | S38: 16 | T38: 17 | U38: 18 | V38: 19 | W38: 20
B39: =title170 -> Annual operating and maintenance cost
B40: =title171 -> Sub-total material cost (USD) | C40: =C41+C49+C51+C54 ->  | D40: =D41+D49+D51+D54 -> 
B41: =title172 -> Biomass cost (USD/year) | C41: =C42*C43 ->  | D41: =D42*D43 -> 
B42: =title46&" "&title53 -> Biomass consumption (ton per year) | C42: =C14/COST_RES1!$G$12 ->  | D42: =D14/COST_RES1!$G$12 ->  | E42: =E14/COST_RES1!$G$12 ->  | F42: =F14/COST_RES1!$G$12 ->  | G42: =G14/COST_RES1!$G$12 ->  | H42: =H14/COST_RES1!$G$12 ->  | I42: =I14/COST_RES1!$G$12 ->  | J42: =J14/COST_RES1!$G$12 ->  | K42: =K14/COST_RES1!$G$12 ->  | L42: =L14/COST_RES1!$G$12 ->  | M42: =M14/COST_RES1!$G$12 ->  | N42: =N14/COST_RES1!$G$12 ->  | O42: =O14/COST_RES1!$G$12 ->  | P42: =P14/COST_RES1!$G$12 ->  | Q42: =Q14/COST_RES1!$G$12 ->  | R42: =R14/COST_RES1!$G$12 ->  | S42: =S14/COST_RES1!$G$12 ->  | T42: =T14/COST_RES1!$G$12 ->  | U42: =U14/COST_RES1!$G$12 ->  | V42: =V14/COST_RES1!$G$12 ->  | W42: =W14/COST_RES1!$G$12 -> 
B43: =title173 -> Biomass price (USD/ton) | C43: =SUM(C44:C45) -> 0 | D43: =SUM(D44:D45) -> 0 | E43: 0 | F43: 0 | G43: 0 | H43: 0 | I43: 0 | J43: 0 | K43: 0 | L43: 0 | M43: 0 | N43: 0 | O43: 0 | P43: 0 | Q43: 0 | R43: 0 | S43: 0 | T43: 0 | U43: 0 | V43: 0 | W43: 0
B44: =title174 -> Biomass cost of collection (USD/ton) | C44: =COST_RES1!E33 -> 0 | D44: =C44*(1+D74+D75) -> 0 | E44: =D44*(1+E74+E75) -> 0 | F44: 0 | G44: 0 | H44: 0 | I44: 0 | J44: 0 | K44: 0 | L44: 0 | M44: 0 | N44: 0 | O44: 0 | P44: 0 | Q44: 0 | R44: 0 | S44: 0 | T44: 0 | U44: 0 | V44: 0 | W44: 0
B45: =title175 -> Biomass transportation cost (USD/ton) | C45: =C46*C47 -> 0 | D45: =D46*D47 -> 0 | E45: 0 | F45: 0 | G45: 0 | H45: 0 | I45: 0 | J45: 0 | K45: 0 | L45: 0 | M45: 0 | N45: 0 | O45: 0 | P45: 0 | Q45: 0 | R45: 0 | S45: 0 | T45: 0 | U45: 0 | V45: 0 | W45: 0
B46: =title176 -> Biomass from farm to plant (USD/ton/km) | C46: =COST_RES1!E48 -> 0 | D46: =C46*(1+D74+D75) -> 0 | E46: =D46*(1+E74+E75) -> 0 | F46: 0 | G46: 0 | H46: 0 | I46: 0 | J46: 0 | K46: 0 | L46: 0 | M46: 0 | N46: 0 | O46: 0 | P46: 0 | Q46: 0 | R46: 0 | S46: 0 | T46: 0 | U46: 0 | V46: 0 | W46: 0
B47: =title177 -> Transportation distant (km) | C47: =COST_RES1!J48 -> 0 | D47: =C47 -> 0 | E47: =D47 -> 0 | F47: 0 | G47: 0 | H47: 0 | I47: 0 | J47: 0 | K47: 0 | L47: 0 | M47: 0 | N47: 0 | O47: 0 | P47: 0 | Q47: 0 | R47: 0 | S47: 0 | T47: =S47 -> 0 | U47: =T47 -> 0 | V47: =U47 -> 0 | W47: =V47 -> 0
B49: =title178 -> Water cost (USD/year) | C49: =COST_RES1!K35 -> 0 | D49: =C49*(1+D74+D75) -> 0 | E49: =D49*(1+E74+E75) -> 0 | F49: 0 | G49: 0 | H49: 0 | I49: 0 | J49: 0 | K49: 0 | L49: 0 | M49: 0 | N49: 0 | O49: 0 | P49: 0 | Q49: 0 | R49: 0 | S49: 0 | T49: 0 | U49: 0 | V49: 0 | W49: 0
B51: =title179 -> Chemical cost (USD/year) | C51: =C52*C53 -> 0 | D51: =D52*D53 -> 0 | E51: 0 | F51: 0 | G51: 0 | H51: 0 | I51: 0 | J51: 0 | K51: 0 | L51: 0 | M51: 0 | N51: 0 | O51: 0 | P51: 0 | Q51: 0 | R51: 0 | S51: 0 | T51: 0 | U51: 0 | V51: 0 | W51: 0
B52: =title180 -> Chemical consumption (tons per year) | C52: =+COST_RES1!$J$34 -> 0 | D52: =+COST_RES1!$J$34 -> 0 | E52: =+COST_RES1!$J$34 -> 0 | F52: =+COST_RES1!$J$34 -> 0 | G52: =+COST_RES1!$J$34 -> 0 | H52: =+COST_RES1!$J$34 -> 0 | I52: =+COST_RES1!$J$34 -> 0 | J52: =+COST_RES1!$J$34 -> 0 | K52: =+COST_RES1!$J$34 -> 0 | L52: =+COST_RES1!$J$34 -> 0 | M52: =+COST_RES1!$J$34 -> 0 | N52: =+COST_RES1!$J$34 -> 0 | O52: =+COST_RES1!$J$34 -> 0 | P52: =+COST_RES1!$J$34 -> 0 | Q52: =+COST_RES1!$J$34 -> 0 | R52: =+COST_RES1!$J$34 -> 0 | S52: =+COST_RES1!$J$34 -> 0 | T52: =+COST_RES1!$J$34 -> 0 | U52: =+COST_RES1!$J$34 -> 0 | V52: =+COST_RES1!$J$34 -> 0 | W52: =+COST_RES1!$J$34 -> 0
B53: =title181 -> Chemical price (USD/ton) | C53: =+'Data entry needs'!$D$20 -> 0 | D53: =C53 -> 0 | E53: =D53 -> 0 | F53: 0 | G53: 0 | H53: 0 | I53: 0 | J53: 0 | K53: 0 | L53: 0 | M53: 0 | N53: 0 | O53: 0 | P53: 0 | Q53: 0 | R53: 0 | S53: 0 | T53: 0 | U53: 0 | V53: 0 | W53: 0
B54: =title182 -> Electricity cost (USD) | C54: =COST_RES1!K36 -> 0 | D54: =C54*(1+D74+D75) -> 0 | E54: =D54*(1+E74+E75) -> 0 | F54: 0 | G54: 0 | H54: 0 | I54: 0 | J54: 0 | K54: 0 | L54: 0 | M54: 0 | N54: 0 | O54: 0 | P54: 0 | Q54: 0 | R54: 0 | S54: 0 | T54: 0 | U54: 0 | V54: 0 | W54: 0
B56: =title183 -> Sub-total operating cost (USD) | C56: =C57+C59+C60 ->  | D56: =D57+D59+D60 -> 
B57: =title184 -> Labour cost (USD) | C57: =COST_RES1!K44 -> 0 | D57: =C57*(1+D58) -> 0 | E57: 0 | F57: 0 | G57: 0 | H57: 0 | I57: 0 | J57: 0 | K57: 0 | L57: 0 | M57: 0 | N57: 0 | O57: 0 | P57: 0 | Q57: 0 | R57: 0 | S57: 0 | T57: 0 | U57: 0 | V57: 0 | W57: 0
B58: =title185 -> Annual change in labour cost (%) | D58: =COST_RES1!M12 -> 0 | E58: =D58 -> 0 | F58: 0 | G58: 0 | H58: 0 | I58: 0 | J58: 0 | K58: 0 | L58: 0 | M58: 0 | N58: 0 | O58: 0 | P58: 0 | Q58: 0 | R58: 0 | S58: 0 | T58: 0 | U58: 0 | V58: 0 | W58: 0
B59: =title185 -> Annual change in labour cost (%) | C59: =COST_RES1!K70 -> 0 | D59: =C59 -> 0 | E59: =D59 -> 0 | F59: 0 | G59: 0 | H59: 0 | I59: 0 | J59: 0 | K59: 0 | L59: 0 | M59: 0 | N59: 0 | O59: 0 | P59: 0 | Q59: 0 | R59: 0 | S59: 0 | T59: 0 | U59: =T59 -> 0 | V59: 0 | W59: 0
B60: =title186 -> General and administrative cost | C60: =COST_RES1!K71 ->  | D60: =C60 -> 
B61: =title187 -> Sub-total maintenance cost (USD) | C61: =COST_RES1!K65 -> 0 | D61: =C61 -> 0 | E61: 0 | F61: 0 | G61: 0 | H61: 0 | I61: 0 | J61: 0 | K61: 0 | L61: 0 | M61: 0 | N61: 0 | O61: 0 | P61: 0 | Q61: 0 | R61: 0 | S61: 0 | T61: 0 | U61: 0 | V61: 0 | W61: 0
B63: =title188 -> Sub-total of annual fixed costs | C63: =+E34 -> 0 | D63: =C63 -> 0 | E63: =D63 -> 0 | F63: 0 | G63: 0 | H63: 0 | I63: 0 | J63: 0 | K63: 0 | L63: 0 | M63: 0 | N63: 0 | O63: 0 | P63: 0 | Q63: 0 | R63: 0 | S63: 0 | T63: 0 | U63: 0 | V63: 0 | W63: 0
B65: =title189 -> Sub-total of storage capacity | C65: =COST_RES1!K56 ->  | D65: =C65 ->  | E65: =D65 -> 
B67: =title190 -> Sub-total of pellet transportation to market | C67: =COST_RES1!K49 -> 0 | D67: =C67*(1+D74+D75) -> 0 | E67: =D67*(1+E74+E75) -> 0 | F67: 0 | G67: 0 | H67: 0 | I67: 0 | J67: 0 | K67: 0 | L67: 0 | M67: 0 | N67: 0 | O67: 0 | P67: 0 | Q67: 0 | R67: 0 | S67: 0 | T67: 0 | U67: 0 | V67: 0 | W67: 0
B69: =title191 -> Total operation and maintenance cost (USD) | C69: =C40+C56+C61+C63+C65+C67 ->  | D69: =D40+D56+D61+D63+D65+D67 -> 
B70: =title192 -> Operation and maintenance cost (USD/kg of pellet) without loan interest | C70: =C69/(C14*1000) -> 
A72: =title136 -> Financial parameters
B73: =title146 -> Operating Year | C73: =title167 -> Appraisal | D73: 1 | E73: 2 | F73: 3 | G73: 4 | H73: 5 | I73: 6 | J73: 7 | K73: 8 | L73: 9 | M73: 10 | N73: 11 | O73: 12 | P73: 13 | Q73: 14 | R73: 15 | S73: 16 | T73: 17 | U73: 18 | V73: 19 | W73: 20
B74: =title193 -> Annual change in raw material cost (%) | D74: 0 | E74: =D74 -> 0 | F74: =E74 -> 0 | G74: 0 | H74: 0 | I74: 0 | J74: 0 | K74: 0 | L74: 0 | M74: 0 | N74: 0 | O74: 0 | P74: 0 | Q74: 0 | R74: 0 | S74: 0 | T74: 0 | U74: 0 | V74: =U74 -> 0 | W74: =V74 -> 0
B75: =title194 -> Inflation rate (%) | D75: =COST_RES1!J12 -> 0 | E75: =D75 -> 0 | F75: 0 | G75: 0 | H75: 0 | I75: 0 | J75: 0 | K75: 0 | L75: 0 | M75: 0 | N75: 0 | O75: 0 | P75: 0 | Q75: 0 | R75: 0 | S75: 0 | T75: 0 | U75: 0 | V75: =U75 -> 0 | W75: =V75 -> 0
B76: =title137&" (%)" -> Discount rate (%) | C76: =COST_RES1!J9 -> 0
B77: =title138&" (%)" -> Loan ratio (%) | C77: =COST_RES1!J10 -> 0
B79: =title195 -> Loan without policy | C79: =title167 -> Appraisal | D79: 1 | E79: 2 | F79: 3 | G79: 4 | H79: 5 | I79: 6 | J79: 7 | K79: 8 | L79: 9 | M79: 10 | N79: 11 | O79: 12 | P79: 13 | Q79: 14 | R79: 15 | S79: 16 | T79: 17 | U79: 18 | V79: 19 | W79: 20
B80: =title196 -> Loan amount (USD) | C80: =C77*(C34) -> 0
B81: =title139&" (%)" -> Loan interest rate (%) | C81: =COST_RES1!J11 -> 0
B82: =title197 -> Loan term (years) | C82: =COST_RES1!M9 -> 0
B83: =title198 -> Loan payment (USD/month) | C83: =(PMT($C$81/12,(12*$C$82),$C$80)) -> 
B84: =title199 -> Loan payment (USD/year) | D84: =IF(D73<=$C$82,$C$83*12,0) -> 0 | E84: =IF(E73<$C$82,$C$83*12,IF(E73=$C$82,$C$83*12,0)) -> 0 | F84: =IF(F73<$C$82,$C$83*12,IF(F73=$C$82,$C$83*12,0)) -> 0 | G84: 0 | H84: 0 | I84: 0 | J84: 0 | K84: 0 | L84: 0 | M84: 0 | N84: 0 | O84: 0 | P84: 0 | Q84: 0 | R84: 0 | S84: 0 | T84: 0 | U84: 0 | V84: 0 | W84: 0
B85: =title200 -> Total loan payment (USD) | C85: =SUM(D84:W84) -> 0
B86: =title201 -> Loan interest payment (USD) | C86: =C85+C80 -> 0 | D86: =title202 -> Average loan interest payment for project lifetime | G86: =C86/C25 -> 0 | H86: =title203 -> USD per year
A88: =title204 -> Income tax analysis
B89: =title146 -> Operating Year | C89: =title167 -> Appraisal | D89: 1 | E89: 2 | F89: 3 | G89: 4 | H89: 5 | I89: 6 | J89: 7 | K89: 8 | L89: 9 | M89: 10 | N89: 11 | O89: 12 | P89: 13 | Q89: 14 | R89: 15 | S89: 16 | T89: 17 | U89: 18 | V89: 19 | W89: 20
B90: =title205 -> Effective income tax rate (%) | C90: =+'Data entry needs'!$AD$115 -> 0 | D90: =C90 -> 0 | E90: =D90 -> 0 | F90: 0 | G90: 0 | H90: 0 | I90: 0 | J90: 0 | K90: 0 | L90: 0 | M90: 0 | N90: 0 | O90: 0 | P90: 0 | Q90: 0 | R90: 0 | S90: 0 | T90: 0 | U90: 0 | V90: 0 | W90: 0
B91: =title206 -> Income tax (USD) | D91: =IF(D115<0,0,D90*D115) -> 
B92: =title207 -> Total income tax payment (USD) | C92: =SUM(D91:W91) ->  | D92: =title492 -> Average income tax payment | F92: =C92/C25 ->  | G92: =title203 -> USD per year
A94: =title208 -> Depreciation
B95: =title146 -> Operating Year | C95: =title167 -> Appraisal | D95: 1 | E95: 2 | F95: 3 | G95: 4 | H95: 5 | I95: 6 | J95: 7 | K95: 8 | L95: 9 | M95: 10 | N95: 11 | O95: 12 | P95: 13 | Q95: 14 | R95: 15 | S95: 16 | T95: 17 | U95: 18 | V95: 19 | W95: 20
B96: =title209 -> Depreciation method | C96: =title491 -> Straight-line
B97: =title210 -> Total depreciation (USD) | D97: =COST_RES1!K64 -> 0 | E97: =D97 -> 0 | F97: =E97 -> 0 | G97: 0 | H97: 0 | I97: 0 | J97: 0 | K97: 0 | L97: 0 | M97: 0 | N97: 0 | O97: 0 | P97: 0 | Q97: 0 | R97: 0 | S97: 0 | T97: 0 | U97: 0 | V97: 0 | W97: 0
A99: =title211 -> Base case project summary
A100: =title212 -> Summary of this project - Before Tax
B101: =title146 -> Operating Year | C101: =title167 -> Appraisal | D101: 1 | E101: 2 | F101: 3 | G101: 4 | H101: 5 | I101: 6 | J101: 7 | K101: 8 | L101: 9 | M101: 10 | N101: 11 | O101: 12 | P101: 13 | Q101: 14 | R101: 15 | S101: 16 | T101: 17 | U101: 18 | V101: 19 | W101: 20
B102: =title213 -> Total revenue (USD) | D102: =D15*1000*D18 -> 0 | E102: =E15*1000*E18 -> 0 | F102: 0 | G102: 0 | H102: 0 | I102: 0 | J102: 0 | K102: 0 | L102: 0 | M102: 0 | N102: 0 | O102: 0 | P102: 0 | Q102: 0 | R102: 0 | S102: 0 | T102: 0 | U102: 0 | V102: 0 | W102: 0
B103: =title165 -> Total capital cost (USD) | C103: =-(C34-C80) -> 0
B104: =title214 -> Total operating and maintenance cost (USD) | D104: =-D69+D63 -> 
B105: =title215 -> Loan payment (USD) | D105: =D84 -> 0 | E105: =E84 -> 0 | F105: 0 | G105: 0 | H105: 0 | I105: 0 | J105: 0 | K105: 0 | L105: 0 | M105: 0 | N105: 0 | O105: 0 | P105: 0 | Q105: 0 | R105: 0 | S105: 0 | T105: 0 | U105: 0 | V105: 0 | W105: 0
B106: =title216 -> Cash flow - before tax (USD) | C106: =SUM(C102:C105) -> 0
B107: =title217 -> Average revenue (USD)
A109: =title218 -> Summary of this project - After Tax
B110: =title146 -> Operating Year | C110: =title167 -> Appraisal | D110: 1 | E110: 2 | F110: 3 | G110: 4 | H110: 5 | I110: 6 | J110: 7 | K110: 8 | L110: 9 | M110: 10 | N110: 11 | O110: 12 | P110: 13 | Q110: 14 | R110: 15 | S110: 16 | T110: 17 | U110: 18 | V110: 19 | W110: 20
B111: =B102 -> Total revenue (USD) | C111: =C102 -> 0 | D111: =D102 -> 0 | E111: 0 | F111: 0 | G111: 0 | H111: 0 | I111: 0 | J111: 0 | K111: 0 | L111: 0 | M111: 0 | N111: 0 | O111: 0 | P111: 0 | Q111: 0 | R111: 0 | S111: 0 | T111: 0 | U111: 0 | V111: 0 | W111: 0
B112: =title214 -> Total operating and maintenance cost (USD) | D112: =-D69+D63 -> 
B113: =title215 -> Loan payment (USD) | D113: =$G$86 -> 0 | E113: =$G$86 -> 0 | F113: 0 | G113: 0 | H113: 0 | I113: 0 | J113: 0 | K113: 0 | L113: 0 | M113: 0 | N113: 0 | O113: 0 | P113: 0 | Q113: 0 | R113: 0 | S113: 0 | T113: 0 | U113: 0 | V113: 0 | W113: 0
B114: =title219 -> Depreciation of fixed costs (USD) | D114: =-D63 -> 0 | E114: =-E63 -> 0 | F114: 0 | G114: 0 | H114: 0 | I114: 0 | J114: 0 | K114: 0 | L114: 0 | M114: 0 | N114: 0 | O114: 0 | P114: 0 | Q114: 0 | R114: 0 | S114: 0 | T114: 0 | U114: 0 | V114: 0 | W114: 0
B115: =title220 -> Net profit - before tax (USD) for income tax calculation | C115: =SUM(C111:C114) -> 0 | D115: =SUM(D111:D114) ->  | E115: =SUM(E111:E114) -> 
B116: =title221 -> Income tax | D116: =IF(D115>0,-D91,0) -> 
B117: =title222 -> Cash flow - after tax (USD) | C117: =C103 -> 0 | D117: =D106+D116 ->  | E117: =E106+E116 ->  | W117: =W106+W116 -> 
A119: =title223 -> Cumulative value of Net Profit
B120: =title146 -> Operating Year | C120: =title167 -> Appraisal | D120: 1 | E120: 2 | F120: 3 | G120: 4 | H120: 5 | I120: 6 | J120: 7 | K120: 8 | L120: 9 | M120: 10 | N120: 11 | O120: 12 | P120: 13 | Q120: 14 | R120: 15 | S120: 16 | T120: 17 | U120: 18 | V120: 19 | W120: 20
B121: =title224 -> Cumulative value of net profit - before tax | C121: =C106 -> 0 | D121: =C121+(D106) -> 
B122: =title225 -> Cumulative value of net profit - after tax | C122: =C117 -> 0 | D122: =C122+(D117) -> 
A124: =title226 -> Financial analysis results
B126: =title227 -> Net present value (NPV) (USD) - before tax | C126: =NPV(C76,D106:W106)+C106 -> 
B127: =title228 -> Internal rate of return (IRR) (%) - before tax | C127: =IF(C126<0,title493,MIRR(C106:W106,C81,0%)) -> 
B128: =title229 -> Payback period (years) | C128: =title233 -> Please see Figure of the cumulative value of net profit - before tax
B131: =title230 -> Net present value (NPV) (USD) - after tax | C131: =NPV(C76,D117:W117)+C117 -> 
B132: =title231 -> Internal rate of return (IRR) (%) - after tax | C132: =IF(C131<0,title493,MIRR(C117:W117,C81,0%)) -> 
B133: =title229 -> Payback period (years) | C133: =title234 -> Please see Figure of the cumulative value of net profit - after tax
B134: =title232 -> Total Income tax payment of project lifetime | C134: =SUM(D116:W116) -> 

Sheet FA4000_RURAL_RES1 (hidden)
B2: =title237 -> FINANCIAL ANALYSIS OF BIOMASS PELLETING 15 TON/HOUR
A4: =title145 -> Revenues of biomass pelleting system
B5: =title146 -> Operating Year | C5: 0 | D5: 1 | E5: 2 | F5: 3 | G5: 4 | H5: 5 | I5: 6 | J5: 7 | K5: 8 | L5: 9 | M5: 10 | N5: 11 | O5: 12 | P5: 13 | Q5: 14 | R5: 15 | S5: 16 | T5: 17 | U5: 18 | V5: 19 | W5: 20
B7: =title147 -> Pellet production capacity (tons per year) | C7: =COST_RES1!L29 -> 0 | D7: =C7 -> 0 | E7: =D7 -> 0 | F7: 0 | G7: 0 | H7: 0 | I7: 0 | J7: 0 | K7: 0 | L7: 0 | M7: 0 | N7: 0 | O7: 0 | P7: 0 | Q7: 0 | R7: 0 | S7: 0 | T7: 0 | U7: 0 | V7: 0 | W7: 0
B9: =title148 -> Efficiency % of pelleting machine | C9: =COST_RES1!G12 -> 0 | D9: =C9 -> 0 | E9: =D9 -> 0 | F9: 0 | G9: 0 | H9: 0 | I9: 0 | J9: 0 | K9: 0 | L9: 0 | M9: 0 | N9: 0 | O9: 0 | P9: 0 | Q9: 0 | R9: 0 | S9: 0 | T9: 0 | U9: 0 | V9: 0 | W9: 0
B11: =title149 -> Operating hours per year | C11: =COST_RES1!M28 -> 0 | D11: =C11 -> 0 | E11: =D11 -> 0 | F11: 0 | G11: 0 | H11: 0 | I11: 0 | J11: 0 | K11: 0 | L11: 0 | M11: 0 | N11: 0 | O11: 0 | P11: 0 | Q11: 0 | R11: 0 | S11: 0 | T11: 0 | U11: 0 | V11: 0 | W11: 0
B12: =title150 -> Capacity utilization factor | C12: =C11/8760 -> 0 | D12: =D11/8760 -> 0 | E12: 0 | F12: 0 | G12: 0 | H12: 0 | I12: 0 | J12: 0 | K12: 0 | L12: 0 | M12: 0 | N12: 0 | O12: 0 | P12: 0 | Q12: 0 | R12: 0 | S12: 0 | T12: 0 | U12: 0 | V12: 0 | W12: 0
B14: =title151 -> Pellet production (tons per year) | C14: =C7 -> 0 | D14: =D7 -> 0 | E14: 0 | F14: 0 | G14: 0 | H14: 0 | I14: 0 | J14: 0 | K14: 0 | L14: 0 | M14: 0 | N14: 0 | O14: 0 | P14: 0 | Q14: 0 | R14: 0 | S14: 0 | T14: 0 | U14: 0 | V14: 0 | W14: 0
B15: =title152 -> Total pellet sell to customers (tons per year) | C15: =SUM(C14:C14) -> 0 | D15: =SUM(D14:D14) -> 0 | E15: 0 | F15: 0 | G15: 0 | H15: 0 | I15: 0 | J15: 0 | K15: 0 | L15: 0 | M15: 0 | N15: 0 | O15: 0 | P15: 0 | Q15: 0 | R15: 0 | S15: 0 | T15: 0 | U15: 0 | V15: 0 | W15: 0
B17: =title153 -> Price of pellet (USD/kg) | C17: =SUM(C18:C18) -> 0 | D17: =SUM(D18:D18) -> 0 | E17: 0 | F17: 0 | G17: 0 | H17: 0 | I17: 0 | J17: 0 | K17: 0 | L17: 0 | M17: 0 | N17: 0 | O17: 0 | P17: 0 | Q17: 0 | R17: 0 | S17: 0 | T17: 0 | U17: 0 | V17: 0 | W17: 0
B18: =title154 -> Market price of pellet pay by consumers (USD/kg) | C18: =+'Energy Demand'!E20 -> 0 | D18: =C18*(1+D19) -> 0 | E18: 0 | F18: 0 | G18: 0 | H18: 0 | I18: 0 | J18: 0 | K18: 0 | L18: 0 | M18: 0 | N18: 0 | O18: 0 | P18: 0 | Q18: 0 | R18: 0 | S18: 0 | T18: 0 | U18: 0 | V18: 0 | W18: 0
B19: =title155 -> Increasing rate of price of pellet (%) | C19: =+'Data entry needs'!$AD$114 -> 0 | D19: =C19 -> 0 | E19: =D19 -> 0 | F19: 0 | G19: 0 | H19: 0 | I19: 0 | J19: 0 | K19: 0 | L19: 0 | M19: 0 | N19: 0 | O19: 0 | P19: 0 | Q19: 0 | R19: 0 | S19: 0 | T19: 0 | U19: 0 | V19: 0 | W19: 0
B21: =title156 -> Total income of pellet (USD per year) | C21: =C15*C18*1000 -> 0 | D21: =D15*D18*1000 -> 0 | E21: 0 | F21: 0 | G21: 0 | H21: 0 | I21: 0 | J21: 0 | K21: 0 | L21: 0 | M21: 0 | N21: 0 | O21: 0 | P21: 0 | Q21: 0 | R21: 0 | S21: 0 | T21: 0 | U21: 0 | V21: 0 | W21: 0
B23: =title157 -> Lifespan of civil work (years) | C23: =COST_RES1!E61 -> 20
B24: =title158 -> Lifespan of pellet system (years) | C24: =COST_RES1!E60 -> 20
B25: =title159 -> Project life time (years) | C25: 20
A27: =title160 -> Capital and operating cost of biomass pellet system
C29: =title167 -> Appraisal | D29: =title168 -> Project lifetime | E29: =title169 -> Investment per year
B30: =title161 -> Direct capital cost (USD)
B31: =title162 -> Equipments | C31: =D31*E31 -> 0 | D31: =$C$25 -> 20 | E31: =COST_RES1!L60/D31 -> 0
B32: =title163 -> Building | C32: =D32*E32 -> 0 | D32: =$C$25 -> 20 | E32: =COST_RES1!L61/D32 -> 0
B33: =title164 -> Installation | C33: =D33*E33 -> 0 | D33: =$C$25 -> 20 | E33: =COST_RES1!L62/D33 -> 0
B34: =title165 -> Total capital cost (USD) | C34: =SUM(C31:C33) -> 0 | E34: =SUM(E31:E33) -> 0
B35: =title166 -> Capital cost (USD/kg of pellet) | C35: =C34/(C14*1000*C25) -> 
B38: =title146 -> Operating Year | C38: =title167 -> Appraisal | D38: 1 | E38: 2 | F38: 3 | G38: 4 | H38: 5 | I38: 6 | J38: 7 | K38: 8 | L38: 9 | M38: 10 | N38: 11 | O38: 12 | P38: 13 | Q38: 14 | R38: 15 | S38: 16 | T38: 17 | U38: 18 | V38: 19 | W38: 20
B39: =title170 -> Annual operating and maintenance cost
B40: =title171 -> Sub-total material cost (USD) | C40: =C41+C49+C51+C54 ->  | D40: =D41+D49+D51+D54 -> 
B41: =title172 -> Biomass cost (USD/year) | C41: =C42*C43 ->  | D41: =D42*D43 -> 
B42: =title46&" "&title53 -> Biomass consumption (ton per year) | C42: =C14/COST_RES1!$G$12 ->  | D42: =D14/COST_RES1!$G$12 ->  | E42: =E14/COST_RES1!$G$12 ->  | F42: =F14/COST_RES1!$G$12 ->  | G42: =G14/COST_RES1!$G$12 ->  | H42: =H14/COST_RES1!$G$12 ->  | I42: =I14/COST_RES1!$G$12 ->  | J42: =J14/COST_RES1!$G$12 ->  | K42: =K14/COST_RES1!$G$12 ->  | L42: =L14/COST_RES1!$G$12 ->  | M42: =M14/COST_RES1!$G$12 ->  | N42: =N14/COST_RES1!$G$12 ->  | O42: =O14/COST_RES1!$G$12 ->  | P42: =P14/COST_RES1!$G$12 ->  | Q42: =Q14/COST_RES1!$G$12 ->  | R42: =R14/COST_RES1!$G$12 ->  | S42: =S14/COST_RES1!$G$12 ->  | T42: =T14/COST_RES1!$G$12 ->  | U42: =U14/COST_RES1!$G$12 ->  | V42: =V14/COST_RES1!$G$12 ->  | W42: =W14/COST_RES1!$G$12 -> 
B43: =title173 -> Biomass price (USD/ton) | C43: =SUM(C44:C45) -> 0 | D43: =SUM(D44:D45) -> 0 | E43: 0 | F43: 0 | G43: 0 | H43: 0 | I43: 0 | J43: 0 | K43: 0 | L43: 0 | M43: 0 | N43: 0 | O43: 0 | P43: 0 | Q43: 0 | R43: 0 | S43: 0 | T43: 0 | U43: 0 | V43: 0 | W43: 0
B44: =title174 -> Biomass cost of collection (USD/ton) | C44: =COST_RES1!E33 -> 0 | D44: =C44*(1+D74+D75) -> 0 | E44: =D44*(1+E74+E75) -> 0 | F44: 0 | G44: 0 | H44: 0 | I44: 0 | J44: 0 | K44: 0 | L44: 0 | M44: 0 | N44: 0 | O44: 0 | P44: 0 | Q44: 0 | R44: 0 | S44: 0 | T44: 0 | U44: 0 | V44: 0 | W44: 0
B45: =title175 -> Biomass transportation cost (USD/ton) | C45: =C46*C47 -> 0 | D45: =D46*D47 -> 0 | E45: 0 | F45: 0 | G45: 0 | H45: 0 | I45: 0 | J45: 0 | K45: 0 | L45: 0 | M45: 0 | N45: 0 | O45: 0 | P45: 0 | Q45: 0 | R45: 0 | S45: 0 | T45: 0 | U45: 0 | V45: 0 | W45: 0
B46: =title176 -> Biomass from farm to plant (USD/ton/km) | C46: =COST_RES1!E48 -> 0 | D46: =C46*(1+D74+D75) -> 0 | E46: =D46*(1+E74+E75) -> 0 | F46: 0 | G46: 0 | H46: 0 | I46: 0 | J46: 0 | K46: 0 | L46: 0 | M46: 0 | N46: 0 | O46: 0 | P46: 0 | Q46: 0 | R46: 0 | S46: 0 | T46: 0 | U46: 0 | V46: 0 | W46: 0
B47: =title177 -> Transportation distant (km) | C47: =COST_RES1!L48 -> 0 | D47: =C47 -> 0 | E47: =D47 -> 0 | F47: 0 | G47: 0 | H47: 0 | I47: 0 | J47: 0 | K47: 0 | L47: 0 | M47: 0 | N47: 0 | O47: 0 | P47: 0 | Q47: 0 | R47: 0 | S47: 0 | T47: =S47 -> 0 | U47: =T47 -> 0 | V47: =U47 -> 0 | W47: =V47 -> 0
B49: =title178 -> Water cost (USD/year) | C49: =COST_RES1!M35 -> 0 | D49: =C49*(1+D74+D75) -> 0 | E49: =D49*(1+E74+E75) -> 0 | F49: 0 | G49: 0 | H49: 0 | I49: 0 | J49: 0 | K49: 0 | L49: 0 | M49: 0 | N49: 0 | O49: 0 | P49: 0 | Q49: 0 | R49: 0 | S49: 0 | T49: 0 | U49: 0 | V49: 0 | W49: 0
B51: =title179 -> Chemical cost (USD/year) | C51: =C52*C53 -> 0 | D51: =D52*D53 -> 0 | E51: 0 | F51: 0 | G51: 0 | H51: 0 | I51: 0 | J51: 0 | K51: 0 | L51: 0 | M51: 0 | N51: 0 | O51: 0 | P51: 0 | Q51: 0 | R51: 0 | S51: 0 | T51: 0 | U51: 0 | V51: 0 | W51: 0
B52: =title180 -> Chemical consumption (tons per year) | C52: =+COST_RES1!$L$34 -> 0 | D52: =+COST_RES1!$L$34 -> 0 | E52: =+COST_RES1!$L$34 -> 0 | F52: =+COST_RES1!$L$34 -> 0 | G52: =+COST_RES1!$L$34 -> 0 | H52: =+COST_RES1!$L$34 -> 0 | I52: =+COST_RES1!$L$34 -> 0 | J52: =+COST_RES1!$L$34 -> 0 | K52: =+COST_RES1!$L$34 -> 0 | L52: =+COST_RES1!$L$34 -> 0 | M52: =+COST_RES1!$L$34 -> 0 | N52: =+COST_RES1!$L$34 -> 0 | O52: =+COST_RES1!$L$34 -> 0 | P52: =+COST_RES1!$L$34 -> 0 | Q52: =+COST_RES1!$L$34 -> 0 | R52: =+COST_RES1!$L$34 -> 0 | S52: =+COST_RES1!$L$34 -> 0 | T52: =+COST_RES1!$L$34 -> 0 | U52: =+COST_RES1!$L$34 -> 0 | V52: =+COST_RES1!$L$34 -> 0 | W52: =+COST_RES1!$L$34 -> 0
B53: =title181 -> Chemical price (USD/ton) | C53: =+'Data entry needs'!$D$20 -> 0 | D53: =+C53 -> 0 | E53: =+D53 -> 0 | F53: 0 | G53: 0 | H53: 0 | I53: 0 | J53: 0 | K53: 0 | L53: 0 | M53: 0 | N53: 0 | O53: 0 | P53: 0 | Q53: 0 | R53: 0 | S53: 0 | T53: 0 | U53: 0 | V53: 0 | W53: 0
B54: =title182 -> Electricity cost (USD) | C54: =COST_RES1!M36 -> 0 | D54: =C54*(1+D74+D75) -> 0 | E54: =D54*(1+E74+E75) -> 0 | F54: 0 | G54: 0 | H54: 0 | I54: 0 | J54: 0 | K54: 0 | L54: 0 | M54: 0 | N54: 0 | O54: 0 | P54: 0 | Q54: 0 | R54: 0 | S54: 0 | T54: 0 | U54: 0 | V54: 0 | W54: 0
B56: =title183 -> Sub-total operating cost (USD) | C56: =C57+C59+C60 ->  | D56: =D57+D59+D60 -> 
B57: =title184 -> Labour cost (USD) | C57: =COST_RES1!M44 -> 0 | D57: =C57*(1+D58) -> 0 | E57: 0 | F57: 0 | G57: 0 | H57: 0 | I57: 0 | J57: 0 | K57: 0 | L57: 0 | M57: 0 | N57: 0 | O57: 0 | P57: 0 | Q57: 0 | R57: 0 | S57: 0 | T57: 0 | U57: 0 | V57: 0 | W57: 0
B58: =title185 -> Annual change in labour cost (%) | D58: =COST_RES1!M12 -> 0 | E58: =D58 -> 0 | F58: =E58 -> 0 | G58: 0 | H58: 0 | I58: 0 | J58: 0 | K58: 0 | L58: 0 | M58: 0 | N58: 0 | O58: 0 | P58: 0 | Q58: 0 | R58: 0 | S58: 0 | T58: 0 | U58: 0 | V58: =U58 -> 0 | W58: 0
B59: =title185 -> Annual change in labour cost (%) | C59: =COST_RES1!M70 -> 0 | D59: =C59 -> 0 | E59: =D59 -> 0 | F59: 0 | G59: 0 | H59: 0 | I59: 0 | J59: 0 | K59: 0 | L59: 0 | M59: 0 | N59: 0 | O59: 0 | P59: 0 | Q59: 0 | R59: 0 | S59: 0 | T59: 0 | U59: 0 | V59: 0 | W59: 0
B60: =title186 -> General and administrative cost | C60: =COST_RES1!M71 ->  | D60: =C60 -> 
B61: =title187 -> Sub-total maintenance cost (USD) | C61: =COST_RES1!M65 -> 0 | D61: =C61 -> 0 | E61: 0 | F61: 0 | G61: 0 | H61: 0 | I61: 0 | J61: 0 | K61: 0 | L61: 0 | M61: 0 | N61: 0 | O61: 0 | P61: 0 | Q61: 0 | R61: 0 | S61: 0 | T61: 0 | U61: 0 | V61: 0 | W61: 0
B63: =title188 -> Sub-total of annual fixed costs | C63: =+E34 -> 0 | D63: =C63 -> 0 | E63: =D63 -> 0 | F63: 0 | G63: 0 | H63: 0 | I63: 0 | J63: 0 | K63: 0 | L63: 0 | M63: 0 | N63: 0 | O63: 0 | P63: 0 | Q63: 0 | R63: 0 | S63: 0 | T63: 0 | U63: 0 | V63: 0 | W63: 0
B65: =title189 -> Sub-total of storage capacity | C65: =COST_RES1!M56 ->  | D65: =C65 ->  | E65: =D65 -> 
B67: =title190 -> Sub-total of pellet transportation to market | C67: =COST_RES1!M49 -> 0 | D67: =C67*(1+D74+D75) -> 0 | E67: =D67*(1+E74+E75) -> 0 | F67: 0 | G67: 0 | H67: 0 | I67: 0 | J67: 0 | K67: 0 | L67: 0 | M67: 0 | N67: 0 | O67: 0 | P67: 0 | Q67: 0 | R67: 0 | S67: 0 | T67: 0 | U67: 0 | V67: 0 | W67: 0
B69: =title191 -> Total operation and maintenance cost (USD) | C69: =C40+C56+C61+C63+C65+C67 ->  | D69: =D40+D56+D61+D63+D65+D67 -> 
B70: =title192 -> Operation and maintenance cost (USD/kg of pellet) without loan interest | C70: =C69/(C14*1000) -> 
A72: =title136 -> Financial parameters
B73: =title146 -> Operating Year | C73: =title167 -> Appraisal | D73: 1 | E73: 2 | F73: 3 | G73: 4 | H73: 5 | I73: 6 | J73: 7 | K73: 8 | L73: 9 | M73: 10 | N73: 11 | O73: 12 | P73: 13 | Q73: 14 | R73: 15 | S73: 16 | T73: 17 | U73: 18 | V73: 19 | W73: 20
B74: =title193 -> Annual change in raw material cost (%) | D74: 0 | E74: =D74 -> 0 | F74: =E74 -> 0 | G74: 0 | H74: 0 | I74: 0 | J74: 0 | K74: 0 | L74: 0 | M74: 0 | N74: 0 | O74: 0 | P74: 0 | Q74: 0 | R74: 0 | S74: 0 | T74: 0 | U74: 0 | V74: =U74 -> 0 | W74: =V74 -> 0
B75: =title194 -> Inflation rate (%) | D75: =COST_RES1!J12 -> 0 | E75: =D75 -> 0 | F75: 0 | G75: 0 | H75: 0 | I75: 0 | J75: 0 | K75: 0 | L75: 0 | M75: 0 | N75: 0 | O75: 0 | P75: 0 | Q75: 0 | R75: 0 | S75: 0 | T75: 0 | U75: 0 | V75: =U75 -> 0 | W75: =V75 -> 0
B76: =title137&" (%)" -> Discount rate (%) | C76: =COST_RES1!J9 -> 0
B77: =title138&" (%)" -> Loan ratio (%) | C77: =COST_RES1!J10 -> 0
B79: =title195 -> Loan without policy | C79: =title167 -> Appraisal | D79: 1 | E79: 2 | F79: 3 | G79: 4 | H79: 5 | I79: 6 | J79: 7 | K79: 8 | L79: 9 | M79: 10 | N79: 11 | O79: 12 | P79: 13 | Q79: 14 | R79: 15 | S79: 16 | T79: 17 | U79: 18 | V79: 19 | W79: 20
B80: =title196 -> Loan amount (USD) | C80: =C77*(C34) -> 0
B81: =title139&" (%)" -> Loan interest rate (%) | C81: =COST_RES1!J11 -> 0
B82: =title197 -> Loan term (years) | C82: =COST_RES1!M9 -> 0
B83: =title198 -> Loan payment (USD/month) | C83: =(PMT($C$81/12,(12*$C$82),$C$80)) -> 
B84: =title199 -> Loan payment (USD/year) | D84: =IF(D73<=$C$82,$C$83*12,0) -> 0 | E84: =IF(E73<$C$82,$C$83*12,IF(E73=$C$82,$C$83*12,0)) -> 0 | F84: =IF(F73<$C$82,$C$83*12,IF(F73=$C$82,$C$83*12,0)) -> 0 | G84: 0 | H84: 0 | I84: 0 | J84: 0 | K84: 0 | L84: 0 | M84: 0 | N84: 0 | O84: 0 | P84: 0 | Q84: 0 | R84: 0 | S84: 0 | T84: 0 | U84: 0 | V84: 0 | W84: 0
B85: =title200 -> Total loan payment (USD) | C85: =SUM(D84:W84) -> 0
B86: =title201 -> Loan interest payment (USD) | C86: =C85+C80 -> 0 | D86: =title202 -> Average loan interest payment for project lifetime | G86: =C86/C25 -> 0 | H86: =title203 -> USD per year
A88: =title204 -> Income tax analysis
B89: =title146 -> Operating Year | C89: =title167 -> Appraisal | D89: 1 | E89: 2 | F89: 3 | G89: 4 | H89: 5 | I89: 6 | J89: 7 | K89: 8 | L89: 9 | M89: 10 | N89: 11 | O89: 12 | P89: 13 | Q89: 14 | R89: 15 | S89: 16 | T89: 17 | U89: 18 | V89: 19 | W89: 20
B90: =title205 -> Effective income tax rate (%) | C90: =+'Data entry needs'!$AD$115 -> 0 | D90: =C90 -> 0 | E90: =D90 -> 0 | F90: 0 | G90: 0 | H90: 0 | I90: 0 | J90: 0 | K90: 0 | L90: 0 | M90: 0 | N90: 0 | O90: 0 | P90: 0 | Q90: 0 | R90: 0 | S90: 0 | T90: 0 | U90: 0 | V90: 0 | W90: 0
B91: =title206 -> Income tax (USD) | D91: =IF(D115<0,0,D90*D115) -> 
B92: =title207 -> Total income tax payment (USD) | C92: =SUM(D91:W91) ->  | D92: =title492 -> Average income tax payment | F92: =C92/C25 ->  | G92: =title203 -> USD per year
A94: =title208 -> Depreciation
B95: =title146 -> Operating Year | C95: =title167 -> Appraisal | D95: 1 | E95: 2 | F95: 3 | G95: 4 | H95: 5 | I95: 6 | J95: 7 | K95: 8 | L95: 9 | M95: 10 | N95: 11 | O95: 12 | P95: 13 | Q95: 14 | R95: 15 | S95: 16 | T95: 17 | U95: 18 | V95: 19 | W95: 20
B96: =title209 -> Depreciation method | C96: =title491 -> Straight-line
B97: =title210 -> Total depreciation (USD) | D97: =COST_RES1!M64 -> 0 | E97: =D97 -> 0 | F97: =E97 -> 0 | G97: 0 | H97: 0 | I97: 0 | J97: 0 | K97: 0 | L97: 0 | M97: 0 | N97: 0 | O97: 0 | P97: 0 | Q97: 0 | R97: 0 | S97: 0 | T97: 0 | U97: 0 | V97: 0 | W97: 0
A99: =title211 -> Base case project summary
A100: =title212 -> Summary of this project - Before Tax
B101: =title146 -> Operating Year | C101: =title167 -> Appraisal | D101: 1 | E101: 2 | F101: 3 | G101: 4 | H101: 5 | I101: 6 | J101: 7 | K101: 8 | L101: 9 | M101: 10 | N101: 11 | O101: 12 | P101: 13 | Q101: 14 | R101: 15 | S101: 16 | T101: 17 | U101: 18 | V101: 19 | W101: 20
B102: =title213 -> Total revenue (USD) | D102: =D15*1000*D18 -> 0 | E102: =E15*1000*E18 -> 0 | F102: 0 | G102: 0 | H102: 0 | I102: 0 | J102: 0 | K102: 0 | L102: 0 | M102: 0 | N102: 0 | O102: 0 | P102: 0 | Q102: 0 | R102: 0 | S102: 0 | T102: 0 | U102: 0 | V102: 0 | W102: 0
B103: =title165 -> Total capital cost (USD) | C103: =-(C34-C80) -> 0
B104: =title214 -> Total operating and maintenance cost (USD) | D104: =-D69+D63 -> 
B105: =title215 -> Loan payment (USD) | D105: =D84 -> 0 | E105: =E84 -> 0 | F105: 0 | G105: 0 | H105: 0 | I105: 0 | J105: 0 | K105: 0 | L105: 0 | M105: 0 | N105: 0 | O105: 0 | P105: 0 | Q105: 0 | R105: 0 | S105: 0 | T105: 0 | U105: 0 | V105: 0 | W105: 0
B106: =title216 -> Cash flow - before tax (USD) | C106: =SUM(C102:C105) -> 0
B107: =title217 -> Average revenue (USD)
A109: =title218 -> Summary of this project - After Tax
B110: =title146 -> Operating Year | C110: =title167 -> Appraisal | D110: 1 | E110: 2 | F110: 3 | G110: 4 | H110: 5 | I110: 6 | J110: 7 | K110: 8 | L110: 9 | M110: 10 | N110: 11 | O110: 12 | P110: 13 | Q110: 14 | R110: 15 | S110: 16 | T110: 17 | U110: 18 | V110: 19 | W110: 20
B111: =B102 -> Total revenue (USD) | C111: =C102 -> 0 | D111: =D102 -> 0 | E111: 0 | F111: 0 | G111: 0 | H111: 0 | I111: 0 | J111: 0 | K111: 0 | L111: 0 | M111: 0 | N111: 0 | O111: 0 | P111: 0 | Q111: 0 | R111: 0 | S111: 0 | T111: 0 | U111: 0 | V111: 0 | W111: 0
B112: =title214 -> Total operating and maintenance cost (USD) | D112: =-D69+D63 -> 
B113: =title215 -> Loan payment (USD) | D113: =$G$86 -> 0 | E113: =$G$86 -> 0 | F113: 0 | G113: 0 | H113: 0 | I113: 0 | J113: 0 | K113: 0 | L113: 0 | M113: 0 | N113: 0 | O113: 0 | P113: 0 | Q113: 0 | R113: 0 | S113: 0 | T113: 0 | U113: 0 | V113: 0 | W113: 0
B114: =title219 -> Depreciation of fixed costs (USD) | D114: =-D63 -> 0 | E114: =-E63 -> 0 | F114: 0 | G114: 0 | H114: 0 | I114: 0 | J114: 0 | K114: 0 | L114: 0 | M114: 0 | N114: 0 | O114: 0 | P114: 0 | Q114: 0 | R114: 0 | S114: 0 | T114: 0 | U114: 0 | V114: 0 | W114: 0
B115: =title220 -> Net profit - before tax (USD) for income tax calculation | C115: =SUM(C111:C114) -> 0 | D115: =SUM(D111:D114) ->  | E115: =SUM(E111:E114) -> 
B116: =title221 -> Income tax | D116: =IF(D115>0,-D91,0) -> 
B117: =title222 -> Cash flow - after tax (USD) | C117: =C103 -> 0 | D117: =D106+D116 ->  | E117: =E106+E116 ->  | W117: =W106+W116 -> 
A119: =title223 -> Cumulative value of Net Profit
B120: =title146 -> Operating Year | C120: =title167 -> Appraisal | D120: 1 | E120: 2 | F120: 3 | G120: 4 | H120: 5 | I120: 6 | J120: 7 | K120: 8 | L120: 9 | M120: 10 | N120: 11 | O120: 12 | P120: 13 | Q120: 14 | R120: 15 | S120: 16 | T120: 17 | U120: 18 | V120: 19 | W120: 20
B121: =title224 -> Cumulative value of net profit - before tax | C121: =C106 -> 0 | D121: =C121+(D106) -> 
B122: =title225 -> Cumulative value of net profit - after tax | C122: =C117 -> 0 | D122: =C122+(D117) -> 
A124: =title226 -> Financial analysis results
B126: =title227 -> Net present value (NPV) (USD) - before tax | C126: =NPV(C76,D106:W106)+C106 -> 
B127: =title228 -> Internal rate of return (IRR) (%) - before tax | C127: =IF(C126<0,title493,MIRR(C106:W106,C81,0%)) -> 
B128: =title229 -> Payback period (years) | C128: =title233 -> Please see Figure of the cumulative value of net profit - before tax
B131: =title230 -> Net present value (NPV) (USD) - after tax | C131: =NPV(C76,D117:W117)+C117 -> 
B132: =title231 -> Internal rate of return (IRR) (%) - after tax | C132: =IF(C131<0,title493,MIRR(C117:W117,C81,0%)) -> 
B133: =title229 -> Payback period (years) | C133: =title234 -> Please see Figure of the cumulative value of net profit - after tax
B134: =title232 -> Total Income tax payment of project lifetime | C134: =SUM(D116:W116) -> 

Sheet FA4_URBAN_RES1 (hidden)
B2: =title144 -> FINANCIAL ANALYSIS OF BIOMASS PELLETING - MANUAL
A4: =title145 -> Revenues of biomass pelleting system
B5: =title146 -> Operating Year | C5: 0 | D5: 1 | E5: 2 | F5: 3 | G5: 4 | H5: 5 | I5: 6 | J5: 7 | K5: 8 | L5: 9 | M5: 10 | N5: 11 | O5: 12 | P5: 13 | Q5: 14 | R5: 15 | S5: 16 | T5: 17 | U5: 18 | V5: 19 | W5: 20
B7: =title147 -> Pellet production capacity (tons per year) | C7: =COST_RES1!$F$29 -> 0 | D7: =C7 -> 0 | E7: =D7 -> 0 | F7: 0 | G7: 0 | H7: 0 | I7: 0 | J7: 0 | K7: 0 | L7: 0 | M7: 0 | N7: 0 | O7: 0 | P7: 0 | Q7: 0 | R7: 0 | S7: 0 | T7: 0 | U7: 0 | V7: 0 | W7: 0
B9: =title148 -> Efficiency % of pelleting machine | C9: =COST_RES1!$G$12 -> 0 | D9: =C9 -> 0 | E9: =D9 -> 0 | F9: 0 | G9: 0 | H9: 0 | I9: 0 | J9: 0 | K9: 0 | L9: 0 | M9: 0 | N9: 0 | O9: 0 | P9: 0 | Q9: 0 | R9: 0 | S9: 0 | T9: 0 | U9: 0 | V9: 0 | W9: 0
B11: =title149 -> Operating hours per year | C11: =COST_RES1!$G$28 -> 0 | D11: =C11 -> 0 | E11: =D11 -> 0 | F11: 0 | G11: 0 | H11: 0 | I11: 0 | J11: 0 | K11: 0 | L11: 0 | M11: 0 | N11: 0 | O11: 0 | P11: 0 | Q11: 0 | R11: 0 | S11: 0 | T11: 0 | U11: 0 | V11: 0 | W11: 0
B12: =title150 -> Capacity utilization factor | C12: =C$11/8760 -> 0 | D12: =D$11/8760 -> 0 | E12: =E$11/8760 -> 0 | F12: 0 | G12: 0 | H12: 0 | I12: 0 | J12: 0 | K12: 0 | L12: 0 | M12: 0 | N12: 0 | O12: 0 | P12: 0 | Q12: 0 | R12: 0 | S12: 0 | T12: 0 | U12: 0 | V12: 0 | W12: 0
B14: =title151 -> Pellet production (tons per year) | C14: =C$7 -> 0 | D14: =D$7 -> 0 | E14: 0 | F14: 0 | G14: 0 | H14: 0 | I14: 0 | J14: 0 | K14: 0 | L14: 0 | M14: 0 | N14: 0 | O14: 0 | P14: 0 | Q14: 0 | R14: 0 | S14: 0 | T14: 0 | U14: 0 | V14: 0 | W14: 0
B15: =title152 -> Total pellet sell to customers (tons per year) | C15: =SUM(C14:C14) -> 0 | D15: =SUM(D14:D14) -> 0 | E15: 0 | F15: 0 | G15: 0 | H15: 0 | I15: 0 | J15: 0 | K15: 0 | L15: 0 | M15: 0 | N15: 0 | O15: 0 | P15: 0 | Q15: 0 | R15: 0 | S15: 0 | T15: 0 | U15: 0 | V15: 0 | W15: 0
B17: =title153 -> Price of pellet (USD/kg) | C17: =SUM(C18:C18) -> 0 | D17: 0 | E17: 0 | F17: 0 | G17: 0 | H17: 0 | I17: 0 | J17: 0 | K17: 0 | L17: 0 | M17: 0 | N17: 0 | O17: 0 | P17: 0 | Q17: 0 | R17: 0 | S17: 0 | T17: 0 | U17: 0 | V17: 0 | W17: 0
B18: =title154 -> Market price of pellet pay by consumers (USD/kg) | C18: =+'Energy Demand'!G20 -> 0 | D18: =C18*(1+D19) -> 0 | E18: 0 | F18: 0 | G18: 0 | H18: 0 | I18: 0 | J18: 0 | K18: 0 | L18: 0 | M18: 0 | N18: 0 | O18: 0 | P18: 0 | Q18: 0 | R18: 0 | S18: 0 | T18: 0 | U18: 0 | V18: 0 | W18: 0
B19: =title155 -> Increasing rate of price of pellet (%) | C19: =+'Data entry needs'!$AD$114 -> 0 | D19: =C19 -> 0 | E19: =D19 -> 0 | F19: 0 | G19: 0 | H19: 0 | I19: 0 | J19: 0 | K19: 0 | L19: 0 | M19: 0 | N19: 0 | O19: 0 | P19: 0 | Q19: 0 | R19: 0 | S19: 0 | T19: 0 | U19: 0 | V19: 0 | W19: 0
B21: =title156 -> Total income of pellet (USD per year) | C21: =C15*C18*1000 -> 0 | D21: =D15*D18*1000 -> 0 | E21: 0 | F21: 0 | G21: 0 | H21: 0 | I21: 0 | J21: 0 | K21: 0 | L21: 0 | M21: 0 | N21: 0 | O21: 0 | P21: 0 | Q21: 0 | R21: 0 | S21: 0 | T21: 0 | U21: 0 | V21: 0 | W21: 0
B23: =title157 -> Lifespan of civil work (years) | C23: =COST_RES1!$E$61 -> 20
B24: =title158 -> Lifespan of pellet system (years) | C24: =COST_RES1!$E$60 -> 20
B25: =title159 -> Project life time (years) | C25: 20
A27: =title160 -> Capital and operating cost of biomass pellet system
C28: =title167 -> Appraisal | D28: =title168 -> Project lifetime | E28: =title169 -> Investment per year
B29: =title161 -> Direct capital cost (USD)
B30: =title162 -> Equipments | C30: =D30*E30 -> 0 | D30: =$C$25 -> 20 | E30: =COST_RES1!F60/D30 -> 0
B31: =title163 -> Building | C31: =D31*E31 -> 0 | D31: =$C$25 -> 20 | E31: =COST_RES1!F61/D31 -> 0
B32: =title164 -> Installation | C32: =D32*E32 -> 0 | D32: =$C$25 -> 20 | E32: =COST_RES1!F62/D32 -> 0
B33: =title165 -> Total capital cost (USD) | C33: =SUM(C30:C32) -> 0 | E33: =SUM(E30:E32) -> 0
B34: =title166 -> Capital cost (USD/kg of pellet) | C34: =C33/(C14*1000*C25) -> 
B37: =title146 -> Operating Year | C37: =title167 -> Appraisal | D37: 1 | E37: 2 | F37: 3 | G37: 4 | H37: 5 | I37: 6 | J37: 7 | K37: 8 | L37: 9 | M37: 10 | N37: 11 | O37: 12 | P37: 13 | Q37: 14 | R37: 15 | S37: 16 | T37: 17 | U37: 18 | V37: 19 | W37: 20
B38: =title170 -> Annual operating and maintenance cost
B39: =title171 -> Sub-total material cost (USD) | C39: =C40+C48+C50+C53 ->  | D39: =D40+D48+D50+D53 -> 
B40: =title172 -> Biomass cost (USD/year) | C40: =C41*C42 ->  | D40: =D41*D42 -> 
B41: =title46&" "&title53 -> Biomass consumption (ton per year) | C41: =C14/COST_RES1!$G$12 ->  | D41: =D14/COST_RES1!$G$12 ->  | E41: =E14/COST_RES1!$G$12 ->  | F41: =F14/COST_RES1!$G$12 ->  | G41: =G14/COST_RES1!$G$12 ->  | H41: =H14/COST_RES1!$G$12 ->  | I41: =I14/COST_RES1!$G$12 ->  | J41: =J14/COST_RES1!$G$12 ->  | K41: =K14/COST_RES1!$G$12 ->  | L41: =L14/COST_RES1!$G$12 ->  | M41: =M14/COST_RES1!$G$12 ->  | N41: =N14/COST_RES1!$G$12 ->  | O41: =O14/COST_RES1!$G$12 ->  | P41: =P14/COST_RES1!$G$12 ->  | Q41: =Q14/COST_RES1!$G$12 ->  | R41: =R14/COST_RES1!$G$12 ->  | S41: =S14/COST_RES1!$G$12 ->  | T41: =T14/COST_RES1!$G$12 ->  | U41: =U14/COST_RES1!$G$12 ->  | V41: =V14/COST_RES1!$G$12 ->  | W41: =W14/COST_RES1!$G$12 -> 
B42: =title173 -> Biomass price (USD/ton) | C42: =SUM(C43:C44) -> 0 | D42: =SUM(D43:D44) -> 0 | E42: 0 | F42: 0 | G42: 0 | H42: 0 | I42: 0 | J42: 0 | K42: 0 | L42: 0 | M42: 0 | N42: 0 | O42: 0 | P42: 0 | Q42: 0 | R42: 0 | S42: 0 | T42: 0 | U42: 0 | V42: 0 | W42: 0
B43: =title174 -> Biomass cost of collection (USD/ton) | C43: =COST_RES1!E33 -> 0 | D43: =C43*(1+D73+D74) -> 0 | E43: =D43*(1+E73+E74) -> 0 | F43: 0 | G43: 0 | H43: 0 | I43: 0 | J43: 0 | K43: 0 | L43: 0 | M43: 0 | N43: 0 | O43: 0 | P43: 0 | Q43: 0 | R43: 0 | S43: 0 | T43: 0 | U43: 0 | V43: 0 | W43: 0
B44: =title175 -> Biomass transportation cost (USD/ton) | C44: =C45*C46 -> 0 | D44: =D45*D46 -> 0 | E44: 0 | F44: 0 | G44: 0 | H44: 0 | I44: 0 | J44: 0 | K44: 0 | L44: 0 | M44: 0 | N44: 0 | O44: 0 | P44: 0 | Q44: 0 | R44: 0 | S44: 0 | T44: 0 | U44: 0 | V44: 0 | W44: 0
B45: =title176 -> Biomass from farm to plant (USD/ton/km) | C45: =COST_RES1!E48 -> 0 | D45: =C45*(1+D73+D74) -> 0 | E45: =D45*(1+E73+E74) -> 0 | F45: 0 | G45: 0 | H45: 0 | I45: 0 | J45: 0 | K45: 0 | L45: 0 | M45: 0 | N45: 0 | O45: 0 | P45: 0 | Q45: 0 | R45: 0 | S45: 0 | T45: 0 | U45: 0 | V45: 0 | W45: 0
B46: =title177 -> Transportation distant (km) | C46: =COST_RES1!F48 -> 0 | D46: =C46 -> 0 | E46: =D46 -> 0 | F46: 0 | G46: 0 | H46: 0 | I46: 0 | J46: 0 | K46: 0 | L46: 0 | M46: 0 | N46: 0 | O46: 0 | P46: 0 | Q46: 0 | R46: 0 | S46: 0 | T46: 0 | U46: 0 | V46: 0 | W46: 0
B48: =title178 -> Water cost (USD/year) | C48: =COST_RES1!G35 -> 0 | D48: =C48*(1+D73+D74) -> 0 | E48: =D48*(1+E73+E74) -> 0 | F48: 0 | G48: 0 | H48: 0 | I48: 0 | J48: 0 | K48: 0 | L48: 0 | M48: 0 | N48: 0 | O48: 0 | P48: 0 | Q48: 0 | R48: 0 | S48: 0 | T48: 0 | U48: 0 | V48: 0 | W48: 0
B50: =title179 -> Chemical cost (USD/year) | C50: =C51*C52 -> 0 | D50: =D51*D52 -> 0 | E50: 0 | F50: 0 | G50: 0 | H50: 0 | I50: 0 | J50: 0 | K50: 0 | L50: 0 | M50: 0 | N50: 0 | O50: 0 | P50: 0 | Q50: 0 | R50: 0 | S50: 0 | T50: 0 | U50: 0 | V50: 0 | W50: 0
B51: =title180 -> Chemical consumption (tons per year) | C51: =+COST_RES1!$F$34 -> 0 | D51: =+COST_RES1!$F$34 -> 0 | E51: =+COST_RES1!$F$34 -> 0 | F51: =+COST_RES1!$F$34 -> 0 | G51: =+COST_RES1!$F$34 -> 0 | H51: =+COST_RES1!$F$34 -> 0 | I51: =+COST_RES1!$F$34 -> 0 | J51: =+COST_RES1!$F$34 -> 0 | K51: =+COST_RES1!$F$34 -> 0 | L51: =+COST_RES1!$F$34 -> 0 | M51: =+COST_RES1!$F$34 -> 0 | N51: =+COST_RES1!$F$34 -> 0 | O51: =+COST_RES1!$F$34 -> 0 | P51: =+COST_RES1!$F$34 -> 0 | Q51: =+COST_RES1!$F$34 -> 0 | R51: =+COST_RES1!$F$34 -> 0 | S51: =+COST_RES1!$F$34 -> 0 | T51: =+COST_RES1!$F$34 -> 0 | U51: =+COST_RES1!$F$34 -> 0 | V51: =+COST_RES1!$F$34 -> 0 | W51: =+COST_RES1!$F$34 -> 0
B52: =title181 -> Chemical price (USD/ton) | C52: =+'Data entry needs'!$D$20 -> 0 | D52: =C52 -> 0 | E52: =D52 -> 0 | F52: 0 | G52: 0 | H52: 0 | I52: 0 | J52: 0 | K52: 0 | L52: 0 | M52: 0 | N52: 0 | O52: 0 | P52: 0 | Q52: 0 | R52: 0 | S52: 0 | T52: 0 | U52: 0 | V52: 0 | W52: 0
B53: =title182 -> Electricity cost (USD) | C53: =COST_RES1!G36 -> 0 | D53: =C53*(1+D73+D74) -> 0 | E53: =D53*(1+E73+E74) -> 0 | F53: 0 | G53: 0 | H53: 0 | I53: 0 | J53: 0 | K53: 0 | L53: 0 | M53: 0 | N53: 0 | O53: 0 | P53: 0 | Q53: 0 | R53: 0 | S53: 0 | T53: 0 | U53: 0 | V53: 0 | W53: 0
B55: =title183 -> Sub-total operating cost (USD) | C55: =C56+C58+C59 ->  | D55: =D56+D58+D59 -> 
B56: =title184 -> Labour cost (USD) | C56: =COST_RES1!G44 -> 0 | D56: =C56*(1+D57) -> 0 | E56: 0 | F56: 0 | G56: 0 | H56: 0 | I56: 0 | J56: 0 | K56: 0 | L56: 0 | M56: 0 | N56: 0 | O56: 0 | P56: 0 | Q56: 0 | R56: 0 | S56: 0 | T56: 0 | U56: 0 | V56: 0 | W56: 0
B57: =title185 -> Annual change in labour cost (%) | D57: =COST_RES1!M12 -> 0 | E57: =D57 -> 0 | F57: =E57 -> 0 | G57: 0 | H57: 0 | I57: 0 | J57: 0 | K57: 0 | L57: 0 | M57: 0 | N57: 0 | O57: 0 | P57: 0 | Q57: 0 | R57: 0 | S57: 0 | T57: 0 | U57: 0 | V57: 0 | W57: 0
B58: =title185 -> Annual change in labour cost (%) | C58: =COST_RES1!G70 -> 0 | D58: =C58 -> 0 | E58: =D58 -> 0 | F58: 0 | G58: 0 | H58: 0 | I58: 0 | J58: 0 | K58: 0 | L58: 0 | M58: 0 | N58: 0 | O58: 0 | P58: 0 | Q58: 0 | R58: 0 | S58: 0 | T58: 0 | U58: 0 | V58: 0 | W58: 0
B59: =title186 -> General and administrative cost | C59: =COST_RES1!G71 ->  | D59: =C59 -> 
B60: =title187 -> Sub-total maintenance cost (USD) | C60: =COST_RES1!G65 -> 0 | D60: =C60 -> 0 | E60: 0 | F60: 0 | G60: 0 | H60: 0 | I60: 0 | J60: 0 | K60: 0 | L60: 0 | M60: 0 | N60: 0 | O60: 0 | P60: 0 | Q60: 0 | R60: 0 | S60: 0 | T60: 0 | U60: 0 | V60: 0 | W60: 0
B62: =title188 -> Sub-total of annual fixed costs | C62: =+E33 -> 0 | D62: =C62 -> 0 | E62: =D62 -> 0 | F62: 0 | G62: 0 | H62: 0 | I62: 0 | J62: 0 | K62: 0 | L62: 0 | M62: 0 | N62: 0 | O62: 0 | P62: 0 | Q62: 0 | R62: 0 | S62: 0 | T62: 0 | U62: 0 | V62: 0 | W62: 0
B64: =title189 -> Sub-total of storage capacity | C64: =COST_RES1!G56 ->  | D64: =C64 ->  | E64: =D64 -> 
B66: =title190 -> Sub-total of pellet transportation to market | C66: =COST_RES1!G49 -> 0 | D66: =C66*(1+D73+D74) -> 0 | E66: =D66*(1+E73+E74) -> 0 | F66: 0 | G66: 0 | H66: 0 | I66: 0 | J66: 0 | K66: 0 | L66: 0 | M66: 0 | N66: 0 | O66: 0 | P66: 0 | Q66: 0 | R66: 0 | S66: 0 | T66: 0 | U66: 0 | V66: 0 | W66: 0
B68: =title191 -> Total operation and maintenance cost (USD) | C68: =C39+C55+C60+C62+C64+C66 ->  | D68: =D39+D55+D60+D62+D64+D66 -> 
B69: =title192 -> Operation and maintenance cost (USD/kg of pellet) without loan interest | C69: =C68/(C14*1000) -> 
A71: =title136 -> Financial parameters
B72: =title146 -> Operating Year | C72: =title167 -> Appraisal | D72: 1 | E72: 2 | F72: 3 | G72: 4 | H72: 5 | I72: 6 | J72: 7 | K72: 8 | L72: 9 | M72: 10 | N72: 11 | O72: 12 | P72: 13 | Q72: 14 | R72: 15 | S72: 16 | T72: 17 | U72: 18 | V72: 19 | W72: 20
B73: =title193 -> Annual change in raw material cost (%) | D73: 0 | E73: =D73 -> 0 | F73: =E73 -> 0 | G73: 0 | H73: 0 | I73: 0 | J73: 0 | K73: 0 | L73: 0 | M73: 0 | N73: 0 | O73: 0 | P73: 0 | Q73: 0 | R73: 0 | S73: 0 | T73: 0 | U73: 0 | V73: 0 | W73: 0
B74: =title194 -> Inflation rate (%) | D74: =COST_RES1!J12 -> 0 | E74: =D74 -> 0 | F74: 0 | G74: 0 | H74: 0 | I74: 0 | J74: 0 | K74: 0 | L74: 0 | M74: 0 | N74: 0 | O74: 0 | P74: 0 | Q74: 0 | R74: 0 | S74: 0 | T74: 0 | U74: 0 | V74: 0 | W74: 0
B75: =title137&" (%)" -> Discount rate (%) | C75: =COST_RES1!J9 -> 0
B76: =title138&" (%)" -> Loan ratio (%) | C76: =COST_RES1!J10 -> 0
B78: =title195 -> Loan without policy | C78: =title167 -> Appraisal | D78: 1 | E78: 2 | F78: 3 | G78: 4 | H78: 5 | I78: 6 | J78: 7 | K78: 8 | L78: 9 | M78: 10 | N78: 11 | O78: 12 | P78: 13 | Q78: 14 | R78: 15 | S78: 16 | T78: 17 | U78: 18 | V78: 19 | W78: 20
B79: =title196 -> Loan amount (USD) | C79: =C76*(C33) -> 0
B80: =title139&" (%)" -> Loan interest rate (%) | C80: =COST_RES1!J11 -> 0
B81: =title197 -> Loan term (years) | C81: =COST_RES1!M9 -> 0
B82: =title198 -> Loan payment (USD/month) | C82: =(PMT($C$80/12,(12*$C$81),$C$79)) -> 
B83: =title199 -> Loan payment (USD/year) | D83: =IF(D72<=$C$81,$C$82*12,0) -> 0 | E83: =IF(E72<$C$81,$C$82*12,IF(E72=$C$81,$C$82*12,0)) -> 0 | F83: =IF(F72<$C$81,$C$82*12,IF(F72=$C$81,$C$82*12,0)) -> 0 | G83: 0 | H83: 0 | I83: 0 | J83: 0 | K83: 0 | L83: 0 | M83: 0 | N83: 0 | O83: 0 | P83: 0 | Q83: 0 | R83: 0 | S83: 0 | T83: 0 | U83: 0 | V83: 0 | W83: 0
B84: =title200 -> Total loan payment (USD) | C84: =SUM(D83:W83) -> 0
B85: =title201 -> Loan interest payment (USD) | C85: =C84+C79 -> 0 | D85: =title202 -> Average loan interest payment for project lifetime | G85: =C85/C25 -> 0 | H85: =title203 -> USD per year
A87: =title204 -> Income tax analysis
B88: =title146 -> Operating Year | C88: =title167 -> Appraisal | D88: 1 | E88: 2 | F88: 3 | G88: 4 | H88: 5 | I88: 6 | J88: 7 | K88: 8 | L88: 9 | M88: 10 | N88: 11 | O88: 12 | P88: 13 | Q88: 14 | R88: 15 | S88: 16 | T88: 17 | U88: 18 | V88: 19 | W88: 20
B89: =title205 -> Effective income tax rate (%) | C89: =+'Data entry needs'!$AD$115 -> 0 | D89: =C89 -> 0 | E89: =D89 -> 0 | F89: 0 | G89: 0 | H89: 0 | I89: 0 | J89: 0 | K89: 0 | L89: 0 | M89: 0 | N89: 0 | O89: 0 | P89: 0 | Q89: 0 | R89: 0 | S89: 0 | T89: 0 | U89: 0 | V89: 0 | W89: 0
B90: =title206 -> Income tax (USD) | D90: =IF(D114<0,0,D89*D114) -> 
B91: =title207 -> Total income tax payment (USD) | C91: =SUM(D90:W90) ->  | D91: =title492 -> Average income tax payment | F91: =C91/C25 ->  | G91: =title203 -> USD per year
A93: =title208 -> Depreciation
B94: =title146 -> Operating Year | C94: =title167 -> Appraisal | D94: 1 | E94: 2 | F94: 3 | G94: 4 | H94: 5 | I94: 6 | J94: 7 | K94: 8 | L94: 9 | M94: 10 | N94: 11 | O94: 12 | P94: 13 | Q94: 14 | R94: 15 | S94: 16 | T94: 17 | U94: 18 | V94: 19 | W94: 20
B95: =title209 -> Depreciation method | C95: =title491 -> Straight-line
B96: =title210 -> Total depreciation (USD) | D96: =COST_RES1!G64 -> 0 | E96: =D96 -> 0 | F96: =E96 -> 0 | G96: 0 | H96: 0 | I96: 0 | J96: 0 | K96: 0 | L96: 0 | M96: 0 | N96: 0 | O96: 0 | P96: 0 | Q96: 0 | R96: 0 | S96: 0 | T96: 0 | U96: 0 | V96: 0 | W96: 0
A98: =title211 -> Base case project summary
A99: =title212 -> Summary of this project - Before Tax
B100: =title146 -> Operating Year | C100: =title167 -> Appraisal | D100: 1 | E100: 2 | F100: 3 | G100: 4 | H100: 5 | I100: 6 | J100: 7 | K100: 8 | L100: 9 | M100: 10 | N100: 11 | O100: 12 | P100: 13 | Q100: 14 | R100: 15 | S100: 16 | T100: 17 | U100: 18 | V100: 19 | W100: 20
B101: =title213 -> Total revenue (USD) | D101: =D15*1000*D18 -> 0 | E101: =E15*1000*E18 -> 0 | F101: 0 | G101: 0 | H101: 0 | I101: 0 | J101: 0 | K101: 0 | L101: 0 | M101: 0 | N101: 0 | O101: 0 | P101: 0 | Q101: 0 | R101: 0 | S101: 0 | T101: 0 | U101: 0 | V101: 0 | W101: 0
B102: =title165 -> Total capital cost (USD) | C102: =-(C33-C79) -> 0
B103: =title214 -> Total operating and maintenance cost (USD) | D103: =-D68+D62 -> 
B104: =title215 -> Loan payment (USD) | D104: =D83 -> 0 | E104: =E83 -> 0 | F104: 0 | G104: 0 | H104: 0 | I104: 0 | J104: 0 | K104: 0 | L104: 0 | M104: 0 | N104: 0 | O104: 0 | P104: 0 | Q104: 0 | R104: 0 | S104: 0 | T104: 0 | U104: 0 | V104: 0 | W104: 0
B105: =title216 -> Cash flow - before tax (USD) | C105: =SUM(C101:C104) -> 0
B106: =title217 -> Average revenue (USD)
A108: =title218 -> Summary of this project - After Tax
B109: =title146 -> Operating Year | C109: =title167 -> Appraisal | D109: 1 | E109: 2 | F109: 3 | G109: 4 | H109: 5 | I109: 6 | J109: 7 | K109: 8 | L109: 9 | M109: 10 | N109: 11 | O109: 12 | P109: 13 | Q109: 14 | R109: 15 | S109: 16 | T109: 17 | U109: 18 | V109: 19 | W109: 20
B110: =B101 -> Total revenue (USD) | C110: =C101 -> 0 | D110: =D101 -> 0 | E110: =E101 -> 0 | F110: 0 | G110: 0 | H110: 0 | I110: 0 | J110: 0 | K110: 0 | L110: 0 | M110: 0 | N110: 0 | O110: 0 | P110: 0 | Q110: 0 | R110: 0 | S110: 0 | T110: 0 | U110: 0 | V110: 0 | W110: 0
B111: =title214 -> Total operating and maintenance cost (USD) | D111: =-D68+D62 -> 
B112: =title215 -> Loan payment (USD) | D112: =$G$85 -> 0 | E112: =$G$85 -> 0 | F112: 0 | G112: 0 | H112: 0 | I112: 0 | J112: 0 | K112: 0 | L112: 0 | M112: 0 | N112: 0 | O112: 0 | P112: 0 | Q112: 0 | R112: 0 | S112: 0 | T112: 0 | U112: 0 | V112: 0 | W112: 0
B113: =title219 -> Depreciation of fixed costs (USD) | D113: =-D62 -> 0 | E113: =-E62 -> 0 | F113: 0 | G113: 0 | H113: 0 | I113: 0 | J113: 0 | K113: 0 | L113: 0 | M113: 0 | N113: 0 | O113: 0 | P113: 0 | Q113: 0 | R113: 0 | S113: 0 | T113: 0 | U113: 0 | V113: 0 | W113: 0
B114: =title220 -> Net profit - before tax (USD) for income tax calculation | C114: =SUM(C110:C113) -> 0 | D114: =SUM(D110:D113) ->  | E114: =SUM(E110:E113) -> 
B115: =title221 -> Income tax | D115: =IF(D114>0,-D90,0) -> 
B116: =title222 -> Cash flow - after tax (USD) | C116: =C102 -> 0 | D116: =D105+D115 ->  | E116: =E105+E115 ->  | W116: =W105+W115 -> 
A118: =title223 -> Cumulative value of Net Profit
B119: =title146 -> Operating Year | C119: =title167 -> Appraisal | D119: 1 | E119: 2 | F119: 3 | G119: 4 | H119: 5 | I119: 6 | J119: 7 | K119: 8 | L119: 9 | M119: 10 | N119: 11 | O119: 12 | P119: 13 | Q119: 14 | R119: 15 | S119: 16 | T119: 17 | U119: 18 | V119: 19 | W119: 20
B120: =title224 -> Cumulative value of net profit - before tax | C120: =C105 -> 0 | D120: =C120+(D105) -> 
B121: =title225 -> Cumulative value of net profit - after tax | C121: =C116 -> 0 | D121: =C121+(D116) -> 
A123: =title226 -> Financial analysis results
B125: =title227 -> Net present value (NPV) (USD) - before tax | C125: =NPV(C75,D105:W105)+C105 -> 
B126: =title228 -> Internal rate of return (IRR) (%) - before tax | C126: =IF(C125<0,title493,MIRR(C105:W105,C80,0%)) -> 
B127: =title229 -> Payback period (years) | C127: =title233 -> Please see Figure of the cumulative value of net profit - before tax
B130: =title230 -> Net present value (NPV) (USD) - after tax | C130: =NPV(C75,D116:W116)+C116 -> 
B131: =title231 -> Internal rate of return (IRR) (%) - after tax | C131: =IF(C130<0,title493,MIRR(C116:W116,$C$80,0%)) -> 
B132: =title229 -> Payback period (years) | C132: =title234 -> Please see Figure of the cumulative value of net profit - after tax
B133: =title232 -> Total Income tax payment of project lifetime | C133: =SUM(D115:W115) -> 

Sheet FA40_URBAN_RES1 (hidden)
B2: =title235 -> FINANCIAL ANALYSIS OF BIOMASS PELLETING 2 TON/HOUR
A4: =title145 -> Revenues of biomass pelleting system
B5: =title146 -> Operating Year | C5: 0 | D5: 1 | E5: 2 | F5: 3 | G5: 4 | H5: 5 | I5: 6 | J5: 7 | K5: 8 | L5: 9 | M5: 10 | N5: 11 | O5: 12 | P5: 13 | Q5: 14 | R5: 15 | S5: 16 | T5: 17 | U5: 18 | V5: 19 | W5: 20
B7: =title147 -> Pellet production capacity (tons per year) | C7: =COST_RES1!$H$29 -> 0 | D7: =C7 -> 0 | E7: =D7 -> 0 | F7: 0 | G7: 0 | H7: 0 | I7: 0 | J7: 0 | K7: 0 | L7: 0 | M7: 0 | N7: 0 | O7: 0 | P7: 0 | Q7: 0 | R7: 0 | S7: 0 | T7: 0 | U7: 0 | V7: 0 | W7: 0
B9: =title148 -> Efficiency % of pelleting machine | C9: =COST_RES1!$G$12 -> 0 | D9: =C9 -> 0 | E9: =D9 -> 0 | F9: 0 | G9: 0 | H9: 0 | I9: 0 | J9: 0 | K9: 0 | L9: 0 | M9: 0 | N9: 0 | O9: 0 | P9: 0 | Q9: 0 | R9: 0 | S9: 0 | T9: 0 | U9: 0 | V9: 0 | W9: 0
B11: =title149 -> Operating hours per year | C11: =COST_RES1!I28 -> 0 | D11: =C11 -> 0 | E11: =D11 -> 0 | F11: 0 | G11: 0 | H11: 0 | I11: 0 | J11: 0 | K11: 0 | L11: 0 | M11: 0 | N11: 0 | O11: 0 | P11: 0 | Q11: 0 | R11: 0 | S11: 0 | T11: 0 | U11: 0 | V11: 0 | W11: 0
B12: =title150 -> Capacity utilization factor | C12: =C11/8760 -> 0 | D12: =D11/8760 -> 0 | E12: 0 | F12: 0 | G12: 0 | H12: 0 | I12: 0 | J12: 0 | K12: 0 | L12: 0 | M12: 0 | N12: 0 | O12: 0 | P12: 0 | Q12: 0 | R12: 0 | S12: 0 | T12: 0 | U12: 0 | V12: 0 | W12: 0
B14: =title151 -> Pellet production (tons per year) | C14: =C7 -> 0 | D14: =D7 -> 0 | E14: 0 | F14: 0 | G14: 0 | H14: 0 | I14: 0 | J14: 0 | K14: 0 | L14: 0 | M14: 0 | N14: 0 | O14: 0 | P14: 0 | Q14: 0 | R14: 0 | S14: 0 | T14: 0 | U14: 0 | V14: 0 | W14: 0
B15: =title152 -> Total pellet sell to customers (tons per year) | C15: =SUM(C14:C14) -> 0 | D15: =SUM(D14:D14) -> 0 | E15: 0 | F15: 0 | G15: 0 | H15: 0 | I15: 0 | J15: 0 | K15: 0 | L15: 0 | M15: 0 | N15: 0 | O15: 0 | P15: 0 | Q15: 0 | R15: 0 | S15: 0 | T15: 0 | U15: 0 | V15: 0 | W15: 0
B17: =title153 -> Price of pellet (USD/kg) | C17: =SUM(C18:C18) -> 0 | D17: 0 | E17: 0 | F17: 0 | G17: 0 | H17: 0 | I17: 0 | J17: 0 | K17: 0 | L17: 0 | M17: 0 | N17: 0 | O17: 0 | P17: 0 | Q17: 0 | R17: 0 | S17: 0 | T17: 0 | U17: 0 | V17: 0 | W17: 0
B18: =title154 -> Market price of pellet pay by consumers (USD/kg) | C18: =+'Energy Demand'!G20 -> 0 | D18: =C18*(1+D19) -> 0 | E18: 0 | F18: 0 | G18: 0 | H18: 0 | I18: 0 | J18: 0 | K18: 0 | L18: 0 | M18: 0 | N18: 0 | O18: 0 | P18: 0 | Q18: 0 | R18: 0 | S18: 0 | T18: 0 | U18: 0 | V18: 0 | W18: 0
B19: =title155 -> Increasing rate of price of pellet (%) | C19: =+'Data entry needs'!$AD$114 -> 0 | D19: =C19 -> 0 | E19: =D19 -> 0 | F19: 0 | G19: 0 | H19: 0 | I19: 0 | J19: 0 | K19: 0 | L19: 0 | M19: 0 | N19: 0 | O19: 0 | P19: 0 | Q19: 0 | R19: 0 | S19: 0 | T19: 0 | U19: 0 | V19: 0 | W19: 0
B21: =title156 -> Total income of pellet (USD per year) | C21: =C15*C18*1000 -> 0 | D21: =D15*D18*1000 -> 0 | E21: 0 | F21: 0 | G21: 0 | H21: 0 | I21: 0 | J21: 0 | K21: 0 | L21: 0 | M21: 0 | N21: 0 | O21: 0 | P21: 0 | Q21: 0 | R21: 0 | S21: 0 | T21: 0 | U21: 0 | V21: 0 | W21: 0
B23: =title157 -> Lifespan of civil work (years) | C23: =COST_RES1!E61 -> 20
B24: =title158 -> Lifespan of pellet system (years) | C24: =COST_RES1!E60 -> 20
B25: =title159 -> Project life time (years) | C25: 20
A27: =title160 -> Capital and operating cost of biomass pellet system
C28: =title167 -> Appraisal | D28: =title168 -> Project lifetime | E28: =title169 -> Investment per year
B29: =title161 -> Direct capital cost (USD)
B30: =title162 -> Equipments | C30: =D30*E30 -> 0 | D30: =$C$25 -> 20 | E30: =COST_RES1!H60/D30 -> 0
B31: =title163 -> Building | C31: =D31*E31 -> 0 | D31: =$C$25 -> 20 | E31: =COST_RES1!H61/D31 -> 0
B32: =title164 -> Installation | C32: =D32*E32 -> 0 | D32: =$C$25 -> 20 | E32: =COST_RES1!H62/D32 -> 0
B33: =title165 -> Total capital cost (USD) | C33: =SUM(C30:C32) -> 0 | E33: =SUM(E30:E32) -> 0
B34: =title166 -> Capital cost (USD/kg of pellet) | C34: =C33/(C14*1000*C25) -> 
B37: =title146 -> Operating Year | C37: =title167 -> Appraisal | D37: 1 | E37: 2 | F37: 3 | G37: 4 | H37: 5 | I37: 6 | J37: 7 | K37: 8 | L37: 9 | M37: 10 | N37: 11 | O37: 12 | P37: 13 | Q37: 14 | R37: 15 | S37: 16 | T37: 17 | U37: 18 | V37: 19 | W37: 20
B38: =title170 -> Annual operating and maintenance cost
B39: =title171 -> Sub-total material cost (USD) | C39: =C40+C48+C50+C53 ->  | D39: =D40+D48+D50+D53 -> 
B40: =title172 -> Biomass cost (USD/year) | C40: =C41*C42 ->  | D40: =D41*D42 -> 
B41: =title46&" "&title53 -> Biomass consumption (ton per year) | C41: =C14/COST_RES1!$G$12 ->  | D41: =D14/COST_RES1!$G$12 ->  | E41: =E14/COST_RES1!$G$12 ->  | F41: =F14/COST_RES1!$G$12 ->  | G41: =G14/COST_RES1!$G$12 ->  | H41: =H14/COST_RES1!$G$12 ->  | I41: =I14/COST_RES1!$G$12 ->  | J41: =J14/COST_RES1!$G$12 ->  | K41: =K14/COST_RES1!$G$12 ->  | L41: =L14/COST_RES1!$G$12 ->  | M41: =M14/COST_RES1!$G$12 ->  | N41: =N14/COST_RES1!$G$12 ->  | O41: =O14/COST_RES1!$G$12 ->  | P41: =P14/COST_RES1!$G$12 ->  | Q41: =Q14/COST_RES1!$G$12 ->  | R41: =R14/COST_RES1!$G$12 ->  | S41: =S14/COST_RES1!$G$12 ->  | T41: =T14/COST_RES1!$G$12 ->  | U41: =U14/COST_RES1!$G$12 ->  | V41: =V14/COST_RES1!$G$12 ->  | W41: =W14/COST_RES1!$G$12 -> 
B42: =title173 -> Biomass price (USD/ton) | C42: =SUM(C43:C44) -> 0 | D42: =SUM(D43:D44) -> 0 | E42: 0 | F42: 0 | G42: 0 | H42: 0 | I42: 0 | J42: 0 | K42: 0 | L42: 0 | M42: 0 | N42: 0 | O42: 0 | P42: 0 | Q42: 0 | R42: 0 | S42: 0 | T42: 0 | U42: 0 | V42: 0 | W42: 0
B43: =title174 -> Biomass cost of collection (USD/ton) | C43: =COST_RES1!E33 -> 0 | D43: =C43*(1+D73+D74) -> 0 | E43: =D43*(1+E73+E74) -> 0 | F43: 0 | G43: 0 | H43: 0 | I43: 0 | J43: 0 | K43: 0 | L43: 0 | M43: 0 | N43: 0 | O43: 0 | P43: 0 | Q43: 0 | R43: 0 | S43: 0 | T43: 0 | U43: 0 | V43: 0 | W43: 0
B44: =title175 -> Biomass transportation cost (USD/ton) | C44: =C45*C46 -> 0 | D44: =D45*D46 -> 0 | E44: 0 | F44: 0 | G44: 0 | H44: 0 | I44: 0 | J44: 0 | K44: 0 | L44: 0 | M44: 0 | N44: 0 | O44: 0 | P44: 0 | Q44: 0 | R44: 0 | S44: 0 | T44: 0 | U44: 0 | V44: 0 | W44: 0
B45: =title176 -> Biomass from farm to plant (USD/ton/km) | C45: =COST_RES1!E48 -> 0 | D45: =C45*(1+D73+D74) -> 0 | E45: =D45*(1+E73+E74) -> 0 | F45: 0 | G45: 0 | H45: 0 | I45: 0 | J45: 0 | K45: 0 | L45: 0 | M45: 0 | N45: 0 | O45: 0 | P45: 0 | Q45: 0 | R45: 0 | S45: 0 | T45: 0 | U45: 0 | V45: 0 | W45: 0
B46: =title177 -> Transportation distant (km) | C46: =COST_RES1!H48 -> 0 | D46: =C46 -> 0 | E46: =D46 -> 0 | F46: 0 | G46: 0 | H46: 0 | I46: 0 | J46: 0 | K46: 0 | L46: 0 | M46: 0 | N46: 0 | O46: 0 | P46: 0 | Q46: 0 | R46: 0 | S46: 0 | T46: =S46 -> 0 | U46: =T46 -> 0 | V46: =U46 -> 0 | W46: =V46 -> 0
B48: =title178 -> Water cost (USD/year) | C48: =COST_RES1!I35 -> 0 | D48: =C48*(1+D73+D74) -> 0 | E48: =D48*(1+E73+E74) -> 0 | F48: 0 | G48: 0 | H48: 0 | I48: 0 | J48: 0 | K48: 0 | L48: 0 | M48: 0 | N48: 0 | O48: 0 | P48: 0 | Q48: 0 | R48: 0 | S48: 0 | T48: 0 | U48: 0 | V48: 0 | W48: 0
B50: =title179 -> Chemical cost (USD/year) | C50: =C51*C52 -> 0 | D50: =D51*D52 -> 0 | E50: 0 | F50: 0 | G50: 0 | H50: 0 | I50: 0 | J50: 0 | K50: 0 | L50: 0 | M50: 0 | N50: 0 | O50: 0 | P50: 0 | Q50: 0 | R50: 0 | S50: 0 | T50: 0 | U50: 0 | V50: 0 | W50: 0
B51: =title180 -> Chemical consumption (tons per year) | C51: =+COST_RES1!$H$34 -> 0 | D51: =+COST_RES1!$H$34 -> 0 | E51: =+COST_RES1!$H$34 -> 0 | F51: =+COST_RES1!$H$34 -> 0 | G51: =+COST_RES1!$H$34 -> 0 | H51: =+COST_RES1!$H$34 -> 0 | I51: =+COST_RES1!$H$34 -> 0 | J51: =+COST_RES1!$H$34 -> 0 | K51: =+COST_RES1!$H$34 -> 0 | L51: =+COST_RES1!$H$34 -> 0 | M51: =+COST_RES1!$H$34 -> 0 | N51: =+COST_RES1!$H$34 -> 0 | O51: =+COST_RES1!$H$34 -> 0 | P51: =+COST_RES1!$H$34 -> 0 | Q51: =+COST_RES1!$H$34 -> 0 | R51: =+COST_RES1!$H$34 -> 0 | S51: =+COST_RES1!$H$34 -> 0 | T51: =+COST_RES1!$H$34 -> 0 | U51: =+COST_RES1!$H$34 -> 0 | V51: =+COST_RES1!$H$34 -> 0 | W51: =+COST_RES1!$H$34 -> 0
B52: =title181 -> Chemical price (USD/ton) | C52: =+'Data entry needs'!$D$20 -> 0 | D52: =C52 -> 0 | E52: =D52 -> 0 | F52: 0 | G52: 0 | H52: 0 | I52: 0 | J52: 0 | K52: 0 | L52: 0 | M52: 0 | N52: 0 | O52: 0 | P52: 0 | Q52: 0 | R52: 0 | S52: 0 | T52: 0 | U52: 0 | V52: 0 | W52: 0
B53: =title182 -> Electricity cost (USD) | C53: =COST_RES1!I36 -> 0 | D53: =C53*(1+D73+D74) -> 0 | E53: =D53*(1+E73+E74) -> 0 | F53: 0 | G53: 0 | H53: 0 | I53: 0 | J53: 0 | K53: 0 | L53: 0 | M53: 0 | N53: 0 | O53: 0 | P53: 0 | Q53: 0 | R53: 0 | S53: 0 | T53: 0 | U53: 0 | V53: 0 | W53: 0
B55: =title183 -> Sub-total operating cost (USD) | C55: =C56+C58+C59 ->  | D55: =D56+D58+D59 -> 
B56: =title184 -> Labour cost (USD) | C56: =COST_RES1!I44 -> 0 | D56: =C56*(1+D57) -> 0 | E56: 0 | F56: 0 | G56: 0 | H56: 0 | I56: 0 | J56: 0 | K56: 0 | L56: 0 | M56: 0 | N56: 0 | O56: 0 | P56: 0 | Q56: 0 | R56: 0 | S56: 0 | T56: 0 | U56: 0 | V56: 0 | W56: 0
B57: =title185 -> Annual change in labour cost (%) | D57: =COST_RES1!M12 -> 0 | E57: =D57 -> 0 | F57: 0 | G57: 0 | H57: 0 | I57: 0 | J57: 0 | K57: 0 | L57: 0 | M57: 0 | N57: 0 | O57: 0 | P57: 0 | Q57: 0 | R57: 0 | S57: 0 | T57: 0 | U57: 0 | V57: 0 | W57: 0
B58: =title185 -> Annual change in labour cost (%) | C58: =COST_RES1!I70 -> 0 | D58: =C58 -> 0 | E58: =D58 -> 0 | F58: 0 | G58: 0 | H58: 0 | I58: 0 | J58: 0 | K58: 0 | L58: 0 | M58: 0 | N58: 0 | O58: 0 | P58: 0 | Q58: 0 | R58: 0 | S58: 0 | T58: 0 | U58: =T58 -> 0 | V58: 0 | W58: 0
B59: =title186 -> General and administrative cost | C59: =COST_RES1!I71 ->  | D59: =C59 -> 
B60: =title187 -> Sub-total maintenance cost (USD) | C60: =COST_RES1!I65 -> 0 | D60: =C60 -> 0 | E60: 0 | F60: 0 | G60: 0 | H60: 0 | I60: 0 | J60: 0 | K60: 0 | L60: 0 | M60: 0 | N60: 0 | O60: 0 | P60: 0 | Q60: 0 | R60: 0 | S60: 0 | T60: 0 | U60: 0 | V60: 0 | W60: 0
B62: =title188 -> Sub-total of annual fixed costs | C62: =+E33 -> 0 | D62: =C62 -> 0 | E62: =D62 -> 0 | F62: 0 | G62: 0 | H62: 0 | I62: 0 | J62: 0 | K62: 0 | L62: 0 | M62: 0 | N62: 0 | O62: 0 | P62: 0 | Q62: 0 | R62: 0 | S62: 0 | T62: 0 | U62: 0 | V62: 0 | W62: 0
B64: =title189 -> Sub-total of storage capacity | C64: =COST_RES1!I56 ->  | D64: =C64 ->  | E64: =D64 -> 
B66: =title190 -> Sub-total of pellet transportation to market | C66: =COST_RES1!I49 -> 0 | D66: =C66*(1+D73+D74) -> 0 | E66: =D66*(1+E73+E74) -> 0 | F66: 0 | G66: 0 | H66: 0 | I66: 0 | J66: 0 | K66: 0 | L66: 0 | M66: 0 | N66: 0 | O66: 0 | P66: 0 | Q66: 0 | R66: 0 | S66: 0 | T66: 0 | U66: 0 | V66: 0 | W66: 0
B68: =title191 -> Total operation and maintenance cost (USD) | C68: =C39+C55+C60+C62+C64+C66 ->  | D68: =D39+D55+D60+D62+D64+D66 -> 
B69: =title192 -> Operation and maintenance cost (USD/kg of pellet) without loan interest | C69: =C68/(C14*1000) -> 
A71: =title136 -> Financial parameters
B72: =title146 -> Operating Year | C72: =title167 -> Appraisal | D72: 1 | E72: 2 | F72: 3 | G72: 4 | H72: 5 | I72: 6 | J72: 7 | K72: 8 | L72: 9 | M72: 10 | N72: 11 | O72: 12 | P72: 13 | Q72: 14 | R72: 15 | S72: 16 | T72: 17 | U72: 18 | V72: 19 | W72: 20
B73: =title193 -> Annual change in raw material cost (%) | D73: 0 | E73: =D73 -> 0 | F73: =E73 -> 0 | G73: 0 | H73: 0 | I73: 0 | J73: 0 | K73: 0 | L73: 0 | M73: 0 | N73: 0 | O73: 0 | P73: 0 | Q73: 0 | R73: 0 | S73: 0 | T73: 0 | U73: 0 | V73: =U73 -> 0 | W73: =V73 -> 0
B74: =title194 -> Inflation rate (%) | D74: =COST_RES1!J12 -> 0 | E74: =D74 -> 0 | F74: 0 | G74: 0 | H74: 0 | I74: 0 | J74: 0 | K74: 0 | L74: 0 | M74: 0 | N74: 0 | O74: 0 | P74: 0 | Q74: 0 | R74: 0 | S74: 0 | T74: 0 | U74: 0 | V74: =U74 -> 0 | W74: =V74 -> 0
B75: =title137&" (%)" -> Discount rate (%) | C75: =COST_RES1!J9 -> 0
B76: =title138&" (%)" -> Loan ratio (%) | C76: =COST_RES1!J10 -> 0
B78: =title195 -> Loan without policy | C78: =title167 -> Appraisal | D78: 1 | E78: 2 | F78: 3 | G78: 4 | H78: 5 | I78: 6 | J78: 7 | K78: 8 | L78: 9 | M78: 10 | N78: 11 | O78: 12 | P78: 13 | Q78: 14 | R78: 15 | S78: 16 | T78: 17 | U78: 18 | V78: 19 | W78: 20
B79: =title196 -> Loan amount (USD) | C79: =C76*(C33) -> 0
B80: =title139&" (%)" -> Loan interest rate (%) | C80: =COST_RES1!J11 -> 0
B81: =title197 -> Loan term (years) | C81: =COST_RES1!M9 -> 0
B82: =title198 -> Loan payment (USD/month) | C82: =(PMT($C$80/12,(12*$C$81),$C$79)) -> 
B83: =title199 -> Loan payment (USD/year) | D83: =IF(D72<=$C$81,$C$82*12,0) -> 0 | E83: =IF(E72<$C$81,$C$82*12,IF(E72=$C$81,$C$82*12,0)) -> 0 | F83: =IF(F72<$C$81,$C$82*12,IF(F72=$C$81,$C$82*12,0)) -> 0 | G83: 0 | H83: 0 | I83: 0 | J83: 0 | K83: 0 | L83: 0 | M83: 0 | N83: 0 | O83: 0 | P83: 0 | Q83: 0 | R83: 0 | S83: 0 | T83: 0 | U83: 0 | V83: 0 | W83: 0
B84: =title200 -> Total loan payment (USD) | C84: =SUM(D83:W83) -> 0
B85: =title201 -> Loan interest payment (USD) | C85: =C84+C79 -> 0 | D85: =title202 -> Average loan interest payment for project lifetime | G85: =C85/C25 -> 0 | H85: =title203 -> USD per year
A87: =title204 -> Income tax analysis
B88: =title146 -> Operating Year | C88: =title167 -> Appraisal | D88: 1 | E88: 2 | F88: 3 | G88: 4 | H88: 5 | I88: 6 | J88: 7 | K88: 8 | L88: 9 | M88: 10 | N88: 11 | O88: 12 | P88: 13 | Q88: 14 | R88: 15 | S88: 16 | T88: 17 | U88: 18 | V88: 19 | W88: 20
B89: =title205 -> Effective income tax rate (%) | C89: =+'Data entry needs'!$AD$115 -> 0 | D89: =C89 -> 0 | E89: =D89 -> 0 | F89: 0 | G89: 0 | H89: 0 | I89: 0 | J89: 0 | K89: 0 | L89: 0 | M89: 0 | N89: 0 | O89: 0 | P89: 0 | Q89: 0 | R89: 0 | S89: 0 | T89: 0 | U89: 0 | V89: 0 | W89: 0
B90: =title206 -> Income tax (USD) | D90: =IF(D114<0,0,D89*D114) -> 
B91: =title207 -> Total income tax payment (USD) | C91: =SUM(D90:W90) ->  | D91: =title492 -> Average income tax payment | F91: =C91/C25 ->  | G91: =title203 -> USD per year
A93: =title208 -> Depreciation
B94: =title146 -> Operating Year | C94: =title167 -> Appraisal | D94: 1 | E94: 2 | F94: 3 | G94: 4 | H94: 5 | I94: 6 | J94: 7 | K94: 8 | L94: 9 | M94: 10 | N94: 11 | O94: 12 | P94: 13 | Q94: 14 | R94: 15 | S94: 16 | T94: 17 | U94: 18 | V94: 19 | W94: 20
B95: =title209 -> Depreciation method | C95: =title491 -> Straight-line
B96: =title210 -> Total depreciation (USD) | D96: =COST_RES1!I64 -> 0 | E96: =D96 -> 0 | F96: =E96 -> 0 | G96: 0 | H96: 0 | I96: 0 | J96: 0 | K96: 0 | L96: 0 | M96: 0 | N96: 0 | O96: 0 | P96: 0 | Q96: 0 | R96: 0 | S96: 0 | T96: 0 | U96: 0 | V96: 0 | W96: 0
A98: =title211 -> Base case project summary
A99: =title212 -> Summary of this project - Before Tax
B100: =title146 -> Operating Year | C100: =title167 -> Appraisal | D100: 1 | E100: 2 | F100: 3 | G100: 4 | H100: 5 | I100: 6 | J100: 7 | K100: 8 | L100: 9 | M100: 10 | N100: 11 | O100: 12 | P100: 13 | Q100: 14 | R100: 15 | S100: 16 | T100: 17 | U100: 18 | V100: 19 | W100: 20
B101: =title213 -> Total revenue (USD) | D101: =D15*1000*D18 -> 0 | E101: =E15*1000*E18 -> 0 | F101: 0 | G101: 0 | H101: 0 | I101: 0 | J101: 0 | K101: 0 | L101: 0 | M101: 0 | N101: 0 | O101: 0 | P101: 0 | Q101: 0 | R101: 0 | S101: 0 | T101: 0 | U101: 0 | V101: 0 | W101: 0
B102: =title165 -> Total capital cost (USD) | C102: =-(C33-C79) -> 0
B103: =title214 -> Total operating and maintenance cost (USD) | D103: =-D68+D62 -> 
B104: =title215 -> Loan payment (USD) | D104: =D83 -> 0 | E104: =E83 -> 0 | F104: 0 | G104: 0 | H104: 0 | I104: 0 | J104: 0 | K104: 0 | L104: 0 | M104: 0 | N104: 0 | O104: 0 | P104: 0 | Q104: 0 | R104: 0 | S104: 0 | T104: 0 | U104: 0 | V104: 0 | W104: 0
B105: =title216 -> Cash flow - before tax (USD) | C105: =SUM(C101:C104) -> 0
B106: =title217 -> Average revenue (USD)
A108: =title218 -> Summary of this project - After Tax
B109: =title146 -> Operating Year | C109: =title167 -> Appraisal | D109: 1 | E109: 2 | F109: 3 | G109: 4 | H109: 5 | I109: 6 | J109: 7 | K109: 8 | L109: 9 | M109: 10 | N109: 11 | O109: 12 | P109: 13 | Q109: 14 | R109: 15 | S109: 16 | T109: 17 | U109: 18 | V109: 19 | W109: 20
B110: =B101 -> Total revenue (USD) | C110: =C101 -> 0 | D110: =D101 -> 0 | E110: 0 | F110: 0 | G110: 0 | H110: 0 | I110: 0 | J110: 0 | K110: 0 | L110: 0 | M110: 0 | N110: 0 | O110: 0 | P110: 0 | Q110: 0 | R110: 0 | S110: 0 | T110: 0 | U110: 0 | V110: 0 | W110: 0
B111: =title214 -> Total operating and maintenance cost (USD) | D111: =-D68+D62 -> 
B112: =title215 -> Loan payment (USD) | D112: =$G$85 -> 0 | E112: =$G$85 -> 0 | F112: 0 | G112: 0 | H112: 0 | I112: 0 | J112: 0 | K112: 0 | L112: 0 | M112: 0 | N112: 0 | O112: 0 | P112: 0 | Q112: 0 | R112: 0 | S112: 0 | T112: 0 | U112: 0 | V112: 0 | W112: 0
B113: =title219 -> Depreciation of fixed costs (USD) | D113: =-D62 -> 0 | E113: =-E62 -> 0 | F113: 0 | G113: 0 | H113: 0 | I113: 0 | J113: 0 | K113: 0 | L113: 0 | M113: 0 | N113: 0 | O113: 0 | P113: 0 | Q113: 0 | R113: 0 | S113: 0 | T113: 0 | U113: 0 | V113: 0 | W113: 0
B114: =title220 -> Net profit - before tax (USD) for income tax calculation | C114: =SUM(C110:C113) -> 0 | D114: =SUM(D110:D113) ->  | E114: =SUM(E110:E113) -> 
B115: =title221 -> Income tax | D115: =IF(D114>0,-D90,0) -> 
B116: =title222 -> Cash flow - after tax (USD) | C116: =C102 -> 0 | D116: =D105+D115 ->  | E116: =E105+E115 ->  | W116: =W105+W115 -> 
A118: =title223 -> Cumulative value of Net Profit
B119: =title146 -> Operating Year | C119: =title167 -> Appraisal | D119: 1 | E119: 2 | F119: 3 | G119: 4 | H119: 5 | I119: 6 | J119: 7 | K119: 8 | L119: 9 | M119: 10 | N119: 11 | O119: 12 | P119: 13 | Q119: 14 | R119: 15 | S119: 16 | T119: 17 | U119: 18 | V119: 19 | W119: 20
B120: =title224 -> Cumulative value of net profit - before tax | C120: =C105 -> 0 | D120: =C120+(D105) -> 
B121: =title225 -> Cumulative value of net profit - after tax | C121: =C116 -> 0 | D121: =C121+(D116) -> 
A123: =title226 -> Financial analysis results
B125: =title227 -> Net present value (NPV) (USD) - before tax | C125: =NPV(C75,D105:W105)+C105 -> 
B126: =title228 -> Internal rate of return (IRR) (%) - before tax | C126: =IF(C125<0,title493,MIRR(C105:W105,C80,0%)) -> 
B127: =title229 -> Payback period (years) | C127: =title233 -> Please see Figure of the cumulative value of net profit - before tax
B130: =title230 -> Net present value (NPV) (USD) - after tax | C130: =NPV(C75,D116:W116)+C116 -> 
B131: =title231 -> Internal rate of return (IRR) (%) - after tax | C131: =IF(C130<0,title493,MIRR(C116:W116,$C$80,0%)) -> 
B132: =title229 -> Payback period (years) | C132: =title234 -> Please see Figure of the cumulative value of net profit - after tax
B133: =title232 -> Total Income tax payment of project lifetime | C133: =SUM(D115:W115) -> 

Sheet FA400_URBAN_RES1 (hidden)
B2: =title236 -> FINANCIAL ANALYSIS OF BIOMASS PELLETING 6 TON/HOUR
A4: =title145 -> Revenues of biomass pelleting system
B5: =title146 -> Operating Year | C5: 0 | D5: 1 | E5: 2 | F5: 3 | G5: 4 | H5: 5 | I5: 6 | J5: 7 | K5: 8 | L5: 9 | M5: 10 | N5: 11 | O5: 12 | P5: 13 | Q5: 14 | R5: 15 | S5: 16 | T5: 17 | U5: 18 | V5: 19 | W5: 20
B7: =title147 -> Pellet production capacity (tons per year) | C7: =COST_RES1!J29 -> 0 | D7: =C7 -> 0 | E7: =D7 -> 0 | F7: 0 | G7: 0 | H7: 0 | I7: 0 | J7: 0 | K7: 0 | L7: 0 | M7: 0 | N7: 0 | O7: 0 | P7: 0 | Q7: 0 | R7: 0 | S7: 0 | T7: 0 | U7: 0 | V7: 0 | W7: 0
B9: =title148 -> Efficiency % of pelleting machine | C9: =COST_RES1!G12 -> 0 | D9: =C9 -> 0 | E9: =D9 -> 0 | F9: 0 | G9: 0 | H9: 0 | I9: 0 | J9: 0 | K9: 0 | L9: 0 | M9: 0 | N9: 0 | O9: 0 | P9: 0 | Q9: 0 | R9: 0 | S9: 0 | T9: 0 | U9: 0 | V9: 0 | W9: 0
B11: =title149 -> Operating hours per year | C11: =COST_RES1!K28 -> 0 | D11: =C11 -> 0 | E11: =D11 -> 0 | F11: 0 | G11: 0 | H11: 0 | I11: 0 | J11: 0 | K11: 0 | L11: 0 | M11: 0 | N11: 0 | O11: 0 | P11: 0 | Q11: 0 | R11: 0 | S11: 0 | T11: 0 | U11: 0 | V11: 0 | W11: 0
B12: =title150 -> Capacity utilization factor | C12: =C11/8760 -> 0 | D12: =D11/8760 -> 0 | E12: 0 | F12: 0 | G12: 0 | H12: 0 | I12: 0 | J12: 0 | K12: 0 | L12: 0 | M12: 0 | N12: 0 | O12: 0 | P12: 0 | Q12: 0 | R12: 0 | S12: 0 | T12: 0 | U12: 0 | V12: 0 | W12: 0
B14: =title151 -> Pellet production (tons per year) | C14: =C7 -> 0 | D14: =D7 -> 0 | E14: 0 | F14: 0 | G14: 0 | H14: 0 | I14: 0 | J14: 0 | K14: 0 | L14: 0 | M14: 0 | N14: 0 | O14: 0 | P14: 0 | Q14: 0 | R14: 0 | S14: 0 | T14: 0 | U14: 0 | V14: 0 | W14: 0
B15: =title152 -> Total pellet sell to customers (tons per year) | C15: =SUM(C14:C14) -> 0 | D15: =SUM(D14:D14) -> 0 | E15: 0 | F15: 0 | G15: 0 | H15: 0 | I15: 0 | J15: 0 | K15: 0 | L15: 0 | M15: 0 | N15: 0 | O15: 0 | P15: 0 | Q15: 0 | R15: 0 | S15: 0 | T15: 0 | U15: 0 | V15: 0 | W15: 0
B17: =title153 -> Price of pellet (USD/kg) | C17: =SUM(C18:C18) -> 0 | D17: 0 | E17: 0 | F17: 0 | G17: 0 | H17: 0 | I17: 0 | J17: 0 | K17: 0 | L17: 0 | M17: 0 | N17: 0 | O17: 0 | P17: 0 | Q17: 0 | R17: 0 | S17: 0 | T17: 0 | U17: 0 | V17: 0 | W17: 0
B18: =title154 -> Market price of pellet pay by consumers (USD/kg) | C18: =+'Energy Demand'!G20 -> 0 | D18: =C18*(1+D19) -> 0 | E18: 0 | F18: 0 | G18: 0 | H18: 0 | I18: 0 | J18: 0 | K18: 0 | L18: 0 | M18: 0 | N18: 0 | O18: 0 | P18: 0 | Q18: 0 | R18: 0 | S18: 0 | T18: 0 | U18: 0 | V18: 0 | W18: 0
B19: =title155 -> Increasing rate of price of pellet (%) | C19: =+'Data entry needs'!$AD$114 -> 0 | D19: =C19 -> 0 | E19: =D19 -> 0 | F19: 0 | G19: 0 | H19: 0 | I19: 0 | J19: 0 | K19: 0 | L19: 0 | M19: 0 | N19: 0 | O19: 0 | P19: 0 | Q19: 0 | R19: 0 | S19: 0 | T19: 0 | U19: 0 | V19: 0 | W19: 0
B21: =title156 -> Total income of pellet (USD per year) | C21: =C15*C18*1000 -> 0 | D21: =D15*D18*1000 -> 0 | E21: 0 | F21: 0 | G21: 0 | H21: 0 | I21: 0 | J21: 0 | K21: 0 | L21: 0 | M21: 0 | N21: 0 | O21: 0 | P21: 0 | Q21: 0 | R21: 0 | S21: 0 | T21: 0 | U21: 0 | V21: 0 | W21: 0
B23: =title157 -> Lifespan of civil work (years) | C23: =COST_RES1!E61 -> 20
B24: =title158 -> Lifespan of pellet system (years) | C24: =COST_RES1!E60 -> 20
B25: =title159 -> Project life time (years) | C25: 20
A27: =title160 -> Capital and operating cost of biomass pellet system
C29: =title167 -> Appraisal | D29: =title168 -> Project lifetime | E29: =title169 -> Investment per year
B30: =title161 -> Direct capital cost (USD)
B31: =title162 -> Equipments | C31: =D31*E31 -> 0 | D31: =$C$25 -> 20 | E31: =COST_RES1!J60/D31 -> 0
B32: =title163 -> Building | C32: =D32*E32 -> 0 | D32: =$C$25 -> 20 | E32: =COST_RES1!J61/D32 -> 0
B33: =title164 -> Installation | C33: =D33*E33 -> 0 | D33: =$C$25 -> 20 | E33: =COST_RES1!J62/D33 -> 0
B34: =title165 -> Total capital cost (USD) | C34: =SUM(C31:C33) -> 0 | E34: =SUM(E31:E33) -> 0
B35: =title166 -> Capital cost (USD/kg of pellet) | C35: =C34/(C14*1000*C25) -> 
B38: =title146 -> Operating Year | C38: =title167 -> Appraisal | D38: 1 | E38: 2 | F38: 3 | G38: 4 | H38: 5 | I38: 6 | J38: 7 | K38: 8 | L38: 9 | M38: 10 | N38: 11 | O38: 12 | P38: 13 | Q38: 14 | R38: 15 | S38: 16 | T38: 17 | U38: 18 | V38: 19 | W38: 20
B39: =title170 -> Annual operating and maintenance cost
B40: =title171 -> Sub-total material cost (USD) | C40: =C41+C49+C51+C54 ->  | D40: =D41+D49+D51+D54 -> 
B41: =title172 -> Biomass cost (USD/year) | C41: =C42*C43 ->  | D41: =D42*D43 -> 
B42: =title46&" "&title53 -> Biomass consumption (ton per year) | C42: =C14/COST_RES1!$G$12 ->  | D42: =D14/COST_RES1!$G$12 ->  | E42: =E14/COST_RES1!$G$12 ->  | F42: =F14/COST_RES1!$G$12 ->  | G42: =G14/COST_RES1!$G$12 ->  | H42: =H14/COST_RES1!$G$12 ->  | I42: =I14/COST_RES1!$G$12 ->  | J42: =J14/COST_RES1!$G$12 ->  | K42: =K14/COST_RES1!$G$12 ->  | L42: =L14/COST_RES1!$G$12 ->  | M42: =M14/COST_RES1!$G$12 ->  | N42: =N14/COST_RES1!$G$12 ->  | O42: =O14/COST_RES1!$G$12 ->  | P42: =P14/COST_RES1!$G$12 ->  | Q42: =Q14/COST_RES1!$G$12 ->  | R42: =R14/COST_RES1!$G$12 ->  | S42: =S14/COST_RES1!$G$12 ->  | T42: =T14/COST_RES1!$G$12 ->  | U42: =U14/COST_RES1!$G$12 ->  | V42: =V14/COST_RES1!$G$12 ->  | W42: =W14/COST_RES1!$G$12 -> 
B43: =title173 -> Biomass price (USD/ton) | C43: =SUM(C44:C45) -> 0 | D43: =SUM(D44:D45) -> 0 | E43: 0 | F43: 0 | G43: 0 | H43: 0 | I43: 0 | J43: 0 | K43: 0 | L43: 0 | M43: 0 | N43: 0 | O43: 0 | P43: 0 | Q43: 0 | R43: 0 | S43: 0 | T43: 0 | U43: 0 | V43: 0 | W43: 0
B44: =title174 -> Biomass cost of collection (USD/ton) | C44: =COST_RES1!E33 -> 0 | D44: =C44*(1+D74+D75) -> 0 | E44: =D44*(1+E74+E75) -> 0 | F44: 0 | G44: 0 | H44: 0 | I44: 0 | J44: 0 | K44: 0 | L44: 0 | M44: 0 | N44: 0 | O44: 0 | P44: 0 | Q44: 0 | R44: 0 | S44: 0 | T44: 0 | U44: 0 | V44: 0 | W44: 0
B45: =title175 -> Biomass transportation cost (USD/ton) | C45: =C46*C47 -> 0 | D45: =D46*D47 -> 0 | E45: 0 | F45: 0 | G45: 0 | H45: 0 | I45: 0 | J45: 0 | K45: 0 | L45: 0 | M45: 0 | N45: 0 | O45: 0 | P45: 0 | Q45: 0 | R45: 0 | S45: 0 | T45: 0 | U45: 0 | V45: 0 | W45: 0
B46: =title176 -> Biomass from farm to plant (USD/ton/km) | C46: =COST_RES1!E48 -> 0 | D46: =C46*(1+D74+D75) -> 0 | E46: =D46*(1+E74+E75) -> 0 | F46: 0 | G46: 0 | H46: 0 | I46: 0 | J46: 0 | K46: 0 | L46: 0 | M46: 0 | N46: 0 | O46: 0 | P46: 0 | Q46: 0 | R46: 0 | S46: 0 | T46: 0 | U46: 0 | V46: 0 | W46: 0
B47: =title177 -> Transportation distant (km) | C47: =COST_RES1!J48 -> 0 | D47: =C47 -> 0 | E47: =D47 -> 0 | F47: 0 | G47: 0 | H47: 0 | I47: 0 | J47: 0 | K47: 0 | L47: 0 | M47: 0 | N47: 0 | O47: 0 | P47: 0 | Q47: 0 | R47: 0 | S47: 0 | T47: =S47 -> 0 | U47: =T47 -> 0 | V47: =U47 -> 0 | W47: =V47 -> 0
B49: =title178 -> Water cost (USD/year) | C49: =COST_RES1!K35 -> 0 | D49: =C49*(1+D74+D75) -> 0 | E49: =D49*(1+E74+E75) -> 0 | F49: 0 | G49: 0 | H49: 0 | I49: 0 | J49: 0 | K49: 0 | L49: 0 | M49: 0 | N49: 0 | O49: 0 | P49: 0 | Q49: 0 | R49: 0 | S49: 0 | T49: 0 | U49: 0 | V49: 0 | W49: 0
B51: =title179 -> Chemical cost (USD/year) | C51: =C52*C53 -> 0 | D51: =D52*D53 -> 0 | E51: 0 | F51: 0 | G51: 0 | H51: 0 | I51: 0 | J51: 0 | K51: 0 | L51: 0 | M51: 0 | N51: 0 | O51: 0 | P51: 0 | Q51: 0 | R51: 0 | S51: 0 | T51: 0 | U51: 0 | V51: 0 | W51: 0
B52: =title180 -> Chemical consumption (tons per year) | C52: =+COST_RES1!$J$34 -> 0 | D52: =+COST_RES1!$J$34 -> 0 | E52: =+COST_RES1!$J$34 -> 0 | F52: =+COST_RES1!$J$34 -> 0 | G52: =+COST_RES1!$J$34 -> 0 | H52: =+COST_RES1!$J$34 -> 0 | I52: =+COST_RES1!$J$34 -> 0 | J52: =+COST_RES1!$J$34 -> 0 | K52: =+COST_RES1!$J$34 -> 0 | L52: =+COST_RES1!$J$34 -> 0 | M52: =+COST_RES1!$J$34 -> 0 | N52: =+COST_RES1!$J$34 -> 0 | O52: =+COST_RES1!$J$34 -> 0 | P52: =+COST_RES1!$J$34 -> 0 | Q52: =+COST_RES1!$J$34 -> 0 | R52: =+COST_RES1!$J$34 -> 0 | S52: =+COST_RES1!$J$34 -> 0 | T52: =+COST_RES1!$J$34 -> 0 | U52: =+COST_RES1!$J$34 -> 0 | V52: =+COST_RES1!$J$34 -> 0 | W52: =+COST_RES1!$J$34 -> 0
B53: =title181 -> Chemical price (USD/ton) | C53: =+'Data entry needs'!$D$20 -> 0 | D53: =C53 -> 0 | E53: =D53 -> 0 | F53: 0 | G53: 0 | H53: 0 | I53: 0 | J53: 0 | K53: 0 | L53: 0 | M53: 0 | N53: 0 | O53: 0 | P53: 0 | Q53: 0 | R53: 0 | S53: 0 | T53: 0 | U53: 0 | V53: 0 | W53: 0
B54: =title182 -> Electricity cost (USD) | C54: =COST_RES1!K36 -> 0 | D54: =C54*(1+D74+D75) -> 0 | E54: =D54*(1+E74+E75) -> 0 | F54: 0 | G54: 0 | H54: 0 | I54: 0 | J54: 0 | K54: 0 | L54: 0 | M54: 0 | N54: 0 | O54: 0 | P54: 0 | Q54: 0 | R54: 0 | S54: 0 | T54: 0 | U54: 0 | V54: 0 | W54: 0
B56: =title183 -> Sub-total operating cost (USD) | C56: =C57+C59+C60 ->  | D56: =D57+D59+D60 -> 
B57: =title184 -> Labour cost (USD) | C57: =COST_RES1!K44 -> 0 | D57: =C57*(1+D58) -> 0 | E57: 0 | F57: 0 | G57: 0 | H57: 0 | I57: 0 | J57: 0 | K57: 0 | L57: 0 | M57: 0 | N57: 0 | O57: 0 | P57: 0 | Q57: 0 | R57: 0 | S57: 0 | T57: 0 | U57: 0 | V57: 0 | W57: 0
B58: =title185 -> Annual change in labour cost (%) | D58: =COST_RES1!M12 -> 0 | E58: =D58 -> 0 | F58: 0 | G58: 0 | H58: 0 | I58: 0 | J58: 0 | K58: 0 | L58: 0 | M58: 0 | N58: 0 | O58: 0 | P58: 0 | Q58: 0 | R58: 0 | S58: 0 | T58: 0 | U58: 0 | V58: 0 | W58: 0
B59: =title185 -> Annual change in labour cost (%) | C59: =COST_RES1!K70 -> 0 | D59: =C59 -> 0 | E59: 0 | F59: 0 | G59: 0 | H59: 0 | I59: 0 | J59: 0 | K59: 0 | L59: 0 | M59: 0 | N59: 0 | O59: 0 | P59: 0 | Q59: 0 | R59: 0 | S59: 0 | T59: 0 | U59: 0 | V59: 0 | W59: 0
B60: =title186 -> General and administrative cost | C60: =COST_RES1!K71 ->  | D60: =C60 -> 
B61: =title187 -> Sub-total maintenance cost (USD) | C61: =COST_RES1!K65 -> 0 | D61: =C61 -> 0 | E61: 0 | F61: 0 | G61: 0 | H61: 0 | I61: 0 | J61: 0 | K61: 0 | L61: 0 | M61: 0 | N61: 0 | O61: 0 | P61: 0 | Q61: 0 | R61: 0 | S61: 0 | T61: 0 | U61: 0 | V61: 0 | W61: 0
B63: =title188 -> Sub-total of annual fixed costs | C63: =+E34 -> 0 | D63: =C63 -> 0 | E63: =D63 -> 0 | F63: 0 | G63: 0 | H63: 0 | I63: 0 | J63: 0 | K63: 0 | L63: 0 | M63: 0 | N63: 0 | O63: 0 | P63: 0 | Q63: 0 | R63: 0 | S63: 0 | T63: 0 | U63: 0 | V63: 0 | W63: 0
B65: =title189 -> Sub-total of storage capacity | C65: =COST_RES1!K56 ->  | D65: =C65 ->  | E65: =D65 -> 
B67: =title190 -> Sub-total of pellet transportation to market | C67: =COST_RES1!K49 -> 0 | D67: =C67*(1+D74+D75) -> 0 | E67: =D67*(1+E74+E75) -> 0 | F67: 0 | G67: 0 | H67: 0 | I67: 0 | J67: 0 | K67: 0 | L67: 0 | M67: 0 | N67: 0 | O67: 0 | P67: 0 | Q67: 0 | R67: 0 | S67: 0 | T67: 0 | U67: 0 | V67: 0 | W67: 0
B69: =title191 -> Total operation and maintenance cost (USD) | C69: =C40+C56+C61+C63+C65+C67 ->  | D69: =D40+D56+D61+D63+D65+D67 -> 
B70: =title192 -> Operation and maintenance cost (USD/kg of pellet) without loan interest | C70: =C69/(C14*1000) -> 
A72: =title136 -> Financial parameters
B73: =title146 -> Operating Year | C73: =title167 -> Appraisal | D73: 1 | E73: 2 | F73: 3 | G73: 4 | H73: 5 | I73: 6 | J73: 7 | K73: 8 | L73: 9 | M73: 10 | N73: 11 | O73: 12 | P73: 13 | Q73: 14 | R73: 15 | S73: 16 | T73: 17 | U73: 18 | V73: 19 | W73: 20
B74: =title193 -> Annual change in raw material cost (%) | D74: 0 | E74: =D74 -> 0 | F74: =E74 -> 0 | G74: 0 | H74: 0 | I74: 0 | J74: 0 | K74: 0 | L74: 0 | M74: 0 | N74: 0 | O74: 0 | P74: 0 | Q74: 0 | R74: 0 | S74: 0 | T74: 0 | U74: 0 | V74: =U74 -> 0 | W74: =V74 -> 0
B75: =title194 -> Inflation rate (%) | D75: =COST_RES1!J12 -> 0 | E75: =D75 -> 0 | F75: 0 | G75: 0 | H75: 0 | I75: 0 | J75: 0 | K75: 0 | L75: 0 | M75: 0 | N75: 0 | O75: 0 | P75: 0 | Q75: 0 | R75: 0 | S75: 0 | T75: 0 | U75: 0 | V75: =U75 -> 0 | W75: =V75 -> 0
B76: =title137&" (%)" -> Discount rate (%) | C76: =COST_RES1!J9 -> 0
B77: =title138&" (%)" -> Loan ratio (%) | C77: =COST_RES1!J10 -> 0
B79: =title195 -> Loan without policy | C79: =title167 -> Appraisal | D79: 1 | E79: 2 | F79: 3 | G79: 4 | H79: 5 | I79: 6 | J79: 7 | K79: 8 | L79: 9 | M79: 10 | N79: 11 | O79: 12 | P79: 13 | Q79: 14 | R79: 15 | S79: 16 | T79: 17 | U79: 18 | V79: 19 | W79: 20
B80: =title196 -> Loan amount (USD) | C80: =C77*(C34) -> 0
B81: =title139&" (%)" -> Loan interest rate (%) | C81: =COST_RES1!J11 -> 0
B82: =title197 -> Loan term (years) | C82: =COST_RES1!M9 -> 0
B83: =title198 -> Loan payment (USD/month) | C83: =(PMT($C$81/12,(12*$C$82),$C$80)) -> 
B84: =title199 -> Loan payment (USD/year) | D84: =IF(D73<=$C$82,$C$83*12,0) -> 0 | E84: =IF(E73<$C$82,$C$83*12,IF(E73=$C$82,$C$83*12,0)) -> 0 | F84: =IF(F73<$C$82,$C$83*12,IF(F73=$C$82,$C$83*12,0)) -> 0 | G84: 0 | H84: 0 | I84: 0 | J84: 0 | K84: 0 | L84: 0 | M84: 0 | N84: 0 | O84: 0 | P84: 0 | Q84: 0 | R84: 0 | S84: 0 | T84: 0 | U84: 0 | V84: 0 | W84: 0
B85: =title200 -> Total loan payment (USD) | C85: =SUM(D84:W84) -> 0
B86: =title201 -> Loan interest payment (USD) | C86: =C85+C80 -> 0 | D86: =title202 -> Average loan interest payment for project lifetime | G86: =C86/C25 -> 0 | H86: =title203 -> USD per year
A88: =title204 -> Income tax analysis
B89: =title146 -> Operating Year | C89: =title167 -> Appraisal | D89: 1 | E89: 2 | F89: 3 | G89: 4 | H89: 5 | I89: 6 | J89: 7 | K89: 8 | L89: 9 | M89: 10 | N89: 11 | O89: 12 | P89: 13 | Q89: 14 | R89: 15 | S89: 16 | T89: 17 | U89: 18 | V89: 19 | W89: 20
B90: =title205 -> Effective income tax rate (%) | C90: =+'Data entry needs'!$AD$115 -> 0 | D90: =C90 -> 0 | E90: =D90 -> 0 | F90: 0 | G90: 0 | H90: 0 | I90: 0 | J90: 0 | K90: 0 | L90: 0 | M90: 0 | N90: 0 | O90: 0 | P90: 0 | Q90: 0 | R90: 0 | S90: 0 | T90: 0 | U90: 0 | V90: 0 | W90: 0
B91: =title206 -> Income tax (USD) | D91: =IF(D115<0,0,D90*D115) -> 
B92: =title207 -> Total income tax payment (USD) | C92: =SUM(D91:W91) ->  | D92: =title492 -> Average income tax payment | F92: =C92/C25 ->  | G92: =title203 -> USD per year
A94: =title208 -> Depreciation
B95: =title146 -> Operating Year | C95: =title167 -> Appraisal | D95: 1 | E95: 2 | F95: 3 | G95: 4 | H95: 5 | I95: 6 | J95: 7 | K95: 8 | L95: 9 | M95: 10 | N95: 11 | O95: 12 | P95: 13 | Q95: 14 | R95: 15 | S95: 16 | T95: 17 | U95: 18 | V95: 19 | W95: 20
B96: =title209 -> Depreciation method | C96: =title491 -> Straight-line
B97: =title210 -> Total depreciation (USD) | D97: =COST_RES1!K64 -> 0 | E97: =D97 -> 0 | F97: =E97 -> 0 | G97: 0 | H97: 0 | I97: 0 | J97: 0 | K97: 0 | L97: 0 | M97: 0 | N97: 0 | O97: 0 | P97: 0 | Q97: 0 | R97: 0 | S97: 0 | T97: 0 | U97: 0 | V97: 0 | W97: 0
A99: =title211 -> Base case project summary
A100: =title212 -> Summary of this project - Before Tax
B101: =title146 -> Operating Year | C101: =title167 -> Appraisal | D101: 1 | E101: 2 | F101: 3 | G101: 4 | H101: 5 | I101: 6 | J101: 7 | K101: 8 | L101: 9 | M101: 10 | N101: 11 | O101: 12 | P101: 13 | Q101: 14 | R101: 15 | S101: 16 | T101: 17 | U101: 18 | V101: 19 | W101: 20
B102: =title213 -> Total revenue (USD) | D102: =D15*1000*D18 -> 0 | E102: =E15*1000*E18 -> 0 | F102: 0 | G102: 0 | H102: 0 | I102: 0 | J102: 0 | K102: 0 | L102: 0 | M102: 0 | N102: 0 | O102: 0 | P102: 0 | Q102: 0 | R102: 0 | S102: 0 | T102: 0 | U102: 0 | V102: 0 | W102: 0
B103: =title165 -> Total capital cost (USD) | C103: =-(C34-C80) -> 0
B104: =title214 -> Total operating and maintenance cost (USD) | D104: =-D69+D63 -> 
B105: =title215 -> Loan payment (USD) | D105: =D84 -> 0 | E105: =E84 -> 0 | F105: 0 | G105: 0 | H105: 0 | I105: 0 | J105: 0 | K105: 0 | L105: 0 | M105: 0 | N105: 0 | O105: 0 | P105: 0 | Q105: 0 | R105: 0 | S105: 0 | T105: 0 | U105: 0 | V105: 0 | W105: 0
B106: =title216 -> Cash flow - before tax (USD) | C106: =SUM(C102:C105) -> 0
B107: =title217 -> Average revenue (USD)
A109: =title218 -> Summary of this project - After Tax
B110: =title146 -> Operating Year | C110: =title167 -> Appraisal | D110: 1 | E110: 2 | F110: 3 | G110: 4 | H110: 5 | I110: 6 | J110: 7 | K110: 8 | L110: 9 | M110: 10 | N110: 11 | O110: 12 | P110: 13 | Q110: 14 | R110: 15 | S110: 16 | T110: 17 | U110: 18 | V110: 19 | W110: 20
B111: =B102 -> Total revenue (USD) | C111: =C102 -> 0 | D111: =D102 -> 0 | E111: 0 | F111: 0 | G111: 0 | H111: 0 | I111: 0 | J111: 0 | K111: 0 | L111: 0 | M111: 0 | N111: 0 | O111: 0 | P111: 0 | Q111: 0 | R111: 0 | S111: 0 | T111: 0 | U111: 0 | V111: 0 | W111: 0
B112: =title214 -> Total operating and maintenance cost (USD) | D112: =-D69+D63 -> 
B113: =title215 -> Loan payment (USD) | D113: =$G$86 -> 0 | E113: =$G$86 -> 0 | F113: 0 | G113: 0 | H113: 0 | I113: 0 | J113: 0 | K113: 0 | L113: 0 | M113: 0 | N113: 0 | O113: 0 | P113: 0 | Q113: 0 | R113: 0 | S113: 0 | T113: 0 | U113: 0 | V113: 0 | W113: 0
B114: =title219 -> Depreciation of fixed costs (USD) | D114: =-D63 -> 0 | E114: =-E63 -> 0 | F114: 0 | G114: 0 | H114: 0 | I114: 0 | J114: 0 | K114: 0 | L114: 0 | M114: 0 | N114: 0 | O114: 0 | P114: 0 | Q114: 0 | R114: 0 | S114: 0 | T114: 0 | U114: 0 | V114: 0 | W114: 0
B115: =title220 -> Net profit - before tax (USD) for income tax calculation | C115: =SUM(C111:C114) -> 0 | D115: =SUM(D111:D114) ->  | E115: =SUM(E111:E114) -> 
B116: =title221 -> Income tax | D116: =IF(D115>0,-D91,0) -> 
B117: =title222 -> Cash flow - after tax (USD) | C117: =C103 -> 0 | D117: =D106+D116 ->  | E117: =E106+E116 ->  | W117: =W106+W116 -> 
A119: =title223 -> Cumulative value of Net Profit
B120: =title146 -> Operating Year | C120: =title167 -> Appraisal | D120: 1 | E120: 2 | F120: 3 | G120: 4 | H120: 5 | I120: 6 | J120: 7 | K120: 8 | L120: 9 | M120: 10 | N120: 11 | O120: 12 | P120: 13 | Q120: 14 | R120: 15 | S120: 16 | T120: 17 | U120: 18 | V120: 19 | W120: 20
B121: =title224 -> Cumulative value of net profit - before tax | C121: =C106 -> 0 | D121: =C121+(D106) -> 
B122: =title225 -> Cumulative value of net profit - after tax | C122: =C117 -> 0 | D122: =C122+(D117) -> 
A124: =title226 -> Financial analysis results
B126: =title227 -> Net present value (NPV) (USD) - before tax | C126: =NPV(C76,D106:W106)+C106 -> 
B127: =title228 -> Internal rate of return (IRR) (%) - before tax | C127: =IF(C126<0,title493,MIRR(C106:W106,C81,0%)) -> 
B128: =title229 -> Payback period (years) | C128: =title233 -> Please see Figure of the cumulative value of net profit - before tax
B131: =title230 -> Net present value (NPV) (USD) - after tax | C131: =NPV(C76,D117:W117)+C117 -> 
B132: =title231 -> Internal rate of return (IRR) (%) - after tax | C132: =IF(C131<0,title493,MIRR(C117:W117,C81,0%)) -> 
B133: =title229 -> Payback period (years) | C133: =title234 -> Please see Figure of the cumulative value of net profit - after tax
B134: =title232 -> Total Income tax payment of project lifetime | C134: =SUM(D116:W116) -> 

Sheet FA4000_URBAN_RES1 (hidden)
B2: =title237 -> FINANCIAL ANALYSIS OF BIOMASS PELLETING 15 TON/HOUR
A4: =title145 -> Revenues of biomass pelleting system
B5: =title146 -> Operating Year | C5: 0 | D5: 1 | E5: 2 | F5: 3 | G5: 4 | H5: 5 | I5: 6 | J5: 7 | K5: 8 | L5: 9 | M5: 10 | N5: 11 | O5: 12 | P5: 13 | Q5: 14 | R5: 15 | S5: 16 | T5: 17 | U5: 18 | V5: 19 | W5: 20
B7: =title147 -> Pellet production capacity (tons per year) | C7: =COST_RES1!L29 -> 0 | D7: =C7 -> 0 | E7: =D7 -> 0 | F7: 0 | G7: 0 | H7: 0 | I7: 0 | J7: 0 | K7: 0 | L7: 0 | M7: 0 | N7: 0 | O7: 0 | P7: 0 | Q7: 0 | R7: 0 | S7: 0 | T7: 0 | U7: 0 | V7: 0 | W7: 0
B9: =title148 -> Efficiency % of pelleting machine | C9: =COST_RES1!G12 -> 0 | D9: =C9 -> 0 | E9: =D9 -> 0 | F9: 0 | G9: 0 | H9: 0 | I9: 0 | J9: 0 | K9: 0 | L9: 0 | M9: 0 | N9: 0 | O9: 0 | P9: 0 | Q9: 0 | R9: 0 | S9: 0 | T9: 0 | U9: 0 | V9: 0 | W9: 0
B11: =title149 -> Operating hours per year | C11: =COST_RES1!M28 -> 0 | D11: =C11 -> 0 | E11: =D11 -> 0 | F11: 0 | G11: 0 | H11: 0 | I11: 0 | J11: 0 | K11: 0 | L11: 0 | M11: 0 | N11: 0 | O11: 0 | P11: 0 | Q11: 0 | R11: 0 | S11: 0 | T11: 0 | U11: 0 | V11: 0 | W11: 0
B12: =title150 -> Capacity utilization factor | C12: =C11/8760 -> 0 | D12: =D11/8760 -> 0 | E12: 0 | F12: 0 | G12: 0 | H12: 0 | I12: 0 | J12: 0 | K12: 0 | L12: 0 | M12: 0 | N12: 0 | O12: 0 | P12: 0 | Q12: 0 | R12: 0 | S12: 0 | T12: 0 | U12: 0 | V12: 0 | W12: 0
B14: =title151 -> Pellet production (tons per year) | C14: =C7 -> 0 | D14: =D7 -> 0 | E14: 0 | F14: 0 | G14: 0 | H14: 0 | I14: 0 | J14: 0 | K14: 0 | L14: 0 | M14: 0 | N14: 0 | O14: 0 | P14: 0 | Q14: 0 | R14: 0 | S14: 0 | T14: 0 | U14: 0 | V14: 0 | W14: 0
B15: =title152 -> Total pellet sell to customers (tons per year) | C15: =SUM(C14:C14) -> 0 | D15: =SUM(D14:D14) -> 0 | E15: 0 | F15: 0 | G15: 0 | H15: 0 | I15: 0 | J15: 0 | K15: 0 | L15: 0 | M15: 0 | N15: 0 | O15: 0 | P15: 0 | Q15: 0 | R15: 0 | S15: 0 | T15: 0 | U15: 0 | V15: 0 | W15: 0
B17: =title153 -> Price of pellet (USD/kg) | C17: =SUM(C18:C18) -> 0 | D17: 0 | E17: 0 | F17: 0 | G17: 0 | H17: 0 | I17: 0 | J17: 0 | K17: 0 | L17: 0 | M17: 0 | N17: 0 | O17: 0 | P17: 0 | Q17: 0 | R17: 0 | S17: 0 | T17: 0 | U17: 0 | V17: 0 | W17: 0
B18: =title154 -> Market price of pellet pay by consumers (USD/kg) | C18: =+'Energy Demand'!G20 -> 0 | D18: =C18*(1+D19) -> 0 | E18: 0 | F18: 0 | G18: 0 | H18: 0 | I18: 0 | J18: 0 | K18: 0 | L18: 0 | M18: 0 | N18: 0 | O18: 0 | P18: 0 | Q18: 0 | R18: 0 | S18: 0 | T18: 0 | U18: 0 | V18: 0 | W18: 0
B19: =title155 -> Increasing rate of price of pellet (%) | C19: =+'Data entry needs'!$AD$114 -> 0 | D19: =C19 -> 0 | E19: =D19 -> 0 | F19: 0 | G19: 0 | H19: 0 | I19: 0 | J19: 0 | K19: 0 | L19: 0 | M19: 0 | N19: 0 | O19: 0 | P19: 0 | Q19: 0 | R19: 0 | S19: 0 | T19: 0 | U19: 0 | V19: 0 | W19: 0
B21: =title156 -> Total income of pellet (USD per year) | C21: =C15*C18*1000 -> 0 | D21: =D15*D18*1000 -> 0 | E21: 0 | F21: 0 | G21: 0 | H21: 0 | I21: 0 | J21: 0 | K21: 0 | L21: 0 | M21: 0 | N21: 0 | O21: 0 | P21: 0 | Q21: 0 | R21: 0 | S21: 0 | T21: 0 | U21: 0 | V21: 0 | W21: 0
B23: =title157 -> Lifespan of civil work (years) | C23: =COST_RES1!E61 -> 20
B24: =title158 -> Lifespan of pellet system (years) | C24: =COST_RES1!E60 -> 20
B25: =title159 -> Project life time (years) | C25: 20
A27: =title160 -> Capital and operating cost of biomass pellet system
C29: =title167 -> Appraisal | D29: =title168 -> Project lifetime | E29: =title169 -> Investment per year
B30: =title161 -> Direct capital cost (USD)
B31: =title162 -> Equipments | C31: =D31*E31 -> 0 | D31: =$C$25 -> 20 | E31: =COST_RES1!L60/D31 -> 0
B32: =title163 -> Building | C32: =D32*E32 -> 0 | D32: =$C$25 -> 20 | E32: =COST_RES1!L61/D32 -> 0
B33: =title164 -> Installation | C33: =D33*E33 -> 0 | D33: =$C$25 -> 20 | E33: =COST_RES1!L62/D33 -> 0
B34: =title165 -> Total capital cost (USD) | C34: =SUM(C31:C33) -> 0 | E34: =SUM(E31:E33) -> 0
B35: =title166 -> Capital cost (USD/kg of pellet) | C35: =C34/(C14*1000*C25) -> 
B38: =title146 -> Operating Year | C38: =title167 -> Appraisal | D38: 1 | E38: 2 | F38: 3 | G38: 4 | H38: 5 | I38: 6 | J38: 7 | K38: 8 | L38: 9 | M38: 10 | N38: 11 | O38: 12 | P38: 13 | Q38: 14 | R38: 15 | S38: 16 | T38: 17 | U38: 18 | V38: 19 | W38: 20
B39: =title170 -> Annual operating and maintenance cost
B40: =title171 -> Sub-total material cost (USD) | C40: =C41+C49+C51+C54 ->  | D40: =D41+D49+D51+D54 -> 
B41: =title172 -> Biomass cost (USD/year) | C41: =C42*C43 ->  | D41: =D42*D43 -> 
B42: =title46&" "&title53 -> Biomass consumption (ton per year) | C42: =C14/COST_RES1!$G$12 ->  | D42: =D14/COST_RES1!$G$12 ->  | E42: =E14/COST_RES1!$G$12 ->  | F42: =F14/COST_RES1!$G$12 ->  | G42: =G14/COST_RES1!$G$12 ->  | H42: =H14/COST_RES1!$G$12 ->  | I42: =I14/COST_RES1!$G$12 ->  | J42: =J14/COST_RES1!$G$12 ->  | K42: =K14/COST_RES1!$G$12 ->  | L42: =L14/COST_RES1!$G$12 ->  | M42: =M14/COST_RES1!$G$12 ->  | N42: =N14/COST_RES1!$G$12 ->  | O42: =O14/COST_RES1!$G$12 ->  | P42: =P14/COST_RES1!$G$12 ->  | Q42: =Q14/COST_RES1!$G$12 ->  | R42: =R14/COST_RES1!$G$12 ->  | S42: =S14/COST_RES1!$G$12 ->  | T42: =T14/COST_RES1!$G$12 ->  | U42: =U14/COST_RES1!$G$12 ->  | V42: =V14/COST_RES1!$G$12 ->  | W42: =W14/COST_RES1!$G$12 -> 
B43: =title173 -> Biomass price (USD/ton) | C43: =SUM(C44:C45) -> 0 | D43: =SUM(D44:D45) -> 0 | E43: 0 | F43: 0 | G43: 0 | H43: 0 | I43: 0 | J43: 0 | K43: 0 | L43: 0 | M43: 0 | N43: 0 | O43: 0 | P43: 0 | Q43: 0 | R43: 0 | S43: 0 | T43: 0 | U43: 0 | V43: 0 | W43: 0
B44: =title174 -> Biomass cost of collection (USD/ton) | C44: =COST_RES1!E33 -> 0 | D44: =C44*(1+D74+D75) -> 0 | E44: =D44*(1+E74+E75) -> 0 | F44: 0 | G44: 0 | H44: 0 | I44: 0 | J44: 0 | K44: 0 | L44: 0 | M44: 0 | N44: 0 | O44: 0 | P44: 0 | Q44: 0 | R44: 0 | S44: 0 | T44: 0 | U44: 0 | V44: 0 | W44: 0
B45: =title175 -> Biomass transportation cost (USD/ton) | C45: =C46*C47 -> 0 | D45: =D46*D47 -> 0 | E45: 0 | F45: 0 | G45: 0 | H45: 0 | I45: 0 | J45: 0 | K45: 0 | L45: 0 | M45: 0 | N45: 0 | O45: 0 | P45: 0 | Q45: 0 | R45: 0 | S45: 0 | T45: 0 | U45: 0 | V45: 0 | W45: 0
B46: =title176 -> Biomass from farm to plant (USD/ton/km) | C46: =COST_RES1!E48 -> 0 | D46: =C46*(1+D74+D75) -> 0 | E46: =D46*(1+E74+E75) -> 0 | F46: 0 | G46: 0 | H46: 0 | I46: 0 | J46: 0 | K46: 0 | L46: 0 | M46: 0 | N46: 0 | O46: 0 | P46: 0 | Q46: 0 | R46: 0 | S46: 0 | T46: 0 | U46: 0 | V46: 0 | W46: 0
B47: =title177 -> Transportation distant (km) | C47: =COST_RES1!L48 -> 0 | D47: =C47 -> 0 | E47: =D47 -> 0 | F47: 0 | G47: 0 | H47: 0 | I47: 0 | J47: 0 | K47: 0 | L47: 0 | M47: 0 | N47: 0 | O47: 0 | P47: 0 | Q47: 0 | R47: 0 | S47: 0 | T47: =S47 -> 0 | U47: =T47 -> 0 | V47: =U47 -> 0 | W47: =V47 -> 0
B49: =title178 -> Water cost (USD/year) | C49: =COST_RES1!M35 -> 0 | D49: =C49*(1+D74+D75) -> 0 | E49: =D49*(1+E74+E75) -> 0 | F49: 0 | G49: 0 | H49: 0 | I49: 0 | J49: 0 | K49: 0 | L49: 0 | M49: 0 | N49: 0 | O49: 0 | P49: 0 | Q49: 0 | R49: 0 | S49: 0 | T49: 0 | U49: 0 | V49: 0 | W49: 0
B51: =title179 -> Chemical cost (USD/year) | C51: =C52*C53 -> 0 | D51: =D52*D53 -> 0 | E51: 0 | F51: 0 | G51: 0 | H51: 0 | I51: 0 | J51: 0 | K51: 0 | L51: 0 | M51: 0 | N51: 0 | O51: 0 | P51: 0 | Q51: 0 | R51: 0 | S51: 0 | T51: 0 | U51: 0 | V51: 0 | W51: 0
B52: =title180 -> Chemical consumption (tons per year) | C52: =+COST_RES1!$L$34 -> 0 | D52: =+COST_RES1!$L$34 -> 0 | E52: =+COST_RES1!$L$34 -> 0 | F52: =+COST_RES1!$L$34 -> 0 | G52: =+COST_RES1!$L$34 -> 0 | H52: =+COST_RES1!$L$34 -> 0 | I52: =+COST_RES1!$L$34 -> 0 | J52: =+COST_RES1!$L$34 -> 0 | K52: =+COST_RES1!$L$34 -> 0 | L52: =+COST_RES1!$L$34 -> 0 | M52: =+COST_RES1!$L$34 -> 0 | N52: =+COST_RES1!$L$34 -> 0 | O52: =+COST_RES1!$L$34 -> 0 | P52: =+COST_RES1!$L$34 -> 0 | Q52: =+COST_RES1!$L$34 -> 0 | R52: =+COST_RES1!$L$34 -> 0 | S52: =+COST_RES1!$L$34 -> 0 | T52: =+COST_RES1!$L$34 -> 0 | U52: =+COST_RES1!$L$34 -> 0 | V52: =+COST_RES1!$L$34 -> 0 | W52: =+COST_RES1!$L$34 -> 0
B53: =title181 -> Chemical price (USD/ton) | C53: =+'Data entry needs'!$D$20 -> 0 | D53: =+C53 -> 0 | E53: =+D53 -> 0 | F53: 0 | G53: 0 | H53: 0 | I53: 0 | J53: 0 | K53: 0 | L53: 0 | M53: 0 | N53: 0 | O53: 0 | P53: 0 | Q53: 0 | R53: 0 | S53: 0 | T53: 0 | U53: 0 | V53: 0 | W53: 0
B54: =title182 -> Electricity cost (USD) | C54: =COST_RES1!M36 -> 0 | D54: =C54*(1+D74+D75) -> 0 | E54: =D54*(1+E74+E75) -> 0 | F54: 0 | G54: 0 | H54: 0 | I54: 0 | J54: 0 | K54: 0 | L54: 0 | M54: 0 | N54: 0 | O54: 0 | P54: 0 | Q54: 0 | R54: 0 | S54: 0 | T54: 0 | U54: 0 | V54: 0 | W54: 0
B56: =title183 -> Sub-total operating cost (USD) | C56: =C57+C59+C60 ->  | D56: =D57+D59+D60 -> 
B57: =title184 -> Labour cost (USD) | C57: =COST_RES1!M44 -> 0 | D57: =C57*(1+D58) -> 0 | E57: 0 | F57: 0 | G57: 0 | H57: 0 | I57: 0 | J57: 0 | K57: 0 | L57: 0 | M57: 0 | N57: 0 | O57: 0 | P57: 0 | Q57: 0 | R57: 0 | S57: 0 | T57: 0 | U57: 0 | V57: 0 | W57: 0
B58: =title185 -> Annual change in labour cost (%) | D58: =COST_RES1!M12 -> 0 | E58: =D58 -> 0 | F58: 0 | G58: 0 | H58: 0 | I58: 0 | J58: 0 | K58: 0 | L58: 0 | M58: 0 | N58: 0 | O58: 0 | P58: 0 | Q58: 0 | R58: 0 | S58: 0 | T58: 0 | U58: 0 | V58: 0 | W58: 0
B59: =title185 -> Annual change in labour cost (%) | C59: =COST_RES1!M70 -> 0 | D59: =C59 -> 0 | E59: =D59 -> 0 | F59: 0 | G59: 0 | H59: 0 | I59: 0 | J59: 0 | K59: 0 | L59: 0 | M59: 0 | N59: 0 | O59: 0 | P59: 0 | Q59: 0 | R59: 0 | S59: 0 | T59: 0 | U59: =T59 -> 0 | V59: 0 | W59: 0
B60: =title186 -> General and administrative cost | C60: =COST_RES1!M71 ->  | D60: =C60 -> 
B61: =title187 -> Sub-total maintenance cost (USD) | C61: =COST_RES1!M65 -> 0 | D61: =C61 -> 0 | E61: 0 | F61: 0 | G61: 0 | H61: 0 | I61: 0 | J61: 0 | K61: 0 | L61: 0 | M61: 0 | N61: 0 | O61: 0 | P61: 0 | Q61: 0 | R61: 0 | S61: 0 | T61: 0 | U61: 0 | V61: 0 | W61: 0
B63: =title188 -> Sub-total of annual fixed costs | C63: =+E34 -> 0 | D63: =C63 -> 0 | E63: =D63 -> 0 | F63: 0 | G63: 0 | H63: 0 | I63: 0 | J63: 0 | K63: 0 | L63: 0 | M63: 0 | N63: 0 | O63: 0 | P63: 0 | Q63: 0 | R63: 0 | S63: 0 | T63: 0 | U63: 0 | V63: 0 | W63: 0
B65: =title189 -> Sub-total of storage capacity | C65: =COST_RES1!M56 ->  | D65: =C65 ->  | E65: =D65 -> 
B67: =title190 -> Sub-total of pellet transportation to market | C67: =COST_RES1!M49 -> 0 | D67: =C67*(1+D74+D75) -> 0 | E67: =D67*(1+E74+E75) -> 0 | F67: 0 | G67: 0 | H67: 0 | I67: 0 | J67: 0 | K67: 0 | L67: 0 | M67: 0 | N67: 0 | O67: 0 | P67: 0 | Q67: 0 | R67: 0 | S67: 0 | T67: 0 | U67: 0 | V67: 0 | W67: 0
B69: =title191 -> Total operation and maintenance cost (USD) | C69: =C40+C56+C61+C63+C65+C67 ->  | D69: =D40+D56+D61+D63+D65+D67 -> 
B70: =title192 -> Operation and maintenance cost (USD/kg of pellet) without loan interest | C70: =C69/(C14*1000) -> 
A72: =title136 -> Financial parameters
B73: =title146 -> Operating Year | C73: =title167 -> Appraisal | D73: 1 | E73: 2 | F73: 3 | G73: 4 | H73: 5 | I73: 6 | J73: 7 | K73: 8 | L73: 9 | M73: 10 | N73: 11 | O73: 12 | P73: 13 | Q73: 14 | R73: 15 | S73: 16 | T73: 17 | U73: 18 | V73: 19 | W73: 20
B74: =title193 -> Annual change in raw material cost (%) | D74: 0 | E74: =D74 -> 0 | F74: =E74 -> 0 | G74: 0 | H74: 0 | I74: 0 | J74: 0 | K74: 0 | L74: 0 | M74: 0 | N74: 0 | O74: 0 | P74: 0 | Q74: 0 | R74: 0 | S74: 0 | T74: 0 | U74: 0 | V74: =U74 -> 0 | W74: =V74 -> 0
B75: =title194 -> Inflation rate (%) | D75: =COST_RES1!J12 -> 0 | E75: =D75 -> 0 | F75: 0 | G75: 0 | H75: 0 | I75: 0 | J75: 0 | K75: 0 | L75: 0 | M75: 0 | N75: 0 | O75: 0 | P75: 0 | Q75: 0 | R75: 0 | S75: 0 | T75: 0 | U75: 0 | V75: =U75 -> 0 | W75: =V75 -> 0
B76: =title137&" (%)" -> Discount rate (%) | C76: =COST_RES1!J9 -> 0
B77: =title138&" (%)" -> Loan ratio (%) | C77: =COST_RES1!J10 -> 0
B79: =title195 -> Loan without policy | C79: =title167 -> Appraisal | D79: 1 | E79: 2 | F79: 3 | G79: 4 | H79: 5 | I79: 6 | J79: 7 | K79: 8 | L79: 9 | M79: 10 | N79: 11 | O79: 12 | P79: 13 | Q79: 14 | R79: 15 | S79: 16 | T79: 17 | U79: 18 | V79: 19 | W79: 20
B80: =title196 -> Loan amount (USD) | C80: =C77*(C34) -> 0
B81: =title139&" (%)" -> Loan interest rate (%) | C81: =COST_RES1!J11 -> 0
B82: =title197 -> Loan term (years) | C82: =COST_RES1!M9 -> 0
B83: =title198 -> Loan payment (USD/month) | C83: =(PMT($C$81/12,(12*$C$82),$C$80)) -> 
B84: =title199 -> Loan payment (USD/year) | D84: =IF(D73<=$C$82,$C$83*12,0) -> 0 | E84: =IF(E73<$C$82,$C$83*12,IF(E73=$C$82,$C$83*12,0)) -> 0 | F84: =IF(F73<$C$82,$C$83*12,IF(F73=$C$82,$C$83*12,0)) -> 0 | G84: 0 | H84: 0 | I84: 0 | J84: 0 | K84: 0 | L84: 0 | M84: 0 | N84: 0 | O84: 0 | P84: 0 | Q84: 0 | R84: 0 | S84: 0 | T84: 0 | U84: 0 | V84: 0 | W84: 0
B85: =title200 -> Total loan payment (USD) | C85: =SUM(D84:W84) -> 0
B86: =title201 -> Loan interest payment (USD) | C86: =C85+C80 -> 0 | D86: =title202 -> Average loan interest payment for project lifetime | G86: =C86/C25 -> 0 | H86: =title203 -> USD per year
A88: =title204 -> Income tax analysis
B89: =title146 -> Operating Year | C89: =title167 -> Appraisal | D89: 1 | E89: 2 | F89: 3 | G89: 4 | H89: 5 | I89: 6 | J89: 7 | K89: 8 | L89: 9 | M89: 10 | N89: 11 | O89: 12 | P89: 13 | Q89: 14 | R89: 15 | S89: 16 | T89: 17 | U89: 18 | V89: 19 | W89: 20
B90: =title205 -> Effective income tax rate (%) | C90: =+'Data entry needs'!$AD$115 -> 0 | D90: =C90 -> 0 | E90: =D90 -> 0 | F90: 0 | G90: 0 | H90: 0 | I90: 0 | J90: 0 | K90: 0 | L90: 0 | M90: 0 | N90: 0 | O90: 0 | P90: 0 | Q90: 0 | R90: 0 | S90: 0 | T90: 0 | U90: 0 | V90: 0 | W90: 0
B91: =title206 -> Income tax (USD) | D91: =IF(D115<0,0,D90*D115) -> 
B92: =title207 -> Total income tax payment (USD) | C92: =SUM(D91:W91) ->  | D92: =title492 -> Average income tax payment | F92: =C92/C25 ->  | G92: =title203 -> USD per year
A94: =title208 -> Depreciation
B95: =title146 -> Operating Year | C95: =title167 -> Appraisal | D95: 1 | E95: 2 | F95: 3 | G95: 4 | H95: 5 | I95: 6 | J95: 7 | K95: 8 | L95: 9 | M95: 10 | N95: 11 | O95: 12 | P95: 13 | Q95: 14 | R95: 15 | S95: 16 | T95: 17 | U95: 18 | V95: 19 | W95: 20
B96: =title209 -> Depreciation method | C96: =title491 -> Straight-line
B97: =title210 -> Total depreciation (USD) | D97: =COST_RES1!M64 -> 0 | E97: =D97 -> 0 | F97: =E97 -> 0 | G97: 0 | H97: 0 | I97: 0 | J97: 0 | K97: 0 | L97: 0 | M97: 0 | N97: 0 | O97: 0 | P97: 0 | Q97: 0 | R97: 0 | S97: 0 | T97: 0 | U97: 0 | V97: 0 | W97: 0
A99: =title211 -> Base case project summary
A100: =title212 -> Summary of this project - Before Tax
B101: =title146 -> Operating Year | C101: =title167 -> Appraisal | D101: 1 | E101: 2 | F101: 3 | G101: 4 | H101: 5 | I101: 6 | J101: 7 | K101: 8 | L101: 9 | M101: 10 | N101: 11 | O101: 12 | P101: 13 | Q101: 14 | R101: 15 | S101: 16 | T101: 17 | U101: 18 | V101: 19 | W101: 20
B102: =title213 -> Total revenue (USD) | D102: =D15*1000*D18 -> 0 | E102: =E15*1000*E18 -> 0 | F102: 0 | G102: 0 | H102: 0 | I102: 0 | J102: 0 | K102: 0 | L102: 0 | M102: 0 | N102: 0 | O102: 0 | P102: 0 | Q102: 0 | R102: 0 | S102: 0 | T102: 0 | U102: 0 | V102: 0 | W102: 0
B103: =title165 -> Total capital cost (USD) | C103: =-(C34-C80) -> 0
B104: =title214 -> Total operating and maintenance cost (USD) | D104: =-D69+D63 -> 
B105: =title215 -> Loan payment (USD) | D105: =D84 -> 0 | E105: =E84 -> 0 | F105: 0 | G105: 0 | H105: 0 | I105: 0 | J105: 0 | K105: 0 | L105: 0 | M105: 0 | N105: 0 | O105: 0 | P105: 0 | Q105: 0 | R105: 0 | S105: 0 | T105: 0 | U105: 0 | V105: 0 | W105: 0
B106: =title216 -> Cash flow - before tax (USD) | C106: =SUM(C102:C105) -> 0
B107: =title217 -> Average revenue (USD)
A109: =title218 -> Summary of this project - After Tax
B110: =title146 -> Operating Year | C110: =title167 -> Appraisal | D110: 1 | E110: 2 | F110: 3 | G110: 4 | H110: 5 | I110: 6 | J110: 7 | K110: 8 | L110: 9 | M110: 10 | N110: 11 | O110: 12 | P110: 13 | Q110: 14 | R110: 15 | S110: 16 | T110: 17 | U110: 18 | V110: 19 | W110: 20
B111: =B102 -> Total revenue (USD) | C111: =C102 -> 0 | D111: =D102 -> 0 | E111: 0 | F111: 0 | G111: 0 | H111: 0 | I111: 0 | J111: 0 | K111: 0 | L111: 0 | M111: 0 | N111: 0 | O111: 0 | P111: 0 | Q111: 0 | R111: 0 | S111: 0 | T111: 0 | U111: 0 | V111: 0 | W111: 0
B112: =title214 -> Total operating and maintenance cost (USD) | D112: =-D69+D63 -> 
B113: =title215 -> Loan payment (USD) | D113: =$G$86 -> 0 | E113: =$G$86 -> 0 | F113: 0 | G113: 0 | H113: 0 | I113: 0 | J113: 0 | K113: 0 | L113: 0 | M113: 0 | N113: 0 | O113: 0 | P113: 0 | Q113: 0 | R113: 0 | S113: 0 | T113: 0 | U113: 0 | V113: 0 | W113: 0
B114: =title219 -> Depreciation of fixed costs (USD) | D114: =-D63 -> 0 | E114: =-E63 -> 0 | F114: 0 | G114: 0 | H114: 0 | I114: 0 | J114: 0 | K114: 0 | L114: 0 | M114: 0 | N114: 0 | O114: 0 | P114: 0 | Q114: 0 | R114: 0 | S114: 0 | T114: 0 | U114: 0 | V114: 0 | W114: 0
B115: =title220 -> Net profit - before tax (USD) for income tax calculation | C115: =SUM(C111:C114) -> 0 | D115: =SUM(D111:D114) ->  | E115: =SUM(E111:E114) -> 
B116: =title221 -> Income tax | D116: =IF(D115>0,-D91,0) -> 
B117: =title222 -> Cash flow - after tax (USD) | C117: =C103 -> 0 | D117: =D106+D116 ->  | E117: =E106+E116 ->  | W117: =W106+W116 -> 
A119: =title223 -> Cumulative value of Net Profit
B120: =title146 -> Operating Year | C120: =title167 -> Appraisal | D120: 1 | E120: 2 | F120: 3 | G120: 4 | H120: 5 | I120: 6 | J120: 7 | K120: 8 | L120: 9 | M120: 10 | N120: 11 | O120: 12 | P120: 13 | Q120: 14 | R120: 15 | S120: 16 | T120: 17 | U120: 18 | V120: 19 | W120: 20
B121: =title224 -> Cumulative value of net profit - before tax | C121: =C106 -> 0 | D121: =C121+(D106) -> 
B122: =title225 -> Cumulative value of net profit - after tax | C122: =C117 -> 0 | D122: =C122+(D117) -> 
A124: =title226 -> Financial analysis results
B126: =title227 -> Net present value (NPV) (USD) - before tax | C126: =NPV(C76,D106:W106)+C106 -> 
B127: =title228 -> Internal rate of return (IRR) (%) - before tax | C127: =IF(C126<0,title493,MIRR(C106:W106,C81,0%)) -> 
B128: =title229 -> Payback period (years) | C128: =title233 -> Please see Figure of the cumulative value of net profit - before tax
B131: =title230 -> Net present value (NPV) (USD) - after tax | C131: =NPV(C76,D117:W117)+C117 -> 
B132: =title231 -> Internal rate of return (IRR) (%) - after tax | C132: =IF(C131<0,title493,MIRR(C117:W117,C81,0%)) -> 
B133: =title229 -> Payback period (years) | C133: =title234 -> Please see Figure of the cumulative value of net profit - after tax
B134: =title232 -> Total Income tax payment of project lifetime | C134: =SUM(D116:W116) -> 

Sheet Investment_Briquette (hidden)
B1: Investment cost of briquette project
B3: Capacity of Briquette production | C3: Ton per year | D3: <20 | E3: <200 | F3: <2000 | G3: <20,000
B4: Investment cost of equipment | C4: USD | D4: 1000 | E4: 5000 | F4: 100000 | G4: 2200000
B5: Lifetime of equipments | C5: Years | D5: 5 | E5: 10 | F5: 15 | G5: 20 | H5: assumption
B6: Estimate Equipment cost per ton of briquette | C6: USD per ton | D6: =D4/(20*D5) -> 10 | E6: =E4/(200*E5) -> 2.5 | F6: =100000/(2000*F5) -> 3.333333333 | G6: =G4/(20000*G5) -> 5.5
B7: =title162 -> Equipments | D7: 1 or 2 manual machines e.g. lever extruder/ manual screw extruder | E7: Motorised machines that are fabricated locally e.g. Electric screw extruder | F7: Motorised machines that are imported e.g. Roller press/ large(flywheel) piston | G7: Large-scale industrial machinery, imported e.g. 8 tons/hr hydraulic pellet press
D8: Single Drum Kilns | E8: Sun-drying/solar driers | F8: Sun-drying / Flash drier | G8: Accelerated drying
D9: Sun-drying
B10: Building and land | D10: Often in entrepreneurs house and garden | E10: Can do at entrepreneurs residence or in a large garden | F10: Dedicated factory needed. Approximate 2 acres of land | G10: Large centralised factory
D11: e.g. biomass storage, Briquette storage, Briguetting Plant | E11: e.g. biomass storage, Briquette storage, Briguetting Plant | F11: e.g. biomass storage, Briquette storage, Briguetting Plant | G11: e.g. biomass storage, Briquette storage, Briguetting Plant, Office building
D12: Estimate at 20% of Total investment cost | E12: Estimate at 20% of Total investment cost | F12: Estimate at 44% of Total investment cost | G12: Estimate at 44% of Total investment cost
C13: USD per ton | D13: =20%*D6/(1-20%) -> 2.5 | E13: =20%*E6/(1-20%) -> 0.625 | F13: =44%*F6/(1-44%) -> 2.619047619 | G13: =44%*G6/(1-44%) -> 4.321428571
B14: Installation cost | D14: Estimate at 10% of equipment cost | E14: Estimate at 10% of equipment cost | F14: Estimate at 10% of equipment cost | G14: Estimate at 10% of equipment cost
C15: USD per ton | D15: =10%*D6 -> 1 | E15: =10%*E6 -> 0.25 | F15: =10%*F6 -> 0.3333333333 | G15: =10%*G6 -> 0.55
B16: Estimated total investment cost | C16: USD per ton per year | D16: =D6+D13+D15 -> 13.5 | E16: =E6+E13+E15 -> 3.375 | F16: =F6+F13+F15 -> 6.285714286 | G16: =G6+G13+G15 -> 10.37142857
B17: Source: Ferguson 2012, Young and Khennas, 2003

Sheet COST_RES1
C3: =+UPPER(title238&'Data entry needs'!$D$10&" "&'Data entry needs'!$D$11) -> PROCESSING COSTS FOR PELLET PRODUCTION FROM PLEASE SELECT PLEASE SELECT
C6: =title73 -> Use white cells to input data | D6: =title74 -> Grey cells are used for calculations
C7: =title239 -> Summary of Feedstock and Storage | I7: =PROPER(title136) -> Financial Parameters
C9: =title77 -> Feedstock available (t/year) | D9: ='Data entry needs'!$D$12 -> 0 | E9: =title99 -> Chemical binder | G9: ='Data entry needs'!$D$19 -> None | I9: =title137&" (%)" -> Discount rate (%) | J9: ='Data entry needs'!D51 -> 0 | K9: =title197 -> Loan term (years) | M9: ='Data entry needs'!D54 -> 0
C10: =title78 -> Feedstock yield (t/ha) | D10: ='Data entry needs'!$D$13 -> 0 | E10: =title242 -> Chemical binder cost (USD/t) | G10: =+'Data entry needs'!$D$20 -> 0 | I10: =title138&" (%)" -> Loan ratio (%) | J10: ='Data entry needs'!D52 -> 0
C11: =title240 -> Safety storage rate of product | D11: ='Data entry needs'!$H$43 -> 0 | E11: =title101 -> Feedstock storage cost (USD/t) | G11: =+'Data entry needs'!$D$21 -> 0 | I11: =title139&" (%)" -> Loan interest rate (%) | J11: ='Data entry needs'!D53 -> 0 | K11: =+'Data entry needs'!F52 -> Plant Cost Index during 1/2017 | M11: =+'Data entry needs'!$H$52 -> 0
C12: =title241 -> Pellet products storage cost (USD/t) | D12: =+'Data entry needs'!D21 -> 0 | E12: =title243 -> Transformation efficiency (%)
C14: =title244 -> Transport Distance of Feedstock | E14: =title245 -> Transport Quantity | H14: =title246 -> Transport Distance of Products | K14: =title245 -> Transport Quantity
C16: =title247 -> Distance manual production (km) | E16: =title251 -> Manual (t/year) | G16: =+$F$33 ->  | H16: =title247 -> Distance manual production (km) | K16: =title251 -> Manual (t/year) | M16: =+$F$29 -> 0
C17: =title248 -> Distance small scale production (km) | E17: =title252 -> Small scale (t/year) | G17: =+$H$33 ->  | H17: =title248 -> Distance small scale production (km) | K17: =title252 -> Small scale (t/year) | M17: =+$H$29 -> 0
C18: =title249 -> Distance medium scale production (km) | E18: =title253 -> Medium scale (t/year) | G18: =+$J$33 ->  | H18: =title249 -> Distance medium scale production (km) | K18: =title253 -> Medium scale (t/year) | M18: =+$J$29 -> 0
C19: =title250 -> Distance large scale production (km) | E19: =title254 -> Large scale (t/year) | G19: =+$L$33 ->  | H19: =title250 -> Distance large scale production (km) | K19: =title254 -> Large scale (t/year) | M19: =+$L$29 -> 0
C22: =title266 -> Capacities (kg of pellet per hour)
C23: =title268 -> Rural Markets
F24: =title266 -> Capacities (kg of pellet per hour)
F25: 4 | H25: 40 | J25: 400 | L25: 4000
F26: =title272 -> Manual | H26: =title319 -> Semi-mechanized | J26: =title318 -> Mechanized | L26: =title318 -> Mechanized
C27: =title269 -> Urban Markets | F27: =title484 -> Agglomerator | H27: =title486 -> Screw press | J27: =title485 -> Pellet mill | L27: =title485 -> Pellet mill
F28: =title149 -> Operating hours per year | G28: =IF('Data entry needs'!$D$44>8,8,'Data entry needs'!$D$44)*IF('Data entry needs'!D43>300,300,'Data entry needs'!$D$43) -> 0 | H28: =title149 -> Operating hours per year | I28: =IF('Data entry needs'!$H$44>8,8,'Data entry needs'!$H$44)*'Data entry needs'!$D$43 -> 0 | J28: =title149 -> Operating hours per year | K28: =IF('Data entry needs'!$H$44>16,16,'Data entry needs'!$H$44)*'Data entry needs'!$D$43 -> 0 | L28: =title149 -> Operating hours per year | M28: ='Data entry needs'!$H$44*'Data entry needs'!$D$43 -> 0
C29: =title270 -> Annual pellet production (t/year) | F29: =F25*$G$28/1000 -> 0 | H29: =H25*$I$28/1000 -> 0 | J29: =J25*$K$28/1000 -> 0 | L29: =L25*$M$28/1000 -> 0
C31: =title271 -> Inputs | D31: =title107 -> Unit | E31: =title274 -> Unit Price | F31: =title276 -> Quantity | G31: Total | H31: =title276 -> Quantity | I31: Total | J31: =title276 -> Quantity | K31: Total | L31: =title276 -> Quantity | M31: Total
E32: =title275 -> (USD/Unit) | F32: =title277 -> (Unit/year) | G32: =title278 -> (USD/year) | H32: =title277 -> (Unit/year) | I32: =title278 -> (USD/year) | J32: =title277 -> (Unit/year) | K32: =title278 -> (USD/year) | L32: =title277 -> (Unit/year) | M32: =title278 -> (USD/year)
C33: =title76 -> Feedstock | D33: t | E33: =+IF('Data entry needs'!$C$17=FALSE,'Data entry needs'!D$16,'Data entry needs'!D$17) -> 0 | F33: =F$29/$G$12 ->  | G33: =+F33*E33 ->  | H33: =H$29/$G$12 ->  | I33: =+H33*$E33 ->  | J33: =J$29/$G$12 ->  | K33: =+J33*$E33 ->  | L33: =L$29/$G$12 ->  | M33: =+L33*$E33 -> 
C34: =title99 -> Chemical binder | D34: t | E34: =+'Data entry needs'!$D$20 -> 0 | F34: =IF('Data entry needs'!$D$18="NO",0,F$29/VLOOKUP($G$9,'Raw mat_Pellet'!$B$13:$C$17,2,FALSE)) -> 0 | G34: =+F34*E34 -> 0 | I34: =+H34*$E34 -> 0 | K34: =+J34*$E34 -> 0 | M34: =+L34*$E34 -> 0
C35: =title106 -> Water | D35: m3 | E35: ='Data entry needs'!$D$26 -> 0 | F35: =F$29*1000/'Raw mat_Pellet'!$C$9 -> 0 | G35: =+F35*E35 -> 0 | H35: =H$29*1000/'Raw mat_Pellet'!$C$9 -> 0 | I35: =+H35*$E35 -> 0 | J35: =J$29*1000/'Raw mat_Pellet'!$C$9 -> 0 | K35: =+J35*$E35 -> 0 | L35: =L$29*1000/'Raw mat_Pellet'!$C$9 -> 0 | M35: =+L35*$E35 -> 0
C36: =title108 -> Electricity | D36: KWh | E36: ='Data entry needs'!$H$26 -> 0 | G36: =+F36*E36 -> 0 | H36: ='Raw mat_Pellet'!$C$20*H$29 -> 0 | I36: =+H36*$E36 -> 0 | J36: ='Raw mat_Pellet'!$C$20*J$29 -> 0 | K36: =+J36*$E36 -> 0 | L36: ='Raw mat_Pellet'!$C$20*L$29 -> 0 | M36: =+L36*$E36 -> 0
C37: =title279 -> Subtotal | F37: =SUM(G33:G36) ->  | H37: =SUM(I33:I36) ->  | J37: =SUM(K33:K36) ->  | L37: =SUM(M33:M36) -> 
C39: =title280 -> Labour and miscellaneous costs | D39: =title107 -> Unit | E39: =title274 -> Unit Price | F39: =title276 -> Quantity | G39: Total | H39: =title276 -> Quantity | I39: Total | J39: =title276 -> Quantity | K39: Total | L39: =title276 -> Quantity | M39: Total
E40: (USD/person-hour) | F40: (Unit) | G40: =title278 -> (USD/year) | H40: (Unit) | I40: =title278 -> (USD/year) | J40: (Unit) | K40: =title278 -> (USD/year) | L40: (Unit) | M40: =title278 -> (USD/year)
C41: =title110 -> Skilled worker | D41: =title298 -> # employee | E41: ='Data entry needs'!$D$29 -> 0 | F41: 1 | G41: =+E41*F41*G28 -> 0 | H41: =+ROUNDUP(H29/500,0) -> 0 | I41: =+$E41*H41*I28 -> 0 | J41: =+ROUNDUP(J29/600,0) -> 0 | K41: =+$E41*J41*K28 -> 0 | L41: =+ROUNDUP(L29/700,0) -> 0 | M41: =+$E41*L41*M28 -> 0
C42: =title112 -> Unskilled worker | D42: =title298 -> # employee | E42: ='Data entry needs'!$H$29 -> 0 | G42: =+E42*F42*G28 -> 0 | H42: =+ROUND(H41/4,0) -> 0 | I42: =+$E42*H42*I28 -> 0 | J42: =+ROUND(J41/4,0) -> 0 | K42: =+$E42*J42*K28 -> 0 | L42: =+ROUND(L41/4,0) -> 0 | M42: =+$E42*L42*M28 -> 0
C43: =title281 -> Miscellaneous costs | F43: =+'Data entry needs'!$H$47 -> 0 | G43: =+F43*SUM(G41:G42) -> 0 | H43: =+'Data entry needs'!$H$47 -> 0 | I43: =+H43*SUM(I41:I42) -> 0 | J43: =+'Data entry needs'!$H$47 -> 0 | K43: =+J43*SUM(K41:K42) -> 0 | L43: =+'Data entry needs'!$H$47 -> 0 | M43: =+L43*SUM(M41:M42) -> 0
C44: =title279 -> Subtotal | F44: =SUM(G41:G43) -> 0 | G44: =+G41+G42+G43 -> 0 | H44: =SUM(I41:I43) -> 0 | I44: =+I41+I42+I43 -> 0 | J44: =SUM(K41:K43) -> 0 | K44: =+K41+K42+K43 -> 0 | L44: =SUM(M41:M43) -> 0 | M44: =+M41+M42+M43 -> 0
C46: =title282 -> Transportation | D46: =title107 -> Unit | E46: =title274 -> Unit Price | F46: =title276 -> Quantity | G46: Total | H46: =title276 -> Quantity | I46: Total | J46: =title276 -> Quantity | K46: Total | L46: =title276 -> Quantity | M46: Total
E47: (USD/t/km) | F47: (Unit) | G47: =title278 -> (USD/year) | H47: (Unit) | I47: =title278 -> (USD/year) | J47: (Unit) | K47: =title278 -> (USD/year) | L47: (Unit) | M47: =title278 -> (USD/year)
C48: =title283 -> Feedstock (farm to pellet plant) | D48: km | E48: ='Data entry needs'!$D$40 -> 0 | F48: =+$D$16 -> 0 | G48: =+F48*E48*F33 ->  | H48: =+$D$17 -> 0 | I48: =+H48*$E48*H$33 ->  | J48: =+$D$18 -> 0 | K48: =+J48*$E48*J$33 ->  | L48: =+$D$19 -> 0 | M48: =+L48*$E48*L$33 -> 
C49: =title284 -> Pellet products (pellet plant to market) | D49: km | E49: ='Data entry needs'!$H$40 -> 0 | F49: =+$J$16 -> 0 | G49: =+F49*E49*F29 -> 0 | H49: =+$J$17 -> 0 | I49: =+H49*$E49*H29 -> 0 | J49: =+$J$18 -> 0 | K49: =+J49*$E49*J29 -> 0 | L49: =+$J$19 -> 0 | M49: =+L49*$E49*L29 -> 0
C50: =title279 -> Subtotal | F50: =SUM(G48:G49) ->  | G50: =SUM(G48:G49) ->  | H50: =SUM(I48:I49) ->  | I50: =SUM(I48:I49) ->  | J50: =SUM(K48:K49) ->  | K50: =SUM(K48:K49) ->  | L50: =SUM(M48:M49) ->  | M50: =SUM(M48:M49) -> 
C52: =title285 -> Storage | D52: =title107 -> Unit | E52: =title274 -> Unit Price | F52: =title276 -> Quantity | G52: Total | H52: =title276 -> Quantity | I52: Total | J52: =title276 -> Quantity | K52: Total | L52: =title276 -> Quantity | M52: Total
F53: (Unit) | G53: =title278 -> (USD/year) | H53: (Unit) | I53: =title278 -> (USD/year) | J53: (Unit) | K53: =title278 -> (USD/year) | L53: (Unit) | M53: =title278 -> (USD/year)
C54: =title76 -> Feedstock | D54: USD/t | E54: =COST_RES1!G11 -> 0 | F54: =+STORAGE_RES1!F$38 ->  | G54: =+$E$54*F54 ->  | H54: =STORAGE_RES1!$I$38 ->  | I54: =+$E$54*H54 ->  | J54: =STORAGE_RES1!$L$38 ->  | K54: =+$E$54*J54 ->  | L54: =STORAGE_RES1!$O$38 ->  | M54: =+$E$54*L54 -> 
C55: =title286 -> Pellet products | D55: USD/t | E55: =COST_RES1!D12 -> 0 | F55: =$D$11*F$29 -> 0 | G55: =+$E$55*F55 -> 0 | H55: =$D$11*H$29 -> 0 | I55: =+$E$55*H55 -> 0 | J55: =$D$11*J$29 -> 0 | K55: =+$E$55*J55 -> 0 | L55: =$D$11*L$29 -> 0 | M55: =+$E$55*L55 -> 0
C56: =title279 -> Subtotal | F56: =SUM(G54:G55) ->  | G56: =SUM(G54:G54) ->  | H56: =SUM(I54:I55) ->  | I56: =SUM(I54:I54) ->  | J56: =SUM(K54:K55) ->  | K56: =SUM(K54:K54) ->  | L56: =SUM(M54:M55) ->  | M56: =SUM(M54:M54) -> 
C58: =title287 -> Investment | D58: =title107 -> Unit | E58: Years | F58: Total | G58: =title208 -> Depreciation | H58: Total | I58: =title208 -> Depreciation | J58: Total | K58: =title208 -> Depreciation | L58: Total | M58: =title208 -> Depreciation
C59: Investment | F59: (USD) | G59: =title278 -> (USD/year) | H59: (USD) | I59: =title278 -> (USD/year) | J59: (USD) | K59: =title278 -> (USD/year) | L59: (USD) | M59: =title278 -> (USD/year)
C60: =title162 -> Equipments | D60: USD | E60: 20 | F60: =Investment_Pellet!$C$12*('Data entry needs'!$H$52/136) -> 0 | G60: =+F60/E60 -> 0 | H60: =Investment_Pellet!$D$12*('Data entry needs'!$H$52/136) -> 0 | I60: =+H60/$E$60 -> 0 | J60: =Investment_Pellet!$E$12*('Data entry needs'!$H$52/136) -> 0 | K60: =+J60/$E$60 -> 0 | L60: =Investment_Pellet!$F$12*('Data entry needs'!$H$52/136) -> 0 | M60: =+L60/$E$60 -> 0
C61: =title163 -> Building | D61: USD | E61: 20 | F61: =Investment_Pellet!$D$17*('Data entry needs'!$H$52/136) -> 0 | G61: =+F61/E61 -> 0 | H61: =Investment_Pellet!$D$18*('Data entry needs'!$H$52/136) -> 0 | I61: =+H61/$E$60 -> 0 | J61: =Investment_Pellet!$D$19*('Data entry needs'!$H$52/136) -> 0 | K61: =+J61/$E$60 -> 0 | L61: =Investment_Pellet!$D$20*('Data entry needs'!$H$52/136) -> 0 | M61: =+L61/$E$60 -> 0
C62: =title164 -> Installation | D62: USD | E62: 20 | F62: =Investment_Pellet!$C$17*('Data entry needs'!$H$52/136) -> 0 | G62: =+F62/E62 -> 0 | H62: =Investment_Pellet!$C$18*('Data entry needs'!$H$52/136) -> 0 | I62: =+H62/$E$60 -> 0 | J62: =Investment_Pellet!$C$19*('Data entry needs'!$H$52/136) -> 0 | K62: =+J62/$E$60 -> 0 | L62: =Investment_Pellet!$C$20*('Data entry needs'!$H$52/136) -> 0 | M62: =+L62/$E$60 -> 0
C63: =title288 -> Total investments | F63: =SUM(F60:F62) -> 0 | H63: =SUM(H60:H62) -> 0 | J63: =SUM(J60:J62) -> 0 | L63: =SUM(L60:L62) -> 0
F64: =title297 -> Total Depreciation | G64: =SUM(G60:G63) -> 0 | H64: =title297 -> Total Depreciation | I64: =SUM(I60:I63) -> 0 | J64: =title297 -> Total Depreciation | K64: =SUM(K60:K63) -> 0 | L64: =title297 -> Total Depreciation | M64: =SUM(M60:M63) -> 0
C65: =title289 -> Maintenance cost | E65: =+'Data entry needs'!$D$48 -> 0 | G65: =+E65*G64 -> 0 | I65: =+E65*$I$64 -> 0 | K65: =+$E$65*K64 -> 0 | M65: =+$E$65*M64 -> 0
C66: =title279 -> Subtotal | F66: =SUM(G64:G65) -> 0 | H66: =SUM(I64:I65) -> 0 | J66: =SUM(K64:K65) -> 0 | L66: =SUM(M64:M65) -> 0
C68: =title131 -> Other costs | D68: =title107 -> Unit | E68: Rate (%) | G68: Total | I68: Total | K68: Total | M68: Total
G69: =title278 -> (USD/year) | I69: =title278 -> (USD/year) | K69: =title278 -> (USD/year) | M69: =title278 -> (USD/year)
C70: =title290 -> Plant overhead | D70: USD | E70: =+'Data entry needs'!$D$47 -> 0 | G70: =+(G41+G42+G65)*$E$70 -> 0 | I70: =+(I41+I42+I65)*$E$70 -> 0 | K70: =+(K41+K42+K65)*$E$70 -> 0 | M70: =+(M41+M42+M65)*$E$70 -> 0
C71: =title186 -> General and administrative cost | D71: USD | E71: =+'Data entry needs'!$H$48 -> 0 | G71: =+(F37+G44+G70+G65)*$E$71 ->  | I71: =+(H37+I44+I70+I65)*$E$71 ->  | K71: =+(J37+K44+K70+K65)*$E$71 ->  | M71: =+(L37+M44+M70+M65)*$E$71 -> 
C72: =title263 -> Loan interest | D72: USD | E72: =J11 -> 0 | G72: =-FA4_RURAL_RES1!G85 -> 0 | I72: =-FA40_RURAL_RES1!G85 -> 0 | K72: =-FA400_RURAL_RES1!G86 -> 0 | M72: =-FA4000_RURAL_RES1!G86 -> 0
C73: =title279 -> Subtotal | F73: =SUM(G70:G72) ->  | H73: =SUM(I70:I72) ->  | J73: =SUM(K70:K72) ->  | K73: =SUM(K70:K72) ->  | L73: =SUM(M70:M72) ->  | M73: =SUM(M70:M72) -> 
C76: =title291 -> Total costs | F76: Total | G76: =title296 -> Share (%) | H76: Total | I76: =title296 -> Share (%) | J76: Total | K76: =title296 -> Share (%) | L76: Total | M76: =title296 -> Share (%)
C77: Investment | F77: =title278 -> (USD/year) | H77: =title278 -> (USD/year) | J77: =title278 -> (USD/year) | L77: =title278 -> (USD/year)
C78: =title292 -> Total operating costs | F78: =+F37+G44+G50+G56 ->  | G78: =+F78/$F$81 ->  | H78: =+H37+I44+I50+I56 ->  | I78: =+H78/$H$81 ->  | J78: =+J37+K44+K50+K56 ->  | K78: =+J78/$J$81 ->  | L78: =+L37+M44+M50+M56 ->  | M78: =+L78/$L$81 -> 
C79: =title293 -> Total fixed costs | F79: =+F66 -> 0 | G79: =+F79/$F$81 ->  | H79: =+H66 -> 0 | I79: =+H79/$H$81 ->  | J79: =+J66 -> 0 | K79: =+J79/$J$81 ->  | L79: =+L66 -> 0 | M79: =+L79/$L$81 -> 
C80: =title294 -> Total other costs | F80: =+F73 ->  | G80: =+F80/$F$81 ->  | H80: =+H73 ->  | I80: =+H80/$H$81 ->  | J80: =+K73 ->  | K80: =+J80/$J$81 ->  | L80: =+M73 ->  | M80: =+L80/$L$81 -> 
C81: =title295 -> Total production costs | F81: =SUM(F78:F80) ->  | H81: =SUM(H78:H80) ->  | J81: =SUM(J78:J80) ->  | L81: =SUM(L78:L80) -> 
F83: =title255 -> Capacities (ton of pellet per hour)
F84: =F25 -> 4 | H84: =H29 -> 0 | J84: =J29 -> 0 | L84: =L29 -> 0
C85: =title256 -> Unit cost of pellet (USD/kg of pellet) | F85: =F81/(F29*1000) ->  | H85: =H81/(H29*1000) ->  | J85: =J81/(J29*1000) ->  | L85: =L81/(L29*1000) -> 
C87: =title257 -> Average loan interest | D87: =title107 -> Unit | E87: =title138&" (%)" -> Loan ratio (%) | F87: =title264 -> Total investment | G87: =title258 -> Loan amount | H87: =title264 -> Total investment | I87: =title258 -> Loan amount | J87: =title264 -> Total investment | K87: =title258 -> Loan amount | L87: =title264 -> Total investment | M87: =title258 -> Loan amount
F88: (USD) | G88: (USD) | H88: (USD) | I88: (USD) | J88: (USD) | K88: (USD) | L88: (USD) | M88: (USD)
C89: =title258 -> Loan amount | D89: USD | E89: =J10 -> 0 | F89: =F63 -> 0 | G89: =$E$89*F89 -> 0 | H89: =H63 -> 0 | I89: =$E$89*H89 -> 0 | J89: =J63 -> 0 | K89: =$E$89*J89 -> 0 | L89: =L63 -> 0 | M89: =$E$89*L89 -> 0
C90: =title139 -> Loan interest rate | D90: % | G90: =+$J$11 -> 0 | I90: =+$J$11 -> 0 | K90: =+$J$11 -> 0 | M90: =+$J$11 -> 0
C91: =title259 -> Loan payment | D91: =title265 -> USD/month | G91: =PMT(G90/12,G93*12,G89,0) ->  | I91: =PMT(I90/12,I93*12,I89,0) ->  | K91: =PMT(K90/12,K93*12,K89,0) ->  | M91: =PMT(M90/12,M93*12,M89,0) -> 
C92: =title260 -> Annual loan payment | D92: =title35 -> USD/year | G92: =G91*12 ->  | I92: =I91*12 ->  | K92: =K91*12 ->  | M92: =M91*12 ->  | AD92: FS1 | AE92: =+$D$10 -> 0 | AF92: =+IF(AE92=title81,VERDADRO,FALSE) -> FALSE
C93: =title261 -> Loan terms | D93: =title141 -> year | G93: =+$M$9 -> 0 | I93: =+$M$9 -> 0 | K93: =+$M$9 -> 0 | M93: =+$M$9 -> 0 | AD93: FS2 | AE93: =+E$11 -> Feedstock storage cost (USD/t) | AF93: =+IF(AE93=title81,VERDADRO,FALSE) -> FALSE
C94: =title262 -> Total loan payment | D94: USD | G94: =G92*G93 ->  | I94: =I92*I93 ->  | K94: =K92*K93 ->  | M94: =M92*M93 ->  | AD94: FS3 | AE94: =+$F$11 -> 0 | AF94: =+IF(AE94=title81,VERDADRO,FALSE) -> FALSE
C95: =title263 -> Loan interest | D95: USD | G95: =G94+G89 ->  | I95: =I94+I89 ->  | K95: =K94+K89 ->  | M95: =M94+M89 ->  | AD95: FS4 | AE95: =+$G$11 -> 0 | AF95: =+IF(AE95=title81,VERDADRO,FALSE) -> FALSE
C96: =title257 -> Average loan interest | D96: =title35 -> USD/year | G96: =+G95/20 ->  | I96: =+I95/20 ->  | K96: =+K95/20 ->  | M96: =+M95/20 -> 

Sheet Label (hidden)
B2: Selection | C2: =VLOOKUP(START!B3,$A$3:$C$5,3,FALSE) -> 1
A3: EN | B3: English | C3: 1
A4: FR | B4: French | C4: 2
A5: ES | B5: Spanish | C5: 3
A7: ID | B7: English | C7: French | D7: Spanish | E7: Typeof | F7: Ref | G7: Name
A8: 1 | B8: 1 | C8: 2 | D8: 3
A9: 2 | B9: Pelletizing Process Description | C9: Description du Processus de fabrication de granulés de bois | D9: Descripción del Proceso de Pelletizado | E9: label | F9: =HLOOKUP($C$2,$B$8:$D9,$A9,FALSE) -> Pelletizing Process Description | G9: =$E9&$A9 -> label2
A10: 3 | B10: Data Entry | C10: Saisie de Données | D10: Datos de Entrada | E10: label | F10: =HLOOKUP($C$2,$B$8:$D10,$A10,FALSE) -> Data Entry | G10: label3
A11: 4 | B11: NEXT >> Energy Demand | C11: SUIVANT >> Demande d'Énergie | D11: SIGUIENTE >> Demanda de Energía | E11: label | F11: =HLOOKUP($C$2,$B$8:$D11,$A11,FALSE) -> NEXT >> Energy Demand | G11: label4
A12: 5 | B12: << BACK Start | C12: << RETOUR Début | D12: << VOLVER Inicio | E12: label | F12: =HLOOKUP($C$2,$B$8:$D12,$A12,FALSE) -> << BACK Start | G12: label5
A13: 6 | B13: Energy Demand | C13: Demande d'Énergie | D13: Demanda de Energía | E13: label | F13: =HLOOKUP($C$2,$B$8:$D13,$A13,FALSE) -> Energy Demand | G13: label6
A14: 7 | B14: NEXT >> Data Entry | C14: SUIVANT >> Saisie de Données | D14: SIGUIENTE >> Datos de Entrada | E14: label | F14: =HLOOKUP($C$2,$B$8:$D14,$A14,FALSE) -> NEXT >> Data Entry | G14: label7
A15: 8 | B15: Clear data | C15: Effacer les données | D15: Borrar datos | E15: label | F15: =HLOOKUP($C$2,$B$8:$D15,$A15,FALSE) -> Clear data | G15: label8
A16: 9 | B16: Load Default Values | C16: Charger les Valeurs par Défaut | D16: Cargar Valores por Defecto | E16: label | F16: =HLOOKUP($C$2,$B$8:$D16,$A16,FALSE) -> Load Default Values | G16: label9
A17: 10 | B17: Production Cost 1 | C17: Coût de Production 1 | D17: Costo de Producción 1 | E17: label | F17: =HLOOKUP($C$2,$B$8:$D17,$A17,FALSE) -> Production Cost 1 | G17: label10
A18: 11 | B18: Production Cost 2 | C18: Coût de Production 2 | D18: Costo de Producción 2 | E18: label | F18: =HLOOKUP($C$2,$B$8:$D18,$A18,FALSE) -> Production Cost 2 | G18: label11
A19: 12 | B19: Production Cost 3 | C19: Coût de Production 3 | D19: Costo de Producción 3 | E19: label | F19: =HLOOKUP($C$2,$B$8:$D19,$A19,FALSE) -> Production Cost 3 | G19: label12
A20: 13 | B20: Production Cost 4 | C20: Coût de Production 4 | D20: Costo de Producción 4 | E20: label | F20: =HLOOKUP($C$2,$B$8:$D20,$A20,FALSE) -> Production Cost 4 | G20: label13
A21: 14 | B21: Storage Calculator 1 | C21: Calculateur de Stockage 1 | D21: Calculadora de Almacenamiento 1 | E21: label | F21: =HLOOKUP($C$2,$B$8:$D21,$A21,FALSE) -> Storage Calculator 1 | G21: label14
A22: 15 | B22: Storage Calculator 2 | C22: Calculateur de Stockage 2 | D22: Calculadora de Almacenamiento 2 | E22: label | F22: =HLOOKUP($C$2,$B$8:$D22,$A22,FALSE) -> Storage Calculator 2 | G22: label15
A23: 16 | B23: Storage Calculator 3 | C23: Calculateur de Stockage 3 | D23: Calculadora de Almacenamiento 3 | E23: label | F23: =HLOOKUP($C$2,$B$8:$D23,$A23,FALSE) -> Storage Calculator 3 | G23: label16
A24: 17 | B24: Storage Calculator 4 | C24: Calculateur de Stockage 4 | D24: Calculadora de Almacenamiento 4 | E24: label | F24: =HLOOKUP($C$2,$B$8:$D24,$A24,FALSE) -> Storage Calculator 4 | G24: label17
A25: 18 | B25: Price Calculator 1 | C25: Calculateur de Prix 1 | D25: Calculadora de Precio 1 | E25: label | F25: =HLOOKUP($C$2,$B$8:$D25,$A25,FALSE) -> Price Calculator 1 | G25: label18
A26: 19 | B26: Price Calculator 2 | C26: Calculateur de Prix 2 | D26: Calculadora de Precio 2 | E26: label | F26: =HLOOKUP($C$2,$B$8:$D26,$A26,FALSE) -> Price Calculator 2 | G26: label19
A27: 20 | B27: Price Calculator 3 | C27: Calculateur de Prix 3 | D27: Calculadora de Precio 3 | E27: label | F27: =HLOOKUP($C$2,$B$8:$D27,$A27,FALSE) -> Price Calculator 3 | G27: label20
A28: 21 | B28: Price Calculator 4 | C28: Calculateur de Prix 4 | D28: Calculadora de Precio 4 | E28: label | F28: =HLOOKUP($C$2,$B$8:$D28,$A28,FALSE) -> Price Calculator 4 | G28: label21
A29: 22 | B29: Energy Demand | C29: Demande d'Énergie | D29: Demanda de Energía | E29: label | F29: =HLOOKUP($C$2,$B$8:$D29,$A29,FALSE) -> Energy Demand | G29: label22
A30: 23 | B30: << BACK Data Entry | C30: << RETOUR Saisie de Données | D30: << VOLVER Datos de Entrada | E30: label | F30: =HLOOKUP($C$2,$B$8:$D30,$A30,FALSE) -> << BACK Data Entry | G30: label23
A31: 24 | B31: Hide this sheet | C31: Cachez cette feuille | D31: Ocultar esta Hoja | E31: label | F31: =HLOOKUP($C$2,$B$8:$D31,$A31,FALSE) -> Hide this sheet | G31: label24
A32: 25 | B32: << BACK Production Cost 1 | C32: << RETOUR Coût de Production 1 | D32: << VOLVER Costo de Producción 1 | E32: label | F32: =HLOOKUP($C$2,$B$8:$D32,$A32,FALSE) -> << BACK Production Cost 1 | G32: label25
A33: 26 | B33: << BACK Production Cost 2 | C33: << RETOUR Coût de Production 2 | D33: << VOLVER Costo de Producción 2 | E33: label | F33: =HLOOKUP($C$2,$B$8:$D33,$A33,FALSE) -> << BACK Production Cost 2 | G33: label26
A34: 27 | B34: << BACK Production Cost 3 | C34: << RETOUR Coût de Production 3 | D34: << VOLVER Costo de Producción 3 | E34: label | F34: =HLOOKUP($C$2,$B$8:$D34,$A34,FALSE) -> << BACK Production Cost 3 | G34: label27
A35: 28 | B35: << BACK Production Cost 4 | C35: << RETOUR Coût de Production 4 | D35: << VOLVER Costo de Producción 4 | E35: label | F35: =HLOOKUP($C$2,$B$8:$D35,$A35,FALSE) -> << BACK Production Cost 4 | G35: label28
A36: 29 | B36: NEXT >> Summary of Results Comparative | C36: SUIVANT >> Résumé des Résultats Comparatifs | D36: SIGUIENTE >> Resumen de Resultados Comparativos | E36: label | F36: =HLOOKUP($C$2,$B$8:$D36,$A36,FALSE) -> NEXT >> Summary of Results Comparative | G36: label29
A37: 30 | B37: NEXT >> Summary of Results by Feedstock | C37: SUIVANT >> Résumé des Résultats par Matière Premières | D37: SIGUIENTE >> Resumen de Resultados por Materia Prima | E37: label | F37: =HLOOKUP($C$2,$B$8:$D37,$A37,FALSE) -> NEXT >> Summary of Results by Feedstock | G37: label30
A38: 31 | B38: Financial Analysis (4 kg/h) | C38: Analyse Financière (4 kg/h) | D38: Analisís Financiero (4 kg/h) | E38: label | F38: =HLOOKUP($C$2,$B$8:$D38,$A38,FALSE) -> Financial Analysis (4 kg/h) | G38: label31
A39: 32 | B39: Financial Analysis (40 kg/h) | C39: Analyse Financière (40 kg/h) | D39: Analisís Financiero (40 kg/h) | E39: label | F39: =HLOOKUP($C$2,$B$8:$D39,$A39,FALSE) -> Financial Analysis (40 kg/h) | G39: label32
A40: 33 | B40: Financial Analysis (400 kg/h) | C40: Analyse Financière (400 kg/h) | D40: Analisís Financiero (400 kg/h) | E40: label | F40: =HLOOKUP($C$2,$B$8:$D40,$A40,FALSE) -> Financial Analysis (400 kg/h) | G40: label33
A41: 34 | B41: Financial Analysis (4000 kg/h) | C41: Analyse Financière (4000 kg/h) | D41: Analisís Financiero (4000 kg/h) | E41: label | F41: =HLOOKUP($C$2,$B$8:$D41,$A41,FALSE) -> Financial Analysis (4000 kg/h) | G41: label34
A42: 35 | B42: Create PDF Report | C42: Créer un Rapport PDF | D42: Crear un Reporte en PDF | E42: label | F42: =HLOOKUP($C$2,$B$8:$D42,$A42,FALSE) -> Create PDF Report | G42: label35

Sheet PRICE_RES1 (hidden)
C3: =title299&UPPER('Data entry needs'!$D$10&" "&'Data entry needs'!$D$11) -> COLLECTION COSTS CALCULATOR FOR PLEASE SELECT PLEASE SELECT | P3: =title301 -> Sources of biomass | Q3: No. | R3: Selection2 | S3: Number | T3: =title318 -> Mechanized | U3: =title320 -> Number of skilled workers | V3: =title326 -> person-hour/ha
P4: =title310 -> Agriculture residues spread in the field | Q4: 1 | R4: =+$F$11 -> Mechanized | T4: =title318&2 -> Mechanized2 | U4: =title321 -> Skilled labour wage | V4: =title111 -> USD/person-hour
P5: =title311 -> Agriculture residues collected from field | Q5: 2 | R5: Selection1 | S5: 1 | T5: =title318&4 -> Mechanized4 | U5: =title322 -> Average fuel economy | V5: l/h
C6: =title73 -> Use white cells to input data | E6: =title74 -> Grey cells are used for calculations | P6: =title312 -> Agriculture residues from food processing plant | Q6: 3 | R6: =+VLOOKUP($C$11,$P$3:$Q$10,2,FALSE) -> 1 | S6: 2 | T6: =title318&5 -> Mechanized5 | U6: =title323 -> Fuel price | V6: USD/l
P7: =title313 -> Forestry | Q7: 4 | S7: 3 | T7: =title319 -> Semi-mechanized | U7: =title320 -> Number of skilled workers | V7: =title326 -> person-hour/ha
C8: =title300 -> Biomass Collection Definition | P8: =title314 -> Forestry and plantation residues | Q8: 5 | S8: 4 | T8: =title319&1 -> Semi-mechanized1 | U8: =title324 -> Number of unskilled workers | V8: =title326 -> person-hour/ha
P9: =title315 -> Residues from wood industry | Q9: 6 | S9: 5 | T9: =title319&2 -> Semi-mechanized2 | U9: =title321 -> Skilled labour wage | V9: =title111 -> USD/person-hour
C10: =title301 -> Sources of biomass | F10: =title302 -> Collecting method | P10: =title316 -> Dedicated wood energy plantation | Q10: 7 | T10: =title319&3 -> Semi-mechanized3 | U10: =title325 -> Unskilled labour wage | V10: =title111 -> USD/person-hour
C11: Agriculture residues spread in the field | F11: Mechanized | P11: =title317 -> Collection method | T11: =title319&4 -> Semi-mechanized4 | U11: =title322 -> Average fuel economy | V11: l/h
P12: =title318 -> Mechanized | T12: =title319&5 -> Semi-mechanized5 | U12: =title323 -> Fuel price | V12: USD/l
C13: =IF($R$6=7,title309,IF(OR($R$6=1,$R$6=5,$R$6=4),title300,title308)) -> Biomass Collection Definition | P13: =title319 -> Semi-mechanized | T13: =title272 -> Manual | U13: =title324 -> Number of unskilled workers | V13: =title326 -> person-hour/ha
P14: =title272 -> Manual | T14: =title272&2 -> Manual2 | U14: =title325 -> Unskilled labour wage | V14: =title111 -> USD/person-hour
C16: =title303 -> Biomass Price Definition
C17: =title304 -> Labour cost | D17: Quantity | E17: =title107 -> Unit | F17: Quantity | H17: =title107 -> Unit | I17: Total | J17: =title107 -> Unit
C18: =+IF(OR($R$6=1,$R$6=4,$R$6=5),IFERROR(VLOOKUP($R$4&$S4,$T$3:$V$14,2,FALSE),""),"") -> Number of skilled workers | E18: =IF(OR(entry1=title495,entry1=title496),title497,IF(OR($R$6=1,$R$6=4,$R$6=5),IFERROR(VLOOKUP($R$4&$S4,$T$3:$V$23,3,FALSE),""),"")) -> person-hour/ha | F18: =IF(OR($R$6=1,$R$6=4,$R$6=5),IFERROR(VLOOKUP($R$4&$S6,$T$3:$V$14,2,FALSE),""),"") -> Skilled labour wage | G18: =IF(F18="","",IF(F18=title325,'Data entry needs'!H29,IF(F18=title321,'Data entry needs'!$D$29))) -> 0 | H18: =IF(OR($R$6=1,$R$6=4,$R$6=5),IFERROR(VLOOKUP($R$4&$S6,$T$3:$V$20,3,FALSE),""),"") -> USD/person-hour | I18: =+IFERROR(G18*D18*(COST_RES1!$D$9/created1),"") ->  | J18: =+IF(OR($R$6=1,$R$6=4,$R$6=5),title35,"") -> USD/year | K18: =IF(OR(entry1=title495,entry1=title496),1,COST_RES1!$D$10) -> 0
C19: =IF(OR($R$6=1,$R$6=4,$R$6=5),IFERROR(VLOOKUP($R$4&$S5,$T$3:$V$14,2,FALSE),""),"") ->  | E19: =IF(AND(selection1=title319,OR(entry1=title495,entry1=title496)),title497,IF(OR($R$6=1,$R$6=4,$R$6=5),IFERROR(VLOOKUP($R$4&$S5,$T$3:$V$23,3,FALSE),""),"")) ->  | F19: =IF(OR($R$6=1,$R$6=4,$R$6=5),IFERROR(VLOOKUP($R$4&$S7,$T$3:$V$14,2,FALSE),""),"") ->  | G19: =IF(F19="","",'Data entry needs'!$H$29) ->  | H19: =IF(OR($R$6=1,$R$6=4,$R$6=5),IFERROR(VLOOKUP($R$4&$S7,$T$3:$V$27,3,FALSE),""),"") ->  | I19: =+IFERROR(G19*D19*(COST_RES1!$D$9/created1),"") ->  | J19: =+IF(OR($R$6=1,$R$6=4,$R$6=5),title35,"") -> USD/year
D20: =+IF(AND(C18="",C19=""),0,IF(C18="",D19,IF(C19="",D18,D18+D19))) -> 0 | H20: =+IF(OR($R$6=1,$R$6=4,$R$6=5),title279,"") -> Subtotal | I20: =+SUMIF($I$18:$I$19,">0") -> 0 | J20: =+IF(OR($R$6=1,$R$6=4,$R$6=5),title35,"") -> USD/year
C21: =title305 -> Machinery & operating cost | D21: Quantity | E21: =title107 -> Unit | F21: Quantity | H21: =title107 -> Unit | I21: Total | J21: =title107 -> Unit
C22: =IF(OR($R$6=1,$R$6=4,$R$6=5),IFERROR(VLOOKUP($R$4&$S8,$T$3:$V$14,2,FALSE),""),"") -> Average fuel economy | E22: =IF(OR($R$6=1,$R$6=4,$R$6=5),IFERROR(VLOOKUP($R$4&$S8,$T$3:$V$27,3,FALSE),""),"") -> l/h | F22: =IF(OR($R$6=1,$R$6=4,$R$6=5),IFERROR(VLOOKUP($R$4&$S9,$T$3:$V$14,2,FALSE),""),"") -> Fuel price | G22: =IF(F22="","",'Data entry needs'!$D$33) -> 0 | H22: =+IFERROR(VLOOKUP($R$4&$S9,$T$3:$V$14,3,FALSE),"") -> USD/l | I22: =+IFERROR(G22*D22*IF($F$11=title272,0,$D$18*'Data entry needs'!$E$12/'Data entry needs'!$E$13),"") ->  | J22: =+IF(OR($R$6=1,$R$6=4,$R$6=5),title35,"") -> USD/year
H23: =+IF(OR($R$6=1,$R$6=4,$R$6=5),title279,"") -> Subtotal | I23: =+I22 ->  | J23: =+IF(OR($R$6=1,$R$6=4,$R$6=5),title35,"") -> USD/year
H24: =+IF(OR($R$6=1,$R$6=4,$R$6=5),"Total","") -> Total | I24: =IFERROR(I20+I23,I20) -> 0 | J24: =+IF(OR($R$6=1,$R$6=4,$R$6=5),title35,"") -> USD/year
D26: =IF($R$6=7,title307,title306)&'Data entry needs'!$D$10&" "&'Data entry needs'!$D$11 -> Collection price of Please Select Please Select | I26: =IFERROR(I24/'Data entry needs'!$D$12,"") ->  | J26: =title327 -> USD/ton
O45: =title317 -> Collection method | P45: Efficiency Factor
O46: =title318 -> Mechanized | P46: 1
O47: =title319 -> Semi-mechanized | P47: 1
O48: =title272 -> Manual | P48: 1

Sheet COST_RES2
C3: =+UPPER(title238&'Data entry needs'!$E$10&" "&'Data entry needs'!$E$11) -> PROCESSING COSTS FOR PELLET PRODUCTION FROM PLEASE SELECT PLEASE SELECT
C6: =title73 -> Use white cells to input data | D6: =title74 -> Grey cells are used for calculations
C7: =title239 -> Summary of Feedstock and Storage | I7: =PROPER(title136) -> Financial Parameters
C9: =title77 -> Feedstock available (t/year) | D9: ='Data entry needs'!$E$12 -> 0 | E9: =title99 -> Chemical binder | G9: ='Data entry needs'!$E$19 -> None | I9: =title137&" (%)" -> Discount rate (%) | J9: ='Data entry needs'!D51 -> 0 | K9: =title197 -> Loan term (years) | M9: ='Data entry needs'!D54 -> 0
C10: =title78 -> Feedstock yield (t/ha) | D10: ='Data entry needs'!$E$13 -> 0 | E10: =title242 -> Chemical binder cost (USD/t) | G10: =+'Data entry needs'!$E$20 -> 0 | I10: =title138&" (%)" -> Loan ratio (%) | J10: ='Data entry needs'!D52 -> 0
C11: =title240 -> Safety storage rate of product | D11: ='Data entry needs'!$H$43 -> 0 | E11: =title101 -> Feedstock storage cost (USD/t) | G11: =+'Data entry needs'!$E$21 -> 0 | I11: =title139&" (%)" -> Loan interest rate (%) | J11: ='Data entry needs'!D53 -> 0 | K11: =+'Data entry needs'!F52 -> Plant Cost Index during 1/2017 | M11: =+'Data entry needs'!$H$52 -> 0
C12: =title241 -> Pellet products storage cost (USD/t) | D12: =+'Data entry needs'!E21 -> 0 | E12: =title243 -> Transformation efficiency (%)
C14: =title244 -> Transport Distance of Feedstock | E14: =title245 -> Transport Quantity | H14: =title246 -> Transport Distance of Products | K14: =title245 -> Transport Quantity
C16: =title247 -> Distance manual production (km) | E16: =title251 -> Manual (t/year) | G16: =+$F$33 ->  | H16: =title247 -> Distance manual production (km) | K16: =title251 -> Manual (t/year) | M16: =+$F$29 -> 0
C17: =title248 -> Distance small scale production (km) | E17: =title252 -> Small scale (t/year) | G17: =+$H$33 ->  | H17: =title248 -> Distance small scale production (km) | K17: =title252 -> Small scale (t/year) | M17: =+$H$29 -> 0
C18: =title249 -> Distance medium scale production (km) | E18: =title253 -> Medium scale (t/year) | G18: =+$J$33 ->  | H18: =title249 -> Distance medium scale production (km) | K18: =title253 -> Medium scale (t/year) | M18: =+$J$29 -> 0
C19: =title250 -> Distance large scale production (km) | E19: =title254 -> Large scale (t/year) | G19: =+$L$33 ->  | H19: =title250 -> Distance large scale production (km) | K19: =title254 -> Large scale (t/year) | M19: =+$L$29 -> 0
C22: =title266 -> Capacities (kg of pellet per hour)
C23: =title268 -> Rural Markets
F24: =title266 -> Capacities (kg of pellet per hour)
F25: 4 | H25: 40 | J25: 400 | L25: 4000
F26: =title272 -> Manual | H26: =title319 -> Semi-mechanized | J26: =title318 -> Mechanized | L26: =title318 -> Mechanized
C27: =title269 -> Urban Markets | F27: =title484 -> Agglomerator | H27: =title486 -> Screw press | J27: =title485 -> Pellet mill | L27: =title485 -> Pellet mill
F28: =title149 -> Operating hours per year | G28: =IF('Data entry needs'!$D$44>8,8,'Data entry needs'!$D$44)*IF('Data entry needs'!D43>300,300,'Data entry needs'!$D$43) -> 0 | H28: =title149 -> Operating hours per year | I28: =IF('Data entry needs'!$H$44>8,8,'Data entry needs'!$H$44)*'Data entry needs'!$D$43 -> 0 | J28: =title149 -> Operating hours per year | K28: =IF('Data entry needs'!$H$44>16,16,'Data entry needs'!$H$44)*'Data entry needs'!$D$43 -> 0 | L28: =title149 -> Operating hours per year | M28: ='Data entry needs'!$H$44*'Data entry needs'!$D$43 -> 0
C29: =title270 -> Annual pellet production (t/year) | F29: =F25*$G$28/1000 -> 0 | H29: =H25*$I$28/1000 -> 0 | J29: =J25*$K$28/1000 -> 0 | L29: =L25*$M$28/1000 -> 0
C31: =title271 -> Inputs | D31: =title107 -> Unit | E31: =title274 -> Unit Price | F31: =title276 -> Quantity | G31: Total | H31: =title276 -> Quantity | I31: Total | J31: =title276 -> Quantity | K31: Total | L31: =title276 -> Quantity | M31: Total
E32: =title275 -> (USD/Unit) | F32: =title277 -> (Unit/year) | G32: =title278 -> (USD/year) | H32: =title277 -> (Unit/year) | I32: =title278 -> (USD/year) | J32: =title277 -> (Unit/year) | K32: =title278 -> (USD/year) | L32: =title277 -> (Unit/year) | M32: =title278 -> (USD/year)
C33: =title76 -> Feedstock | D33: t | E33: =+IF('Data entry needs'!$C$17=FALSE,'Data entry needs'!E$16,'Data entry needs'!E$17) -> 0 | F33: =F$29/$G$12 ->  | G33: =+F33*E33 ->  | H33: =H$29/$G$12 ->  | I33: =+H33*$E33 ->  | J33: =J$29/$G$12 ->  | K33: =+J33*$E33 ->  | L33: =L$29/$G$12 ->  | M33: =+L33*$E33 -> 
C34: =title99 -> Chemical binder | D34: t | E34: =+'Data entry needs'!$E$20 -> 0 | F34: =IF('Data entry needs'!$D$18="NO",0,F$29/VLOOKUP($G$9,'Raw mat_Pellet'!$B$13:$C$17,2,FALSE)) -> 0 | G34: =+F34*E34 -> 0 | I34: =+H34*$E34 -> 0 | K34: =+J34*$E34 -> 0 | M34: =+L34*$E34 -> 0
C35: =title106 -> Water | D35: m3 | E35: ='Data entry needs'!$D$26 -> 0 | F35: =F$29*1000/'Raw mat_Pellet'!$C$9 -> 0 | G35: =+F35*E35 -> 0 | H35: =H$29*1000/'Raw mat_Pellet'!$C$9 -> 0 | I35: =+H35*$E35 -> 0 | J35: =J$29*1000/'Raw mat_Pellet'!$C$9 -> 0 | K35: =+J35*$E35 -> 0 | L35: =L$29*1000/'Raw mat_Pellet'!$C$9 -> 0 | M35: =+L35*$E35 -> 0
C36: =title108 -> Electricity | D36: KWh | E36: ='Data entry needs'!$H$26 -> 0 | G36: =+F36*E36 -> 0 | H36: ='Raw mat_Pellet'!$C$20*H$29 -> 0 | I36: =+H36*$E36 -> 0 | J36: ='Raw mat_Pellet'!$C$20*J$29 -> 0 | K36: =+J36*$E36 -> 0 | L36: ='Raw mat_Pellet'!$C$20*L$29 -> 0 | M36: =+L36*$E36 -> 0
C37: =title279 -> Subtotal | F37: =SUM(G33:G36) ->  | H37: =SUM(I33:I36) ->  | J37: =SUM(K33:K36) ->  | L37: =SUM(M33:M36) -> 
C39: =title280 -> Labour and miscellaneous costs | D39: =title107 -> Unit | E39: =title274 -> Unit Price | F39: =title276 -> Quantity | G39: Total | H39: =title276 -> Quantity | I39: Total | J39: =title276 -> Quantity | K39: Total | L39: =title276 -> Quantity | M39: Total
E40: (USD/person-hour) | F40: (Unit) | G40: =title278 -> (USD/year) | H40: (Unit) | I40: =title278 -> (USD/year) | J40: (Unit) | K40: =title278 -> (USD/year) | L40: (Unit) | M40: =title278 -> (USD/year)
C41: =title110 -> Skilled worker | D41: =title298 -> # employee | E41: ='Data entry needs'!$D$29 -> 0 | F41: 1 | G41: =+E41*F41*G28 -> 0 | H41: =+ROUNDUP(H29/500,0) -> 0 | I41: =+$E41*H41*I28 -> 0 | J41: =+ROUNDUP(J29/600,0) -> 0 | K41: =+$E41*J41*K28 -> 0 | L41: =+ROUNDUP(L29/700,0) -> 0 | M41: =+$E41*L41*M28 -> 0
C42: =title112 -> Unskilled worker | D42: =title298 -> # employee | E42: ='Data entry needs'!$H$29 -> 0 | F42: 0 | G42: =+E42*F42*G28 -> 0 | H42: =+ROUND(H41/4,0) -> 0 | I42: =+$E42*H42*I28 -> 0 | J42: =+ROUND(J41/4,0) -> 0 | K42: =+$E42*J42*K28 -> 0 | L42: =+ROUND(L41/4,0) -> 0 | M42: =+$E42*L42*M28 -> 0
C43: =title281 -> Miscellaneous costs | F43: =+'Data entry needs'!$H$47 -> 0 | G43: =+F43*SUM(G41:G42) -> 0 | H43: =+'Data entry needs'!$H$47 -> 0 | I43: =+H43*SUM(I41:I42) -> 0 | J43: =+'Data entry needs'!$H$47 -> 0 | K43: =+J43*SUM(K41:K42) -> 0 | L43: =+'Data entry needs'!$H$47 -> 0 | M43: =+L43*SUM(M41:M42) -> 0
C44: =title279 -> Subtotal | F44: =SUM(G41:G43) -> 0 | G44: =+G41+G42+G43 -> 0 | H44: =SUM(I41:I43) -> 0 | I44: =+I41+I42+I43 -> 0 | J44: =SUM(K41:K43) -> 0 | K44: =+K41+K42+K43 -> 0 | L44: =SUM(M41:M43) -> 0 | M44: =+M41+M42+M43 -> 0
C46: =title282 -> Transportation | D46: =title107 -> Unit | E46: =title274 -> Unit Price | F46: =title276 -> Quantity | G46: Total | H46: =title276 -> Quantity | I46: Total | J46: =title276 -> Quantity | K46: Total | L46: =title276 -> Quantity | M46: Total
E47: (USD/t/km) | F47: (Unit) | G47: =title278 -> (USD/year) | H47: (Unit) | I47: =title278 -> (USD/year) | J47: (Unit) | K47: =title278 -> (USD/year) | L47: (Unit) | M47: =title278 -> (USD/year)
C48: =title283 -> Feedstock (farm to pellet plant) | D48: km | E48: ='Data entry needs'!$D$40 -> 0 | F48: =+$D$16 -> 0 | G48: =+F48*E48*F33 ->  | H48: =+$D$17 -> 0 | I48: =+H48*$E48*H$33 ->  | J48: =+$D$18 -> 0 | K48: =+J48*$E48*J$33 ->  | L48: =+$D$19 -> 0 | M48: =+L48*$E48*L$33 -> 
C49: =title284 -> Pellet products (pellet plant to market) | D49: km | E49: ='Data entry needs'!$H$40 -> 0 | F49: =+$J$16 -> 0 | G49: =+F49*E49*F29 -> 0 | H49: =+$J$17 -> 0 | I49: =+H49*$E49*H29 -> 0 | J49: =+$J$18 -> 0 | K49: =+J49*$E49*J29 -> 0 | L49: =+$J$19 -> 0 | M49: =+L49*$E49*L29 -> 0
C50: =title279 -> Subtotal | F50: =SUM(G48:G49) ->  | G50: =SUM(G48:G49) ->  | H50: =SUM(I48:I49) ->  | I50: =SUM(I48:I49) ->  | J50: =SUM(K48:K49) ->  | K50: =SUM(K48:K49) ->  | L50: =SUM(M48:M49) ->  | M50: =SUM(M48:M49) -> 
C52: =title285 -> Storage | D52: =title107 -> Unit | E52: =title274 -> Unit Price | F52: =title276 -> Quantity | G52: Total | H52: =title276 -> Quantity | I52: Total | J52: =title276 -> Quantity | K52: Total | L52: =title276 -> Quantity | M52: Total
F53: (Unit) | G53: =title278 -> (USD/year) | H53: (Unit) | I53: =title278 -> (USD/year) | J53: (Unit) | K53: =title278 -> (USD/year) | L53: (Unit) | M53: =title278 -> (USD/year)
C54: =title76 -> Feedstock | D54: USD/t | E54: =COST_RES2!G11 -> 0 | F54: =+STORAGE_RES2!F$38 ->  | G54: =+$E$54*F54 ->  | H54: =STORAGE_RES2!$I$38 ->  | I54: =+$E$54*H54 ->  | J54: =STORAGE_RES2!$L$38 ->  | K54: =+$E$54*J54 ->  | L54: =STORAGE_RES2!$O$38 ->  | M54: =+$E$54*L54 -> 
C55: =title286 -> Pellet products | D55: USD/t | E55: =COST_RES2!D12 -> 0 | F55: =$D$11*F$29 -> 0 | G55: =+$E$55*F55 -> 0 | H55: =$D$11*H$29 -> 0 | I55: =+$E$55*H55 -> 0 | J55: =$D$11*J$29 -> 0 | K55: =+$E$55*J55 -> 0 | L55: =$D$11*L$29 -> 0 | M55: =+$E$55*L55 -> 0
C56: =title279 -> Subtotal | F56: =SUM(G54:G55) ->  | G56: =SUM(G54:G54) ->  | H56: =SUM(I54:I55) ->  | I56: =SUM(I54:I54) ->  | J56: =SUM(K54:K55) ->  | K56: =SUM(K54:K54) ->  | L56: =SUM(M54:M55) ->  | M56: =SUM(M54:M54) -> 
C58: =title287 -> Investment | D58: =title107 -> Unit | E58: Years | F58: Total | G58: =title208 -> Depreciation | H58: Total | I58: =title208 -> Depreciation | J58: Total | K58: =title208 -> Depreciation | L58: Total | M58: =title208 -> Depreciation
C59: Investment | F59: (USD) | G59: =title278 -> (USD/year) | H59: (USD) | I59: =title278 -> (USD/year) | J59: (USD) | K59: =title278 -> (USD/year) | L59: (USD) | M59: =title278 -> (USD/year)
C60: =title162 -> Equipments | D60: USD | E60: 20 | F60: =Investment_Pellet!$C$12*('Data entry needs'!$H$52/136) -> 0 | G60: =+F60/E60 -> 0 | H60: =Investment_Pellet!$D$12*('Data entry needs'!$H$52/136) -> 0 | I60: =+H60/$E$60 -> 0 | J60: =Investment_Pellet!$E$12*('Data entry needs'!$H$52/136) -> 0 | K60: =+J60/$E$60 -> 0 | L60: =Investment_Pellet!$F$12*('Data entry needs'!$H$52/136) -> 0 | M60: =+L60/$E$60 -> 0
C61: =title163 -> Building | D61: USD | E61: 20 | F61: =Investment_Pellet!$D$17*('Data entry needs'!$H$52/136) -> 0 | G61: =+F61/E61 -> 0 | H61: =Investment_Pellet!$D$18*('Data entry needs'!$H$52/136) -> 0 | I61: =+H61/$E$60 -> 0 | J61: =Investment_Pellet!$D$19*('Data entry needs'!$H$52/136) -> 0 | K61: =+J61/$E$60 -> 0 | L61: =Investment_Pellet!$D$20*('Data entry needs'!$H$52/136) -> 0 | M61: =+L61/$E$60 -> 0
C62: =title164 -> Installation | D62: USD | E62: 20 | F62: =Investment_Pellet!$C$17*('Data entry needs'!$H$52/136) -> 0 | G62: =+F62/E62 -> 0 | H62: =Investment_Pellet!$C$18*('Data entry needs'!$H$52/136) -> 0 | I62: =+H62/$E$60 -> 0 | J62: =Investment_Pellet!$C$19*('Data entry needs'!$H$52/136) -> 0 | K62: =+J62/$E$60 -> 0 | L62: =Investment_Pellet!$C$20*('Data entry needs'!$H$52/136) -> 0 | M62: =+L62/$E$60 -> 0
C63: =title288 -> Total investments | F63: =SUM(F60:F62) -> 0 | H63: =SUM(H60:H62) -> 0 | J63: =SUM(J60:J62) -> 0 | L63: =SUM(L60:L62) -> 0
